Workbook

Sheet Disclaimer
B1: This 'Beef Value Calculator II' is provided under Creative Commons Licence CC-BY-SA 4.0 For more information go to www.mla.com.au/creative-commons © Meat & Livestock Australia
B2: DISCLAIMER

Sheet Hub
B2: Beef Value Calculator
C8: BT
C10: Domestic
C12: Grass
B17: Beef Value Calculator v1.0

Sheet Carcase Description
B1: =CONCATENATE(Lists!D51," Carcase Description") -> Beef Carcase Description
B3: Yield Model:
B4: Trade Type: | C4: Over the Hooks | E4: Trade Price: | F4: =IF(INDEX(TradeTypeTable[ComboBoxSel],1)=2,'Purchasing - Slaughter Expenses'!J14,'Purchasing - Slaughter Expenses'!O10) -> 3.2 | G4: /kg of HSCW
B7: Data Set: | E7: Select Boning Group
B8: =Lists!C4 -> P8 Fat Depth: | C8: 21 | D8: mm | E8: =Lists!H3 -> Range: 1 mm - 35 mm
B11: Average HSCW: | C11: 450 | D11: kg | E11: =Lists!H5 -> Range: 280 kg - 500 kg
B13: Shrinkage: | C13: 0 | D13: % | E13: =Lists!H6 -> Range: 0 % - 5 % | M13: Breed
B16: Chiller Data:
B17: =Lists!C20 -> 10 th Rib Fat depth: | C17: 8 | D17: mm | E17: =Lists!H19 -> Range: 3 mm - 27 mm
B19: =Lists!C22 -> EMA 10th Rib: | C19: 100 | D19: cm2 | E19: =Lists!H21 -> Range: 55 cm2 - 104 cm2
B21: MSA Marbling: | C21: 110 | E21: Range: 110 - 1190
B23: Ossification: | C23: 100 | E23: Range: 100 - 590
B25: Meat Colour: | C25: 27 | E25: Range: 1A - 6
C27: 30 | E27: Range: % - %
B29: : | C29: 28 | D29: % | E29: Range: % - %
B31: Objective Carcase Measurement:
B32: CT LEAN %: | C32: 65 | D32: % | E32: =Lists!H11 -> Range: 47 % - 65 %
B34: DEXA CT LEAN %: | C34: 49 | D34: % | E34: =Lists!H13 -> Range: 49 % - 65 %
B36: DEXA CT FAT %: | C36: 17 | D36: % | E36: =Lists!H15 -> Range: 17 % - 39 %
B38: DEXA CT BONE %: | C38: 15 | D38: % | E38: =Lists!H17 -> Range: 12 % - 19 %
B40: Saddle: | C40: 29 | D40: % | E40: Range: % - %
B42: FQ: | C42: 25 | D42: % | E42: Range: % - %
B44: Saddle: | C44: 26 | D44: % | E44: Range: % - %
B46: HQ: | C46: 27 | D46: % | E46: Range: % - %
B48: Whole Carcase:
B50: Saddle: | C50: 32 | D50: % | E50: Range: % - %
B52: HQ: | C52: 33 | D52: % | E52: Range: % - %
B55: Whole Carcase:
B57: FQ: | C57: 31 | D57: % | E57: Range: % - %
B59: Saddle: | C59: 32 | D59: % | E59: Range: % - %
B61: HQ: | C61: 33 | D61: % | E61: Range: % - %
M64: Working Field - GR (mm)
M65: =IF(C66="X-Breed",0,1) -> 1
M67: Working Field - GR (mm)
M68: 23
C78: Carcase Peformance | E78: =Lists!E179 -> 
C79: Items | D79: (per hd)
C80: Carcase Purchase: | D80: ='Analysis Tables'!L4 -> 1440
C81: ='Analysis Tables'!K5 -> S/F Costs (incl Revenue): | D81: ='Analysis Tables'!L5 -> 5.5
C82: ='Analysis Tables'!K6 -> Fixed Boning Costs: | D82: ='Analysis Tables'!L6 -> 15
C83: ='Analysis Tables'!K7 -> Secondary Fabrication Costs: | D83: ='Analysis Tables'!L7 -> 9.314
C84: ='Analysis Tables'!K8 -> Primal Boning Costs: | D84: ='Analysis Tables'!L8 -> 90.7707
C85: Total Costs: | D85: ='Analysis Tables'!L9 -> 1560.5847
C86: Carcase Value: | D86: ='Analysis Tables'!L10 -> 1633.9352
C87: Carcase Gross Margin: | D87: ='Analysis Tables'!L11 -> -0.4875384676
C88: Carcase Gross Margin (%): | D88: ='Analysis Tables'!L12 -> -0.0002983829883
B90: =IF(Lists!E265=1,"Warning: Check Rec%","") ->  | C90: Carcase Composition | E90: Cut Value Analysis | G90: Gross Margin Analysis
B91: Primal Region | C91: ='Analysis Tables'!C16 -> Weight (kg) | D91: ='Analysis Tables'!D16 -> Yield % | E91: ='Analysis Tables'!C4 -> Value ($) | F91: ='Analysis Tables'!D4 -> Propn (%) | G91: GM ($) | H91: GM (%)
B92: Butt | C92: ='Analysis Tables'!C17 -> 89.1 | D92: ='Analysis Tables'!D17 -> 0.198 | E92: ='Analysis Tables'!C5 -> 470.6004 | F92: ='Analysis Tables'!D5 -> 0.2880165627 | G92: ='Analysis Tables'!E5 -> -67.20120527 | H92: ='Analysis Tables'!F5 -> -0.1427988698
B93: Loin | C93: ='Analysis Tables'!C18 -> 40.14 | D93: ='Analysis Tables'!D18 -> 0.0892 | E93: ='Analysis Tables'!C6 -> 210.068 | F93: ='Analysis Tables'!D6 -> 0.1285656861 | G93: ='Analysis Tables'!E6 -> -3.698206632 | H93: ='Analysis Tables'!F6 -> -0.01760480717
B94: Rib | C94: ='Analysis Tables'!C19 -> 56.68 | D94: ='Analysis Tables'!D19 -> 0.1259555556 | E94: ='Analysis Tables'!C7 -> 306.4944 | F94: ='Analysis Tables'!D7 -> 0.1875805111 | G94: ='Analysis Tables'!E7 -> 12.74675005 | H94: ='Analysis Tables'!F7 -> 0.04158885137
B95: Chuck | C95: ='Analysis Tables'!C20 -> 82.84 | D95: ='Analysis Tables'!D20 -> 0.1840888889 | E95: ='Analysis Tables'!C8 -> 443.3304 | F95: ='Analysis Tables'!D8 -> 0.2713267944 | G95: ='Analysis Tables'!E8 -> -136.4628766 | H95: ='Analysis Tables'!F8 -> -0.3078130365
B96: Lean Trim | C96: ='Analysis Tables'!C21 -> 41.49 | D96: ='Analysis Tables'!D21 -> 0.0922 | E96: ='Analysis Tables'!C9 -> 114.1365 | F96: ='Analysis Tables'!D9 -> 0.0698537494 | G96: ='Analysis Tables'!E9 -> 104.8225 | H96: ='Analysis Tables'!F9 -> 0.9183959557
B97: Saleable Meat Totals | C97: ='Analysis Tables'!C22 -> 310.25 | D97: ='Analysis Tables'!D22 -> 0.6894444444 | E97: ='Analysis Tables'!C10 -> 1544.6297 | F97: ='Analysis Tables'!D10 -> 0.9453433037 | G97: ='Analysis Tables'!E10 -> -89.79303847 | H97: ='Analysis Tables'!F10 -> -0.05813240446
B98: Secondary Product Totals | C98: ='Analysis Tables'!C23 -> 130.86 | E98: ='Analysis Tables'!C11 -> 89.3055 | F98: ='Analysis Tables'!D11 -> 0.0546566963 | G98: ='Analysis Tables'!E11 -> 89.3055
B99: Whole Carcase Totals | C99: ='Analysis Tables'!C24 -> 441.11 | D99: ='Analysis Tables'!D24 -> 0.9802444444 | E99: ='Analysis Tables'!C12 -> 1633.9352 | F99: ='Analysis Tables'!D12 -> 1 | G99: ='Analysis Tables'!E12 -> -0.4875384676 | H99: ='Analysis Tables'!F12 -> -0.0002983829883

Sheet Over the Hooks Grid
B1: Over the Hook Trading. | AP1: =IF(AND($AK$9 >=AL9, $AK$9<=AM9),0,IF($AK$9>AL9,1*TRUNC((AL9-$AK$9)/$AK$8),1*TRUNC((AM9-$AK$9)/$AK$8)))
B2: =Lists!C148 -> Trade: OTH Dataset: BT,Ox, 10th Ribbing Site Yield Model: CCW/P8FD quad HCW: 450kg P8FD:21mm | AA2: Genrate a P8 OR FS (P8FD = 2) | AB2: 2 | AD2: HSCW Band | AE2: 20 | AR2: Updated when sheet deactivated | BD2: ROW | BE2: =MATCH(0,BE6:BE29,0) ->  | BH2: ROW | BI2: =MATCH(0,BI6:BI29,0) -> 
B3: P8FDid Base Price: | C3: 3.5 | D3: /kg of CW | J3: HSCW ranges | L3: =IF(L5=1,"FATSCORES","P8 Fat Depth Ranges") -> P8 Fat Depth Ranges | AA3: HSCW min | AB3: 170 | AC3: Ranges | AJ3: P8FD MIN | AK3: 0 | AL3: Ranges | AS3: CARC P8FD | AT3: ='Carcase Description'!C8 -> 21 | AW3: CARC CW | AX3: ='Carcase Description'!C11 -> 450 | AZ3: =INDIRECT("AY"&AY5+6) | BD3: NO Errors | BE3: =COUNTIF(BE6:BE29,"<1") -> 0 | BH3: NO Errors | BI3: =COUNTIF(BI6:BI29,"<1") -> 0
B4: HSCW Definition | F4: HSCW ranges | L4: 0 | M4: 5 | N4: 10 | O4: 15 | P4: 20 | Q4: 25 | R4: 30 | S4: 35 | T4: 40 | AA4: HSCW max | AB4: 500 | AC4: MIN | AD4: MAX | AE4: Wts Within Band Yes = 0 | AF4: Wt Bands | AG4: Base Price Wt (Yes = 0) | AH4: Prem/Disc | AJ4: P8FD MAX | AK4: 40 | AL4: MIN | AM4: MAX | AN4: Wts Within Band Yes = 0 | AO4: Wt Bands | AP4: Base Price Wt (Yes = 0) | AQ4: Prem/Disc | AR4: ACTUAL P8FD ON OTH P8FDID | AU4: VLOOKUP COL | AV4: ACTUAL CW ON OTH P8FDID | AY4: VLOOKUP ROW | AZ4: RANGE | BD4: Number OK | BE4: =COUNTIF(BE6:BE29,">=1")+1 -> 17 | BH4: Number OK | BI4: =COUNTIF(BI6:BI29,">=1")+1 -> 9
B5: Specification | C5: Values | F5: MIN | G5: MAX | H5: Prem/Disc | J5: MIN | K5: MAX | L5: 4.9 | M5: 9.9 | N5: 14.9 | O5: 19.9 | P5: 24.9 | Q5: 29.9 | R5: 34.9 | S5: 39.9 | T5: 44.9 | AA5: HSCW min | AB5: 170 | AG5: -1 | AJ5: P8FD min (0 mm to | AK5: 0 | AP5: -1 | AR5: MIN | AS5: MAX | AU5: =COUNTIF(AT6:AT26,0)+2 -> 6 | AV5: MIN | AW5: MAX | AX5: Range | AY5: =COUNTIF(AX6:AX26,0)+1 -> 15 | AZ5: =IF(AY5=22,AY6,INDIRECT("AY"&AY5+5)) -> 19.9 | BC5: MIN | BD5: MAX | BE5: Diff | BG5: MIN | BH5: MAX | BI5: Diff
B6: HSCW min (≥170 kg) | C6: 170 | D6: kg | F6: 170 | G6: 189.9 | H6: -0.3 | J6: 170 | K6: 189.9 | L6: 3.1 | M6: 3.1 | N6: 3.2 | O6: 3.2 | P6: 3.2 | Q6: 3.1 | R6: 3.1 | S6: 3.1 | T6: 3.1 | AA6: HSCW max | AB6: 500 | AC6: =AB5 -> 170 | AD6: =AC6+$AB$7-0.1 -> 189.9 | AE6: =IF(AND(AB6>=AC6,AB6<=AC6),1,0) -> 0 | AF6: =CONCATENATE(AC6," - ", AD6, " kg") -> 170 - 189.9 kg | AG6: =IF(AND($AB$8>=AC6,$AB$8<=AD6),0,IF(AND($AB$9>=AC6,$AB$9<=AD6),0,IF(AND(AG5=0,$AB$9>AC6,$AB$9>AD6),0,IF($AB$8>AC6,-1,-1)))) -> -1 | AH6: =AG6*$AB$10 -> -0.3 | AJ6: P8FD max | AK6: 40 | AL6: =AK5 -> 0 | AM6: =AL6+AK$7-0.1 -> 4.9 | AN6: =IF(AND(AK6>=AL6,AK6<=AM6),1,0) -> 0 | AO6: =CONCATENATE(AL6," - ", AM6, " kg") -> 0 - 4.9 kg | AP6: =IF(AND($AK$8>=AL6,$AK$8<=AM6),0,IF(AND($AK$9>=AL6,$AK$9<=AM6),0,IF(AND(AP5=0,$AK$9>AL6,$AK$9>AM6),0,IF($AK$8>AL6,-1,-1)))) -> -1 | AQ6: =AP6*$AK$10 -> -0.1 | AR6: 0 | AS6: 4.9 | AT6: =IF($AT$3<=AS6,1,0) -> 0 | AU6: 1 | AV6: 170 | AW6: 189.9 | AX6: =IF(AND($AX$3>=AV6,$AX$3<=AW6),1,0) -> 0 | AY6: =IF(AX3<AV6,-AX3+AW6,AW6-AV6) -> 19.9 | AZ6: =INDIRECT("AY"&AY5+5) -> 19.9 | BC6: 170 | BD6: 189.9 | BE6: =IF(BD7=0,"END",IF(BD7>BD6,1,0)) -> 1 | BG6: 0 | BH6: 4.9 | BI6: =IF(BH7=0,"END",IF(BH7>BH6,1,0)) -> 1 | BR6: 0 | BS6: 4.9
B7: HSCW max (≤ 500 kg) | C7: 500 | D7: kg | F7: 190 | G7: 209.9 | H7: -0.3 | J7: 190 | K7: 209.9 | L7: 3.1 | M7: 3.1 | N7: 3.2 | O7: 3.2 | P7: 3.2 | Q7: 3.1 | R7: 3.1 | S7: 3.1 | T7: 3.1 | AA7: Wt Band | AB7: 20 | AC7: =AC6+$AB$7 -> 190 | AD7: 209.9 | AE7: =(IF(AE6=1,1,IF(AND($AB$6>=AC6,$AB$6<=AD6),1,0))) -> 0 | AF7: 190 - 209.9 kg | AG7: -1 | AH7: -0.3 | AJ7: P8FD Band | AK7: 5 | AL7: =AL6+$AK$7 -> 5 | AM7: 9.9 | AN7: =(IF(AN6=1,1,IF(AND(AK6>=AL6,AK6<=AM6),1,0))) -> 0 | AO7: 5 - 9.9 kg | AP7: =IF(AND($AK$8>=AL7,$AK$8<=AM7),0,IF(AND($AK$9>=AL7,$AK$9<=AM7),0,IF(AND(AP6=0,$AK$9>AL7,$AK$9>AM7),0,IF($AK$8>AL7,-1,-1)))) -> -1 | AQ7: -0.1 | AR7: 5 | AS7: 9.9 | AT7: =(IF(OR(AS8="",AT6=1),1,IF(AND($AT$3>AS6,$AT$3<=AS7),1,0))) -> 0 | AU7: 3 | AV7: 190 | AW7: 209.9 | AX7: =(IF(AX6=1,1,IF(AND($AX$3>AW6,$AX$3<=AW7),1,0))) -> 0 | AY7: =IF(AX7=1,AW7-AW6-($AX$3-AW6),AW7-AW6) -> 20 | BC7: 190 | BD7: 209.9 | BE7: 1 | BG7: 5 | BH7: 9.9 | BI7: 1 | BR7: 5 | BS7: 14.9
B8: Wt Band ( ≥20kg) | C8: 20 | D8: kg | F8: 210 | G8: 229.9 | H8: 0 | J8: 210 | K8: 229.9 | L8: 3.4 | M8: 3.4 | N8: 3.5 | O8: 3.5 | P8: 3.5 | Q8: 3.4 | R8: 3.4 | S8: 3.4 | T8: 3.4 | AA8: MInHSCW for Base Price | AB8: 220 | AC8: 210 | AD8: 229.9 | AE8: 0 | AF8: 210 - 229.9 kg | AG8: 0 | AH8: 0 | AJ8: Min P8FD for Base Price | AK8: 12 | AL8: 10 | AM8: 14.9 | AN8: =(IF(AN7=1,1,IF(AND($AK$6>=AL7,$AK$6<=AM7),1,0))) -> 0 | AO8: 10 - 14.9 kg | AP8: 0 | AQ8: 0 | AR8: 10 | AS8: 14.9 | AT8: 0 | AU8: 4 | AV8: 210 | AW8: 229.9 | AX8: 0 | AY8: 20 | BC8: 210 | BD8: 229.9 | BE8: 1 | BG8: 10 | BH8: 14.9 | BI8: 1 | BR8: 15 | BS8: 19.9
B9: Min HSCW for Base Price | C9: 220 | D9: kg | F9: 230 | G9: 249.9 | H9: 0 | J9: 230 | K9: 249.9 | L9: 3.4 | M9: 3.4 | N9: 3.5 | O9: 3.5 | P9: 3.5 | Q9: 3.4 | R9: 3.4 | S9: 3.4 | T9: 3.4 | AA9: MaxHSCW for Base Price | AB9: 320 | AC9: 230 | AD9: 249.9 | AE9: 0 | AF9: 230 - 249.9 kg | AG9: 0 | AH9: 0 | AJ9: Max P8FD for Base Price | AK9: 20 | AL9: 15 | AM9: 19.9 | AN9: 0 | AO9: 15 - 19.9 kg | AP9: 0 | AQ9: 0 | AR9: 15 | AS9: 19.9 | AT9: 0 | AU9: 5 | AV9: 230 | AW9: 249.9 | AX9: 0 | AY9: 20 | BC9: 230 | BD9: 249.9 | BE9: 1 | BG9: 15 | BH9: 19.9 | BI9: 1 | BR9: 20 | BS9: 24.9
B10: Max HSCW for Base Price | C10: 320 | D10: kg | F10: 250 | G10: 269.9 | H10: 0 | J10: 250 | K10: 269.9 | L10: 3.4 | M10: 3.4 | N10: 3.5 | O10: 3.5 | P10: 3.5 | Q10: 3.4 | R10: 3.4 | S10: 3.4 | T10: 3.4 | AA10: $ Increments for Wt Bands | AB10: 0.3 | AC10: 250 | AD10: 269.9 | AE10: 0 | AF10: 250 - 269.9 kg | AG10: 0 | AH10: 0 | AJ10: $ Increments for P8FD Bands | AK10: 0.1 | AL10: 20 | AM10: 24.9 | AN10: 0 | AO10: 20 - 24.9 kg | AP10: 0 | AQ10: 0 | AR10: 20 | AS10: 24.9 | AT10: 1 | AU10: 6 | AV10: 250 | AW10: 269.9 | AX10: 0 | AY10: 20 | BC10: 250 | BD10: 269.9 | BE10: 1 | BG10: 20 | BH10: 24.9 | BI10: 1 | BR10: 25 | BS10: 29.9
B11: $ Increments for Wt Bands | C11: 0.3 | D11: Wt Band | F11: 270 | G11: 289.9 | H11: 0 | J11: 270 | K11: 289.9 | L11: 3.4 | M11: 3.4 | N11: 3.5 | O11: 3.5 | P11: 3.5 | Q11: 3.4 | R11: 3.4 | S11: 3.4 | T11: 3.4 | AA11: Base Price | AB11: =C3 -> 3.5 | AC11: 270 | AD11: 289.9 | AE11: 0 | AF11: 270 - 289.9 kg | AG11: 0 | AH11: 0 | AJ11: =AA11 -> Base Price | AK11: =AB11 -> 3.5 | AL11: 25 | AM11: 29.9 | AN11: 0 | AO11: 25 - 29.9 kg | AP11: -1 | AQ11: -0.1 | AR11: 25 | AS11: 29.9 | AT11: 1 | AU11: 7 | AV11: 270 | AW11: 289.9 | AX11: 0 | AY11: 20 | BC11: 270 | BD11: 289.9 | BE11: 1 | BG11: 25 | BH11: 29.9 | BI11: 1 | BR11: 30 | BS11: 34.9
F12: 290 | G12: 309.9 | H12: 0 | J12: 290 | K12: 309.9 | L12: 3.4 | M12: 3.4 | N12: 3.5 | O12: 3.5 | P12: 3.5 | Q12: 3.4 | R12: 3.4 | S12: 3.4 | T12: 3.4 | AA12: Base HSCW is out of range | AB12: =IF(AND(C9>=C6,C9<=C7,C10>=C6,C10<=C7,C10>=C9),0,1) -> 0 | AC12: 290 | AD12: 309.9 | AE12: 0 | AF12: 290 - 309.9 kg | AG12: =IF(AND($AB$8>=AC12,$AB$8<=AD12),0,IF(AND($AB$9>=AC12,$AB$9<=AD12),0,IF(AND(AG11=0,$AB$9>AC12,$AB$9>AD12),0,IF($AB$8>AC12,-1,-1)))) -> 0 | AH12: 0 | AJ12: Base P8FD is out of range | AK12: =IF(AND(C35>=C32,C35<=C33,C36>=C32,C36<=C33),0,1) -> 0 | AL12: 30 | AM12: 34.9 | AN12: 0 | AO12: 30 - 34.9 kg | AP12: -1 | AQ12: -0.1 | AR12: 30 | AS12: 34.9 | AT12: 1 | AU12: 8 | AV12: 290 | AW12: 309.9 | AX12: 0 | AY12: 20 | BC12: 290 | BD12: 309.9 | BE12: 1 | BG12: 30 | BH12: 34.9 | BI12: 1
F13: 310 | G13: 329.9 | H13: 0 | J13: 310 | K13: 329.9 | L13: 3.4 | M13: 3.4 | N13: 3.5 | O13: 3.5 | P13: 3.5 | Q13: 3.4 | R13: 3.4 | S13: 3.4 | T13: 3.4 | AA13: Error Checks | AC13: 310 | AD13: 329.9 | AE13: 0 | AF13: 310 - 329.9 kg | AG13: 0 | AH13: 0 | AJ13: Error Checks | AL13: 35 | AM13: 39.9 | AN13: 0 | AO13: 35 - 39.9 kg | AP13: -1 | AQ13: -0.1 | AR13: 35 | AS13: 39.9 | AT13: 1 | AU13: 9 | AV13: 310 | AW13: 329.9 | AX13: 0 | AY13: 20 | BC13: 310 | BD13: 329.9 | BE13: 1 | BG13: 35 | BH13: 39.9 | BI13: 1
F14: 330 | G14: 349.9 | H14: -0.3 | J14: 330 | K14: 349.9 | L14: 3.1 | M14: 3.1 | N14: 3.2 | O14: 3.2 | P14: 3.2 | Q14: 3.1 | R14: 3.1 | S14: 3.1 | T14: 3.1 | AA14: HSCW MIN Within Range | AB14: =IF(C6<AB3,"Err","ok") -> ok | AC14: 330 | AD14: 349.9 | AE14: 0 | AF14: 330 - 349.9 kg | AG14: -1 | AH14: -0.3 | AJ14: HSCW MIN Within Range | AK14: =IF(C32<AK3,"Err","ok") -> ok | AL14: 40 | AM14: 44.9 | AN14: 0 | AO14: 40 - 44.9 kg | AP14: -1 | AQ14: -0.1 | AR14: 40 | AS14: 44.9 | AT14: 1 | AU14: 10 | AV14: 330 | AW14: 349.9 | AX14: 0 | AY14: 20 | BC14: 330 | BD14: 349.9 | BE14: 1 | BG14: 40 | BH14: 44.9 | BI14: END
F15: 350 | G15: 369.9 | H15: -0.3 | J15: 350 | K15: 369.9 | L15: 3.1 | M15: 3.1 | N15: 3.2 | O15: 3.2 | P15: 3.2 | Q15: 3.1 | R15: 3.1 | S15: 3.1 | T15: 3.1 | AA15: HSCW MAX Within Range | AB15: =IF(C7>AB4,"Err","ok") -> ok | AC15: 350 | AD15: 369.9 | AE15: 0 | AF15: 350 - 369.9 kg | AG15: -1 | AH15: -0.3 | AJ15: HSCW MAX Within Range | AK15: =IF(C33>AK4,"Err","ok") -> ok | AL15: 45 | AM15: 49.9 | AN15: 1 | AO15: 45 - 49.9 kg | AP15: -1 | AQ15: -0.1 | AT15: 1 | AU15: 11 | AV15: 350 | AW15: 369.9 | AX15: 0 | AY15: 20 | BC15: 350 | BD15: 369.9 | BE15: 1 | BI15: END
F16: 370 | G16: 389.9 | H16: -0.3 | J16: 370 | K16: 389.9 | L16: 3.1 | M16: 3.1 | N16: 3.2 | O16: 3.2 | P16: 3.2 | Q16: 3.1 | R16: 3.1 | S16: 3.1 | T16: 3.1 | AA16: MAX < MIN | AB16: =IF(C7<=(C6+$AE$2),"Err","ok") -> ok | AC16: 370 | AD16: 389.9 | AE16: 0 | AF16: 370 - 389.9 kg | AG16: -1 | AH16: -0.3 | AJ16: MAX < MIN | AK16: =IF(C33<=C32,"Err","ok") -> ok | AL16: 50 | AM16: 54.9 | AN16: 1 | AO16: 50 - 54.9 kg | AP16: -1 | AQ16: -0.1 | AT16: 1 | AU16: 12 | AV16: 370 | AW16: 389.9 | AX16: 0 | AY16: 20 | BC16: 370 | BD16: 389.9 | BE16: 1 | BI16: END
F17: 390 | G17: 409.9 | H17: -0.3 | J17: 390 | K17: 409.9 | L17: 3.1 | M17: 3.1 | N17: 3.2 | O17: 3.2 | P17: 3.2 | Q17: 3.1 | R17: 3.1 | S17: 3.1 | T17: 3.1 | AA17: WT Band too Small | AB17: =IF(C8<$AE$2,"Err","ok") -> ok | AC17: 390 | AD17: 409.9 | AE17: 0 | AF17: 390 - 409.9 kg | AG17: -1 | AH17: -0.3 | AJ17: WT Band too Small | AK17: =IF(C34<5,"Err","ok") -> ok | AL17: 55 | AM17: 59.9 | AN17: 1 | AO17: 55 - 59.9 kg | AP17: -1 | AQ17: -0.1 | AV17: 390 | AW17: 409.9 | AX17: =(IF(AX16=1,1,IF(AND($AX$3>AW16,$AX$3<=AW17),1,0))) -> 0 | AY17: 20 | BC17: 390 | BD17: 409.9 | BE17: 1 | BG17: =F43 -> 0 | BH17: =G43 -> 0 | BI17: END
F18: 410 | G18: 429.9 | H18: -0.3 | J18: 410 | K18: 429.9 | L18: 3.1 | M18: 3.1 | N18: 3.2 | O18: 3.2 | P18: 3.2 | Q18: 3.1 | R18: 3.1 | S18: 3.1 | T18: 3.1 | AA18: WT Band < CW range | AB18: =IF(C8<=(C7-C6),"ok","Err") -> ok | AC18: 410 | AD18: 429.9 | AE18: 0 | AF18: 410 - 429.9 kg | AG18: -1 | AH18: -0.3 | AJ18: WT Band < CW range | AK18: =IF(C34<(C33-C32),"ok","Err") -> ok | AL18: 60 | AM18: 64.9 | AN18: 1 | AO18: 60 - 64.9 kg | AP18: -1 | AQ18: -0.1 | AV18: 410 | AW18: 429.9 | AX18: 0 | AY18: 20 | BC18: 410 | BD18: 429.9 | BE18: 1 | BG18: 0 | BH18: 0 | BI18: END
F19: 430 | G19: 449.9 | H19: -0.3 | J19: 430 | K19: 449.9 | L19: 3.1 | M19: 3.1 | N19: 3.2 | O19: 3.2 | P19: 3.2 | Q19: 3.1 | R19: 3.1 | S19: 3.1 | T19: 3.1 | AA19: CW base price within range | AB19: =IF(AND(C9>=C6,C9<=C7,C10>=C6,C10<=C7,C10>=(C9+AE2)),"ok","Err") -> ok | AC19: 430 | AD19: 449.9 | AE19: 0 | AF19: 430 - 449.9 kg | AG19: -1 | AH19: -0.3 | AJ19: CW base price within range | AK19: =IF(AND(C35>=C32,C35<=C33,C36>=C32,C36<=C33,C36>=C35),"ok","Err") -> ok | AL19: 65 | AM19: 69.9 | AN19: 1 | AO19: 65 - 69.9 kg | AP19: -1 | AQ19: -0.1 | AV19: 430 | AW19: 449.9 | AX19: 0 | AY19: 20 | BC19: 430 | BD19: 449.9 | BE19: 1 | BG19: 0 | BH19: 0 | BI19: END
F20: 450 | G20: 469.9 | H20: -0.3 | J20: 450 | K20: 469.9 | L20: 3.1 | M20: 3.1 | N20: 3.2 | O20: 3.2 | P20: 3.2 | Q20: 3.1 | R20: 3.1 | S20: 3.1 | T20: 3.1 | AA20: $ are numbers | AB20: =IF(ISNUMBER(C11),"ok","Err") -> ok | AC20: 450 | AD20: 469.9 | AE20: 0 | AF20: 450 - 469.9 kg | AG20: -1 | AH20: -0.3 | AJ20: $ are numbers | AK20: =IF((ISNUMBER(C37)),"ok","Err") -> ok | AL20: 70 | AM20: 74.9 | AN20: 1 | AO20: 70 - 74.9 kg | AP20: -1 | AQ20: -0.1 | AV20: 450 | AW20: 469.9 | AX20: 1 | AY20: 19.9 | BC20: 450 | BD20: 469.9 | BE20: 1 | BG20: 0 | BH20: 0 | BI20: END
F21: 470 | G21: 489.9 | H21: -0.3 | J21: 470 | K21: 489.9 | L21: 3.1 | M21: 3.1 | N21: 3.2 | O21: 3.2 | P21: 3.2 | Q21: 3.1 | R21: 3.1 | S21: 3.1 | T21: 3.1 | AA21: Increment Less than Base | AB21: =IF(C11<=C3,"ok","Err") -> ok | AC21: 470 | AD21: 489.9 | AE21: 0 | AF21: 470 - 489.9 kg | AG21: =IF(AND($AB$8>=AC21,$AB$8<=AD21),0,IF(AND($AB$9>=AC21,$AB$9<=AD21),0,IF(AND(AG20=0,$AB$9>AC21,$AB$9>AD21),0,IF($AB$8>AC21,-1,-1)))) -> -1 | AH21: -0.3 | AJ21: Increment Less than Base | AK21: =IF(C37<=C3,"ok","Err") -> ok | AL21: 75 | AM21: 79.9 | AN21: 1 | AO21: 75 - 79.9 kg | AP21: =IF(AND($AK$8>=AL21,$AK$8<=AM21),0,IF(AND($AK$9>=AL21,$AK$9<=AM21),0,IF(AND(AP20=0,$AK$9>AL21,$AK$9>AM21),0,IF($AK$8>AL21,-1,-1)))) -> -1 | AQ21: -0.1 | AV21: 470 | AW21: 489.9 | AX21: 1 | AY21: 39.9 | BA21: FATSCORE | BC21: 470 | BD21: 489.9 | BE21: 1 | BG21: 0 | BH21: 0 | BI21: END
F22: 490 | G22: 509.9 | H22: -0.3 | J22: 490 | K22: 509.9 | L22: 3.1 | M22: 3.1 | N22: 3.2 | O22: 3.2 | P22: 3.2 | Q22: 3.1 | R22: 3.1 | S22: 3.1 | T22: 3.1 | AA22: Number of Errs | AB22: =COUNTIF(AB14:AB21,"Err") -> 0 | AC22: 490 | AD22: 509.9 | AE22: 0 | AF22: 490 - 509.9 kg | AG22: -1 | AH22: -0.3 | AJ22: Number of Errs | AK22: =COUNTIF(AK14:AK21,"Err") -> 0 | AL22: 80 | AM22: 84.9 | AN22: 1 | AO22: 80 - 84.9 kg | AP22: -1 | AQ22: -0.1 | AV22: 490 | AW22: 509.9 | AX22: 1 | AY22: 59.9 | BC22: 490 | BD22: 509.9 | BE22: END | BG22: 0 | BH22: 0 | BI22: END
AA23: Error for OTH Generation | AC23: 510 | AD23: 529.9 | AE23: 1 | AF23: 510 - 529.9 kg | AG23: -1 | AH23: -0.3 | AJ23: Error for OTH Genration | AL23: 85 | AM23: 89.9 | AN23: 1 | AO23: 85 - 89.9 kg | AP23: -1 | AQ23: -0.1 | AX23: 1 | AY23: -450 | BA23: Error for OTH Genration using FS | BE23: END | BG23: 0 | BH23: 0 | BI23: END
AA24: Increment Less than Base | AB24: =IF(ABS(MIN(H6:H28))>C3,"Err","ok") -> ok | AC24: 530 | AD24: 549.9 | AE24: 1 | AF24: 530 - 549.9 kg | AG24: -1 | AH24: -0.3 | AJ24: Increment Less than Base | AK24: =IF(ABS(MIN(H32:H54))>$C$3,"Err","ok") -> ok | AL24: 90 | AM24: 94.9 | AN24: 1 | AO24: 90 - 94.9 kg | AP24: -1 | AQ24: -0.1 | AX24: 1 | AY24: -450 | BA24: Increment Less than Base | BB24: =IF(ABS(MIN(K32:K36))>$C$3,"Err","ok") -> ok | BE24: END | BG24: 0 | BH24: 0 | BI24: END
AA25: MIN | AB25: =MIN(H6:H28) -> -0.3 | AC25: 550 | AD25: 569.9 | AE25: 1 | AF25: 550 - 569.9 kg | AG25: -1 | AH25: -0.3 | AJ25: MIN | AK25: =MIN(H32:H54) -> -0.1 | AL25: 95 | AM25: 99.9 | AN25: 1 | AO25: 95 - 99.9 kg | AP25: -1 | AQ25: -0.1 | AX25: 1 | AY25: -450 | BA25: MIN | BB25: =MIN(K32:K36) -> 0 | BE25: END | BG25: 0 | BH25: 0 | BI25: END
AA26: Row reference | AB26: =MATCH(AB25,H6:H29,0) -> 1 | AC26: 570 | AD26: 589.9 | AE26: 1 | AF26: 570 - 589.9 kg | AG26: -1 | AH26: -0.3 | AJ26: Row reference | AK26: =MATCH(AK25,H32:H55,0) -> 1 | AL26: 100 | AM26: 104.9 | AN26: 1 | AO26: 100 - 104.9 kg | AP26: -1 | AQ26: -0.1 | AX26: 1 | AY26: -450 | BA26: Row reference | BB26: =MATCH(BB25,K32:K36,0) ->  | BE26: END | BG26: 0 | BH26: 0 | BI26: END
AA27: MIN | AB27: MAX | AC27: Prem/Disc | AJ27: MIN | AK27: MAX | AL27: Prem/Disc | BC27: =F27 -> 0 | BD27: 0 | BE27: END | BG27: 0 | BH27: 0 | BI27: END
B28: =IF(AK12=1,"P8FD Base Price is out side of P8FD range you have specified","") ->  | AA28: 15 | AB28: 15.9 | AC28: -2 | AD28: -2 | AE28: -2 | AF28: -2 | AG28: -2 | AJ28: 170 | AK28: 189.9 | AL28: -0.3 | AM28: -0.3 | AN28: -0.3 | AO28: -0.3 | AP28: -0.3 | AQ28: -0.3 | AR28: -0.3 | AS28: -0.3 | AT28: -0.3 | BC28: 0 | BD28: 0 | BE28: END | BG28: 0 | BH28: 0 | BI28: END
AA29: 16 | AB29: 16.9 | AC29: -0.5 | AD29: -0.5 | AE29: -0.5 | AF29: -0.5 | AG29: -0.5 | AJ29: 190 | AK29: 209.9 | AL29: -0.3 | AM29: -0.3 | AN29: -0.3 | AO29: -0.3 | AP29: -0.3 | AQ29: -0.3 | AR29: -0.3 | AS29: -0.3 | AT29: -0.3 | BC29: 0 | BD29: 0 | BE29: END | BG29: 0 | BH29: 0 | BI29: END
B30: P8 Fat Depth Definition | F30: P8FD ranges | AA30: 17 | AB30: 17.9 | AC30: -0.5 | AD30: -0.5 | AE30: -0.5 | AF30: -0.5 | AG30: -0.5 | AJ30: 210 | AK30: 229.9 | AL30: 0 | AM30: 0 | AN30: 0 | AO30: 0 | AP30: 0 | AQ30: 0 | AR30: 0 | AS30: 0 | AT30: 0
B31: Specification | C31: Values | F31: MIN | G31: MAX | H31: Prem/Disc | AA31: 18 | AB31: 18.9 | AC31: 0 | AD31: 0 | AE31: 0 | AF31: 0 | AG31: 0 | AJ31: 230 | AK31: 249.9 | AL31: 0 | AM31: 0 | AN31: 0 | AO31: 0 | AP31: 0 | AQ31: 0 | AR31: 0 | AS31: 0 | AT31: 0
B32: P8FD min (≥ 0 mm) | C32: 0 | D32: mm | F32: 0 | G32: 4.9 | H32: -0.1 | AA32: 19 | AB32: 19.9 | AC32: 0 | AD32: 0 | AE32: 0 | AF32: 0 | AG32: 0 | AJ32: 250 | AK32: 269.9 | AL32: 0 | AM32: 0 | AN32: 0 | AO32: 0 | AP32: 0 | AQ32: 0 | AR32: 0 | AS32: 0 | AT32: 0
B33: P8FD max (≤ 40mm) | C33: 40 | D33: mm | F33: 5 | G33: 9.9 | H33: -0.1 | AA33: 20 | AB33: 20.9 | AC33: 0 | AD33: 0 | AE33: 0 | AF33: 0 | AG33: 0 | AJ33: 270 | AK33: 289.9 | AL33: 0 | AM33: 0 | AN33: 0 | AO33: 0 | AP33: 0 | AQ33: 0 | AR33: 0 | AS33: 0 | AT33: 0
B34: Band (≥ 5 mm) | C34: 5 | D34: mm | F34: 10 | G34: 14.9 | H34: 0 | AA34: 21 | AB34: 21.9 | AC34: 0 | AD34: 0 | AE34: 0 | AF34: 0 | AG34: 0 | AJ34: 290 | AK34: 309.9 | AL34: 0 | AM34: 0 | AN34: 0 | AO34: 0 | AP34: 0 | AQ34: 0 | AR34: 0 | AS34: 0 | AT34: 0
B35: Min P8FD for Base Price | C35: 12 | D35: mm | F35: 15 | G35: 19.9 | H35: 0 | AA35: 22 | AB35: 22.9 | AC35: 0 | AD35: 0 | AE35: 0 | AF35: 0 | AG35: 0 | AJ35: 310 | AK35: 329.9 | AL35: 0 | AM35: 0 | AN35: 0 | AO35: 0 | AP35: 0 | AQ35: 0 | AR35: 0 | AS35: 0 | AT35: 0
B36: Max P8FD for Base Price | C36: 20 | D36: mm | F36: 20 | G36: 24.9 | H36: 0 | AA36: 23 | AB36: 23.9 | AC36: 0 | AD36: 0 | AE36: 0 | AF36: 0 | AG36: 0 | AJ36: 330 | AK36: 349.9 | AL36: -0.3 | AM36: -0.3 | AN36: -0.3 | AO36: -0.3 | AP36: -0.3 | AQ36: -0.3 | AR36: -0.3 | AS36: -0.3 | AT36: -0.3
B37: $ Increments for Bands | C37: 0.1 | F37: 25 | G37: 29.9 | H37: -0.1 | AA37: 24 | AB37: 24.9 | AC37: 0 | AD37: 0 | AE37: 0 | AF37: 0 | AG37: 0 | AJ37: 350 | AK37: 369.9 | AL37: -0.3 | AM37: -0.3 | AN37: -0.3 | AO37: -0.3 | AP37: -0.3 | AQ37: -0.3 | AR37: -0.3 | AS37: -0.3 | AT37: -0.3
F38: 30 | G38: 34.9 | H38: -0.1 | AA38: 25 | AB38: 25.9 | AC38: 0 | AD38: 0 | AE38: 0 | AF38: 0 | AG38: 0 | AJ38: 370 | AK38: 389.9 | AL38: -0.3 | AM38: -0.3 | AN38: -0.3 | AO38: -0.3 | AP38: -0.3 | AQ38: -0.3 | AR38: -0.3 | AS38: -0.3 | AT38: -0.3
F39: 35 | G39: 39.9 | H39: -0.1 | AA39: 26 | AB39: 26.9 | AC39: -0.5 | AD39: -0.5 | AE39: -0.5 | AF39: -0.5 | AG39: -0.5 | AJ39: 390 | AK39: 409.9 | AL39: -0.3 | AM39: -0.3 | AN39: -0.3 | AO39: -0.3 | AP39: -0.3 | AQ39: -0.3 | AR39: -0.3 | AS39: -0.3 | AT39: -0.3
F40: 40 | G40: 44.9 | H40: -0.1 | AA40: 27 | AB40: 27.9 | AC40: -0.5 | AD40: -0.5 | AE40: -0.5 | AF40: -0.5 | AG40: -0.5 | AJ40: 410 | AK40: 429.9 | AL40: -0.3 | AM40: -0.3 | AN40: -0.3 | AO40: -0.3 | AP40: -0.3 | AQ40: -0.3 | AR40: -0.3 | AS40: -0.3 | AT40: -0.3
AA41: 28 | AB41: 28.9 | AC41: -1 | AD41: -1 | AE41: -1 | AF41: -1 | AG41: -1 | AJ41: 430 | AK41: 449.9 | AL41: -0.3 | AM41: -0.3 | AN41: -0.3 | AO41: -0.3 | AP41: -0.3 | AQ41: -0.3 | AR41: -0.3 | AS41: -0.3 | AT41: -0.3
AA42: 29 | AB42: 29.9 | AC42: -1 | AD42: -1 | AE42: -1 | AF42: -1 | AG42: -1 | AJ42: 450 | AK42: 469.9 | AL42: -0.3 | AM42: -0.3 | AN42: -0.3 | AO42: -0.3 | AP42: -0.3 | AQ42: -0.3 | AR42: -0.3 | AS42: -0.3 | AT42: -0.3
AA43: 30 | AB43: 30.9 | AC43: -2 | AD43: -2 | AE43: -2 | AF43: -2 | AG43: -2 | AJ43: 470 | AK43: 489.9 | AL43: -0.3 | AM43: -0.3 | AN43: -0.3 | AO43: -0.3 | AP43: -0.3 | AQ43: -0.3 | AR43: -0.3 | AS43: -0.3 | AT43: -0.3
AA44: 31 | AB44: 31.9 | AC44: -2 | AD44: -2 | AE44: -2 | AF44: -2 | AG44: -2 | AJ44: 490 | AK44: 509.9 | AL44: -0.3 | AM44: -0.3 | AN44: -0.3 | AO44: -0.3 | AP44: -0.3 | AQ44: -0.3 | AR44: -0.3 | AS44: -0.3 | AT44: -0.3
AA45: 32 | AB45: 32.9 | AC45: -2 | AD45: -2 | AE45: -2 | AF45: -2 | AG45: -2
AL49: 0 | AM49: 5 | AN49: 10 | AO49: 15 | AP49: 20 | AQ49: 25 | AR49: 30 | AS49: 35 | AT49: 40
AC50: 1 | AD50: 2 | AE50: 3 | AF50: 4 | AG50: 5 | AL50: 4.9 | AM50: 9.9 | AN50: 14.9 | AO50: 19.9 | AP50: 24.9 | AQ50: 29.9 | AR50: 34.9 | AS50: 39.9 | AT50: 44.9
AC51: 0 | AD51: 0 | AE51: 0 | AF51: 0 | AG51: 0 | AL51: -0.1 | AM51: -0.1 | AN51: 0 | AO51: 0 | AP51: 0 | AQ51: -0.1 | AR51: -0.1 | AS51: -0.1 | AT51: -0.1
AC52: 0 | AD52: 0 | AE52: 0 | AF52: 0 | AG52: 0 | AL52: -0.1 | AM52: -0.1 | AN52: 0 | AO52: 0 | AP52: 0 | AQ52: -0.1 | AR52: -0.1 | AS52: -0.1 | AT52: -0.1
AC53: 0 | AD53: 0 | AE53: 0 | AF53: 0 | AG53: 0 | AL53: -0.1 | AM53: -0.1 | AN53: 0 | AO53: 0 | AP53: 0 | AQ53: -0.1 | AR53: -0.1 | AS53: -0.1 | AT53: -0.1
AC54: 0 | AD54: 0 | AE54: 0 | AF54: 0 | AG54: 0 | AL54: -0.1 | AM54: -0.1 | AN54: 0 | AO54: 0 | AP54: 0 | AQ54: -0.1 | AR54: -0.1 | AS54: -0.1 | AT54: -0.1
AC55: 0 | AD55: 0 | AE55: 0 | AF55: 0 | AG55: 0 | AL55: -0.1 | AM55: -0.1 | AN55: 0 | AO55: 0 | AP55: 0 | AQ55: -0.1 | AR55: -0.1 | AS55: -0.1 | AT55: -0.1
AC56: 0 | AD56: 0 | AE56: 0 | AF56: 0 | AG56: 0 | AL56: -0.1 | AM56: -0.1 | AN56: 0 | AO56: 0 | AP56: 0 | AQ56: -0.1 | AR56: -0.1 | AS56: -0.1 | AT56: -0.1
AC57: 0 | AD57: 0 | AE57: 0 | AF57: 0 | AG57: 0 | AL57: -0.1 | AM57: -0.1 | AN57: 0 | AO57: 0 | AP57: 0 | AQ57: -0.1 | AR57: -0.1 | AS57: -0.1 | AT57: -0.1
AC58: 0 | AD58: 0 | AE58: 0 | AF58: 0 | AG58: 0 | AL58: -0.1 | AM58: -0.1 | AN58: 0 | AO58: 0 | AP58: 0 | AQ58: -0.1 | AR58: -0.1 | AS58: -0.1 | AT58: -0.1
AC59: 0 | AD59: 0 | AE59: 0 | AF59: 0 | AG59: 0 | AL59: -0.1 | AM59: -0.1 | AN59: 0 | AO59: 0 | AP59: 0 | AQ59: -0.1 | AR59: -0.1 | AS59: -0.1 | AT59: -0.1
AC60: 0 | AD60: 0 | AE60: 0 | AF60: 0 | AG60: 0 | AL60: -0.1 | AM60: -0.1 | AN60: 0 | AO60: 0 | AP60: 0 | AQ60: -0.1 | AR60: -0.1 | AS60: -0.1 | AT60: -0.1
AC61: 0 | AD61: 0 | AE61: 0 | AF61: 0 | AG61: 0 | AL61: -0.1 | AM61: -0.1 | AN61: 0 | AO61: 0 | AP61: 0 | AQ61: -0.1 | AR61: -0.1 | AS61: -0.1 | AT61: -0.1
AC62: 0 | AD62: 0 | AE62: 0 | AF62: 0 | AG62: 0 | AL62: -0.1 | AM62: -0.1 | AN62: 0 | AO62: 0 | AP62: 0 | AQ62: -0.1 | AR62: -0.1 | AS62: -0.1 | AT62: -0.1
AC63: 0 | AD63: 0 | AE63: 0 | AF63: 0 | AG63: 0 | AL63: -0.1 | AM63: -0.1 | AN63: 0 | AO63: 0 | AP63: 0 | AQ63: -0.1 | AR63: -0.1 | AS63: -0.1 | AT63: -0.1
AC64: 0 | AD64: 0 | AE64: 0 | AF64: 0 | AG64: 0 | AL64: -0.1 | AM64: -0.1 | AN64: 0 | AO64: 0 | AP64: 0 | AQ64: -0.1 | AR64: -0.1 | AS64: -0.1 | AT64: -0.1
AC65: 0 | AD65: 0 | AE65: 0 | AF65: 0 | AG65: 0 | AL65: -0.1 | AM65: -0.1 | AN65: 0 | AO65: 0 | AP65: 0 | AQ65: -0.1 | AR65: -0.1 | AS65: -0.1 | AT65: -0.1
AC66: 0 | AD66: 0 | AE66: 0 | AF66: 0 | AG66: 0 | AL66: -0.1 | AM66: -0.1 | AN66: 0 | AO66: 0 | AP66: 0 | AQ66: -0.1 | AR66: -0.1 | AS66: -0.1 | AT66: -0.1
AC67: 0 | AD67: 0 | AE67: 0 | AF67: 0 | AG67: 0 | AL67: -0.1 | AM67: -0.1 | AN67: 0 | AO67: 0 | AP67: 0 | AQ67: -0.1 | AR67: -0.1 | AS67: -0.1 | AT67: -0.1
AC68: 0 | AD68: 0 | AE68: 0 | AF68: 0 | AG68: 0
AJ72: 1 | AK72: 2 | AL72: 0 | AM72: 5 | AN72: 10 | AO72: 15 | AP72: 20 | AQ72: 25 | AR72: 30 | AS72: 35 | AT72: 40
AA73: MIN | AB73: MAX | AC73: 1 | AD73: 2 | AE73: 3 | AF73: 4 | AG73: 5 | AJ73: MIN | AK73: MAX | AL73: 4.9 | AM73: 9.9 | AN73: 14.9 | AO73: 19.9 | AP73: 24.9 | AQ73: 29.9 | AR73: 34.9 | AS73: 39.9 | AT73: 44.9
AA74: 15 | AB74: 15.9 | AC74: =AC28+AC51+$AB$11 -> 1.5 | AD74: =AD28+AD51+$AB$11 -> 1.5 | AE74: =AE28+AE51+$AB$11 -> 1.5 | AF74: =AF28+AF51+$AB$11 -> 1.5 | AG74: =AG28+AG51+$AB$11 -> 1.5 | AJ74: 170 | AK74: 189.9 | AL74: =AL28+AL51+$AK$11 -> 3.1 | AM74: =AM28+AM51+$AK$11 -> 3.1 | AN74: 3.2 | AO74: 3.2 | AP74: 3.2 | AQ74: 3.1 | AR74: 3.1 | AS74: 3.1 | AT74: 3.1
AA75: 16 | AB75: 16.9 | AC75: =AC29+AC52+$AB$11 -> 3 | AD75: 3 | AE75: 3 | AF75: 3 | AG75: 3 | AJ75: 190 | AK75: 209.9 | AL75: =AL29+AL52+$AK$11 -> 3.1 | AM75: 3.1 | AN75: 3.2 | AO75: 3.2 | AP75: 3.2 | AQ75: 3.1 | AR75: 3.1 | AS75: 3.1 | AT75: 3.1
AA76: 17 | AB76: 17.9 | AC76: 3 | AD76: 3 | AE76: 3 | AF76: 3 | AG76: 3 | AJ76: 210 | AK76: 229.9 | AL76: 3.4 | AM76: 3.4 | AN76: 3.5 | AO76: 3.5 | AP76: 3.5 | AQ76: 3.4 | AR76: 3.4 | AS76: 3.4 | AT76: 3.4
AA77: 18 | AB77: 18.9 | AC77: 3.5 | AD77: 3.5 | AE77: 3.5 | AF77: 3.5 | AG77: 3.5 | AJ77: 230 | AK77: 249.9 | AL77: 3.4 | AM77: 3.4 | AN77: 3.5 | AO77: 3.5 | AP77: 3.5 | AQ77: 3.4 | AR77: 3.4 | AS77: 3.4 | AT77: 3.4
AA78: 19 | AB78: 19.9 | AC78: 3.5 | AD78: 3.5 | AE78: 3.5 | AF78: 3.5 | AG78: 3.5 | AJ78: 250 | AK78: 269.9 | AL78: 3.4 | AM78: 3.4 | AN78: 3.5 | AO78: 3.5 | AP78: 3.5 | AQ78: 3.4 | AR78: 3.4 | AS78: 3.4 | AT78: 3.4
AA79: 20 | AB79: 20.9 | AC79: 3.5 | AD79: 3.5 | AE79: 3.5 | AF79: 3.5 | AG79: 3.5 | AJ79: 270 | AK79: 289.9 | AL79: 3.4 | AM79: 3.4 | AN79: 3.5 | AO79: 3.5 | AP79: 3.5 | AQ79: 3.4 | AR79: 3.4 | AS79: 3.4 | AT79: 3.4
AA80: 21 | AB80: 21.9 | AC80: 3.5 | AD80: 3.5 | AE80: 3.5 | AF80: 3.5 | AG80: 3.5 | AJ80: 290 | AK80: 309.9 | AL80: 3.4 | AM80: 3.4 | AN80: 3.5 | AO80: 3.5 | AP80: 3.5 | AQ80: 3.4 | AR80: 3.4 | AS80: 3.4 | AT80: 3.4
AA81: 22 | AB81: 22.9 | AC81: 3.5 | AD81: 3.5 | AE81: 3.5 | AF81: 3.5 | AG81: 3.5 | AJ81: 310 | AK81: 329.9 | AL81: 3.4 | AM81: 3.4 | AN81: 3.5 | AO81: 3.5 | AP81: 3.5 | AQ81: 3.4 | AR81: 3.4 | AS81: 3.4 | AT81: 3.4
AA82: 23 | AB82: 23.9 | AC82: 3.5 | AD82: 3.5 | AE82: 3.5 | AF82: 3.5 | AG82: 3.5 | AJ82: 330 | AK82: 349.9 | AL82: 3.1 | AM82: 3.1 | AN82: 3.2 | AO82: 3.2 | AP82: 3.2 | AQ82: 3.1 | AR82: 3.1 | AS82: 3.1 | AT82: 3.1
AA83: 24 | AB83: 24.9 | AC83: 3.5 | AD83: 3.5 | AE83: 3.5 | AF83: 3.5 | AG83: 3.5 | AJ83: 350 | AK83: 369.9 | AL83: 3.1 | AM83: 3.1 | AN83: 3.2 | AO83: 3.2 | AP83: 3.2 | AQ83: 3.1 | AR83: 3.1 | AS83: 3.1 | AT83: 3.1
AA84: 25 | AB84: 25.9 | AC84: 3.5 | AD84: 3.5 | AE84: 3.5 | AF84: 3.5 | AG84: 3.5 | AJ84: 370 | AK84: 389.9 | AL84: 3.1 | AM84: 3.1 | AN84: 3.2 | AO84: 3.2 | AP84: 3.2 | AQ84: 3.1 | AR84: 3.1 | AS84: 3.1 | AT84: 3.1
AA85: 26 | AB85: 26.9 | AC85: 3 | AD85: 3 | AE85: 3 | AF85: 3 | AG85: 3 | AJ85: 390 | AK85: 409.9 | AL85: 3.1 | AM85: 3.1 | AN85: 3.2 | AO85: 3.2 | AP85: 3.2 | AQ85: 3.1 | AR85: 3.1 | AS85: 3.1 | AT85: 3.1
AA86: 27 | AB86: 27.9 | AC86: 3 | AD86: 3 | AE86: 3 | AF86: 3 | AG86: 3 | AJ86: 410 | AK86: 429.9 | AL86: 3.1 | AM86: 3.1 | AN86: 3.2 | AO86: 3.2 | AP86: 3.2 | AQ86: 3.1 | AR86: 3.1 | AS86: 3.1 | AT86: 3.1
AA87: 28 | AB87: 28.9 | AC87: 2.5 | AD87: 2.5 | AE87: 2.5 | AF87: 2.5 | AG87: 2.5 | AJ87: 430 | AK87: 449.9 | AL87: 3.1 | AM87: 3.1 | AN87: 3.2 | AO87: 3.2 | AP87: 3.2 | AQ87: 3.1 | AR87: 3.1 | AS87: 3.1 | AT87: 3.1
AA88: 29 | AB88: 29.9 | AC88: 2.5 | AD88: 2.5 | AE88: 2.5 | AF88: 2.5 | AG88: 2.5 | AJ88: 450 | AK88: 469.9 | AL88: 3.1 | AM88: 3.1 | AN88: 3.2 | AO88: 3.2 | AP88: 3.2 | AQ88: 3.1 | AR88: 3.1 | AS88: 3.1 | AT88: 3.1
AA89: 30 | AB89: 30.9 | AC89: 1.5 | AD89: 1.5 | AE89: 1.5 | AF89: 1.5 | AG89: 1.5 | AJ89: 470 | AK89: 489.9 | AL89: 3.1 | AM89: 3.1 | AN89: 3.2 | AO89: 3.2 | AP89: 3.2 | AQ89: 3.1 | AR89: 3.1 | AS89: 3.1 | AT89: 3.1
AA90: 31 | AB90: 31.9 | AC90: 1.5 | AD90: 1.5 | AE90: 1.5 | AF90: 1.5 | AG90: 1.5 | AJ90: 490 | AK90: 509.9 | AL90: 3.1 | AM90: 3.1 | AN90: 3.2 | AO90: 3.2 | AP90: 3.2 | AQ90: 3.1 | AR90: 3.1 | AS90: 3.1 | AT90: 3.1
AA91: 32 | AB91: 32.9 | AC91: 1.5 | AD91: 1.5 | AE91: 1.5 | AF91: 1.5 | AG91: 1.5
AA97: HSCW ranges | AC97: =IF(AC99=1,"FATSCORES","P8FD Fat Depth Ranges") -> P8FD Fat Depth Ranges | AJ97: HSCW ranges | AL97: =IF(AL99=1,"FATSCORES","P8FD Fat Depth Ranges") -> P8FD Fat Depth Ranges
A98: 1 | B98: 1 | C98: 1 | D98: 1 | E98: 1 | F98: 1 | G98: 1 | H98: 1 | I98: 1 | J98: 1 | K98: 1 | L98: 1 | M98: 1 | N98: 1 | O98: 1 | P98: 1 | Q98: 1 | R98: 1 | S98: 1 | T98: 1 | U98: 1 | V98: 1 | W98: 1 | X98: 1 | Y98: 1 | Z98: 1 | AA98: 1 | AB98: 1 | AC98: 1 | AD98: 1 | AE98: 1 | AF98: 1 | AG98: 1 | AH98: 1 | AI98: 1 | AJ98: 1

Sheet Purchasing - Slaughter Expenses
B2: Fixed Carcase Expenses / Revenue | H2: =Lists!E179 ->  | AI2: GR or Fatscore GRID FS = 1
C3: =Lists!C148 -> Trade: OTH Dataset: BT,Ox, 10th Ribbing Site Yield Model: CCW/P8FD quad HCW: 450kg P8FD:21mm | AD3: YES | AE3: OTH = 1 | AF3: Check Ranges
C4: Total Retail Value: | D4: =IF(Lists!E178=1,"",'Cut Selection'!W146) -> 1633.9352 | I4: Carcase Gross Margin : | J4: =IF(Lists!E178=1,"",'Cut Selection'!Y146) -> -0.4875384676 | N4: Gross Profit (%) | O4: =IF(Lists!E178=1,"",'Cut Selection'!Z146) -> -0.0002983829883 | AC4: Type of Purchase | AE4: =IF('Carcase Description'!C4="Over the Hooks",1,0) -> 1 | AF4: OTH | AG4: On-Farm | AI4: ='Over the Hooks Grid'!L3 -> P8 Fat Depth Ranges
AC5: Column count for GR Grid | AE5: ='Over the Hooks Grid'!AU5 -> 6 | AF5: =IF(AND(D8>=AF14,D8<=AF15),0,1) -> 0 | AG5: =IF(AND(D8>=AF14,D8<=AF15),0,1) -> 0 | AI5: =IF(AI4="FATSCORES",1,0) -> 0
B6: Carcase Summary | H6: Sale Yards Purchase | M6: =IF(INDEX(TradeTypeTable[ComboBoxSel],1)=3,"Carcase Trade Price","OTH Purchase") -> OTH Purchase | AC6: Coulumn Count for FS Grid | AE6: =#REF!+1 -> 
AC7: Min HSCW on Grid | AE7: ='Over the Hooks Grid'!K6 -> 189.9 | AF7: =IF(AND(D10>=AF12,D10<=AF13),0,1) -> 0 | AG7: =IF(AND(D10>=AF12,D10<=AF13),0,1) -> 0 | AS7: Pre-Slaughter Fixed Costs
C8: Average P8FD (mm) | D8: ='Carcase Description'!$C$8 -> 21 | E8: mm | I8: On-hoof Purchase Price ($/hd) | J8: 263.6 | N8: TOTAL PURCHASE PRICE ($) | O8: =IF(D10="―","―",D10*O10) -> 1440 | AC8: HSCW for Vlookup on Grid | AE8: =IF(D10<15,D10,IF(D10<AE7,AE7,D10)) -> 450
AC9: Lookup HCW for GRID | AE9: =AE8+AE10 -> 469.9
C10: Average HSCW (kg) | D10: ='Carcase Description'!$C$11 -> 450 | I10: Deduct HIde Value ($) | J10: 10.35 | N10: Price ($/kg of HSCW) | O10: =IF(AF11=0,IF(AI5=1,VLOOKUP(AE9,'Over the Hooks Grid'!K6:V27,AE6,TRUE),VLOOKUP(AE9,'Over the Hooks Grid'!K6:V27,AE5,TRUE)),"―") -> 3.2 | AC10: OTH Proceeding Wt bands for given Wt | AE10: ='Over the Hooks Grid'!AZ5 -> 19.9
AE11: ERRORS | AF11: =SUM(AF5:AF10) -> 0 | AG11: =SUM(AG5:AG10) -> 0
I12: TOTAL PURCHASE PRICE ($) | J12: 1300 | AD12: HSCW | AE12: MIN | AF12: =Lists!E5 -> 280
AE13: MAX | AF13: =Lists!F5 -> 500
I14: Price ($/kg of HSCW) | J14: =IF(AND(J12>0,J12<>"",D10<>"",D10>0),J12/D10,"―") -> 2.888888889 | AD14: GR | AE14: MIN | AF14: 1
AE15: MAX | AF15: =Lists!F3 -> 35
AC16: Carcase Cost | AE16: =IF(AE4=1,O8,J12) -> 1440
B17: Pre-Slaughter Costs | H17: Carcase Dressing % | M17: Slaughter Floor Revenue
C19: Stock Agents Commission ($/hd) | D19: 0 | I19: Standard Dressing Percentage | J19: =VLOOKUP(Lists!$I$64,'Dressing % Lookups'!$R$5:$S$7,2,FALSE) -> 0.53 | N19: Offal Returns ($/hd) | O19: 12
I20: Adjustments for
C21: Transportation ($/hd) | D21: 2.5 | I21: Fatscore | J21: =VLOOKUP(Lists!$G$109,'Dressing % Lookups'!$B$5:$C$10,2,FALSE) -> 0.01 | N21: Other Returns ($/hd) | O21: 0
C23: Livestock Levies ($/hd) | D23: 0 | I23: Curfew Estimate (4 - 24 hours) | J23: 24 | K23: Hours | N23: S/F Returns ($/hd) | O23: =SUM(O19:O22) -> 12 | AC23: Number of Head:
C25: Auction Fees ($/hd) | D25: 0 | I25: Curfew Period | J25: =VLOOKUP(J23,'Dressing % Lookups'!$E$5:$F$10,2,TRUE) -> 0.04
C27: Other fixed Costs ($/hd) | D27: 0 | I27: Estimated Dressing % | J27: =J19+J21+J25 -> 0.58
C29: Total Pre-Slaughter Costs ($/hd) | D29: =IF(AE4=1,SUM(D19:D28)-D25,SUM(D19:D28)) -> 2.5 | I29: Empty Live weight (kg) | J29: =D10/J27 -> 775.862069 | K29: kg
B32: Slaughter Costs | M32: Primal % Cost Allocation
I33: =IF(Lists!Q253=1,"Warning: Check Rec%","") ->  | J33: Gross Margin Analysis | O33: Drop Wt % | Q33: User Allocation | AC33: Butcher Activated Flag | AD33: NO
C34: Slaughtering Costs ($/hd) | D34: 15 | I34: Primal Region | J34: GM ($) | K34: GM (%) | N34: Butt | O34: =IF(ISERROR(INDEX(PrimalPerc[PercLvl1],MATCH(N34,PrimalPerc[Primal Region],0),1)),"",INDEX(PrimalPerc[PercLvl1],MATCH(N34,PrimalPerc[Primal Region],0),1)) -> 0.2981555556 | Q34: 0.232
I35: Butt | J35: ='Analysis Tables'!E5 -> -67.20120527 | K35: ='Analysis Tables'!F5 -> -0.1427988698
C36: Other fixed Costs ($/hd) | D36: 0 | I36: Loin | J36: ='Analysis Tables'!E6 -> -3.698206632 | K36: ='Analysis Tables'!F6 -> -0.01760480717 | N36: Loin | O36: =IF(ISERROR(INDEX(PrimalPerc[PercLvl1],MATCH(N36,PrimalPerc[Primal Region],0),1)),"",INDEX(PrimalPerc[PercLvl1],MATCH(N36,PrimalPerc[Primal Region],0),1)) -> 0.1362444444 | Q36: 0.25 | AF36: =AD31 -> 0
I37: Rib | J37: ='Analysis Tables'!E7 -> 12.74675005 | K37: ='Analysis Tables'!F7 -> 0.04158885137 | Z37: 23.533
C38: Total Fixed Costs ($/hd) | D38: =SUM(D34:D37) -> 15 | I38: Chuck | J38: ='Analysis Tables'!E8 -> -136.4628766 | K38: ='Analysis Tables'!F8 -> -0.3078130365 | N38: Rib | O38: =IF(ISERROR(INDEX(PrimalPerc[PercLvl1],MATCH(N38,PrimalPerc[Primal Region],0),1)),"",INDEX(PrimalPerc[PercLvl1],MATCH(N38,PrimalPerc[Primal Region],0),1)) -> 0.1947111111 | Q38: 0.32
I39: Lean Trim | J39: ='Analysis Tables'!E9 -> 104.8225 | K39: ='Analysis Tables'!F9 -> 0.9183959557 | Z39: CutCode | AB39: CutWeight
I40: Saleable Meat Totals | J40: ='Analysis Tables'!E10 -> -89.79303847 | K40: ='Analysis Tables'!F10 -> -0.05813240446 | N40: Chuck | O40: =IF(ISERROR(INDEX(PrimalPerc[PercLvl1],MATCH(N40,PrimalPerc[Primal Region],0),1)),"",INDEX(PrimalPerc[PercLvl1],MATCH(N40,PrimalPerc[Primal Region],0),1)) -> 0.3708888889 | Q40: 0.198 | Z40: FQ02.1
B41: Fixed Boning Costs | I41: Secondary Product Totals | J41: ='Analysis Tables'!E11 -> 89.3055
I42: Whole Carcase Totals | J42: ='Analysis Tables'!E12 -> -0.4875384676 | K42: ='Analysis Tables'!F12 -> -0.0002983829883 | N42: Total | O42: =SUM(O34:O40) -> 1 | Q42: =SUM(Q34:Q40) -> 1 | R42: =IF(Q42<>1,"Must Equal 100%","") -> 
O43: Drop Wt % | Q43: User Allocation
C44: Fixed Boning Costs ($/hd) | D44: 15 | N44: Rump | O44: =IF(ISERROR(INDEX(PrimalPerc[PercLvl2],MATCH(N44,PrimalPerc[Primal Region],0),1)),"",INDEX(PrimalPerc[PercLvl2],MATCH(N44,PrimalPerc[Primal Region],0),1)) -> 0.06734907785 | Q44: 0.06338406446
C46: Other fixed Costs ($/hd) | D46: 0 | N46: Topside | O46: =IF(ISERROR(INDEX(PrimalPerc[PercLvl2],MATCH(N46,PrimalPerc[Primal Region],0),1)),"",INDEX(PrimalPerc[PercLvl2],MATCH(N46,PrimalPerc[Primal Region],0),1)) -> 0.06634553199 | Q46: 0.08042972247
C48: Total Boning Costs ($/hd) | D48: =IF(SUM(D44:D47)=0, 0.000001,SUM(D44:D47)) -> 15 | N48: Knuckle | O48: =IF(ISERROR(INDEX(PrimalPerc[PercLvl2],MATCH(N48,PrimalPerc[Primal Region],0),1)),"",INDEX(PrimalPerc[PercLvl2],MATCH(N48,PrimalPerc[Primal Region],0),1)) -> 0.03829084989 | Q48: 0.0454789615
H49: Note: All values in the bright green cells can be editted
N50: HQ Shank | O50: =IF(ISERROR(INDEX(PrimalPerc[PercLvl2],MATCH(N50,PrimalPerc[Primal Region],0),1)),"",INDEX(PrimalPerc[PercLvl2],MATCH(N50,PrimalPerc[Primal Region],0),1)) -> 0.04649762494 | Q50: 0.06116383169
H52: Greyed out cells are linked to the alternative Type of Trade and are ignored in calculations. | N52: Silverside | O52: =IF(ISERROR(INDEX(PrimalPerc[PercLvl2],MATCH(N52,PrimalPerc[Primal Region],0),1)),"",INDEX(PrimalPerc[PercLvl2],MATCH(N52,PrimalPerc[Primal Region],0),1)) -> 0.07992685266 | Q52: 0.09074306177
N54: Shortloin | O54: =IF(ISERROR(INDEX(PrimalPerc[PercLvl2],MATCH(N54,PrimalPerc[Primal Region],0),1)),"",INDEX(PrimalPerc[PercLvl2],MATCH(N54,PrimalPerc[Primal Region],0),1)) -> 0.07044891952 | Q54: 0.0733034915
E55: =IF($K$12=1,"Warning: Check Rec%","") ->  | H55: Carcase Costs | I55: Cost ($/hd) | K55: =IF(Lists!E178=1,"Warning; Check Recovery%","") -> 
H56: =IF(INDEX(TradeTypeTable[ComboBoxSel],1)=2,"On Hoof Purchase Price","") ->  | I56: =IF(INDEX(TradeTypeTable[ComboBoxSel],1)=2,J8,"") ->  | N56: Flank | O56: =IF(ISERROR(INDEX(PrimalPerc[PercLvl2],MATCH(N56,PrimalPerc[Primal Region],0),1)),"",INDEX(PrimalPerc[PercLvl2],MATCH(N56,PrimalPerc[Primal Region],0),1)) -> 0.0656542004 | Q56: 0.04418979409
H57: =IF(INDEX(TradeTypeTable[ComboBoxSel],1)=2,"Less Skin Revenue","") ->  | I57: =IF(INDEX(TradeTypeTable[ComboBoxSel],1)=2,J10,"") -> 
H58: =IF(INDEX(TradeTypeTable[ComboBoxSel],1)=3,"Carcase Trade Price","Carcase Trade Price") -> Carcase Trade Price | I58: =IF(INDEX(TradeTypeTable[ComboBoxSel],1)=2,J12,O8) -> 1440 | J58: =CONCATENATE("($",IF(INDEX(TradeTypeTable[ComboBoxSel],1)=2,ROUND(J14,2),ROUND(O10,2))," / kg of HSCW)") -> ($3.2 / kg of HSCW) | N58: NEB | O58: =IF(ISERROR(INDEX(PrimalPerc[PercLvl2],MATCH(N58,PrimalPerc[Primal Region],0),1)),"",INDEX(PrimalPerc[PercLvl2],MATCH(N58,PrimalPerc[Primal Region],0),1)) -> 0.06754978703 | Q58: 0.05500447628
H59: =IF(INDEX(TradeTypeTable[ComboBoxSel],1)=3,"","Pre-slaugther Costs") -> Pre-slaugther Costs | I59: =IF(INDEX(TradeTypeTable[ComboBoxSel],1)=3,"",D29) -> 2.5
H60: =IF(INDEX(TradeTypeTable[ComboBoxSel],1)=3,"","Slaughter Costs") -> Slaughter Costs | I60: =IF(INDEX(TradeTypeTable[ComboBoxSel],1)=3,"",D38) -> 15 | N60: Cube | O60: =IF(ISERROR(INDEX(PrimalPerc[PercLvl2],MATCH(N60,PrimalPerc[Primal Region],0),1)),"",INDEX(PrimalPerc[PercLvl2],MATCH(N60,PrimalPerc[Primal Region],0),1)) -> 0.08737539306 | Q60: 0.08712623098
H61: =IF(INDEX(TradeTypeTable[ComboBoxSel],1)=3,""," Less Slaughter Floor Revenue") -> Less Slaughter Floor Revenue | I61: =IF(INDEX(TradeTypeTable[ComboBoxSel],1)=3,"",O23) -> 12
H62: =IF(INDEX(TradeTypeTable[ComboBoxSel],1)=3,"Shop Entry Costs","Boning Room Entry Costs") -> Boning Room Entry Costs | I62: =IF(INDEX(TradeTypeTable[ComboBoxSel],1)=3,I58,SUM(I58:I60)-I61) -> 1445.5 | N62: Short Rib | O62: =IF(ISERROR(INDEX(PrimalPerc[PercLvl2],MATCH(N62,PrimalPerc[Primal Region],0),1)),"",INDEX(PrimalPerc[PercLvl2],MATCH(N62,PrimalPerc[Primal Region],0),1)) -> 0.03974041614 | Q62: 0.02703670546
H63: Carcase Fixed Boning Costs | I63: =D48 -> 15
H64: Primal Boning/Package Costs | I64: =IF(Lists!E178=1,"",'Cut Selection'!AE129+'Cut Selection'!X145) -> 100.0847 | N64: Chuck Rib | O64: =IF(ISERROR(INDEX(PrimalPerc[PercLvl2],MATCH(N64,PrimalPerc[Primal Region],0),1)),"",INDEX(PrimalPerc[PercLvl2],MATCH(N64,PrimalPerc[Primal Region],0),1)) -> 0.02390669254 | Q64: 0.02084153984
H65: Carcase Final Cost | I65: =SUBTOTAL(9,I63,I62,I64) -> 1560.5847
E66: =IF($K$12=1,"Warning: Check Rec%","") ->  | I66: =I65/D10 -> 3.467966 | J66: /kg of HSCW | N66: Blade | O66: =IF(ISERROR(INDEX(PrimalPerc[PercLvl2],MATCH(N66,PrimalPerc[Primal Region],0),1)),"",INDEX(PrimalPerc[PercLvl2],MATCH(N66,PrimalPerc[Primal Region],0),1)) -> 0.08066278629 | Q66: 0.08096687556
E67: =IF($K$12=1,"Warning: Check Rec%","") ->  | I67: =IF(Lists!E178=1,"",I65/'Carcase Description'!C96) -> 37.6135141 | J67: /kg of Saleable Meat
N68: Chuck | O68: =IF(ISERROR(INDEX(PrimalPerc[PercLvl2],MATCH(N68,PrimalPerc[Primal Region],0),1)),"",INDEX(PrimalPerc[PercLvl2],MATCH(N68,PrimalPerc[Primal Region],0),1)) -> 0.3708213465 | Q68: 0.1411996419
N70: FQ Shank | O70: =IF(ISERROR(INDEX(PrimalPerc[PercLvl2],MATCH(N70,PrimalPerc[Primal Region],0),1)),"",INDEX(PrimalPerc[PercLvl2],MATCH(N70,PrimalPerc[Primal Region],0),1)) -> 0.05345554292 | Q70: 0.06521038496
N72: PEB | O72: =IF(ISERROR(INDEX(PrimalPerc[PercLvl2],MATCH(N72,PrimalPerc[Primal Region],0),1)),"",INDEX(PrimalPerc[PercLvl2],MATCH(N72,PrimalPerc[Primal Region],0),1)) -> 0.06652394014 | Q72: 0.06392121755
N74: Total | O74: =SUM(O44:O72) -> 1.224548962 | Q74: =SUM(Q44:Q72) -> 1 | R74: =IF(Q74<>1,"Must Equal 100%","") -> 

Sheet Cut Selection
A1: Cut Selection | E1: =Lists!C148 -> Trade: OTH Dataset: BT,Ox, 10th Ribbing Site Yield Model: CCW/P8FD quad HCW: 450kg P8FD:21mm
A2: Region | B2: Cut Type | C2: Options | E2: Cut Selection | F2: HAM # | G2: Code | H2: RowNo. | I2: Primal Wt (kg) | J2: Trim | K2: 65vl | L2: 75vl | M2: 85vl | N2: 95vl | O2: Fat | P2: Bone | Q2: Cartilage | R2: Paddywack | S2: Intercostals | T2: Skirt | U2: Rib Ends | V2: Sale Price ($/kg) | W2: Cut Value ($) | X2: Gross Margin ($) | Y2: GM (%) | Z2: Target GM (%) | AA2: Target Sale Price ($/kg) | AB2: Total Costs ($/kg) | AC2: PreBone Costs ($/kg) | AD2: Fixed Bone Cost ($/kg) | AE2: Boning Costs ($/kg) | AF2: Total Costs ($) | AG2: Carton Buy-In Price ($/kg)
A3: Butt | B3: Rump | E3: D Rump | F3: =IF(ISERROR(INDEX(YieldCalcs[Code],MATCH(E3,YieldCalcs[CutName],0),1)),"",INDEX(YieldCalcs[HAM No],MATCH(E3,YieldCalcs[CutName],0),1)) -> 2100 | G3: =IF(ISERROR(INDEX(YieldCalcs[Code],MATCH(E3,YieldCalcs[CutName],0),1)),"",INDEX(YieldCalcs[Code],MATCH(E3,YieldCalcs[CutName],0),1)) -> HQ02.3 | H3: =IF(ISNA(MATCH(E3,YieldCalcs[CutName],0)),"",MATCH(E3,YieldCalcs[CutName],0)) -> 209 | I3: =IF(ISERROR(INDEX(YieldCalcs[PredWts],MATCH(G3,YieldCalcs[Code],0),1)),"",INDEX(YieldCalcs[PredWts],MATCH(G3,YieldCalcs[Code],0),1)) -> 15.13 | J3: =IF(ISERROR(INDEX(YieldCalcs[PredWts],MATCH(CONCATENATE(G3,"LT"),YieldCalcs[Code],0),1)),"",INDEX(YieldCalcs[PredWts],MATCH(CONCATENATE(G3,"LT"),YieldCalcs[Code],0),1)) -> 0.72 | K3: =IF(ISERROR(INDEX(YieldCalcs[PredWts],MATCH(CONCATENATE(G3,"LT65"),YieldCalcs[Code],0),1)),"",INDEX(YieldCalcs[PredWts],MATCH(CONCATENATE(G3,"LT65"),YieldCalcs[Code],0),1)) -> 0.01 | L3: =IF(ISERROR(INDEX(YieldCalcs[PredWts],MATCH(CONCATENATE(G3,"LT75"),YieldCalcs[Code],0),1)),"",INDEX(YieldCalcs[PredWts],MATCH(CONCATENATE(G3,"LT75"),YieldCalcs[Code],0),1)) -> 0.63 | M3: =IF(ISERROR(INDEX(YieldCalcs[PredWts],MATCH(CONCATENATE(G3,"LT85"),YieldCalcs[Code],0),1)),"",INDEX(YieldCalcs[PredWts],MATCH(CONCATENATE(G3,"LT85"),YieldCalcs[Code],0),1)) -> 0.08 | N3: =IF(ISERROR(INDEX(YieldCalcs[PredWts],MATCH(CONCATENATE(G3,"LT95"),YieldCalcs[Code],0),1)),"",INDEX(YieldCalcs[PredWts],MATCH(CONCATENATE(G3,"LT95"),YieldCalcs[Code],0),1)) ->  | O3: =IF(ISERROR(INDEX(YieldCalcs[PredWts],MATCH(CONCATENATE(G3,"F"),YieldCalcs[Code],0),1)),"",INDEX(YieldCalcs[PredWts],MATCH(CONCATENATE(G3,"F"),YieldCalcs[Code],0),1)) -> 5.48 | P3: =IF(ISERROR(INDEX(YieldCalcs[PredWts],MATCH(CONCATENATE(G3,"B"),YieldCalcs[Code],0),1)),"",INDEX(YieldCalcs[PredWts],MATCH(CONCATENATE(G3,"B"),YieldCalcs[Code],0),1)) -> 6.18 | Q3: =IF(ISERROR(INDEX(YieldCalcs[PredWts],MATCH(CONCATENATE(G3,"Cart"),YieldCalcs[Code],0),1)),"",INDEX(YieldCalcs[PredWts],MATCH(CONCATENATE(G3,"Cart"),YieldCalcs[Code],0),1)) ->  | R3: =IF(ISERROR(INDEX(YieldCalcs[PredWts],MATCH(CONCATENATE(G3,"Pad"),YieldCalcs[Code],0),1)),"",INDEX(YieldCalcs[PredWts],MATCH(CONCATENATE(G3,"Pad"),YieldCalcs[Code],0),1)) ->  | S3: =IF(ISERROR(INDEX(YieldCalcs[PredWts],MATCH(CONCATENATE(G3,"I"),YieldCalcs[Code],0),1)),"",INDEX(YieldCalcs[PredWts],MATCH(CONCATENATE(G3,"I"),YieldCalcs[Code],0),1)) ->  | T3: =IF(ISERROR(INDEX(YieldCalcs[PredWts],MATCH(CONCATENATE(G3,"Skirt"),YieldCalcs[Code],0),1)),"",INDEX(YieldCalcs[PredWts],MATCH(CONCATENATE(G3,"Skirt"),YieldCalcs[Code],0),1)) ->  | U3: =IF(ISERROR(INDEX(YieldCalcs[PredWts],MATCH(CONCATENATE(G3,"RibEnds"),YieldCalcs[Code],0),1)),"",INDEX(YieldCalcs[PredWts],MATCH(CONCATENATE(G3,"RibEnds"),YieldCalcs[Code],0),1)) ->  | V3: =IF(ISERROR(INDEX(YieldCalcs[SalePrice],MATCH(G3,YieldCalcs[Code],0),1)),"",INDEX(YieldCalcs[SalePrice],MATCH(G3,YieldCalcs[Code],0),1)) -> 5.08 | W3: =IF(ISERROR(INDEX(YieldCalcs[CutValue],MATCH(G3,YieldCalcs[Code],0),1)),"",INDEX(YieldCalcs[CutValue],MATCH(G3,YieldCalcs[Code],0),1)) -> 76.8604 | X3: =IF(ISERROR(INDEX(YieldCalcs[GM$],MATCH(G3,YieldCalcs[Code],0),1)),"",INDEX(YieldCalcs[GM$],MATCH(G3,YieldCalcs[Code],0),1)) -> -10.03008409 | Y3: =IF(ISERROR(INDEX(YieldCalcs[GM%],MATCH(G3,YieldCalcs[Code],0),1)),"",INDEX(YieldCalcs[GM%],MATCH(G3,YieldCalcs[Code],0),1)) -> -0.1304974225 | Z3: =IF(ISERROR(INDEX(YieldCalcs[TGM%],MATCH(G3,YieldCalcs[Code],0),1)),"",INDEX(YieldCalcs[TGM%],MATCH(G3,YieldCalcs[Code],0),1)) -> 0.057 | AA3: =IF(ISERROR(INDEX(YieldCalcs[TSalePrice],MATCH(G3,YieldCalcs[Code],0),1)),"",INDEX(YieldCalcs[TSalePrice],MATCH(G3,YieldCalcs[Code],0),1)) -> 6.090060346 | AB3: =IF(ISNUMBER(INDEX(YieldCalcs[TotCostsPerKg],MATCH(G3,YieldCalcs[Code],0),1)),INDEX(YieldCalcs[TotCostsPerKg],MATCH(G3,YieldCalcs[Code],0),1),"") -> 5.742926906 | AC3: =IF(ISERROR(INDEX(YieldCalcs[PreBoneCperkg],MATCH(G3,YieldCalcs[Code],0),1)),"",INDEX(YieldCalcs[PreBoneCperkg],MATCH(G3,YieldCalcs[Code],0),1)) -> 5.466203932 | AD3: =IF(ISERROR(INDEX(YieldCalcs[FixBoneCostperkg],MATCH(G3,YieldCalcs[Code],0),1)),"",INDEX(YieldCalcs[FixBoneCostperkg],MATCH(G3,YieldCalcs[Code],0),1)) -> 0.05672297405 | AE3: =IF(ISERROR(INDEX(YieldCalcs[BoningCost],MATCH(G3,YieldCalcs[Code],0),1)),"",INDEX(YieldCalcs[BoningCost],MATCH(G3,YieldCalcs[Code],0),1)) -> 0.22 | AF3: =IF(ISNUMBER(INDEX(YieldCalcs[TotCosts],MATCH(G3,YieldCalcs[Code],0),1)),INDEX(YieldCalcs[TotCosts],MATCH(G3,YieldCalcs[Code],0),1),"") -> 86.89048409 | AG3: =IF(ISERROR(INDEX(YieldCalcs[BuyInPrice],MATCH(G3,YieldCalcs[Code],0),1)),"",INDEX(YieldCalcs[BuyInPrice],MATCH(G3,YieldCalcs[Code],0),1)) -> 0
C4: Rump | E4: Rump Tri Tip | F4: =IF(ISERROR(INDEX(YieldCalcs[Code],MATCH(D4,YieldCalcs[CutName],0),1)),"",INDEX(YieldCalcs[HAM No],MATCH(D4,YieldCalcs[CutName],0),1)) ->  | G4: =IF(ISERROR(INDEX(YieldCalcs[Code],MATCH(E4,YieldCalcs[CutName],0),1)),"",INDEX(YieldCalcs[Code],MATCH(E4,YieldCalcs[CutName],0),1)) -> HQ02.2 | H4: =IF(ISNA(MATCH(E4,YieldCalcs[CutName],0)),"",MATCH(E4,YieldCalcs[CutName],0)) -> 203 | I4: =IF(ISERROR(INDEX(YieldCalcs[PredWts],MATCH(G4,YieldCalcs[Code],0),1)),"",INDEX(YieldCalcs[PredWts],MATCH(G4,YieldCalcs[Code],0),1)) -> 2.08 | J4: =IF(ISERROR(INDEX(YieldCalcs[PredWts],MATCH(CONCATENATE(G4,"LT"),YieldCalcs[Code],0),1)),"",INDEX(YieldCalcs[PredWts],MATCH(CONCATENATE(G4,"LT"),YieldCalcs[Code],0),1)) ->  | K4: =IF(ISERROR(INDEX(YieldCalcs[PredWts],MATCH(CONCATENATE(G4,"LT65"),YieldCalcs[Code],0),1)),"",INDEX(YieldCalcs[PredWts],MATCH(CONCATENATE(G4,"LT65"),YieldCalcs[Code],0),1)) ->  | L4: =IF(ISERROR(INDEX(YieldCalcs[PredWts],MATCH(CONCATENATE(G4,"LT75"),YieldCalcs[Code],0),1)),"",INDEX(YieldCalcs[PredWts],MATCH(CONCATENATE(G4,"LT75"),YieldCalcs[Code],0),1)) ->  | M4: =IF(ISERROR(INDEX(YieldCalcs[PredWts],MATCH(CONCATENATE(G4,"LT85"),YieldCalcs[Code],0),1)),"",INDEX(YieldCalcs[PredWts],MATCH(CONCATENATE(G4,"LT85"),YieldCalcs[Code],0),1)) ->  | N4: =IF(ISERROR(INDEX(YieldCalcs[PredWts],MATCH(CONCATENATE(G4,"LT95"),YieldCalcs[Code],0),1)),"",INDEX(YieldCalcs[PredWts],MATCH(CONCATENATE(G4,"LT95"),YieldCalcs[Code],0),1)) ->  | O4: =IF(ISERROR(INDEX(YieldCalcs[PredWts],MATCH(CONCATENATE(G4,"F"),YieldCalcs[Code],0),1)),"",INDEX(YieldCalcs[PredWts],MATCH(CONCATENATE(G4,"F"),YieldCalcs[Code],0),1)) ->  | P4: =IF(ISERROR(INDEX(YieldCalcs[PredWts],MATCH(CONCATENATE(G4,"B"),YieldCalcs[Code],0),1)),"",INDEX(YieldCalcs[PredWts],MATCH(CONCATENATE(G4,"B"),YieldCalcs[Code],0),1)) ->  | Q4: =IF(ISERROR(INDEX(YieldCalcs[PredWts],MATCH(CONCATENATE(G4,"Cart"),YieldCalcs[Code],0),1)),"",INDEX(YieldCalcs[PredWts],MATCH(CONCATENATE(G4,"Cart"),YieldCalcs[Code],0),1)) ->  | R4: =IF(ISERROR(INDEX(YieldCalcs[PredWts],MATCH(CONCATENATE(G4,"Pad"),YieldCalcs[Code],0),1)),"",INDEX(YieldCalcs[PredWts],MATCH(CONCATENATE(G4,"Pad"),YieldCalcs[Code],0),1)) ->  | S4: =IF(ISERROR(INDEX(YieldCalcs[PredWts],MATCH(CONCATENATE(G4,"I"),YieldCalcs[Code],0),1)),"",INDEX(YieldCalcs[PredWts],MATCH(CONCATENATE(G4,"I"),YieldCalcs[Code],0),1)) ->  | T4: =IF(ISERROR(INDEX(YieldCalcs[PredWts],MATCH(CONCATENATE(G4,"Skirt"),YieldCalcs[Code],0),1)),"",INDEX(YieldCalcs[PredWts],MATCH(CONCATENATE(G4,"Skirt"),YieldCalcs[Code],0),1)) ->  | U4: =IF(ISERROR(INDEX(YieldCalcs[PredWts],MATCH(CONCATENATE(G4,"RibEnds"),YieldCalcs[Code],0),1)),"",INDEX(YieldCalcs[PredWts],MATCH(CONCATENATE(G4,"RibEnds"),YieldCalcs[Code],0),1)) ->  | V4: =IF(ISERROR(INDEX(YieldCalcs[SalePrice],MATCH(G4,YieldCalcs[Code],0),1)),"",INDEX(YieldCalcs[SalePrice],MATCH(G4,YieldCalcs[Code],0),1)) -> 5.06 | W4: =IF(ISERROR(INDEX(YieldCalcs[CutValue],MATCH(G4,YieldCalcs[Code],0),1)),"",INDEX(YieldCalcs[CutValue],MATCH(G4,YieldCalcs[Code],0),1)) -> 10.5248 | X4: =IF(ISERROR(INDEX(YieldCalcs[GM$],MATCH(G4,YieldCalcs[Code],0),1)),"",INDEX(YieldCalcs[GM$],MATCH(G4,YieldCalcs[Code],0),1)) -> -1.182354672 | Y4: =IF(ISERROR(INDEX(YieldCalcs[GM%],MATCH(G4,YieldCalcs[Code],0),1)),"",INDEX(YieldCalcs[GM%],MATCH(G4,YieldCalcs[Code],0),1)) -> -0.1123398708 | Z4: =IF(ISERROR(INDEX(YieldCalcs[TGM%],MATCH(G4,YieldCalcs[Code],0),1)),"",INDEX(YieldCalcs[TGM%],MATCH(G4,YieldCalcs[Code],0),1)) -> 0.055 | AA4: =IF(ISERROR(INDEX(YieldCalcs[TSalePrice],MATCH(G4,YieldCalcs[Code],0),1)),"",INDEX(YieldCalcs[TSalePrice],MATCH(G4,YieldCalcs[Code],0),1)) -> 5.956020896 | AB4: =IF(ISNUMBER(INDEX(YieldCalcs[TotCostsPerKg],MATCH(G4,YieldCalcs[Code],0),1)),INDEX(YieldCalcs[TotCostsPerKg],MATCH(G4,YieldCalcs[Code],0),1),"") -> 5.628439746 | AC4: =IF(ISERROR(INDEX(YieldCalcs[PreBoneCperkg],MATCH(G4,YieldCalcs[Code],0),1)),"",INDEX(YieldCalcs[PreBoneCperkg],MATCH(G4,YieldCalcs[Code],0),1)) -> 5.372687198 | AD4: =IF(ISERROR(INDEX(YieldCalcs[FixBoneCostperkg],MATCH(G4,YieldCalcs[Code],0),1)),"",INDEX(YieldCalcs[FixBoneCostperkg],MATCH(G4,YieldCalcs[Code],0),1)) -> 0.05575254789 | AE4: =IF(ISERROR(INDEX(YieldCalcs[BoningCost],MATCH(G4,YieldCalcs[Code],0),1)),"",INDEX(YieldCalcs[BoningCost],MATCH(G4,YieldCalcs[Code],0),1)) -> 0.2 | AF4: =IF(ISNUMBER(INDEX(YieldCalcs[TotCosts],MATCH(G4,YieldCalcs[Code],0),1)),INDEX(YieldCalcs[TotCosts],MATCH(G4,YieldCalcs[Code],0),1),"") -> 11.70715467 | AG4: =IF(ISERROR(INDEX(YieldCalcs[BuyInPrice],MATCH(G4,YieldCalcs[Code],0),1)),"",INDEX(YieldCalcs[BuyInPrice],MATCH(G4,YieldCalcs[Code],0),1)) -> 0
A5: REC% | B5: =SUM(I3:J9,O3:U9)/INDEX(YieldCalcs[PredWts],MATCH("HQ02.0",YieldCalcs[Code],0),1) -> 0.9798013245 | F5: =IF(ISERROR(INDEX(YieldCalcs[Code],MATCH(D5,YieldCalcs[CutName],0),1)),"",INDEX(YieldCalcs[HAM No],MATCH(D5,YieldCalcs[CutName],0),1)) ->  | G5: =IF(ISERROR(INDEX(YieldCalcs[Code],MATCH(E5,YieldCalcs[CutName],0),1)),"",INDEX(YieldCalcs[Code],MATCH(E5,YieldCalcs[CutName],0),1)) ->  | H5: =IF(ISNA(MATCH(E5,YieldCalcs[CutName],0)),"",MATCH(E5,YieldCalcs[CutName],0)) ->  | I5: =IF(ISERROR(INDEX(YieldCalcs[PredWts],MATCH(G5,YieldCalcs[Code],0),1)),"",INDEX(YieldCalcs[PredWts],MATCH(G5,YieldCalcs[Code],0),1)) ->  | J5: =IF(ISERROR(INDEX(YieldCalcs[PredWts],MATCH(CONCATENATE(G5,"LT"),YieldCalcs[Code],0),1)),"",INDEX(YieldCalcs[PredWts],MATCH(CONCATENATE(G5,"LT"),YieldCalcs[Code],0),1)) ->  | K5: =IF(ISERROR(INDEX(YieldCalcs[PredWts],MATCH(CONCATENATE(G5,"LT65"),YieldCalcs[Code],0),1)),"",INDEX(YieldCalcs[PredWts],MATCH(CONCATENATE(G5,"LT65"),YieldCalcs[Code],0),1)) ->  | L5: =IF(ISERROR(INDEX(YieldCalcs[PredWts],MATCH(CONCATENATE(G5,"LT75"),YieldCalcs[Code],0),1)),"",INDEX(YieldCalcs[PredWts],MATCH(CONCATENATE(G5,"LT75"),YieldCalcs[Code],0),1)) ->  | M5: =IF(ISERROR(INDEX(YieldCalcs[PredWts],MATCH(CONCATENATE(G5,"LT85"),YieldCalcs[Code],0),1)),"",INDEX(YieldCalcs[PredWts],MATCH(CONCATENATE(G5,"LT85"),YieldCalcs[Code],0),1)) ->  | N5: =IF(ISERROR(INDEX(YieldCalcs[PredWts],MATCH(CONCATENATE(G5,"LT95"),YieldCalcs[Code],0),1)),"",INDEX(YieldCalcs[PredWts],MATCH(CONCATENATE(G5,"LT95"),YieldCalcs[Code],0),1)) ->  | O5: =IF(ISERROR(INDEX(YieldCalcs[PredWts],MATCH(CONCATENATE(G5,"F"),YieldCalcs[Code],0),1)),"",INDEX(YieldCalcs[PredWts],MATCH(CONCATENATE(G5,"F"),YieldCalcs[Code],0),1)) ->  | P5: =IF(ISERROR(INDEX(YieldCalcs[PredWts],MATCH(CONCATENATE(G5,"B"),YieldCalcs[Code],0),1)),"",INDEX(YieldCalcs[PredWts],MATCH(CONCATENATE(G5,"B"),YieldCalcs[Code],0),1)) ->  | Q5: =IF(ISERROR(INDEX(YieldCalcs[PredWts],MATCH(CONCATENATE(G5,"Cart"),YieldCalcs[Code],0),1)),"",INDEX(YieldCalcs[PredWts],MATCH(CONCATENATE(G5,"Cart"),YieldCalcs[Code],0),1)) ->  | R5: =IF(ISERROR(INDEX(YieldCalcs[PredWts],MATCH(CONCATENATE(G5,"Pad"),YieldCalcs[Code],0),1)),"",INDEX(YieldCalcs[PredWts],MATCH(CONCATENATE(G5,"Pad"),YieldCalcs[Code],0),1)) ->  | S5: =IF(ISERROR(INDEX(YieldCalcs[PredWts],MATCH(CONCATENATE(G5,"I"),YieldCalcs[Code],0),1)),"",INDEX(YieldCalcs[PredWts],MATCH(CONCATENATE(G5,"I"),YieldCalcs[Code],0),1)) ->  | T5: =IF(ISERROR(INDEX(YieldCalcs[PredWts],MATCH(CONCATENATE(G5,"Skirt"),YieldCalcs[Code],0),1)),"",INDEX(YieldCalcs[PredWts],MATCH(CONCATENATE(G5,"Skirt"),YieldCalcs[Code],0),1)) ->  | U5: =IF(ISERROR(INDEX(YieldCalcs[PredWts],MATCH(CONCATENATE(G5,"RibEnds"),YieldCalcs[Code],0),1)),"",INDEX(YieldCalcs[PredWts],MATCH(CONCATENATE(G5,"RibEnds"),YieldCalcs[Code],0),1)) ->  | V5: =IF(ISERROR(INDEX(YieldCalcs[SalePrice],MATCH(G5,YieldCalcs[Code],0),1)),"",INDEX(YieldCalcs[SalePrice],MATCH(G5,YieldCalcs[Code],0),1)) ->  | W5: =IF(ISERROR(INDEX(YieldCalcs[CutValue],MATCH(G5,YieldCalcs[Code],0),1)),"",INDEX(YieldCalcs[CutValue],MATCH(G5,YieldCalcs[Code],0),1)) ->  | X5: =IF(ISERROR(INDEX(YieldCalcs[GM$],MATCH(G5,YieldCalcs[Code],0),1)),"",INDEX(YieldCalcs[GM$],MATCH(G5,YieldCalcs[Code],0),1)) ->  | Y5: =IF(ISERROR(INDEX(YieldCalcs[GM%],MATCH(G5,YieldCalcs[Code],0),1)),"",INDEX(YieldCalcs[GM%],MATCH(G5,YieldCalcs[Code],0),1)) ->  | Z5: =IF(ISERROR(INDEX(YieldCalcs[TGM%],MATCH(G5,YieldCalcs[Code],0),1)),"",INDEX(YieldCalcs[TGM%],MATCH(G5,YieldCalcs[Code],0),1)) ->  | AA5: =IF(ISERROR(INDEX(YieldCalcs[TSalePrice],MATCH(G5,YieldCalcs[Code],0),1)),"",INDEX(YieldCalcs[TSalePrice],MATCH(G5,YieldCalcs[Code],0),1)) ->  | AB5: =IF(ISNUMBER(INDEX(YieldCalcs[TotCostsPerKg],MATCH(G5,YieldCalcs[Code],0),1)),INDEX(YieldCalcs[TotCostsPerKg],MATCH(G5,YieldCalcs[Code],0),1),"") ->  | AC5: =IF(ISERROR(INDEX(YieldCalcs[PreBoneCperkg],MATCH(G5,YieldCalcs[Code],0),1)),"",INDEX(YieldCalcs[PreBoneCperkg],MATCH(G5,YieldCalcs[Code],0),1)) ->  | AD5: =IF(ISERROR(INDEX(YieldCalcs[FixBoneCostperkg],MATCH(G5,YieldCalcs[Code],0),1)),"",INDEX(YieldCalcs[FixBoneCostperkg],MATCH(G5,YieldCalcs[Code],0),1)) ->  | AE5: =IF(ISERROR(INDEX(YieldCalcs[BoningCost],MATCH(G5,YieldCalcs[Code],0),1)),"",INDEX(YieldCalcs[BoningCost],MATCH(G5,YieldCalcs[Code],0),1)) ->  | AF5: =IF(ISNUMBER(INDEX(YieldCalcs[TotCosts],MATCH(G5,YieldCalcs[Code],0),1)),INDEX(YieldCalcs[TotCosts],MATCH(G5,YieldCalcs[Code],0),1),"") ->  | AG5: =IF(ISERROR(INDEX(YieldCalcs[BuyInPrice],MATCH(G5,YieldCalcs[Code],0),1)),"",INDEX(YieldCalcs[BuyInPrice],MATCH(G5,YieldCalcs[Code],0),1)) ->  | AI5: =AG5-AA5 -> 
A6: =IF(Lists!F181=1,"WARNING: Check Recovery","") ->  | F6: =IF(ISERROR(INDEX(YieldCalcs[Code],MATCH(D6,YieldCalcs[CutName],0),1)),"",INDEX(YieldCalcs[HAM No],MATCH(D6,YieldCalcs[CutName],0),1)) ->  | G6: =IF(ISERROR(INDEX(YieldCalcs[Code],MATCH(E6,YieldCalcs[CutName],0),1)),"",INDEX(YieldCalcs[Code],MATCH(E6,YieldCalcs[CutName],0),1)) ->  | H6: =IF(ISNA(MATCH(E6,YieldCalcs[CutName],0)),"",MATCH(E6,YieldCalcs[CutName],0)) ->  | I6: =IF(ISERROR(INDEX(YieldCalcs[PredWts],MATCH(G6,YieldCalcs[Code],0),1)),"",INDEX(YieldCalcs[PredWts],MATCH(G6,YieldCalcs[Code],0),1)) ->  | J6: =IF(ISERROR(INDEX(YieldCalcs[PredWts],MATCH(CONCATENATE(G6,"LT"),YieldCalcs[Code],0),1)),"",INDEX(YieldCalcs[PredWts],MATCH(CONCATENATE(G6,"LT"),YieldCalcs[Code],0),1)) ->  | K6: =IF(ISERROR(INDEX(YieldCalcs[PredWts],MATCH(CONCATENATE(G6,"LT65"),YieldCalcs[Code],0),1)),"",INDEX(YieldCalcs[PredWts],MATCH(CONCATENATE(G6,"LT65"),YieldCalcs[Code],0),1)) ->  | L6: =IF(ISERROR(INDEX(YieldCalcs[PredWts],MATCH(CONCATENATE(G6,"LT75"),YieldCalcs[Code],0),1)),"",INDEX(YieldCalcs[PredWts],MATCH(CONCATENATE(G6,"LT75"),YieldCalcs[Code],0),1)) ->  | M6: =IF(ISERROR(INDEX(YieldCalcs[PredWts],MATCH(CONCATENATE(G6,"LT85"),YieldCalcs[Code],0),1)),"",INDEX(YieldCalcs[PredWts],MATCH(CONCATENATE(G6,"LT85"),YieldCalcs[Code],0),1)) ->  | N6: =IF(ISERROR(INDEX(YieldCalcs[PredWts],MATCH(CONCATENATE(G6,"LT95"),YieldCalcs[Code],0),1)),"",INDEX(YieldCalcs[PredWts],MATCH(CONCATENATE(G6,"LT95"),YieldCalcs[Code],0),1)) ->  | O6: =IF(ISERROR(INDEX(YieldCalcs[PredWts],MATCH(CONCATENATE(G6,"F"),YieldCalcs[Code],0),1)),"",INDEX(YieldCalcs[PredWts],MATCH(CONCATENATE(G6,"F"),YieldCalcs[Code],0),1)) ->  | P6: =IF(ISERROR(INDEX(YieldCalcs[PredWts],MATCH(CONCATENATE(G6,"B"),YieldCalcs[Code],0),1)),"",INDEX(YieldCalcs[PredWts],MATCH(CONCATENATE(G6,"B"),YieldCalcs[Code],0),1)) ->  | Q6: =IF(ISERROR(INDEX(YieldCalcs[PredWts],MATCH(CONCATENATE(G6,"Cart"),YieldCalcs[Code],0),1)),"",INDEX(YieldCalcs[PredWts],MATCH(CONCATENATE(G6,"Cart"),YieldCalcs[Code],0),1)) ->  | R6: =IF(ISERROR(INDEX(YieldCalcs[PredWts],MATCH(CONCATENATE(G6,"Pad"),YieldCalcs[Code],0),1)),"",INDEX(YieldCalcs[PredWts],MATCH(CONCATENATE(G6,"Pad"),YieldCalcs[Code],0),1)) ->  | S6: =IF(ISERROR(INDEX(YieldCalcs[PredWts],MATCH(CONCATENATE(G6,"I"),YieldCalcs[Code],0),1)),"",INDEX(YieldCalcs[PredWts],MATCH(CONCATENATE(G6,"I"),YieldCalcs[Code],0),1)) ->  | T6: =IF(ISERROR(INDEX(YieldCalcs[PredWts],MATCH(CONCATENATE(G6,"Skirt"),YieldCalcs[Code],0),1)),"",INDEX(YieldCalcs[PredWts],MATCH(CONCATENATE(G6,"Skirt"),YieldCalcs[Code],0),1)) ->  | U6: =IF(ISERROR(INDEX(YieldCalcs[PredWts],MATCH(CONCATENATE(G6,"RibEnds"),YieldCalcs[Code],0),1)),"",INDEX(YieldCalcs[PredWts],MATCH(CONCATENATE(G6,"RibEnds"),YieldCalcs[Code],0),1)) ->  | V6: =IF(ISERROR(INDEX(YieldCalcs[SalePrice],MATCH(G6,YieldCalcs[Code],0),1)),"",INDEX(YieldCalcs[SalePrice],MATCH(G6,YieldCalcs[Code],0),1)) ->  | W6: =IF(ISERROR(INDEX(YieldCalcs[CutValue],MATCH(G6,YieldCalcs[Code],0),1)),"",INDEX(YieldCalcs[CutValue],MATCH(G6,YieldCalcs[Code],0),1)) ->  | X6: =IF(ISERROR(INDEX(YieldCalcs[GM$],MATCH(G6,YieldCalcs[Code],0),1)),"",INDEX(YieldCalcs[GM$],MATCH(G6,YieldCalcs[Code],0),1)) ->  | Y6: =IF(ISERROR(INDEX(YieldCalcs[GM%],MATCH(G6,YieldCalcs[Code],0),1)),"",INDEX(YieldCalcs[GM%],MATCH(G6,YieldCalcs[Code],0),1)) ->  | Z6: =IF(ISERROR(INDEX(YieldCalcs[TGM%],MATCH(G6,YieldCalcs[Code],0),1)),"",INDEX(YieldCalcs[TGM%],MATCH(G6,YieldCalcs[Code],0),1)) ->  | AA6: =IF(ISERROR(INDEX(YieldCalcs[TSalePrice],MATCH(G6,YieldCalcs[Code],0),1)),"",INDEX(YieldCalcs[TSalePrice],MATCH(G6,YieldCalcs[Code],0),1)) ->  | AB6: =IF(ISNUMBER(INDEX(YieldCalcs[TotCostsPerKg],MATCH(G6,YieldCalcs[Code],0),1)),INDEX(YieldCalcs[TotCostsPerKg],MATCH(G6,YieldCalcs[Code],0),1),"") ->  | AC6: =IF(ISERROR(INDEX(YieldCalcs[PreBoneCperkg],MATCH(G6,YieldCalcs[Code],0),1)),"",INDEX(YieldCalcs[PreBoneCperkg],MATCH(G6,YieldCalcs[Code],0),1)) ->  | AD6: =IF(ISERROR(INDEX(YieldCalcs[FixBoneCostperkg],MATCH(G6,YieldCalcs[Code],0),1)),"",INDEX(YieldCalcs[FixBoneCostperkg],MATCH(G6,YieldCalcs[Code],0),1)) ->  | AE6: =IF(ISERROR(INDEX(YieldCalcs[BoningCost],MATCH(G6,YieldCalcs[Code],0),1)),"",INDEX(YieldCalcs[BoningCost],MATCH(G6,YieldCalcs[Code],0),1)) ->  | AF6: =IF(ISNUMBER(INDEX(YieldCalcs[TotCosts],MATCH(G6,YieldCalcs[Code],0),1)),INDEX(YieldCalcs[TotCosts],MATCH(G6,YieldCalcs[Code],0),1),"") ->  | AG6: =IF(ISERROR(INDEX(YieldCalcs[BuyInPrice],MATCH(G6,YieldCalcs[Code],0),1)),"",INDEX(YieldCalcs[BuyInPrice],MATCH(G6,YieldCalcs[Code],0),1)) -> 
F7: =IF(ISERROR(INDEX(YieldCalcs[Code],MATCH(D7,YieldCalcs[CutName],0),1)),"",INDEX(YieldCalcs[HAM No],MATCH(D7,YieldCalcs[CutName],0),1)) ->  | G7: =IF(ISERROR(INDEX(YieldCalcs[Code],MATCH(E7,YieldCalcs[CutName],0),1)),"",INDEX(YieldCalcs[Code],MATCH(E7,YieldCalcs[CutName],0),1)) ->  | H7: =IF(ISNA(MATCH(E7,YieldCalcs[CutName],0)),"",MATCH(E7,YieldCalcs[CutName],0)) ->  | I7: =IF(ISERROR(INDEX(YieldCalcs[PredWts],MATCH(G7,YieldCalcs[Code],0),1)),"",INDEX(YieldCalcs[PredWts],MATCH(G7,YieldCalcs[Code],0),1)) ->  | J7: =IF(ISERROR(INDEX(YieldCalcs[PredWts],MATCH(CONCATENATE(G7,"LT"),YieldCalcs[Code],0),1)),"",INDEX(YieldCalcs[PredWts],MATCH(CONCATENATE(G7,"LT"),YieldCalcs[Code],0),1)) ->  | K7: =IF(ISERROR(INDEX(YieldCalcs[PredWts],MATCH(CONCATENATE(G7,"LT65"),YieldCalcs[Code],0),1)),"",INDEX(YieldCalcs[PredWts],MATCH(CONCATENATE(G7,"LT65"),YieldCalcs[Code],0),1)) ->  | L7: =IF(ISERROR(INDEX(YieldCalcs[PredWts],MATCH(CONCATENATE(G7,"LT75"),YieldCalcs[Code],0),1)),"",INDEX(YieldCalcs[PredWts],MATCH(CONCATENATE(G7,"LT75"),YieldCalcs[Code],0),1)) ->  | M7: =IF(ISERROR(INDEX(YieldCalcs[PredWts],MATCH(CONCATENATE(G7,"LT85"),YieldCalcs[Code],0),1)),"",INDEX(YieldCalcs[PredWts],MATCH(CONCATENATE(G7,"LT85"),YieldCalcs[Code],0),1)) ->  | N7: =IF(ISERROR(INDEX(YieldCalcs[PredWts],MATCH(CONCATENATE(G7,"LT95"),YieldCalcs[Code],0),1)),"",INDEX(YieldCalcs[PredWts],MATCH(CONCATENATE(G7,"LT95"),YieldCalcs[Code],0),1)) ->  | O7: =IF(ISERROR(INDEX(YieldCalcs[PredWts],MATCH(CONCATENATE(G7,"F"),YieldCalcs[Code],0),1)),"",INDEX(YieldCalcs[PredWts],MATCH(CONCATENATE(G7,"F"),YieldCalcs[Code],0),1)) ->  | P7: =IF(ISERROR(INDEX(YieldCalcs[PredWts],MATCH(CONCATENATE(G7,"B"),YieldCalcs[Code],0),1)),"",INDEX(YieldCalcs[PredWts],MATCH(CONCATENATE(G7,"B"),YieldCalcs[Code],0),1)) ->  | Q7: =IF(ISERROR(INDEX(YieldCalcs[PredWts],MATCH(CONCATENATE(G7,"Cart"),YieldCalcs[Code],0),1)),"",INDEX(YieldCalcs[PredWts],MATCH(CONCATENATE(G7,"Cart"),YieldCalcs[Code],0),1)) ->  | R7: =IF(ISERROR(INDEX(YieldCalcs[PredWts],MATCH(CONCATENATE(G7,"Pad"),YieldCalcs[Code],0),1)),"",INDEX(YieldCalcs[PredWts],MATCH(CONCATENATE(G7,"Pad"),YieldCalcs[Code],0),1)) ->  | S7: =IF(ISERROR(INDEX(YieldCalcs[PredWts],MATCH(CONCATENATE(G7,"I"),YieldCalcs[Code],0),1)),"",INDEX(YieldCalcs[PredWts],MATCH(CONCATENATE(G7,"I"),YieldCalcs[Code],0),1)) ->  | T7: =IF(ISERROR(INDEX(YieldCalcs[PredWts],MATCH(CONCATENATE(G7,"Skirt"),YieldCalcs[Code],0),1)),"",INDEX(YieldCalcs[PredWts],MATCH(CONCATENATE(G7,"Skirt"),YieldCalcs[Code],0),1)) ->  | U7: =IF(ISERROR(INDEX(YieldCalcs[PredWts],MATCH(CONCATENATE(G7,"RibEnds"),YieldCalcs[Code],0),1)),"",INDEX(YieldCalcs[PredWts],MATCH(CONCATENATE(G7,"RibEnds"),YieldCalcs[Code],0),1)) ->  | V7: =IF(ISERROR(INDEX(YieldCalcs[SalePrice],MATCH(G7,YieldCalcs[Code],0),1)),"",INDEX(YieldCalcs[SalePrice],MATCH(G7,YieldCalcs[Code],0),1)) ->  | W7: =IF(ISERROR(INDEX(YieldCalcs[CutValue],MATCH(G7,YieldCalcs[Code],0),1)),"",INDEX(YieldCalcs[CutValue],MATCH(G7,YieldCalcs[Code],0),1)) ->  | X7: =IF(ISERROR(INDEX(YieldCalcs[GM$],MATCH(G7,YieldCalcs[Code],0),1)),"",INDEX(YieldCalcs[GM$],MATCH(G7,YieldCalcs[Code],0),1)) ->  | Y7: =IF(ISERROR(INDEX(YieldCalcs[GM%],MATCH(G7,YieldCalcs[Code],0),1)),"",INDEX(YieldCalcs[GM%],MATCH(G7,YieldCalcs[Code],0),1)) ->  | Z7: =IF(ISERROR(INDEX(YieldCalcs[TGM%],MATCH(G7,YieldCalcs[Code],0),1)),"",INDEX(YieldCalcs[TGM%],MATCH(G7,YieldCalcs[Code],0),1)) ->  | AA7: =IF(ISERROR(INDEX(YieldCalcs[TSalePrice],MATCH(G7,YieldCalcs[Code],0),1)),"",INDEX(YieldCalcs[TSalePrice],MATCH(G7,YieldCalcs[Code],0),1)) ->  | AB7: =IF(ISNUMBER(INDEX(YieldCalcs[TotCostsPerKg],MATCH(G7,YieldCalcs[Code],0),1)),INDEX(YieldCalcs[TotCostsPerKg],MATCH(G7,YieldCalcs[Code],0),1),"") ->  | AC7: =IF(ISERROR(INDEX(YieldCalcs[PreBoneCperkg],MATCH(G7,YieldCalcs[Code],0),1)),"",INDEX(YieldCalcs[PreBoneCperkg],MATCH(G7,YieldCalcs[Code],0),1)) ->  | AD7: =IF(ISERROR(INDEX(YieldCalcs[FixBoneCostperkg],MATCH(G7,YieldCalcs[Code],0),1)),"",INDEX(YieldCalcs[FixBoneCostperkg],MATCH(G7,YieldCalcs[Code],0),1)) ->  | AE7: =IF(ISERROR(INDEX(YieldCalcs[BoningCost],MATCH(G7,YieldCalcs[Code],0),1)),"",INDEX(YieldCalcs[BoningCost],MATCH(G7,YieldCalcs[Code],0),1)) ->  | AF7: =IF(ISNUMBER(INDEX(YieldCalcs[TotCosts],MATCH(G7,YieldCalcs[Code],0),1)),INDEX(YieldCalcs[TotCosts],MATCH(G7,YieldCalcs[Code],0),1),"") ->  | AG7: =IF(ISERROR(INDEX(YieldCalcs[BuyInPrice],MATCH(G7,YieldCalcs[Code],0),1)),"",INDEX(YieldCalcs[BuyInPrice],MATCH(G7,YieldCalcs[Code],0),1)) -> 
F8: =IF(ISERROR(INDEX(YieldCalcs[Code],MATCH(D8,YieldCalcs[CutName],0),1)),"",INDEX(YieldCalcs[HAM No],MATCH(D8,YieldCalcs[CutName],0),1)) ->  | G8: =IF(ISERROR(INDEX(YieldCalcs[Code],MATCH(E8,YieldCalcs[CutName],0),1)),"",INDEX(YieldCalcs[Code],MATCH(E8,YieldCalcs[CutName],0),1)) ->  | H8: =IF(ISNA(MATCH(E8,YieldCalcs[CutName],0)),"",MATCH(E8,YieldCalcs[CutName],0)) ->  | I8: =IF(ISERROR(INDEX(YieldCalcs[PredWts],MATCH(G8,YieldCalcs[Code],0),1)),"",INDEX(YieldCalcs[PredWts],MATCH(G8,YieldCalcs[Code],0),1)) ->  | J8: =IF(ISERROR(INDEX(YieldCalcs[PredWts],MATCH(CONCATENATE(G8,"LT"),YieldCalcs[Code],0),1)),"",INDEX(YieldCalcs[PredWts],MATCH(CONCATENATE(G8,"LT"),YieldCalcs[Code],0),1)) ->  | K8: =IF(ISERROR(INDEX(YieldCalcs[PredWts],MATCH(CONCATENATE(G8,"LT65"),YieldCalcs[Code],0),1)),"",INDEX(YieldCalcs[PredWts],MATCH(CONCATENATE(G8,"LT65"),YieldCalcs[Code],0),1)) ->  | L8: =IF(ISERROR(INDEX(YieldCalcs[PredWts],MATCH(CONCATENATE(G8,"LT75"),YieldCalcs[Code],0),1)),"",INDEX(YieldCalcs[PredWts],MATCH(CONCATENATE(G8,"LT75"),YieldCalcs[Code],0),1)) ->  | M8: =IF(ISERROR(INDEX(YieldCalcs[PredWts],MATCH(CONCATENATE(G8,"LT85"),YieldCalcs[Code],0),1)),"",INDEX(YieldCalcs[PredWts],MATCH(CONCATENATE(G8,"LT85"),YieldCalcs[Code],0),1)) ->  | N8: =IF(ISERROR(INDEX(YieldCalcs[PredWts],MATCH(CONCATENATE(G8,"LT95"),YieldCalcs[Code],0),1)),"",INDEX(YieldCalcs[PredWts],MATCH(CONCATENATE(G8,"LT95"),YieldCalcs[Code],0),1)) ->  | O8: =IF(ISERROR(INDEX(YieldCalcs[PredWts],MATCH(CONCATENATE(G8,"F"),YieldCalcs[Code],0),1)),"",INDEX(YieldCalcs[PredWts],MATCH(CONCATENATE(G8,"F"),YieldCalcs[Code],0),1)) ->  | P8: =IF(ISERROR(INDEX(YieldCalcs[PredWts],MATCH(CONCATENATE(G8,"B"),YieldCalcs[Code],0),1)),"",INDEX(YieldCalcs[PredWts],MATCH(CONCATENATE(G8,"B"),YieldCalcs[Code],0),1)) ->  | Q8: =IF(ISERROR(INDEX(YieldCalcs[PredWts],MATCH(CONCATENATE(G8,"Cart"),YieldCalcs[Code],0),1)),"",INDEX(YieldCalcs[PredWts],MATCH(CONCATENATE(G8,"Cart"),YieldCalcs[Code],0),1)) ->  | R8: =IF(ISERROR(INDEX(YieldCalcs[PredWts],MATCH(CONCATENATE(G8,"Pad"),YieldCalcs[Code],0),1)),"",INDEX(YieldCalcs[PredWts],MATCH(CONCATENATE(G8,"Pad"),YieldCalcs[Code],0),1)) ->  | S8: =IF(ISERROR(INDEX(YieldCalcs[PredWts],MATCH(CONCATENATE(G8,"I"),YieldCalcs[Code],0),1)),"",INDEX(YieldCalcs[PredWts],MATCH(CONCATENATE(G8,"I"),YieldCalcs[Code],0),1)) ->  | T8: =IF(ISERROR(INDEX(YieldCalcs[PredWts],MATCH(CONCATENATE(G8,"Skirt"),YieldCalcs[Code],0),1)),"",INDEX(YieldCalcs[PredWts],MATCH(CONCATENATE(G8,"Skirt"),YieldCalcs[Code],0),1)) ->  | U8: =IF(ISERROR(INDEX(YieldCalcs[PredWts],MATCH(CONCATENATE(G8,"RibEnds"),YieldCalcs[Code],0),1)),"",INDEX(YieldCalcs[PredWts],MATCH(CONCATENATE(G8,"RibEnds"),YieldCalcs[Code],0),1)) ->  | V8: =IF(ISERROR(INDEX(YieldCalcs[SalePrice],MATCH(G8,YieldCalcs[Code],0),1)),"",INDEX(YieldCalcs[SalePrice],MATCH(G8,YieldCalcs[Code],0),1)) ->  | W8: =IF(ISERROR(INDEX(YieldCalcs[CutValue],MATCH(G8,YieldCalcs[Code],0),1)),"",INDEX(YieldCalcs[CutValue],MATCH(G8,YieldCalcs[Code],0),1)) ->  | X8: =IF(ISERROR(INDEX(YieldCalcs[GM$],MATCH(G8,YieldCalcs[Code],0),1)),"",INDEX(YieldCalcs[GM$],MATCH(G8,YieldCalcs[Code],0),1)) ->  | Y8: =IF(ISERROR(INDEX(YieldCalcs[GM%],MATCH(G8,YieldCalcs[Code],0),1)),"",INDEX(YieldCalcs[GM%],MATCH(G8,YieldCalcs[Code],0),1)) ->  | Z8: =IF(ISERROR(INDEX(YieldCalcs[TGM%],MATCH(G8,YieldCalcs[Code],0),1)),"",INDEX(YieldCalcs[TGM%],MATCH(G8,YieldCalcs[Code],0),1)) ->  | AA8: =IF(ISERROR(INDEX(YieldCalcs[TSalePrice],MATCH(G8,YieldCalcs[Code],0),1)),"",INDEX(YieldCalcs[TSalePrice],MATCH(G8,YieldCalcs[Code],0),1)) ->  | AB8: =IF(ISNUMBER(INDEX(YieldCalcs[TotCostsPerKg],MATCH(G8,YieldCalcs[Code],0),1)),INDEX(YieldCalcs[TotCostsPerKg],MATCH(G8,YieldCalcs[Code],0),1),"") ->  | AC8: =IF(ISERROR(INDEX(YieldCalcs[PreBoneCperkg],MATCH(G8,YieldCalcs[Code],0),1)),"",INDEX(YieldCalcs[PreBoneCperkg],MATCH(G8,YieldCalcs[Code],0),1)) ->  | AD8: =IF(ISERROR(INDEX(YieldCalcs[FixBoneCostperkg],MATCH(G8,YieldCalcs[Code],0),1)),"",INDEX(YieldCalcs[FixBoneCostperkg],MATCH(G8,YieldCalcs[Code],0),1)) ->  | AE8: =IF(ISERROR(INDEX(YieldCalcs[BoningCost],MATCH(G8,YieldCalcs[Code],0),1)),"",INDEX(YieldCalcs[BoningCost],MATCH(G8,YieldCalcs[Code],0),1)) ->  | AF8: =IF(ISNUMBER(INDEX(YieldCalcs[TotCosts],MATCH(G8,YieldCalcs[Code],0),1)),INDEX(YieldCalcs[TotCosts],MATCH(G8,YieldCalcs[Code],0),1),"") ->  | AG8: =IF(ISERROR(INDEX(YieldCalcs[BuyInPrice],MATCH(G8,YieldCalcs[Code],0),1)),"",INDEX(YieldCalcs[BuyInPrice],MATCH(G8,YieldCalcs[Code],0),1)) -> 
F9: =IF(ISERROR(INDEX(YieldCalcs[Code],MATCH(D9,YieldCalcs[CutName],0),1)),"",INDEX(YieldCalcs[HAM No],MATCH(D9,YieldCalcs[CutName],0),1)) ->  | G9: =IF(ISERROR(INDEX(YieldCalcs[Code],MATCH(E9,YieldCalcs[CutName],0),1)),"",INDEX(YieldCalcs[Code],MATCH(E9,YieldCalcs[CutName],0),1)) ->  | H9: =IF(ISNA(MATCH(E9,YieldCalcs[CutName],0)),"",MATCH(E9,YieldCalcs[CutName],0)) ->  | I9: =IF(ISERROR(INDEX(YieldCalcs[PredWts],MATCH(G9,YieldCalcs[Code],0),1)),"",INDEX(YieldCalcs[PredWts],MATCH(G9,YieldCalcs[Code],0),1)) ->  | J9: =IF(ISERROR(INDEX(YieldCalcs[PredWts],MATCH(CONCATENATE(G9,"LT"),YieldCalcs[Code],0),1)),"",INDEX(YieldCalcs[PredWts],MATCH(CONCATENATE(G9,"LT"),YieldCalcs[Code],0),1)) ->  | K9: =IF(ISERROR(INDEX(YieldCalcs[PredWts],MATCH(CONCATENATE(G9,"LT65"),YieldCalcs[Code],0),1)),"",INDEX(YieldCalcs[PredWts],MATCH(CONCATENATE(G9,"LT65"),YieldCalcs[Code],0),1)) ->  | L9: =IF(ISERROR(INDEX(YieldCalcs[PredWts],MATCH(CONCATENATE(G9,"LT75"),YieldCalcs[Code],0),1)),"",INDEX(YieldCalcs[PredWts],MATCH(CONCATENATE(G9,"LT75"),YieldCalcs[Code],0),1)) ->  | M9: =IF(ISERROR(INDEX(YieldCalcs[PredWts],MATCH(CONCATENATE(G9,"LT85"),YieldCalcs[Code],0),1)),"",INDEX(YieldCalcs[PredWts],MATCH(CONCATENATE(G9,"LT85"),YieldCalcs[Code],0),1)) ->  | N9: =IF(ISERROR(INDEX(YieldCalcs[PredWts],MATCH(CONCATENATE(G9,"LT95"),YieldCalcs[Code],0),1)),"",INDEX(YieldCalcs[PredWts],MATCH(CONCATENATE(G9,"LT95"),YieldCalcs[Code],0),1)) ->  | O9: =IF(ISERROR(INDEX(YieldCalcs[PredWts],MATCH(CONCATENATE(G9,"F"),YieldCalcs[Code],0),1)),"",INDEX(YieldCalcs[PredWts],MATCH(CONCATENATE(G9,"F"),YieldCalcs[Code],0),1)) ->  | P9: =IF(ISERROR(INDEX(YieldCalcs[PredWts],MATCH(CONCATENATE(G9,"B"),YieldCalcs[Code],0),1)),"",INDEX(YieldCalcs[PredWts],MATCH(CONCATENATE(G9,"B"),YieldCalcs[Code],0),1)) ->  | Q9: =IF(ISERROR(INDEX(YieldCalcs[PredWts],MATCH(CONCATENATE(G9,"Cart"),YieldCalcs[Code],0),1)),"",INDEX(YieldCalcs[PredWts],MATCH(CONCATENATE(G9,"Cart"),YieldCalcs[Code],0),1)) ->  | R9: =IF(ISERROR(INDEX(YieldCalcs[PredWts],MATCH(CONCATENATE(G9,"Pad"),YieldCalcs[Code],0),1)),"",INDEX(YieldCalcs[PredWts],MATCH(CONCATENATE(G9,"Pad"),YieldCalcs[Code],0),1)) ->  | S9: =IF(ISERROR(INDEX(YieldCalcs[PredWts],MATCH(CONCATENATE(G9,"I"),YieldCalcs[Code],0),1)),"",INDEX(YieldCalcs[PredWts],MATCH(CONCATENATE(G9,"I"),YieldCalcs[Code],0),1)) ->  | T9: =IF(ISERROR(INDEX(YieldCalcs[PredWts],MATCH(CONCATENATE(G9,"Skirt"),YieldCalcs[Code],0),1)),"",INDEX(YieldCalcs[PredWts],MATCH(CONCATENATE(G9,"Skirt"),YieldCalcs[Code],0),1)) ->  | U9: =IF(ISERROR(INDEX(YieldCalcs[PredWts],MATCH(CONCATENATE(G9,"RibEnds"),YieldCalcs[Code],0),1)),"",INDEX(YieldCalcs[PredWts],MATCH(CONCATENATE(G9,"RibEnds"),YieldCalcs[Code],0),1)) ->  | V9: =IF(ISERROR(INDEX(YieldCalcs[SalePrice],MATCH(G9,YieldCalcs[Code],0),1)),"",INDEX(YieldCalcs[SalePrice],MATCH(G9,YieldCalcs[Code],0),1)) ->  | W9: =IF(ISERROR(INDEX(YieldCalcs[CutValue],MATCH(G9,YieldCalcs[Code],0),1)),"",INDEX(YieldCalcs[CutValue],MATCH(G9,YieldCalcs[Code],0),1)) ->  | X9: =IF(ISERROR(INDEX(YieldCalcs[GM$],MATCH(G9,YieldCalcs[Code],0),1)),"",INDEX(YieldCalcs[GM$],MATCH(G9,YieldCalcs[Code],0),1)) ->  | Y9: =IF(ISERROR(INDEX(YieldCalcs[GM%],MATCH(G9,YieldCalcs[Code],0),1)),"",INDEX(YieldCalcs[GM%],MATCH(G9,YieldCalcs[Code],0),1)) ->  | Z9: =IF(ISERROR(INDEX(YieldCalcs[TGM%],MATCH(G9,YieldCalcs[Code],0),1)),"",INDEX(YieldCalcs[TGM%],MATCH(G9,YieldCalcs[Code],0),1)) ->  | AA9: =IF(ISERROR(INDEX(YieldCalcs[TSalePrice],MATCH(G9,YieldCalcs[Code],0),1)),"",INDEX(YieldCalcs[TSalePrice],MATCH(G9,YieldCalcs[Code],0),1)) ->  | AB9: =IF(ISNUMBER(INDEX(YieldCalcs[TotCostsPerKg],MATCH(G9,YieldCalcs[Code],0),1)),INDEX(YieldCalcs[TotCostsPerKg],MATCH(G9,YieldCalcs[Code],0),1),"") ->  | AC9: =IF(ISERROR(INDEX(YieldCalcs[PreBoneCperkg],MATCH(G9,YieldCalcs[Code],0),1)),"",INDEX(YieldCalcs[PreBoneCperkg],MATCH(G9,YieldCalcs[Code],0),1)) ->  | AD9: =IF(ISERROR(INDEX(YieldCalcs[FixBoneCostperkg],MATCH(G9,YieldCalcs[Code],0),1)),"",INDEX(YieldCalcs[FixBoneCostperkg],MATCH(G9,YieldCalcs[Code],0),1)) ->  | AE9: =IF(ISERROR(INDEX(YieldCalcs[BoningCost],MATCH(G9,YieldCalcs[Code],0),1)),"",INDEX(YieldCalcs[BoningCost],MATCH(G9,YieldCalcs[Code],0),1)) ->  | AF9: =IF(ISNUMBER(INDEX(YieldCalcs[TotCosts],MATCH(G9,YieldCalcs[Code],0),1)),INDEX(YieldCalcs[TotCosts],MATCH(G9,YieldCalcs[Code],0),1),"") ->  | AG9: =IF(ISERROR(INDEX(YieldCalcs[BuyInPrice],MATCH(G9,YieldCalcs[Code],0),1)),"",INDEX(YieldCalcs[BuyInPrice],MATCH(G9,YieldCalcs[Code],0),1)) -> 
B11: Topside | E11: Topside | F11: =IF(ISERROR(INDEX(YieldCalcs[Code],MATCH(E11,YieldCalcs[CutName],0),1)),"",INDEX(YieldCalcs[HAM No],MATCH(E11,YieldCalcs[CutName],0),1)) -> 2000 | G11: =IF(ISERROR(INDEX(YieldCalcs[Code],MATCH(E11,YieldCalcs[CutName],0),1)),"",INDEX(YieldCalcs[Code],MATCH(E11,YieldCalcs[CutName],0),1)) -> HQ03.1 | H11: =IF(ISNA(MATCH(E11,YieldCalcs[CutName],0)),"",MATCH(E11,YieldCalcs[CutName],0)) -> 230 | I11: =IF(ISERROR(INDEX(YieldCalcs[PredWts],MATCH(G11,YieldCalcs[Code],0),1)),"",INDEX(YieldCalcs[PredWts],MATCH(G11,YieldCalcs[Code],0),1)) -> 23.54 | J11: =IF(ISERROR(INDEX(YieldCalcs[PredWts],MATCH(CONCATENATE(G11,"LT"),YieldCalcs[Code],0),1)),"",INDEX(YieldCalcs[PredWts],MATCH(CONCATENATE(G11,"LT"),YieldCalcs[Code],0),1)) -> 1.75 | K11: =IF(ISERROR(INDEX(YieldCalcs[PredWts],MATCH(CONCATENATE(G11,"LT65"),YieldCalcs[Code],0),1)),"",INDEX(YieldCalcs[PredWts],MATCH(CONCATENATE(G11,"LT65"),YieldCalcs[Code],0),1)) -> 0.09 | L11: =IF(ISERROR(INDEX(YieldCalcs[PredWts],MATCH(CONCATENATE(G11,"LT75"),YieldCalcs[Code],0),1)),"",INDEX(YieldCalcs[PredWts],MATCH(CONCATENATE(G11,"LT75"),YieldCalcs[Code],0),1)) -> 1.05 | M11: =IF(ISERROR(INDEX(YieldCalcs[PredWts],MATCH(CONCATENATE(G11,"LT85"),YieldCalcs[Code],0),1)),"",INDEX(YieldCalcs[PredWts],MATCH(CONCATENATE(G11,"LT85"),YieldCalcs[Code],0),1)) -> 0.61 | N11: =IF(ISERROR(INDEX(YieldCalcs[PredWts],MATCH(CONCATENATE(G11,"LT95"),YieldCalcs[Code],0),1)),"",INDEX(YieldCalcs[PredWts],MATCH(CONCATENATE(G11,"LT95"),YieldCalcs[Code],0),1)) ->  | O11: =IF(ISERROR(INDEX(YieldCalcs[PredWts],MATCH(CONCATENATE(G11,"F"),YieldCalcs[Code],0),1)),"",INDEX(YieldCalcs[PredWts],MATCH(CONCATENATE(G11,"F"),YieldCalcs[Code],0),1)) -> 1.02 | P11: =IF(ISERROR(INDEX(YieldCalcs[PredWts],MATCH(CONCATENATE(G11,"B"),YieldCalcs[Code],0),1)),"",INDEX(YieldCalcs[PredWts],MATCH(CONCATENATE(G11,"B"),YieldCalcs[Code],0),1)) -> 3.43 | Q11: =IF(ISERROR(INDEX(YieldCalcs[PredWts],MATCH(CONCATENATE(G11,"Cart"),YieldCalcs[Code],0),1)),"",INDEX(YieldCalcs[PredWts],MATCH(CONCATENATE(G11,"Cart"),YieldCalcs[Code],0),1)) ->  | R11: =IF(ISERROR(INDEX(YieldCalcs[PredWts],MATCH(CONCATENATE(G11,"Pad"),YieldCalcs[Code],0),1)),"",INDEX(YieldCalcs[PredWts],MATCH(CONCATENATE(G11,"Pad"),YieldCalcs[Code],0),1)) ->  | S11: =IF(ISERROR(INDEX(YieldCalcs[PredWts],MATCH(CONCATENATE(G11,"I"),YieldCalcs[Code],0),1)),"",INDEX(YieldCalcs[PredWts],MATCH(CONCATENATE(G11,"I"),YieldCalcs[Code],0),1)) ->  | T11: =IF(ISERROR(INDEX(YieldCalcs[PredWts],MATCH(CONCATENATE(G11,"Skirt"),YieldCalcs[Code],0),1)),"",INDEX(YieldCalcs[PredWts],MATCH(CONCATENATE(G11,"Skirt"),YieldCalcs[Code],0),1)) ->  | U11: =IF(ISERROR(INDEX(YieldCalcs[PredWts],MATCH(CONCATENATE(G11,"RibEnds"),YieldCalcs[Code],0),1)),"",INDEX(YieldCalcs[PredWts],MATCH(CONCATENATE(G11,"RibEnds"),YieldCalcs[Code],0),1)) ->  | V11: =IF(ISERROR(INDEX(YieldCalcs[SalePrice],MATCH(G11,YieldCalcs[Code],0),1)),"",INDEX(YieldCalcs[SalePrice],MATCH(G11,YieldCalcs[Code],0),1)) -> 5.16 | W11: =IF(ISERROR(INDEX(YieldCalcs[CutValue],MATCH(G11,YieldCalcs[Code],0),1)),"",INDEX(YieldCalcs[CutValue],MATCH(G11,YieldCalcs[Code],0),1)) -> 121.4664 | X11: =IF(ISERROR(INDEX(YieldCalcs[GM$],MATCH(G11,YieldCalcs[Code],0),1)),"",INDEX(YieldCalcs[GM$],MATCH(G11,YieldCalcs[Code],0),1)) -> 17.50675053 | Y11: =IF(ISERROR(INDEX(YieldCalcs[GM%],MATCH(G11,YieldCalcs[Code],0),1)),"",INDEX(YieldCalcs[GM%],MATCH(G11,YieldCalcs[Code],0),1)) -> 0.1441283394 | Z11: =IF(ISERROR(INDEX(YieldCalcs[TGM%],MATCH(G11,YieldCalcs[Code],0),1)),"",INDEX(YieldCalcs[TGM%],MATCH(G11,YieldCalcs[Code],0),1)) -> 0.065 | AA11: =IF(ISERROR(INDEX(YieldCalcs[TSalePrice],MATCH(G11,YieldCalcs[Code],0),1)),"",INDEX(YieldCalcs[TSalePrice],MATCH(G11,YieldCalcs[Code],0),1)) -> 4.723313121 | AB11: =IF(ISNUMBER(INDEX(YieldCalcs[TotCostsPerKg],MATCH(G11,YieldCalcs[Code],0),1)),INDEX(YieldCalcs[TotCostsPerKg],MATCH(G11,YieldCalcs[Code],0),1),"") -> 4.416297769 | AC11: =IF(ISERROR(INDEX(YieldCalcs[PreBoneCperkg],MATCH(G11,YieldCalcs[Code],0),1)),"",INDEX(YieldCalcs[PreBoneCperkg],MATCH(G11,YieldCalcs[Code],0),1)) -> 4.074021516 | AD11: =IF(ISERROR(INDEX(YieldCalcs[FixBoneCostperkg],MATCH(G11,YieldCalcs[Code],0),1)),"",INDEX(YieldCalcs[FixBoneCostperkg],MATCH(G11,YieldCalcs[Code],0),1)) -> 0.04227625233 | AE11: =IF(ISERROR(INDEX(YieldCalcs[BoningCost],MATCH(G11,YieldCalcs[Code],0),1)),"",INDEX(YieldCalcs[BoningCost],MATCH(G11,YieldCalcs[Code],0),1)) -> 0.3 | AF11: =IF(ISNUMBER(INDEX(YieldCalcs[TotCosts],MATCH(G11,YieldCalcs[Code],0),1)),INDEX(YieldCalcs[TotCosts],MATCH(G11,YieldCalcs[Code],0),1),"") -> 103.9596495 | AG11: =IF(ISERROR(INDEX(YieldCalcs[BuyInPrice],MATCH(G11,YieldCalcs[Code],0),1)),"",INDEX(YieldCalcs[BuyInPrice],MATCH(G11,YieldCalcs[Code],0),1)) -> 0
C12: Topside | F12: =IF(ISERROR(INDEX(YieldCalcs[Code],MATCH(E12,YieldCalcs[CutName],0),1)),"",INDEX(YieldCalcs[HAM No],MATCH(E12,YieldCalcs[CutName],0),1)) ->  | G12: =IF(ISERROR(INDEX(YieldCalcs[Code],MATCH(E12,YieldCalcs[CutName],0),1)),"",INDEX(YieldCalcs[Code],MATCH(E12,YieldCalcs[CutName],0),1)) ->  | H12: =IF(ISNA(MATCH(E12,YieldCalcs[CutName],0)),"",MATCH(E12,YieldCalcs[CutName],0)) ->  | I12: =IF(ISERROR(INDEX(YieldCalcs[PredWts],MATCH(G12,YieldCalcs[Code],0),1)),"",INDEX(YieldCalcs[PredWts],MATCH(G12,YieldCalcs[Code],0),1)) ->  | J12: =IF(ISERROR(INDEX(YieldCalcs[PredWts],MATCH(CONCATENATE(G12,"LT"),YieldCalcs[Code],0),1)),"",INDEX(YieldCalcs[PredWts],MATCH(CONCATENATE(G12,"LT"),YieldCalcs[Code],0),1)) ->  | K12: =IF(ISERROR(INDEX(YieldCalcs[PredWts],MATCH(CONCATENATE(G12,"LT65"),YieldCalcs[Code],0),1)),"",INDEX(YieldCalcs[PredWts],MATCH(CONCATENATE(G12,"LT65"),YieldCalcs[Code],0),1)) ->  | L12: =IF(ISERROR(INDEX(YieldCalcs[PredWts],MATCH(CONCATENATE(G12,"LT75"),YieldCalcs[Code],0),1)),"",INDEX(YieldCalcs[PredWts],MATCH(CONCATENATE(G12,"LT75"),YieldCalcs[Code],0),1)) ->  | M12: =IF(ISERROR(INDEX(YieldCalcs[PredWts],MATCH(CONCATENATE(G12,"LT85"),YieldCalcs[Code],0),1)),"",INDEX(YieldCalcs[PredWts],MATCH(CONCATENATE(G12,"LT85"),YieldCalcs[Code],0),1)) ->  | N12: =IF(ISERROR(INDEX(YieldCalcs[PredWts],MATCH(CONCATENATE(G12,"LT95"),YieldCalcs[Code],0),1)),"",INDEX(YieldCalcs[PredWts],MATCH(CONCATENATE(G12,"LT95"),YieldCalcs[Code],0),1)) ->  | O12: =IF(ISERROR(INDEX(YieldCalcs[PredWts],MATCH(CONCATENATE(G12,"F"),YieldCalcs[Code],0),1)),"",INDEX(YieldCalcs[PredWts],MATCH(CONCATENATE(G12,"F"),YieldCalcs[Code],0),1)) ->  | P12: =IF(ISERROR(INDEX(YieldCalcs[PredWts],MATCH(CONCATENATE(G12,"B"),YieldCalcs[Code],0),1)),"",INDEX(YieldCalcs[PredWts],MATCH(CONCATENATE(G12,"B"),YieldCalcs[Code],0),1)) ->  | Q12: =IF(ISERROR(INDEX(YieldCalcs[PredWts],MATCH(CONCATENATE(G12,"Cart"),YieldCalcs[Code],0),1)),"",INDEX(YieldCalcs[PredWts],MATCH(CONCATENATE(G12,"Cart"),YieldCalcs[Code],0),1)) ->  | R12: =IF(ISERROR(INDEX(YieldCalcs[PredWts],MATCH(CONCATENATE(G12,"Pad"),YieldCalcs[Code],0),1)),"",INDEX(YieldCalcs[PredWts],MATCH(CONCATENATE(G12,"Pad"),YieldCalcs[Code],0),1)) ->  | S12: =IF(ISERROR(INDEX(YieldCalcs[PredWts],MATCH(CONCATENATE(G12,"I"),YieldCalcs[Code],0),1)),"",INDEX(YieldCalcs[PredWts],MATCH(CONCATENATE(G12,"I"),YieldCalcs[Code],0),1)) ->  | T12: =IF(ISERROR(INDEX(YieldCalcs[PredWts],MATCH(CONCATENATE(G12,"Skirt"),YieldCalcs[Code],0),1)),"",INDEX(YieldCalcs[PredWts],MATCH(CONCATENATE(G12,"Skirt"),YieldCalcs[Code],0),1)) ->  | U12: =IF(ISERROR(INDEX(YieldCalcs[PredWts],MATCH(CONCATENATE(G12,"RibEnds"),YieldCalcs[Code],0),1)),"",INDEX(YieldCalcs[PredWts],MATCH(CONCATENATE(G12,"RibEnds"),YieldCalcs[Code],0),1)) ->  | V12: =IF(ISERROR(INDEX(YieldCalcs[SalePrice],MATCH(G12,YieldCalcs[Code],0),1)),"",INDEX(YieldCalcs[SalePrice],MATCH(G12,YieldCalcs[Code],0),1)) ->  | W12: =IF(ISERROR(INDEX(YieldCalcs[CutValue],MATCH(G12,YieldCalcs[Code],0),1)),"",INDEX(YieldCalcs[CutValue],MATCH(G12,YieldCalcs[Code],0),1)) ->  | X12: =IF(ISERROR(INDEX(YieldCalcs[GM$],MATCH(G12,YieldCalcs[Code],0),1)),"",INDEX(YieldCalcs[GM$],MATCH(G12,YieldCalcs[Code],0),1)) ->  | Y12: =IF(ISERROR(INDEX(YieldCalcs[GM%],MATCH(G12,YieldCalcs[Code],0),1)),"",INDEX(YieldCalcs[GM%],MATCH(G12,YieldCalcs[Code],0),1)) ->  | Z12: =IF(ISERROR(INDEX(YieldCalcs[TGM%],MATCH(G12,YieldCalcs[Code],0),1)),"",INDEX(YieldCalcs[TGM%],MATCH(G12,YieldCalcs[Code],0),1)) ->  | AA12: =IF(ISERROR(INDEX(YieldCalcs[TSalePrice],MATCH(G12,YieldCalcs[Code],0),1)),"",INDEX(YieldCalcs[TSalePrice],MATCH(G12,YieldCalcs[Code],0),1)) ->  | AB12: =IF(ISNUMBER(INDEX(YieldCalcs[TotCostsPerKg],MATCH(G12,YieldCalcs[Code],0),1)),INDEX(YieldCalcs[TotCostsPerKg],MATCH(G12,YieldCalcs[Code],0),1),"") ->  | AC12: =IF(ISERROR(INDEX(YieldCalcs[PreBoneCperkg],MATCH(G12,YieldCalcs[Code],0),1)),"",INDEX(YieldCalcs[PreBoneCperkg],MATCH(G12,YieldCalcs[Code],0),1)) ->  | AD12: =IF(ISERROR(INDEX(YieldCalcs[FixBoneCostperkg],MATCH(G12,YieldCalcs[Code],0),1)),"",INDEX(YieldCalcs[FixBoneCostperkg],MATCH(G12,YieldCalcs[Code],0),1)) ->  | AE12: =IF(ISERROR(INDEX(YieldCalcs[BoningCost],MATCH(G12,YieldCalcs[Code],0),1)),"",INDEX(YieldCalcs[BoningCost],MATCH(G12,YieldCalcs[Code],0),1)) ->  | AF12: =IF(ISNUMBER(INDEX(YieldCalcs[TotCosts],MATCH(G12,YieldCalcs[Code],0),1)),INDEX(YieldCalcs[TotCosts],MATCH(G12,YieldCalcs[Code],0),1),"") ->  | AG12: =IF(ISERROR(INDEX(YieldCalcs[BuyInPrice],MATCH(G12,YieldCalcs[Code],0),1)),"",INDEX(YieldCalcs[BuyInPrice],MATCH(G12,YieldCalcs[Code],0),1)) -> 
A13: REC% | B13: =SUM(I11:J17,O11:U17)/INDEX(YieldCalcs[PredWts],MATCH("HQ03.0",YieldCalcs[Code],0),1) -> 0.9996638655 | F13: =IF(ISERROR(INDEX(YieldCalcs[Code],MATCH(E13,YieldCalcs[CutName],0),1)),"",INDEX(YieldCalcs[HAM No],MATCH(E13,YieldCalcs[CutName],0),1)) ->  | G13: =IF(ISERROR(INDEX(YieldCalcs[Code],MATCH(E13,YieldCalcs[CutName],0),1)),"",INDEX(YieldCalcs[Code],MATCH(E13,YieldCalcs[CutName],0),1)) ->  | H13: =IF(ISNA(MATCH(E13,YieldCalcs[CutName],0)),"",MATCH(E13,YieldCalcs[CutName],0)) ->  | I13: =IF(ISERROR(INDEX(YieldCalcs[PredWts],MATCH(G13,YieldCalcs[Code],0),1)),"",INDEX(YieldCalcs[PredWts],MATCH(G13,YieldCalcs[Code],0),1)) ->  | J13: =IF(ISERROR(INDEX(YieldCalcs[PredWts],MATCH(CONCATENATE(G13,"LT"),YieldCalcs[Code],0),1)),"",INDEX(YieldCalcs[PredWts],MATCH(CONCATENATE(G13,"LT"),YieldCalcs[Code],0),1)) ->  | K13: =IF(ISERROR(INDEX(YieldCalcs[PredWts],MATCH(CONCATENATE(G13,"LT65"),YieldCalcs[Code],0),1)),"",INDEX(YieldCalcs[PredWts],MATCH(CONCATENATE(G13,"LT65"),YieldCalcs[Code],0),1)) ->  | L13: =IF(ISERROR(INDEX(YieldCalcs[PredWts],MATCH(CONCATENATE(G13,"LT75"),YieldCalcs[Code],0),1)),"",INDEX(YieldCalcs[PredWts],MATCH(CONCATENATE(G13,"LT75"),YieldCalcs[Code],0),1)) ->  | M13: =IF(ISERROR(INDEX(YieldCalcs[PredWts],MATCH(CONCATENATE(G13,"LT85"),YieldCalcs[Code],0),1)),"",INDEX(YieldCalcs[PredWts],MATCH(CONCATENATE(G13,"LT85"),YieldCalcs[Code],0),1)) ->  | N13: =IF(ISERROR(INDEX(YieldCalcs[PredWts],MATCH(CONCATENATE(G13,"LT95"),YieldCalcs[Code],0),1)),"",INDEX(YieldCalcs[PredWts],MATCH(CONCATENATE(G13,"LT95"),YieldCalcs[Code],0),1)) ->  | O13: =IF(ISERROR(INDEX(YieldCalcs[PredWts],MATCH(CONCATENATE(G13,"F"),YieldCalcs[Code],0),1)),"",INDEX(YieldCalcs[PredWts],MATCH(CONCATENATE(G13,"F"),YieldCalcs[Code],0),1)) ->  | P13: =IF(ISERROR(INDEX(YieldCalcs[PredWts],MATCH(CONCATENATE(G13,"B"),YieldCalcs[Code],0),1)),"",INDEX(YieldCalcs[PredWts],MATCH(CONCATENATE(G13,"B"),YieldCalcs[Code],0),1)) ->  | Q13: =IF(ISERROR(INDEX(YieldCalcs[PredWts],MATCH(CONCATENATE(G13,"Cart"),YieldCalcs[Code],0),1)),"",INDEX(YieldCalcs[PredWts],MATCH(CONCATENATE(G13,"Cart"),YieldCalcs[Code],0),1)) ->  | R13: =IF(ISERROR(INDEX(YieldCalcs[PredWts],MATCH(CONCATENATE(G13,"Pad"),YieldCalcs[Code],0),1)),"",INDEX(YieldCalcs[PredWts],MATCH(CONCATENATE(G13,"Pad"),YieldCalcs[Code],0),1)) ->  | S13: =IF(ISERROR(INDEX(YieldCalcs[PredWts],MATCH(CONCATENATE(G13,"I"),YieldCalcs[Code],0),1)),"",INDEX(YieldCalcs[PredWts],MATCH(CONCATENATE(G13,"I"),YieldCalcs[Code],0),1)) ->  | T13: =IF(ISERROR(INDEX(YieldCalcs[PredWts],MATCH(CONCATENATE(G13,"Skirt"),YieldCalcs[Code],0),1)),"",INDEX(YieldCalcs[PredWts],MATCH(CONCATENATE(G13,"Skirt"),YieldCalcs[Code],0),1)) ->  | U13: =IF(ISERROR(INDEX(YieldCalcs[PredWts],MATCH(CONCATENATE(G13,"RibEnds"),YieldCalcs[Code],0),1)),"",INDEX(YieldCalcs[PredWts],MATCH(CONCATENATE(G13,"RibEnds"),YieldCalcs[Code],0),1)) ->  | V13: =IF(ISERROR(INDEX(YieldCalcs[SalePrice],MATCH(G13,YieldCalcs[Code],0),1)),"",INDEX(YieldCalcs[SalePrice],MATCH(G13,YieldCalcs[Code],0),1)) ->  | W13: =IF(ISERROR(INDEX(YieldCalcs[CutValue],MATCH(G13,YieldCalcs[Code],0),1)),"",INDEX(YieldCalcs[CutValue],MATCH(G13,YieldCalcs[Code],0),1)) ->  | X13: =IF(ISERROR(INDEX(YieldCalcs[GM$],MATCH(G13,YieldCalcs[Code],0),1)),"",INDEX(YieldCalcs[GM$],MATCH(G13,YieldCalcs[Code],0),1)) ->  | Y13: =IF(ISERROR(INDEX(YieldCalcs[GM%],MATCH(G13,YieldCalcs[Code],0),1)),"",INDEX(YieldCalcs[GM%],MATCH(G13,YieldCalcs[Code],0),1)) ->  | Z13: =IF(ISERROR(INDEX(YieldCalcs[TGM%],MATCH(G13,YieldCalcs[Code],0),1)),"",INDEX(YieldCalcs[TGM%],MATCH(G13,YieldCalcs[Code],0),1)) ->  | AA13: =IF(ISERROR(INDEX(YieldCalcs[TSalePrice],MATCH(G13,YieldCalcs[Code],0),1)),"",INDEX(YieldCalcs[TSalePrice],MATCH(G13,YieldCalcs[Code],0),1)) ->  | AB13: =IF(ISNUMBER(INDEX(YieldCalcs[TotCostsPerKg],MATCH(G13,YieldCalcs[Code],0),1)),INDEX(YieldCalcs[TotCostsPerKg],MATCH(G13,YieldCalcs[Code],0),1),"") ->  | AC13: =IF(ISERROR(INDEX(YieldCalcs[PreBoneCperkg],MATCH(G13,YieldCalcs[Code],0),1)),"",INDEX(YieldCalcs[PreBoneCperkg],MATCH(G13,YieldCalcs[Code],0),1)) ->  | AD13: =IF(ISERROR(INDEX(YieldCalcs[FixBoneCostperkg],MATCH(G13,YieldCalcs[Code],0),1)),"",INDEX(YieldCalcs[FixBoneCostperkg],MATCH(G13,YieldCalcs[Code],0),1)) ->  | AE13: =IF(ISERROR(INDEX(YieldCalcs[BoningCost],MATCH(G13,YieldCalcs[Code],0),1)),"",INDEX(YieldCalcs[BoningCost],MATCH(G13,YieldCalcs[Code],0),1)) ->  | AF13: =IF(ISNUMBER(INDEX(YieldCalcs[TotCosts],MATCH(G13,YieldCalcs[Code],0),1)),INDEX(YieldCalcs[TotCosts],MATCH(G13,YieldCalcs[Code],0),1),"") ->  | AG13: =IF(ISERROR(INDEX(YieldCalcs[BuyInPrice],MATCH(G13,YieldCalcs[Code],0),1)),"",INDEX(YieldCalcs[BuyInPrice],MATCH(G13,YieldCalcs[Code],0),1)) -> 
F14: =IF(ISERROR(INDEX(YieldCalcs[Code],MATCH(E14,YieldCalcs[CutName],0),1)),"",INDEX(YieldCalcs[HAM No],MATCH(E14,YieldCalcs[CutName],0),1)) ->  | G14: =IF(ISERROR(INDEX(YieldCalcs[Code],MATCH(E14,YieldCalcs[CutName],0),1)),"",INDEX(YieldCalcs[Code],MATCH(E14,YieldCalcs[CutName],0),1)) ->  | H14: =IF(ISNA(MATCH(E14,YieldCalcs[CutName],0)),"",MATCH(E14,YieldCalcs[CutName],0)) ->  | I14: =IF(ISERROR(INDEX(YieldCalcs[PredWts],MATCH(G14,YieldCalcs[Code],0),1)),"",INDEX(YieldCalcs[PredWts],MATCH(G14,YieldCalcs[Code],0),1)) ->  | J14: =IF(ISERROR(INDEX(YieldCalcs[PredWts],MATCH(CONCATENATE(G14,"LT"),YieldCalcs[Code],0),1)),"",INDEX(YieldCalcs[PredWts],MATCH(CONCATENATE(G14,"LT"),YieldCalcs[Code],0),1)) ->  | K14: =IF(ISERROR(INDEX(YieldCalcs[PredWts],MATCH(CONCATENATE(G14,"LT65"),YieldCalcs[Code],0),1)),"",INDEX(YieldCalcs[PredWts],MATCH(CONCATENATE(G14,"LT65"),YieldCalcs[Code],0),1)) ->  | L14: =IF(ISERROR(INDEX(YieldCalcs[PredWts],MATCH(CONCATENATE(G14,"LT75"),YieldCalcs[Code],0),1)),"",INDEX(YieldCalcs[PredWts],MATCH(CONCATENATE(G14,"LT75"),YieldCalcs[Code],0),1)) ->  | M14: =IF(ISERROR(INDEX(YieldCalcs[PredWts],MATCH(CONCATENATE(G14,"LT85"),YieldCalcs[Code],0),1)),"",INDEX(YieldCalcs[PredWts],MATCH(CONCATENATE(G14,"LT85"),YieldCalcs[Code],0),1)) ->  | N14: =IF(ISERROR(INDEX(YieldCalcs[PredWts],MATCH(CONCATENATE(G14,"LT95"),YieldCalcs[Code],0),1)),"",INDEX(YieldCalcs[PredWts],MATCH(CONCATENATE(G14,"LT95"),YieldCalcs[Code],0),1)) ->  | O14: =IF(ISERROR(INDEX(YieldCalcs[PredWts],MATCH(CONCATENATE(G14,"F"),YieldCalcs[Code],0),1)),"",INDEX(YieldCalcs[PredWts],MATCH(CONCATENATE(G14,"F"),YieldCalcs[Code],0),1)) ->  | P14: =IF(ISERROR(INDEX(YieldCalcs[PredWts],MATCH(CONCATENATE(G14,"B"),YieldCalcs[Code],0),1)),"",INDEX(YieldCalcs[PredWts],MATCH(CONCATENATE(G14,"B"),YieldCalcs[Code],0),1)) ->  | Q14: =IF(ISERROR(INDEX(YieldCalcs[PredWts],MATCH(CONCATENATE(G14,"Cart"),YieldCalcs[Code],0),1)),"",INDEX(YieldCalcs[PredWts],MATCH(CONCATENATE(G14,"Cart"),YieldCalcs[Code],0),1)) ->  | R14: =IF(ISERROR(INDEX(YieldCalcs[PredWts],MATCH(CONCATENATE(G14,"Pad"),YieldCalcs[Code],0),1)),"",INDEX(YieldCalcs[PredWts],MATCH(CONCATENATE(G14,"Pad"),YieldCalcs[Code],0),1)) ->  | S14: =IF(ISERROR(INDEX(YieldCalcs[PredWts],MATCH(CONCATENATE(G14,"I"),YieldCalcs[Code],0),1)),"",INDEX(YieldCalcs[PredWts],MATCH(CONCATENATE(G14,"I"),YieldCalcs[Code],0),1)) ->  | T14: =IF(ISERROR(INDEX(YieldCalcs[PredWts],MATCH(CONCATENATE(G14,"Skirt"),YieldCalcs[Code],0),1)),"",INDEX(YieldCalcs[PredWts],MATCH(CONCATENATE(G14,"Skirt"),YieldCalcs[Code],0),1)) ->  | U14: =IF(ISERROR(INDEX(YieldCalcs[PredWts],MATCH(CONCATENATE(G14,"RibEnds"),YieldCalcs[Code],0),1)),"",INDEX(YieldCalcs[PredWts],MATCH(CONCATENATE(G14,"RibEnds"),YieldCalcs[Code],0),1)) ->  | V14: =IF(ISERROR(INDEX(YieldCalcs[SalePrice],MATCH(G14,YieldCalcs[Code],0),1)),"",INDEX(YieldCalcs[SalePrice],MATCH(G14,YieldCalcs[Code],0),1)) ->  | W14: =IF(ISERROR(INDEX(YieldCalcs[CutValue],MATCH(G14,YieldCalcs[Code],0),1)),"",INDEX(YieldCalcs[CutValue],MATCH(G14,YieldCalcs[Code],0),1)) ->  | X14: =IF(ISERROR(INDEX(YieldCalcs[GM$],MATCH(G14,YieldCalcs[Code],0),1)),"",INDEX(YieldCalcs[GM$],MATCH(G14,YieldCalcs[Code],0),1)) ->  | Y14: =IF(ISERROR(INDEX(YieldCalcs[GM%],MATCH(G14,YieldCalcs[Code],0),1)),"",INDEX(YieldCalcs[GM%],MATCH(G14,YieldCalcs[Code],0),1)) ->  | Z14: =IF(ISERROR(INDEX(YieldCalcs[TGM%],MATCH(G14,YieldCalcs[Code],0),1)),"",INDEX(YieldCalcs[TGM%],MATCH(G14,YieldCalcs[Code],0),1)) ->  | AA14: =IF(ISERROR(INDEX(YieldCalcs[TSalePrice],MATCH(G14,YieldCalcs[Code],0),1)),"",INDEX(YieldCalcs[TSalePrice],MATCH(G14,YieldCalcs[Code],0),1)) ->  | AB14: =IF(ISNUMBER(INDEX(YieldCalcs[TotCostsPerKg],MATCH(G14,YieldCalcs[Code],0),1)),INDEX(YieldCalcs[TotCostsPerKg],MATCH(G14,YieldCalcs[Code],0),1),"") ->  | AC14: =IF(ISERROR(INDEX(YieldCalcs[PreBoneCperkg],MATCH(G14,YieldCalcs[Code],0),1)),"",INDEX(YieldCalcs[PreBoneCperkg],MATCH(G14,YieldCalcs[Code],0),1)) ->  | AD14: =IF(ISERROR(INDEX(YieldCalcs[FixBoneCostperkg],MATCH(G14,YieldCalcs[Code],0),1)),"",INDEX(YieldCalcs[FixBoneCostperkg],MATCH(G14,YieldCalcs[Code],0),1)) ->  | AE14: =IF(ISERROR(INDEX(YieldCalcs[BoningCost],MATCH(G14,YieldCalcs[Code],0),1)),"",INDEX(YieldCalcs[BoningCost],MATCH(G14,YieldCalcs[Code],0),1)) ->  | AF14: =IF(ISNUMBER(INDEX(YieldCalcs[TotCosts],MATCH(G14,YieldCalcs[Code],0),1)),INDEX(YieldCalcs[TotCosts],MATCH(G14,YieldCalcs[Code],0),1),"") ->  | AG14: =IF(ISERROR(INDEX(YieldCalcs[BuyInPrice],MATCH(G14,YieldCalcs[Code],0),1)),"",INDEX(YieldCalcs[BuyInPrice],MATCH(G14,YieldCalcs[Code],0),1)) -> 
F15: =IF(ISERROR(INDEX(YieldCalcs[Code],MATCH(E15,YieldCalcs[CutName],0),1)),"",INDEX(YieldCalcs[HAM No],MATCH(E15,YieldCalcs[CutName],0),1)) ->  | G15: =IF(ISERROR(INDEX(YieldCalcs[Code],MATCH(E15,YieldCalcs[CutName],0),1)),"",INDEX(YieldCalcs[Code],MATCH(E15,YieldCalcs[CutName],0),1)) ->  | H15: =IF(ISNA(MATCH(E15,YieldCalcs[CutName],0)),"",MATCH(E15,YieldCalcs[CutName],0)) ->  | I15: =IF(ISERROR(INDEX(YieldCalcs[PredWts],MATCH(G15,YieldCalcs[Code],0),1)),"",INDEX(YieldCalcs[PredWts],MATCH(G15,YieldCalcs[Code],0),1)) ->  | J15: =IF(ISERROR(INDEX(YieldCalcs[PredWts],MATCH(CONCATENATE(G15,"LT"),YieldCalcs[Code],0),1)),"",INDEX(YieldCalcs[PredWts],MATCH(CONCATENATE(G15,"LT"),YieldCalcs[Code],0),1)) ->  | K15: =IF(ISERROR(INDEX(YieldCalcs[PredWts],MATCH(CONCATENATE(G15,"LT65"),YieldCalcs[Code],0),1)),"",INDEX(YieldCalcs[PredWts],MATCH(CONCATENATE(G15,"LT65"),YieldCalcs[Code],0),1)) ->  | L15: =IF(ISERROR(INDEX(YieldCalcs[PredWts],MATCH(CONCATENATE(G15,"LT75"),YieldCalcs[Code],0),1)),"",INDEX(YieldCalcs[PredWts],MATCH(CONCATENATE(G15,"LT75"),YieldCalcs[Code],0),1)) ->  | M15: =IF(ISERROR(INDEX(YieldCalcs[PredWts],MATCH(CONCATENATE(G15,"LT85"),YieldCalcs[Code],0),1)),"",INDEX(YieldCalcs[PredWts],MATCH(CONCATENATE(G15,"LT85"),YieldCalcs[Code],0),1)) ->  | N15: =IF(ISERROR(INDEX(YieldCalcs[PredWts],MATCH(CONCATENATE(G15,"LT95"),YieldCalcs[Code],0),1)),"",INDEX(YieldCalcs[PredWts],MATCH(CONCATENATE(G15,"LT95"),YieldCalcs[Code],0),1)) ->  | O15: =IF(ISERROR(INDEX(YieldCalcs[PredWts],MATCH(CONCATENATE(G15,"F"),YieldCalcs[Code],0),1)),"",INDEX(YieldCalcs[PredWts],MATCH(CONCATENATE(G15,"F"),YieldCalcs[Code],0),1)) ->  | P15: =IF(ISERROR(INDEX(YieldCalcs[PredWts],MATCH(CONCATENATE(G15,"B"),YieldCalcs[Code],0),1)),"",INDEX(YieldCalcs[PredWts],MATCH(CONCATENATE(G15,"B"),YieldCalcs[Code],0),1)) ->  | Q15: =IF(ISERROR(INDEX(YieldCalcs[PredWts],MATCH(CONCATENATE(G15,"Cart"),YieldCalcs[Code],0),1)),"",INDEX(YieldCalcs[PredWts],MATCH(CONCATENATE(G15,"Cart"),YieldCalcs[Code],0),1)) ->  | R15: =IF(ISERROR(INDEX(YieldCalcs[PredWts],MATCH(CONCATENATE(G15,"Pad"),YieldCalcs[Code],0),1)),"",INDEX(YieldCalcs[PredWts],MATCH(CONCATENATE(G15,"Pad"),YieldCalcs[Code],0),1)) ->  | S15: =IF(ISERROR(INDEX(YieldCalcs[PredWts],MATCH(CONCATENATE(G15,"I"),YieldCalcs[Code],0),1)),"",INDEX(YieldCalcs[PredWts],MATCH(CONCATENATE(G15,"I"),YieldCalcs[Code],0),1)) ->  | T15: =IF(ISERROR(INDEX(YieldCalcs[PredWts],MATCH(CONCATENATE(G15,"Skirt"),YieldCalcs[Code],0),1)),"",INDEX(YieldCalcs[PredWts],MATCH(CONCATENATE(G15,"Skirt"),YieldCalcs[Code],0),1)) ->  | U15: =IF(ISERROR(INDEX(YieldCalcs[PredWts],MATCH(CONCATENATE(G15,"RibEnds"),YieldCalcs[Code],0),1)),"",INDEX(YieldCalcs[PredWts],MATCH(CONCATENATE(G15,"RibEnds"),YieldCalcs[Code],0),1)) ->  | V15: =IF(ISERROR(INDEX(YieldCalcs[SalePrice],MATCH(G15,YieldCalcs[Code],0),1)),"",INDEX(YieldCalcs[SalePrice],MATCH(G15,YieldCalcs[Code],0),1)) ->  | W15: =IF(ISERROR(INDEX(YieldCalcs[CutValue],MATCH(G15,YieldCalcs[Code],0),1)),"",INDEX(YieldCalcs[CutValue],MATCH(G15,YieldCalcs[Code],0),1)) ->  | X15: =IF(ISERROR(INDEX(YieldCalcs[GM$],MATCH(G15,YieldCalcs[Code],0),1)),"",INDEX(YieldCalcs[GM$],MATCH(G15,YieldCalcs[Code],0),1)) ->  | Y15: =IF(ISERROR(INDEX(YieldCalcs[GM%],MATCH(G15,YieldCalcs[Code],0),1)),"",INDEX(YieldCalcs[GM%],MATCH(G15,YieldCalcs[Code],0),1)) ->  | Z15: =IF(ISERROR(INDEX(YieldCalcs[TGM%],MATCH(G15,YieldCalcs[Code],0),1)),"",INDEX(YieldCalcs[TGM%],MATCH(G15,YieldCalcs[Code],0),1)) ->  | AA15: =IF(ISERROR(INDEX(YieldCalcs[TSalePrice],MATCH(G15,YieldCalcs[Code],0),1)),"",INDEX(YieldCalcs[TSalePrice],MATCH(G15,YieldCalcs[Code],0),1)) ->  | AB15: =IF(ISNUMBER(INDEX(YieldCalcs[TotCostsPerKg],MATCH(G15,YieldCalcs[Code],0),1)),INDEX(YieldCalcs[TotCostsPerKg],MATCH(G15,YieldCalcs[Code],0),1),"") ->  | AC15: =IF(ISERROR(INDEX(YieldCalcs[PreBoneCperkg],MATCH(G15,YieldCalcs[Code],0),1)),"",INDEX(YieldCalcs[PreBoneCperkg],MATCH(G15,YieldCalcs[Code],0),1)) ->  | AD15: =IF(ISERROR(INDEX(YieldCalcs[FixBoneCostperkg],MATCH(G15,YieldCalcs[Code],0),1)),"",INDEX(YieldCalcs[FixBoneCostperkg],MATCH(G15,YieldCalcs[Code],0),1)) ->  | AE15: =IF(ISERROR(INDEX(YieldCalcs[BoningCost],MATCH(G15,YieldCalcs[Code],0),1)),"",INDEX(YieldCalcs[BoningCost],MATCH(G15,YieldCalcs[Code],0),1)) ->  | AF15: =IF(ISNUMBER(INDEX(YieldCalcs[TotCosts],MATCH(G15,YieldCalcs[Code],0),1)),INDEX(YieldCalcs[TotCosts],MATCH(G15,YieldCalcs[Code],0),1),"") ->  | AG15: =IF(ISERROR(INDEX(YieldCalcs[BuyInPrice],MATCH(G15,YieldCalcs[Code],0),1)),"",INDEX(YieldCalcs[BuyInPrice],MATCH(G15,YieldCalcs[Code],0),1)) -> 
F16: =IF(ISERROR(INDEX(YieldCalcs[Code],MATCH(E16,YieldCalcs[CutName],0),1)),"",INDEX(YieldCalcs[HAM No],MATCH(E16,YieldCalcs[CutName],0),1)) ->  | G16: =IF(ISERROR(INDEX(YieldCalcs[Code],MATCH(E16,YieldCalcs[CutName],0),1)),"",INDEX(YieldCalcs[Code],MATCH(E16,YieldCalcs[CutName],0),1)) ->  | H16: =IF(ISNA(MATCH(E16,YieldCalcs[CutName],0)),"",MATCH(E16,YieldCalcs[CutName],0)) ->  | I16: =IF(ISERROR(INDEX(YieldCalcs[PredWts],MATCH(G16,YieldCalcs[Code],0),1)),"",INDEX(YieldCalcs[PredWts],MATCH(G16,YieldCalcs[Code],0),1)) ->  | J16: =IF(ISERROR(INDEX(YieldCalcs[PredWts],MATCH(CONCATENATE(G16,"LT"),YieldCalcs[Code],0),1)),"",INDEX(YieldCalcs[PredWts],MATCH(CONCATENATE(G16,"LT"),YieldCalcs[Code],0),1)) ->  | K16: =IF(ISERROR(INDEX(YieldCalcs[PredWts],MATCH(CONCATENATE(G16,"LT65"),YieldCalcs[Code],0),1)),"",INDEX(YieldCalcs[PredWts],MATCH(CONCATENATE(G16,"LT65"),YieldCalcs[Code],0),1)) ->  | L16: =IF(ISERROR(INDEX(YieldCalcs[PredWts],MATCH(CONCATENATE(G16,"LT75"),YieldCalcs[Code],0),1)),"",INDEX(YieldCalcs[PredWts],MATCH(CONCATENATE(G16,"LT75"),YieldCalcs[Code],0),1)) ->  | M16: =IF(ISERROR(INDEX(YieldCalcs[PredWts],MATCH(CONCATENATE(G16,"LT85"),YieldCalcs[Code],0),1)),"",INDEX(YieldCalcs[PredWts],MATCH(CONCATENATE(G16,"LT85"),YieldCalcs[Code],0),1)) ->  | N16: =IF(ISERROR(INDEX(YieldCalcs[PredWts],MATCH(CONCATENATE(G16,"LT95"),YieldCalcs[Code],0),1)),"",INDEX(YieldCalcs[PredWts],MATCH(CONCATENATE(G16,"LT95"),YieldCalcs[Code],0),1)) ->  | O16: =IF(ISERROR(INDEX(YieldCalcs[PredWts],MATCH(CONCATENATE(G16,"F"),YieldCalcs[Code],0),1)),"",INDEX(YieldCalcs[PredWts],MATCH(CONCATENATE(G16,"F"),YieldCalcs[Code],0),1)) ->  | P16: =IF(ISERROR(INDEX(YieldCalcs[PredWts],MATCH(CONCATENATE(G16,"B"),YieldCalcs[Code],0),1)),"",INDEX(YieldCalcs[PredWts],MATCH(CONCATENATE(G16,"B"),YieldCalcs[Code],0),1)) ->  | Q16: =IF(ISERROR(INDEX(YieldCalcs[PredWts],MATCH(CONCATENATE(G16,"Cart"),YieldCalcs[Code],0),1)),"",INDEX(YieldCalcs[PredWts],MATCH(CONCATENATE(G16,"Cart"),YieldCalcs[Code],0),1)) ->  | R16: =IF(ISERROR(INDEX(YieldCalcs[PredWts],MATCH(CONCATENATE(G16,"Pad"),YieldCalcs[Code],0),1)),"",INDEX(YieldCalcs[PredWts],MATCH(CONCATENATE(G16,"Pad"),YieldCalcs[Code],0),1)) ->  | S16: =IF(ISERROR(INDEX(YieldCalcs[PredWts],MATCH(CONCATENATE(G16,"I"),YieldCalcs[Code],0),1)),"",INDEX(YieldCalcs[PredWts],MATCH(CONCATENATE(G16,"I"),YieldCalcs[Code],0),1)) ->  | T16: =IF(ISERROR(INDEX(YieldCalcs[PredWts],MATCH(CONCATENATE(G16,"Skirt"),YieldCalcs[Code],0),1)),"",INDEX(YieldCalcs[PredWts],MATCH(CONCATENATE(G16,"Skirt"),YieldCalcs[Code],0),1)) ->  | U16: =IF(ISERROR(INDEX(YieldCalcs[PredWts],MATCH(CONCATENATE(G16,"RibEnds"),YieldCalcs[Code],0),1)),"",INDEX(YieldCalcs[PredWts],MATCH(CONCATENATE(G16,"RibEnds"),YieldCalcs[Code],0),1)) ->  | V16: =IF(ISERROR(INDEX(YieldCalcs[SalePrice],MATCH(G16,YieldCalcs[Code],0),1)),"",INDEX(YieldCalcs[SalePrice],MATCH(G16,YieldCalcs[Code],0),1)) ->  | W16: =IF(ISERROR(INDEX(YieldCalcs[CutValue],MATCH(G16,YieldCalcs[Code],0),1)),"",INDEX(YieldCalcs[CutValue],MATCH(G16,YieldCalcs[Code],0),1)) ->  | X16: =IF(ISERROR(INDEX(YieldCalcs[GM$],MATCH(G16,YieldCalcs[Code],0),1)),"",INDEX(YieldCalcs[GM$],MATCH(G16,YieldCalcs[Code],0),1)) ->  | Y16: =IF(ISERROR(INDEX(YieldCalcs[GM%],MATCH(G16,YieldCalcs[Code],0),1)),"",INDEX(YieldCalcs[GM%],MATCH(G16,YieldCalcs[Code],0),1)) ->  | Z16: =IF(ISERROR(INDEX(YieldCalcs[TGM%],MATCH(G16,YieldCalcs[Code],0),1)),"",INDEX(YieldCalcs[TGM%],MATCH(G16,YieldCalcs[Code],0),1)) ->  | AA16: =IF(ISERROR(INDEX(YieldCalcs[TSalePrice],MATCH(G16,YieldCalcs[Code],0),1)),"",INDEX(YieldCalcs[TSalePrice],MATCH(G16,YieldCalcs[Code],0),1)) ->  | AB16: =IF(ISNUMBER(INDEX(YieldCalcs[TotCostsPerKg],MATCH(G16,YieldCalcs[Code],0),1)),INDEX(YieldCalcs[TotCostsPerKg],MATCH(G16,YieldCalcs[Code],0),1),"") ->  | AC16: =IF(ISERROR(INDEX(YieldCalcs[PreBoneCperkg],MATCH(G16,YieldCalcs[Code],0),1)),"",INDEX(YieldCalcs[PreBoneCperkg],MATCH(G16,YieldCalcs[Code],0),1)) ->  | AD16: =IF(ISERROR(INDEX(YieldCalcs[FixBoneCostperkg],MATCH(G16,YieldCalcs[Code],0),1)),"",INDEX(YieldCalcs[FixBoneCostperkg],MATCH(G16,YieldCalcs[Code],0),1)) ->  | AE16: =IF(ISERROR(INDEX(YieldCalcs[BoningCost],MATCH(G16,YieldCalcs[Code],0),1)),"",INDEX(YieldCalcs[BoningCost],MATCH(G16,YieldCalcs[Code],0),1)) ->  | AF16: =IF(ISNUMBER(INDEX(YieldCalcs[TotCosts],MATCH(G16,YieldCalcs[Code],0),1)),INDEX(YieldCalcs[TotCosts],MATCH(G16,YieldCalcs[Code],0),1),"") ->  | AG16: =IF(ISERROR(INDEX(YieldCalcs[BuyInPrice],MATCH(G16,YieldCalcs[Code],0),1)),"",INDEX(YieldCalcs[BuyInPrice],MATCH(G16,YieldCalcs[Code],0),1)) -> 
F17: =IF(ISERROR(INDEX(YieldCalcs[Code],MATCH(E17,YieldCalcs[CutName],0),1)),"",INDEX(YieldCalcs[HAM No],MATCH(E17,YieldCalcs[CutName],0),1)) ->  | G17: =IF(ISERROR(INDEX(YieldCalcs[Code],MATCH(E17,YieldCalcs[CutName],0),1)),"",INDEX(YieldCalcs[Code],MATCH(E17,YieldCalcs[CutName],0),1)) ->  | H17: =IF(ISNA(MATCH(E17,YieldCalcs[CutName],0)),"",MATCH(E17,YieldCalcs[CutName],0)) ->  | I17: =IF(ISERROR(INDEX(YieldCalcs[PredWts],MATCH(G17,YieldCalcs[Code],0),1)),"",INDEX(YieldCalcs[PredWts],MATCH(G17,YieldCalcs[Code],0),1)) ->  | J17: =IF(ISERROR(INDEX(YieldCalcs[PredWts],MATCH(CONCATENATE(G17,"LT"),YieldCalcs[Code],0),1)),"",INDEX(YieldCalcs[PredWts],MATCH(CONCATENATE(G17,"LT"),YieldCalcs[Code],0),1)) ->  | K17: =IF(ISERROR(INDEX(YieldCalcs[PredWts],MATCH(CONCATENATE(G17,"LT65"),YieldCalcs[Code],0),1)),"",INDEX(YieldCalcs[PredWts],MATCH(CONCATENATE(G17,"LT65"),YieldCalcs[Code],0),1)) ->  | L17: =IF(ISERROR(INDEX(YieldCalcs[PredWts],MATCH(CONCATENATE(G17,"LT75"),YieldCalcs[Code],0),1)),"",INDEX(YieldCalcs[PredWts],MATCH(CONCATENATE(G17,"LT75"),YieldCalcs[Code],0),1)) ->  | M17: =IF(ISERROR(INDEX(YieldCalcs[PredWts],MATCH(CONCATENATE(G17,"LT85"),YieldCalcs[Code],0),1)),"",INDEX(YieldCalcs[PredWts],MATCH(CONCATENATE(G17,"LT85"),YieldCalcs[Code],0),1)) ->  | N17: =IF(ISERROR(INDEX(YieldCalcs[PredWts],MATCH(CONCATENATE(G17,"LT95"),YieldCalcs[Code],0),1)),"",INDEX(YieldCalcs[PredWts],MATCH(CONCATENATE(G17,"LT95"),YieldCalcs[Code],0),1)) ->  | O17: =IF(ISERROR(INDEX(YieldCalcs[PredWts],MATCH(CONCATENATE(G17,"F"),YieldCalcs[Code],0),1)),"",INDEX(YieldCalcs[PredWts],MATCH(CONCATENATE(G17,"F"),YieldCalcs[Code],0),1)) ->  | P17: =IF(ISERROR(INDEX(YieldCalcs[PredWts],MATCH(CONCATENATE(G17,"B"),YieldCalcs[Code],0),1)),"",INDEX(YieldCalcs[PredWts],MATCH(CONCATENATE(G17,"B"),YieldCalcs[Code],0),1)) ->  | Q17: =IF(ISERROR(INDEX(YieldCalcs[PredWts],MATCH(CONCATENATE(G17,"Cart"),YieldCalcs[Code],0),1)),"",INDEX(YieldCalcs[PredWts],MATCH(CONCATENATE(G17,"Cart"),YieldCalcs[Code],0),1)) ->  | R17: =IF(ISERROR(INDEX(YieldCalcs[PredWts],MATCH(CONCATENATE(G17,"Pad"),YieldCalcs[Code],0),1)),"",INDEX(YieldCalcs[PredWts],MATCH(CONCATENATE(G17,"Pad"),YieldCalcs[Code],0),1)) ->  | S17: =IF(ISERROR(INDEX(YieldCalcs[PredWts],MATCH(CONCATENATE(G17,"I"),YieldCalcs[Code],0),1)),"",INDEX(YieldCalcs[PredWts],MATCH(CONCATENATE(G17,"I"),YieldCalcs[Code],0),1)) ->  | T17: =IF(ISERROR(INDEX(YieldCalcs[PredWts],MATCH(CONCATENATE(G17,"Skirt"),YieldCalcs[Code],0),1)),"",INDEX(YieldCalcs[PredWts],MATCH(CONCATENATE(G17,"Skirt"),YieldCalcs[Code],0),1)) ->  | U17: =IF(ISERROR(INDEX(YieldCalcs[PredWts],MATCH(CONCATENATE(G17,"RibEnds"),YieldCalcs[Code],0),1)),"",INDEX(YieldCalcs[PredWts],MATCH(CONCATENATE(G17,"RibEnds"),YieldCalcs[Code],0),1)) ->  | V17: =IF(ISERROR(INDEX(YieldCalcs[SalePrice],MATCH(G17,YieldCalcs[Code],0),1)),"",INDEX(YieldCalcs[SalePrice],MATCH(G17,YieldCalcs[Code],0),1)) ->  | W17: =IF(ISERROR(INDEX(YieldCalcs[CutValue],MATCH(G17,YieldCalcs[Code],0),1)),"",INDEX(YieldCalcs[CutValue],MATCH(G17,YieldCalcs[Code],0),1)) ->  | X17: =IF(ISERROR(INDEX(YieldCalcs[GM$],MATCH(G17,YieldCalcs[Code],0),1)),"",INDEX(YieldCalcs[GM$],MATCH(G17,YieldCalcs[Code],0),1)) ->  | Y17: =IF(ISERROR(INDEX(YieldCalcs[GM%],MATCH(G17,YieldCalcs[Code],0),1)),"",INDEX(YieldCalcs[GM%],MATCH(G17,YieldCalcs[Code],0),1)) ->  | Z17: =IF(ISERROR(INDEX(YieldCalcs[TGM%],MATCH(G17,YieldCalcs[Code],0),1)),"",INDEX(YieldCalcs[TGM%],MATCH(G17,YieldCalcs[Code],0),1)) ->  | AA17: =IF(ISERROR(INDEX(YieldCalcs[TSalePrice],MATCH(G17,YieldCalcs[Code],0),1)),"",INDEX(YieldCalcs[TSalePrice],MATCH(G17,YieldCalcs[Code],0),1)) ->  | AB17: =IF(ISNUMBER(INDEX(YieldCalcs[TotCostsPerKg],MATCH(G17,YieldCalcs[Code],0),1)),INDEX(YieldCalcs[TotCostsPerKg],MATCH(G17,YieldCalcs[Code],0),1),"") ->  | AC17: =IF(ISERROR(INDEX(YieldCalcs[PreBoneCperkg],MATCH(G17,YieldCalcs[Code],0),1)),"",INDEX(YieldCalcs[PreBoneCperkg],MATCH(G17,YieldCalcs[Code],0),1)) ->  | AD17: =IF(ISERROR(INDEX(YieldCalcs[FixBoneCostperkg],MATCH(G17,YieldCalcs[Code],0),1)),"",INDEX(YieldCalcs[FixBoneCostperkg],MATCH(G17,YieldCalcs[Code],0),1)) ->  | AE17: =IF(ISERROR(INDEX(YieldCalcs[BoningCost],MATCH(G17,YieldCalcs[Code],0),1)),"",INDEX(YieldCalcs[BoningCost],MATCH(G17,YieldCalcs[Code],0),1)) ->  | AF17: =IF(ISNUMBER(INDEX(YieldCalcs[TotCosts],MATCH(G17,YieldCalcs[Code],0),1)),INDEX(YieldCalcs[TotCosts],MATCH(G17,YieldCalcs[Code],0),1),"") ->  | AG17: =IF(ISERROR(INDEX(YieldCalcs[BuyInPrice],MATCH(G17,YieldCalcs[Code],0),1)),"",INDEX(YieldCalcs[BuyInPrice],MATCH(G17,YieldCalcs[Code],0),1)) -> 
B19: Knuckle | E19: Knuckle | F19: =IF(ISERROR(INDEX(YieldCalcs[Code],MATCH(E19,YieldCalcs[CutName],0),1)),"",INDEX(YieldCalcs[HAM No],MATCH(E19,YieldCalcs[CutName],0),1)) -> 2070 | G19: =IF(ISERROR(INDEX(YieldCalcs[Code],MATCH(E19,YieldCalcs[CutName],0),1)),"",INDEX(YieldCalcs[Code],MATCH(E19,YieldCalcs[CutName],0),1)) -> HQ04.1 | H19: =IF(ISNA(MATCH(E19,YieldCalcs[CutName],0)),"",MATCH(E19,YieldCalcs[CutName],0)) -> 253 | I19: =IF(ISERROR(INDEX(YieldCalcs[PredWts],MATCH(G19,YieldCalcs[Code],0),1)),"",INDEX(YieldCalcs[PredWts],MATCH(G19,YieldCalcs[Code],0),1)) -> 14.07 | J19: =IF(ISERROR(INDEX(YieldCalcs[PredWts],MATCH(CONCATENATE(G19,"LT"),YieldCalcs[Code],0),1)),"",INDEX(YieldCalcs[PredWts],MATCH(CONCATENATE(G19,"LT"),YieldCalcs[Code],0),1)) -> 1.07 | K19: =IF(ISERROR(INDEX(YieldCalcs[PredWts],MATCH(CONCATENATE(G19,"LT65"),YieldCalcs[Code],0),1)),"",INDEX(YieldCalcs[PredWts],MATCH(CONCATENATE(G19,"LT65"),YieldCalcs[Code],0),1)) -> 0.24 | L19: =IF(ISERROR(INDEX(YieldCalcs[PredWts],MATCH(CONCATENATE(G19,"LT75"),YieldCalcs[Code],0),1)),"",INDEX(YieldCalcs[PredWts],MATCH(CONCATENATE(G19,"LT75"),YieldCalcs[Code],0),1)) -> 0.76 | M19: =IF(ISERROR(INDEX(YieldCalcs[PredWts],MATCH(CONCATENATE(G19,"LT85"),YieldCalcs[Code],0),1)),"",INDEX(YieldCalcs[PredWts],MATCH(CONCATENATE(G19,"LT85"),YieldCalcs[Code],0),1)) -> 0.07 | N19: =IF(ISERROR(INDEX(YieldCalcs[PredWts],MATCH(CONCATENATE(G19,"LT95"),YieldCalcs[Code],0),1)),"",INDEX(YieldCalcs[PredWts],MATCH(CONCATENATE(G19,"LT95"),YieldCalcs[Code],0),1)) ->  | O19: =IF(ISERROR(INDEX(YieldCalcs[PredWts],MATCH(CONCATENATE(G19,"F"),YieldCalcs[Code],0),1)),"",INDEX(YieldCalcs[PredWts],MATCH(CONCATENATE(G19,"F"),YieldCalcs[Code],0),1)) -> 1.08 | P19: =IF(ISERROR(INDEX(YieldCalcs[PredWts],MATCH(CONCATENATE(G19,"B"),YieldCalcs[Code],0),1)),"",INDEX(YieldCalcs[PredWts],MATCH(CONCATENATE(G19,"B"),YieldCalcs[Code],0),1)) -> 0.95 | Q19: =IF(ISERROR(INDEX(YieldCalcs[PredWts],MATCH(CONCATENATE(G19,"Cart"),YieldCalcs[Code],0),1)),"",INDEX(YieldCalcs[PredWts],MATCH(CONCATENATE(G19,"Cart"),YieldCalcs[Code],0),1)) ->  | R19: =IF(ISERROR(INDEX(YieldCalcs[PredWts],MATCH(CONCATENATE(G19,"Pad"),YieldCalcs[Code],0),1)),"",INDEX(YieldCalcs[PredWts],MATCH(CONCATENATE(G19,"Pad"),YieldCalcs[Code],0),1)) ->  | S19: =IF(ISERROR(INDEX(YieldCalcs[PredWts],MATCH(CONCATENATE(G19,"I"),YieldCalcs[Code],0),1)),"",INDEX(YieldCalcs[PredWts],MATCH(CONCATENATE(G19,"I"),YieldCalcs[Code],0),1)) ->  | T19: =IF(ISERROR(INDEX(YieldCalcs[PredWts],MATCH(CONCATENATE(G19,"Skirt"),YieldCalcs[Code],0),1)),"",INDEX(YieldCalcs[PredWts],MATCH(CONCATENATE(G19,"Skirt"),YieldCalcs[Code],0),1)) ->  | U19: =IF(ISERROR(INDEX(YieldCalcs[PredWts],MATCH(CONCATENATE(G19,"RibEnds"),YieldCalcs[Code],0),1)),"",INDEX(YieldCalcs[PredWts],MATCH(CONCATENATE(G19,"RibEnds"),YieldCalcs[Code],0),1)) ->  | V19: =IF(ISERROR(INDEX(YieldCalcs[SalePrice],MATCH(G19,YieldCalcs[Code],0),1)),"",INDEX(YieldCalcs[SalePrice],MATCH(G19,YieldCalcs[Code],0),1)) -> 5.24 | W19: =IF(ISERROR(INDEX(YieldCalcs[CutValue],MATCH(G19,YieldCalcs[Code],0),1)),"",INDEX(YieldCalcs[CutValue],MATCH(G19,YieldCalcs[Code],0),1)) -> 73.7268 | X19: =IF(ISERROR(INDEX(YieldCalcs[GM$],MATCH(G19,YieldCalcs[Code],0),1)),"",INDEX(YieldCalcs[GM$],MATCH(G19,YieldCalcs[Code],0),1)) -> 12.45641373 | Y19: =IF(ISERROR(INDEX(YieldCalcs[GM%],MATCH(G19,YieldCalcs[Code],0),1)),"",INDEX(YieldCalcs[GM%],MATCH(G19,YieldCalcs[Code],0),1)) -> 0.168953674 | Z19: =IF(ISERROR(INDEX(YieldCalcs[TGM%],MATCH(G19,YieldCalcs[Code],0),1)),"",INDEX(YieldCalcs[TGM%],MATCH(G19,YieldCalcs[Code],0),1)) -> 0.073 | AA19: =IF(ISERROR(INDEX(YieldCalcs[TSalePrice],MATCH(G19,YieldCalcs[Code],0),1)),"",INDEX(YieldCalcs[TSalePrice],MATCH(G19,YieldCalcs[Code],0),1)) -> 4.697608143 | AB19: =IF(ISNUMBER(INDEX(YieldCalcs[TotCostsPerKg],MATCH(G19,YieldCalcs[Code],0),1)),INDEX(YieldCalcs[TotCostsPerKg],MATCH(G19,YieldCalcs[Code],0),1),"") -> 4.354682748 | AC19: =IF(ISERROR(INDEX(YieldCalcs[PreBoneCperkg],MATCH(G19,YieldCalcs[Code],0),1)),"",INDEX(YieldCalcs[PreBoneCperkg],MATCH(G19,YieldCalcs[Code],0),1)) -> 3.933860947 | AD19: =IF(ISERROR(INDEX(YieldCalcs[FixBoneCostperkg],MATCH(G19,YieldCalcs[Code],0),1)),"",INDEX(YieldCalcs[FixBoneCostperkg],MATCH(G19,YieldCalcs[Code],0),1)) -> 0.04082180159 | AE19: =IF(ISERROR(INDEX(YieldCalcs[BoningCost],MATCH(G19,YieldCalcs[Code],0),1)),"",INDEX(YieldCalcs[BoningCost],MATCH(G19,YieldCalcs[Code],0),1)) -> 0.38 | AF19: =IF(ISNUMBER(INDEX(YieldCalcs[TotCosts],MATCH(G19,YieldCalcs[Code],0),1)),INDEX(YieldCalcs[TotCosts],MATCH(G19,YieldCalcs[Code],0),1),"") -> 61.27038627 | AG19: =IF(ISERROR(INDEX(YieldCalcs[BuyInPrice],MATCH(G19,YieldCalcs[Code],0),1)),"",INDEX(YieldCalcs[BuyInPrice],MATCH(G19,YieldCalcs[Code],0),1)) -> 0
C20: Knuckle | F20: =IF(ISERROR(INDEX(YieldCalcs[Code],MATCH(E20,YieldCalcs[CutName],0),1)),"",INDEX(YieldCalcs[HAM No],MATCH(E20,YieldCalcs[CutName],0),1)) ->  | G20: =IF(ISERROR(INDEX(YieldCalcs[Code],MATCH(E20,YieldCalcs[CutName],0),1)),"",INDEX(YieldCalcs[Code],MATCH(E20,YieldCalcs[CutName],0),1)) ->  | H20: =IF(ISNA(MATCH(E20,YieldCalcs[CutName],0)),"",MATCH(E20,YieldCalcs[CutName],0)) ->  | I20: =IF(ISERROR(INDEX(YieldCalcs[PredWts],MATCH(G20,YieldCalcs[Code],0),1)),"",INDEX(YieldCalcs[PredWts],MATCH(G20,YieldCalcs[Code],0),1)) ->  | J20: =IF(ISERROR(INDEX(YieldCalcs[PredWts],MATCH(CONCATENATE(G20,"LT"),YieldCalcs[Code],0),1)),"",INDEX(YieldCalcs[PredWts],MATCH(CONCATENATE(G20,"LT"),YieldCalcs[Code],0),1)) ->  | K20: =IF(ISERROR(INDEX(YieldCalcs[PredWts],MATCH(CONCATENATE(G20,"LT65"),YieldCalcs[Code],0),1)),"",INDEX(YieldCalcs[PredWts],MATCH(CONCATENATE(G20,"LT65"),YieldCalcs[Code],0),1)) ->  | L20: =IF(ISERROR(INDEX(YieldCalcs[PredWts],MATCH(CONCATENATE(G20,"LT75"),YieldCalcs[Code],0),1)),"",INDEX(YieldCalcs[PredWts],MATCH(CONCATENATE(G20,"LT75"),YieldCalcs[Code],0),1)) ->  | M20: =IF(ISERROR(INDEX(YieldCalcs[PredWts],MATCH(CONCATENATE(G20,"LT85"),YieldCalcs[Code],0),1)),"",INDEX(YieldCalcs[PredWts],MATCH(CONCATENATE(G20,"LT85"),YieldCalcs[Code],0),1)) ->  | N20: =IF(ISERROR(INDEX(YieldCalcs[PredWts],MATCH(CONCATENATE(G20,"LT95"),YieldCalcs[Code],0),1)),"",INDEX(YieldCalcs[PredWts],MATCH(CONCATENATE(G20,"LT95"),YieldCalcs[Code],0),1)) ->  | O20: =IF(ISERROR(INDEX(YieldCalcs[PredWts],MATCH(CONCATENATE(G20,"F"),YieldCalcs[Code],0),1)),"",INDEX(YieldCalcs[PredWts],MATCH(CONCATENATE(G20,"F"),YieldCalcs[Code],0),1)) ->  | P20: =IF(ISERROR(INDEX(YieldCalcs[PredWts],MATCH(CONCATENATE(G20,"B"),YieldCalcs[Code],0),1)),"",INDEX(YieldCalcs[PredWts],MATCH(CONCATENATE(G20,"B"),YieldCalcs[Code],0),1)) ->  | Q20: =IF(ISERROR(INDEX(YieldCalcs[PredWts],MATCH(CONCATENATE(G20,"Cart"),YieldCalcs[Code],0),1)),"",INDEX(YieldCalcs[PredWts],MATCH(CONCATENATE(G20,"Cart"),YieldCalcs[Code],0),1)) ->  | R20: =IF(ISERROR(INDEX(YieldCalcs[PredWts],MATCH(CONCATENATE(G20,"Pad"),YieldCalcs[Code],0),1)),"",INDEX(YieldCalcs[PredWts],MATCH(CONCATENATE(G20,"Pad"),YieldCalcs[Code],0),1)) ->  | S20: =IF(ISERROR(INDEX(YieldCalcs[PredWts],MATCH(CONCATENATE(G20,"I"),YieldCalcs[Code],0),1)),"",INDEX(YieldCalcs[PredWts],MATCH(CONCATENATE(G20,"I"),YieldCalcs[Code],0),1)) ->  | T20: =IF(ISERROR(INDEX(YieldCalcs[PredWts],MATCH(CONCATENATE(G20,"Skirt"),YieldCalcs[Code],0),1)),"",INDEX(YieldCalcs[PredWts],MATCH(CONCATENATE(G20,"Skirt"),YieldCalcs[Code],0),1)) ->  | U20: =IF(ISERROR(INDEX(YieldCalcs[PredWts],MATCH(CONCATENATE(G20,"RibEnds"),YieldCalcs[Code],0),1)),"",INDEX(YieldCalcs[PredWts],MATCH(CONCATENATE(G20,"RibEnds"),YieldCalcs[Code],0),1)) ->  | V20: =IF(ISERROR(INDEX(YieldCalcs[SalePrice],MATCH(G20,YieldCalcs[Code],0),1)),"",INDEX(YieldCalcs[SalePrice],MATCH(G20,YieldCalcs[Code],0),1)) ->  | W20: =IF(ISERROR(INDEX(YieldCalcs[CutValue],MATCH(G20,YieldCalcs[Code],0),1)),"",INDEX(YieldCalcs[CutValue],MATCH(G20,YieldCalcs[Code],0),1)) ->  | X20: =IF(ISERROR(INDEX(YieldCalcs[GM$],MATCH(G20,YieldCalcs[Code],0),1)),"",INDEX(YieldCalcs[GM$],MATCH(G20,YieldCalcs[Code],0),1)) ->  | Y20: =IF(ISERROR(INDEX(YieldCalcs[GM%],MATCH(G20,YieldCalcs[Code],0),1)),"",INDEX(YieldCalcs[GM%],MATCH(G20,YieldCalcs[Code],0),1)) ->  | Z20: =IF(ISERROR(INDEX(YieldCalcs[TGM%],MATCH(G20,YieldCalcs[Code],0),1)),"",INDEX(YieldCalcs[TGM%],MATCH(G20,YieldCalcs[Code],0),1)) ->  | AA20: =IF(ISERROR(INDEX(YieldCalcs[TSalePrice],MATCH(G20,YieldCalcs[Code],0),1)),"",INDEX(YieldCalcs[TSalePrice],MATCH(G20,YieldCalcs[Code],0),1)) ->  | AB20: =IF(ISNUMBER(INDEX(YieldCalcs[TotCostsPerKg],MATCH(G20,YieldCalcs[Code],0),1)),INDEX(YieldCalcs[TotCostsPerKg],MATCH(G20,YieldCalcs[Code],0),1),"") ->  | AC20: =IF(ISERROR(INDEX(YieldCalcs[PreBoneCperkg],MATCH(G20,YieldCalcs[Code],0),1)),"",INDEX(YieldCalcs[PreBoneCperkg],MATCH(G20,YieldCalcs[Code],0),1)) ->  | AD20: =IF(ISERROR(INDEX(YieldCalcs[FixBoneCostperkg],MATCH(G20,YieldCalcs[Code],0),1)),"",INDEX(YieldCalcs[FixBoneCostperkg],MATCH(G20,YieldCalcs[Code],0),1)) ->  | AE20: =IF(ISERROR(INDEX(YieldCalcs[BoningCost],MATCH(G20,YieldCalcs[Code],0),1)),"",INDEX(YieldCalcs[BoningCost],MATCH(G20,YieldCalcs[Code],0),1)) ->  | AF20: =IF(ISNUMBER(INDEX(YieldCalcs[TotCosts],MATCH(G20,YieldCalcs[Code],0),1)),INDEX(YieldCalcs[TotCosts],MATCH(G20,YieldCalcs[Code],0),1),"") ->  | AG20: =IF(ISERROR(INDEX(YieldCalcs[BuyInPrice],MATCH(G20,YieldCalcs[Code],0),1)),"",INDEX(YieldCalcs[BuyInPrice],MATCH(G20,YieldCalcs[Code],0),1)) -> 
A21: REC% | B21: =SUM(I19:J25,O19:U25)/INDEX(YieldCalcs[PredWts],MATCH("HQ04.0",YieldCalcs[Code],0),1) -> 1 | F21: =IF(ISERROR(INDEX(YieldCalcs[Code],MATCH(E21,YieldCalcs[CutName],0),1)),"",INDEX(YieldCalcs[HAM No],MATCH(E21,YieldCalcs[CutName],0),1)) ->  | G21: =IF(ISERROR(INDEX(YieldCalcs[Code],MATCH(E21,YieldCalcs[CutName],0),1)),"",INDEX(YieldCalcs[Code],MATCH(E21,YieldCalcs[CutName],0),1)) ->  | H21: =IF(ISNA(MATCH(E21,YieldCalcs[CutName],0)),"",MATCH(E21,YieldCalcs[CutName],0)) ->  | I21: =IF(ISERROR(INDEX(YieldCalcs[PredWts],MATCH(G21,YieldCalcs[Code],0),1)),"",INDEX(YieldCalcs[PredWts],MATCH(G21,YieldCalcs[Code],0),1)) ->  | J21: =IF(ISERROR(INDEX(YieldCalcs[PredWts],MATCH(CONCATENATE(G21,"LT"),YieldCalcs[Code],0),1)),"",INDEX(YieldCalcs[PredWts],MATCH(CONCATENATE(G21,"LT"),YieldCalcs[Code],0),1)) ->  | K21: =IF(ISERROR(INDEX(YieldCalcs[PredWts],MATCH(CONCATENATE(G21,"LT65"),YieldCalcs[Code],0),1)),"",INDEX(YieldCalcs[PredWts],MATCH(CONCATENATE(G21,"LT65"),YieldCalcs[Code],0),1)) ->  | L21: =IF(ISERROR(INDEX(YieldCalcs[PredWts],MATCH(CONCATENATE(G21,"LT75"),YieldCalcs[Code],0),1)),"",INDEX(YieldCalcs[PredWts],MATCH(CONCATENATE(G21,"LT75"),YieldCalcs[Code],0),1)) ->  | M21: =IF(ISERROR(INDEX(YieldCalcs[PredWts],MATCH(CONCATENATE(G21,"LT85"),YieldCalcs[Code],0),1)),"",INDEX(YieldCalcs[PredWts],MATCH(CONCATENATE(G21,"LT85"),YieldCalcs[Code],0),1)) ->  | N21: =IF(ISERROR(INDEX(YieldCalcs[PredWts],MATCH(CONCATENATE(G21,"LT95"),YieldCalcs[Code],0),1)),"",INDEX(YieldCalcs[PredWts],MATCH(CONCATENATE(G21,"LT95"),YieldCalcs[Code],0),1)) ->  | O21: =IF(ISERROR(INDEX(YieldCalcs[PredWts],MATCH(CONCATENATE(G21,"F"),YieldCalcs[Code],0),1)),"",INDEX(YieldCalcs[PredWts],MATCH(CONCATENATE(G21,"F"),YieldCalcs[Code],0),1)) ->  | P21: =IF(ISERROR(INDEX(YieldCalcs[PredWts],MATCH(CONCATENATE(G21,"B"),YieldCalcs[Code],0),1)),"",INDEX(YieldCalcs[PredWts],MATCH(CONCATENATE(G21,"B"),YieldCalcs[Code],0),1)) ->  | Q21: =IF(ISERROR(INDEX(YieldCalcs[PredWts],MATCH(CONCATENATE(G21,"Cart"),YieldCalcs[Code],0),1)),"",INDEX(YieldCalcs[PredWts],MATCH(CONCATENATE(G21,"Cart"),YieldCalcs[Code],0),1)) ->  | R21: =IF(ISERROR(INDEX(YieldCalcs[PredWts],MATCH(CONCATENATE(G21,"Pad"),YieldCalcs[Code],0),1)),"",INDEX(YieldCalcs[PredWts],MATCH(CONCATENATE(G21,"Pad"),YieldCalcs[Code],0),1)) ->  | S21: =IF(ISERROR(INDEX(YieldCalcs[PredWts],MATCH(CONCATENATE(G21,"I"),YieldCalcs[Code],0),1)),"",INDEX(YieldCalcs[PredWts],MATCH(CONCATENATE(G21,"I"),YieldCalcs[Code],0),1)) ->  | T21: =IF(ISERROR(INDEX(YieldCalcs[PredWts],MATCH(CONCATENATE(G21,"Skirt"),YieldCalcs[Code],0),1)),"",INDEX(YieldCalcs[PredWts],MATCH(CONCATENATE(G21,"Skirt"),YieldCalcs[Code],0),1)) ->  | U21: =IF(ISERROR(INDEX(YieldCalcs[PredWts],MATCH(CONCATENATE(G21,"RibEnds"),YieldCalcs[Code],0),1)),"",INDEX(YieldCalcs[PredWts],MATCH(CONCATENATE(G21,"RibEnds"),YieldCalcs[Code],0),1)) ->  | V21: =IF(ISERROR(INDEX(YieldCalcs[SalePrice],MATCH(G21,YieldCalcs[Code],0),1)),"",INDEX(YieldCalcs[SalePrice],MATCH(G21,YieldCalcs[Code],0),1)) ->  | W21: =IF(ISERROR(INDEX(YieldCalcs[CutValue],MATCH(G21,YieldCalcs[Code],0),1)),"",INDEX(YieldCalcs[CutValue],MATCH(G21,YieldCalcs[Code],0),1)) ->  | X21: =IF(ISERROR(INDEX(YieldCalcs[GM$],MATCH(G21,YieldCalcs[Code],0),1)),"",INDEX(YieldCalcs[GM$],MATCH(G21,YieldCalcs[Code],0),1)) ->  | Y21: =IF(ISERROR(INDEX(YieldCalcs[GM%],MATCH(G21,YieldCalcs[Code],0),1)),"",INDEX(YieldCalcs[GM%],MATCH(G21,YieldCalcs[Code],0),1)) ->  | Z21: =IF(ISERROR(INDEX(YieldCalcs[TGM%],MATCH(G21,YieldCalcs[Code],0),1)),"",INDEX(YieldCalcs[TGM%],MATCH(G21,YieldCalcs[Code],0),1)) ->  | AA21: =IF(ISERROR(INDEX(YieldCalcs[TSalePrice],MATCH(G21,YieldCalcs[Code],0),1)),"",INDEX(YieldCalcs[TSalePrice],MATCH(G21,YieldCalcs[Code],0),1)) ->  | AB21: =IF(ISNUMBER(INDEX(YieldCalcs[TotCostsPerKg],MATCH(G21,YieldCalcs[Code],0),1)),INDEX(YieldCalcs[TotCostsPerKg],MATCH(G21,YieldCalcs[Code],0),1),"") ->  | AC21: =IF(ISERROR(INDEX(YieldCalcs[PreBoneCperkg],MATCH(G21,YieldCalcs[Code],0),1)),"",INDEX(YieldCalcs[PreBoneCperkg],MATCH(G21,YieldCalcs[Code],0),1)) ->  | AD21: =IF(ISERROR(INDEX(YieldCalcs[FixBoneCostperkg],MATCH(G21,YieldCalcs[Code],0),1)),"",INDEX(YieldCalcs[FixBoneCostperkg],MATCH(G21,YieldCalcs[Code],0),1)) ->  | AE21: =IF(ISERROR(INDEX(YieldCalcs[BoningCost],MATCH(G21,YieldCalcs[Code],0),1)),"",INDEX(YieldCalcs[BoningCost],MATCH(G21,YieldCalcs[Code],0),1)) ->  | AF21: =IF(ISNUMBER(INDEX(YieldCalcs[TotCosts],MATCH(G21,YieldCalcs[Code],0),1)),INDEX(YieldCalcs[TotCosts],MATCH(G21,YieldCalcs[Code],0),1),"") ->  | AG21: =IF(ISERROR(INDEX(YieldCalcs[BuyInPrice],MATCH(G21,YieldCalcs[Code],0),1)),"",INDEX(YieldCalcs[BuyInPrice],MATCH(G21,YieldCalcs[Code],0),1)) -> 
F22: =IF(ISERROR(INDEX(YieldCalcs[Code],MATCH(E22,YieldCalcs[CutName],0),1)),"",INDEX(YieldCalcs[HAM No],MATCH(E22,YieldCalcs[CutName],0),1)) ->  | G22: =IF(ISERROR(INDEX(YieldCalcs[Code],MATCH(E22,YieldCalcs[CutName],0),1)),"",INDEX(YieldCalcs[Code],MATCH(E22,YieldCalcs[CutName],0),1)) ->  | H22: =IF(ISNA(MATCH(E22,YieldCalcs[CutName],0)),"",MATCH(E22,YieldCalcs[CutName],0)) ->  | I22: =IF(ISERROR(INDEX(YieldCalcs[PredWts],MATCH(G22,YieldCalcs[Code],0),1)),"",INDEX(YieldCalcs[PredWts],MATCH(G22,YieldCalcs[Code],0),1)) ->  | J22: =IF(ISERROR(INDEX(YieldCalcs[PredWts],MATCH(CONCATENATE(G22,"LT"),YieldCalcs[Code],0),1)),"",INDEX(YieldCalcs[PredWts],MATCH(CONCATENATE(G22,"LT"),YieldCalcs[Code],0),1)) ->  | K22: =IF(ISERROR(INDEX(YieldCalcs[PredWts],MATCH(CONCATENATE(G22,"LT65"),YieldCalcs[Code],0),1)),"",INDEX(YieldCalcs[PredWts],MATCH(CONCATENATE(G22,"LT65"),YieldCalcs[Code],0),1)) ->  | L22: =IF(ISERROR(INDEX(YieldCalcs[PredWts],MATCH(CONCATENATE(G22,"LT75"),YieldCalcs[Code],0),1)),"",INDEX(YieldCalcs[PredWts],MATCH(CONCATENATE(G22,"LT75"),YieldCalcs[Code],0),1)) ->  | M22: =IF(ISERROR(INDEX(YieldCalcs[PredWts],MATCH(CONCATENATE(G22,"LT85"),YieldCalcs[Code],0),1)),"",INDEX(YieldCalcs[PredWts],MATCH(CONCATENATE(G22,"LT85"),YieldCalcs[Code],0),1)) ->  | N22: =IF(ISERROR(INDEX(YieldCalcs[PredWts],MATCH(CONCATENATE(G22,"LT95"),YieldCalcs[Code],0),1)),"",INDEX(YieldCalcs[PredWts],MATCH(CONCATENATE(G22,"LT95"),YieldCalcs[Code],0),1)) ->  | O22: =IF(ISERROR(INDEX(YieldCalcs[PredWts],MATCH(CONCATENATE(G22,"F"),YieldCalcs[Code],0),1)),"",INDEX(YieldCalcs[PredWts],MATCH(CONCATENATE(G22,"F"),YieldCalcs[Code],0),1)) ->  | P22: =IF(ISERROR(INDEX(YieldCalcs[PredWts],MATCH(CONCATENATE(G22,"B"),YieldCalcs[Code],0),1)),"",INDEX(YieldCalcs[PredWts],MATCH(CONCATENATE(G22,"B"),YieldCalcs[Code],0),1)) ->  | Q22: =IF(ISERROR(INDEX(YieldCalcs[PredWts],MATCH(CONCATENATE(G22,"Cart"),YieldCalcs[Code],0),1)),"",INDEX(YieldCalcs[PredWts],MATCH(CONCATENATE(G22,"Cart"),YieldCalcs[Code],0),1)) ->  | R22: =IF(ISERROR(INDEX(YieldCalcs[PredWts],MATCH(CONCATENATE(G22,"Pad"),YieldCalcs[Code],0),1)),"",INDEX(YieldCalcs[PredWts],MATCH(CONCATENATE(G22,"Pad"),YieldCalcs[Code],0),1)) ->  | S22: =IF(ISERROR(INDEX(YieldCalcs[PredWts],MATCH(CONCATENATE(G22,"I"),YieldCalcs[Code],0),1)),"",INDEX(YieldCalcs[PredWts],MATCH(CONCATENATE(G22,"I"),YieldCalcs[Code],0),1)) ->  | T22: =IF(ISERROR(INDEX(YieldCalcs[PredWts],MATCH(CONCATENATE(G22,"Skirt"),YieldCalcs[Code],0),1)),"",INDEX(YieldCalcs[PredWts],MATCH(CONCATENATE(G22,"Skirt"),YieldCalcs[Code],0),1)) ->  | U22: =IF(ISERROR(INDEX(YieldCalcs[PredWts],MATCH(CONCATENATE(G22,"RibEnds"),YieldCalcs[Code],0),1)),"",INDEX(YieldCalcs[PredWts],MATCH(CONCATENATE(G22,"RibEnds"),YieldCalcs[Code],0),1)) ->  | V22: =IF(ISERROR(INDEX(YieldCalcs[SalePrice],MATCH(G22,YieldCalcs[Code],0),1)),"",INDEX(YieldCalcs[SalePrice],MATCH(G22,YieldCalcs[Code],0),1)) ->  | W22: =IF(ISERROR(INDEX(YieldCalcs[CutValue],MATCH(G22,YieldCalcs[Code],0),1)),"",INDEX(YieldCalcs[CutValue],MATCH(G22,YieldCalcs[Code],0),1)) ->  | X22: =IF(ISERROR(INDEX(YieldCalcs[GM$],MATCH(G22,YieldCalcs[Code],0),1)),"",INDEX(YieldCalcs[GM$],MATCH(G22,YieldCalcs[Code],0),1)) ->  | Y22: =IF(ISERROR(INDEX(YieldCalcs[GM%],MATCH(G22,YieldCalcs[Code],0),1)),"",INDEX(YieldCalcs[GM%],MATCH(G22,YieldCalcs[Code],0),1)) ->  | Z22: =IF(ISERROR(INDEX(YieldCalcs[TGM%],MATCH(G22,YieldCalcs[Code],0),1)),"",INDEX(YieldCalcs[TGM%],MATCH(G22,YieldCalcs[Code],0),1)) ->  | AA22: =IF(ISERROR(INDEX(YieldCalcs[TSalePrice],MATCH(G22,YieldCalcs[Code],0),1)),"",INDEX(YieldCalcs[TSalePrice],MATCH(G22,YieldCalcs[Code],0),1)) ->  | AB22: =IF(ISNUMBER(INDEX(YieldCalcs[TotCostsPerKg],MATCH(G22,YieldCalcs[Code],0),1)),INDEX(YieldCalcs[TotCostsPerKg],MATCH(G22,YieldCalcs[Code],0),1),"") ->  | AC22: =IF(ISERROR(INDEX(YieldCalcs[PreBoneCperkg],MATCH(G22,YieldCalcs[Code],0),1)),"",INDEX(YieldCalcs[PreBoneCperkg],MATCH(G22,YieldCalcs[Code],0),1)) ->  | AD22: =IF(ISERROR(INDEX(YieldCalcs[FixBoneCostperkg],MATCH(G22,YieldCalcs[Code],0),1)),"",INDEX(YieldCalcs[FixBoneCostperkg],MATCH(G22,YieldCalcs[Code],0),1)) ->  | AE22: =IF(ISERROR(INDEX(YieldCalcs[BoningCost],MATCH(G22,YieldCalcs[Code],0),1)),"",INDEX(YieldCalcs[BoningCost],MATCH(G22,YieldCalcs[Code],0),1)) ->  | AF22: =IF(ISNUMBER(INDEX(YieldCalcs[TotCosts],MATCH(G22,YieldCalcs[Code],0),1)),INDEX(YieldCalcs[TotCosts],MATCH(G22,YieldCalcs[Code],0),1),"") ->  | AG22: =IF(ISERROR(INDEX(YieldCalcs[BuyInPrice],MATCH(G22,YieldCalcs[Code],0),1)),"",INDEX(YieldCalcs[BuyInPrice],MATCH(G22,YieldCalcs[Code],0),1)) -> 
F23: =IF(ISERROR(INDEX(YieldCalcs[Code],MATCH(E23,YieldCalcs[CutName],0),1)),"",INDEX(YieldCalcs[HAM No],MATCH(E23,YieldCalcs[CutName],0),1)) ->  | G23: =IF(ISERROR(INDEX(YieldCalcs[Code],MATCH(E23,YieldCalcs[CutName],0),1)),"",INDEX(YieldCalcs[Code],MATCH(E23,YieldCalcs[CutName],0),1)) ->  | H23: =IF(ISNA(MATCH(E23,YieldCalcs[CutName],0)),"",MATCH(E23,YieldCalcs[CutName],0)) ->  | I23: =IF(ISERROR(INDEX(YieldCalcs[PredWts],MATCH(G23,YieldCalcs[Code],0),1)),"",INDEX(YieldCalcs[PredWts],MATCH(G23,YieldCalcs[Code],0),1)) ->  | J23: =IF(ISERROR(INDEX(YieldCalcs[PredWts],MATCH(CONCATENATE(G23,"LT"),YieldCalcs[Code],0),1)),"",INDEX(YieldCalcs[PredWts],MATCH(CONCATENATE(G23,"LT"),YieldCalcs[Code],0),1)) ->  | K23: =IF(ISERROR(INDEX(YieldCalcs[PredWts],MATCH(CONCATENATE(G23,"LT65"),YieldCalcs[Code],0),1)),"",INDEX(YieldCalcs[PredWts],MATCH(CONCATENATE(G23,"LT65"),YieldCalcs[Code],0),1)) ->  | L23: =IF(ISERROR(INDEX(YieldCalcs[PredWts],MATCH(CONCATENATE(G23,"LT75"),YieldCalcs[Code],0),1)),"",INDEX(YieldCalcs[PredWts],MATCH(CONCATENATE(G23,"LT75"),YieldCalcs[Code],0),1)) ->  | M23: =IF(ISERROR(INDEX(YieldCalcs[PredWts],MATCH(CONCATENATE(G23,"LT85"),YieldCalcs[Code],0),1)),"",INDEX(YieldCalcs[PredWts],MATCH(CONCATENATE(G23,"LT85"),YieldCalcs[Code],0),1)) ->  | N23: =IF(ISERROR(INDEX(YieldCalcs[PredWts],MATCH(CONCATENATE(G23,"LT95"),YieldCalcs[Code],0),1)),"",INDEX(YieldCalcs[PredWts],MATCH(CONCATENATE(G23,"LT95"),YieldCalcs[Code],0),1)) ->  | O23: =IF(ISERROR(INDEX(YieldCalcs[PredWts],MATCH(CONCATENATE(G23,"F"),YieldCalcs[Code],0),1)),"",INDEX(YieldCalcs[PredWts],MATCH(CONCATENATE(G23,"F"),YieldCalcs[Code],0),1)) ->  | P23: =IF(ISERROR(INDEX(YieldCalcs[PredWts],MATCH(CONCATENATE(G23,"B"),YieldCalcs[Code],0),1)),"",INDEX(YieldCalcs[PredWts],MATCH(CONCATENATE(G23,"B"),YieldCalcs[Code],0),1)) ->  | Q23: =IF(ISERROR(INDEX(YieldCalcs[PredWts],MATCH(CONCATENATE(G23,"Cart"),YieldCalcs[Code],0),1)),"",INDEX(YieldCalcs[PredWts],MATCH(CONCATENATE(G23,"Cart"),YieldCalcs[Code],0),1)) ->  | R23: =IF(ISERROR(INDEX(YieldCalcs[PredWts],MATCH(CONCATENATE(G23,"Pad"),YieldCalcs[Code],0),1)),"",INDEX(YieldCalcs[PredWts],MATCH(CONCATENATE(G23,"Pad"),YieldCalcs[Code],0),1)) ->  | S23: =IF(ISERROR(INDEX(YieldCalcs[PredWts],MATCH(CONCATENATE(G23,"I"),YieldCalcs[Code],0),1)),"",INDEX(YieldCalcs[PredWts],MATCH(CONCATENATE(G23,"I"),YieldCalcs[Code],0),1)) ->  | T23: =IF(ISERROR(INDEX(YieldCalcs[PredWts],MATCH(CONCATENATE(G23,"Skirt"),YieldCalcs[Code],0),1)),"",INDEX(YieldCalcs[PredWts],MATCH(CONCATENATE(G23,"Skirt"),YieldCalcs[Code],0),1)) ->  | U23: =IF(ISERROR(INDEX(YieldCalcs[PredWts],MATCH(CONCATENATE(G23,"RibEnds"),YieldCalcs[Code],0),1)),"",INDEX(YieldCalcs[PredWts],MATCH(CONCATENATE(G23,"RibEnds"),YieldCalcs[Code],0),1)) ->  | V23: =IF(ISERROR(INDEX(YieldCalcs[SalePrice],MATCH(G23,YieldCalcs[Code],0),1)),"",INDEX(YieldCalcs[SalePrice],MATCH(G23,YieldCalcs[Code],0),1)) ->  | W23: =IF(ISERROR(INDEX(YieldCalcs[CutValue],MATCH(G23,YieldCalcs[Code],0),1)),"",INDEX(YieldCalcs[CutValue],MATCH(G23,YieldCalcs[Code],0),1)) ->  | X23: =IF(ISERROR(INDEX(YieldCalcs[GM$],MATCH(G23,YieldCalcs[Code],0),1)),"",INDEX(YieldCalcs[GM$],MATCH(G23,YieldCalcs[Code],0),1)) ->  | Y23: =IF(ISERROR(INDEX(YieldCalcs[GM%],MATCH(G23,YieldCalcs[Code],0),1)),"",INDEX(YieldCalcs[GM%],MATCH(G23,YieldCalcs[Code],0),1)) ->  | Z23: =IF(ISERROR(INDEX(YieldCalcs[TGM%],MATCH(G23,YieldCalcs[Code],0),1)),"",INDEX(YieldCalcs[TGM%],MATCH(G23,YieldCalcs[Code],0),1)) ->  | AA23: =IF(ISERROR(INDEX(YieldCalcs[TSalePrice],MATCH(G23,YieldCalcs[Code],0),1)),"",INDEX(YieldCalcs[TSalePrice],MATCH(G23,YieldCalcs[Code],0),1)) ->  | AB23: =IF(ISNUMBER(INDEX(YieldCalcs[TotCostsPerKg],MATCH(G23,YieldCalcs[Code],0),1)),INDEX(YieldCalcs[TotCostsPerKg],MATCH(G23,YieldCalcs[Code],0),1),"") ->  | AC23: =IF(ISERROR(INDEX(YieldCalcs[PreBoneCperkg],MATCH(G23,YieldCalcs[Code],0),1)),"",INDEX(YieldCalcs[PreBoneCperkg],MATCH(G23,YieldCalcs[Code],0),1)) ->  | AD23: =IF(ISERROR(INDEX(YieldCalcs[FixBoneCostperkg],MATCH(G23,YieldCalcs[Code],0),1)),"",INDEX(YieldCalcs[FixBoneCostperkg],MATCH(G23,YieldCalcs[Code],0),1)) ->  | AE23: =IF(ISERROR(INDEX(YieldCalcs[BoningCost],MATCH(G23,YieldCalcs[Code],0),1)),"",INDEX(YieldCalcs[BoningCost],MATCH(G23,YieldCalcs[Code],0),1)) ->  | AF23: =IF(ISNUMBER(INDEX(YieldCalcs[TotCosts],MATCH(G23,YieldCalcs[Code],0),1)),INDEX(YieldCalcs[TotCosts],MATCH(G23,YieldCalcs[Code],0),1),"") ->  | AG23: =IF(ISERROR(INDEX(YieldCalcs[BuyInPrice],MATCH(G23,YieldCalcs[Code],0),1)),"",INDEX(YieldCalcs[BuyInPrice],MATCH(G23,YieldCalcs[Code],0),1)) -> 
F24: =IF(ISERROR(INDEX(YieldCalcs[Code],MATCH(E24,YieldCalcs[CutName],0),1)),"",INDEX(YieldCalcs[HAM No],MATCH(E24,YieldCalcs[CutName],0),1)) ->  | G24: =IF(ISERROR(INDEX(YieldCalcs[Code],MATCH(E24,YieldCalcs[CutName],0),1)),"",INDEX(YieldCalcs[Code],MATCH(E24,YieldCalcs[CutName],0),1)) ->  | H24: =IF(ISNA(MATCH(E24,YieldCalcs[CutName],0)),"",MATCH(E24,YieldCalcs[CutName],0)) ->  | I24: =IF(ISERROR(INDEX(YieldCalcs[PredWts],MATCH(G24,YieldCalcs[Code],0),1)),"",INDEX(YieldCalcs[PredWts],MATCH(G24,YieldCalcs[Code],0),1)) ->  | J24: =IF(ISERROR(INDEX(YieldCalcs[PredWts],MATCH(CONCATENATE(G24,"LT"),YieldCalcs[Code],0),1)),"",INDEX(YieldCalcs[PredWts],MATCH(CONCATENATE(G24,"LT"),YieldCalcs[Code],0),1)) ->  | K24: =IF(ISERROR(INDEX(YieldCalcs[PredWts],MATCH(CONCATENATE(G24,"LT65"),YieldCalcs[Code],0),1)),"",INDEX(YieldCalcs[PredWts],MATCH(CONCATENATE(G24,"LT65"),YieldCalcs[Code],0),1)) ->  | L24: =IF(ISERROR(INDEX(YieldCalcs[PredWts],MATCH(CONCATENATE(G24,"LT75"),YieldCalcs[Code],0),1)),"",INDEX(YieldCalcs[PredWts],MATCH(CONCATENATE(G24,"LT75"),YieldCalcs[Code],0),1)) ->  | M24: =IF(ISERROR(INDEX(YieldCalcs[PredWts],MATCH(CONCATENATE(G24,"LT85"),YieldCalcs[Code],0),1)),"",INDEX(YieldCalcs[PredWts],MATCH(CONCATENATE(G24,"LT85"),YieldCalcs[Code],0),1)) ->  | N24: =IF(ISERROR(INDEX(YieldCalcs[PredWts],MATCH(CONCATENATE(G24,"LT95"),YieldCalcs[Code],0),1)),"",INDEX(YieldCalcs[PredWts],MATCH(CONCATENATE(G24,"LT95"),YieldCalcs[Code],0),1)) ->  | O24: =IF(ISERROR(INDEX(YieldCalcs[PredWts],MATCH(CONCATENATE(G24,"F"),YieldCalcs[Code],0),1)),"",INDEX(YieldCalcs[PredWts],MATCH(CONCATENATE(G24,"F"),YieldCalcs[Code],0),1)) ->  | P24: =IF(ISERROR(INDEX(YieldCalcs[PredWts],MATCH(CONCATENATE(G24,"B"),YieldCalcs[Code],0),1)),"",INDEX(YieldCalcs[PredWts],MATCH(CONCATENATE(G24,"B"),YieldCalcs[Code],0),1)) ->  | Q24: =IF(ISERROR(INDEX(YieldCalcs[PredWts],MATCH(CONCATENATE(G24,"Cart"),YieldCalcs[Code],0),1)),"",INDEX(YieldCalcs[PredWts],MATCH(CONCATENATE(G24,"Cart"),YieldCalcs[Code],0),1)) ->  | R24: =IF(ISERROR(INDEX(YieldCalcs[PredWts],MATCH(CONCATENATE(G24,"Pad"),YieldCalcs[Code],0),1)),"",INDEX(YieldCalcs[PredWts],MATCH(CONCATENATE(G24,"Pad"),YieldCalcs[Code],0),1)) ->  | S24: =IF(ISERROR(INDEX(YieldCalcs[PredWts],MATCH(CONCATENATE(G24,"I"),YieldCalcs[Code],0),1)),"",INDEX(YieldCalcs[PredWts],MATCH(CONCATENATE(G24,"I"),YieldCalcs[Code],0),1)) ->  | T24: =IF(ISERROR(INDEX(YieldCalcs[PredWts],MATCH(CONCATENATE(G24,"Skirt"),YieldCalcs[Code],0),1)),"",INDEX(YieldCalcs[PredWts],MATCH(CONCATENATE(G24,"Skirt"),YieldCalcs[Code],0),1)) ->  | U24: =IF(ISERROR(INDEX(YieldCalcs[PredWts],MATCH(CONCATENATE(G24,"RibEnds"),YieldCalcs[Code],0),1)),"",INDEX(YieldCalcs[PredWts],MATCH(CONCATENATE(G24,"RibEnds"),YieldCalcs[Code],0),1)) ->  | V24: =IF(ISERROR(INDEX(YieldCalcs[SalePrice],MATCH(G24,YieldCalcs[Code],0),1)),"",INDEX(YieldCalcs[SalePrice],MATCH(G24,YieldCalcs[Code],0),1)) ->  | W24: =IF(ISERROR(INDEX(YieldCalcs[CutValue],MATCH(G24,YieldCalcs[Code],0),1)),"",INDEX(YieldCalcs[CutValue],MATCH(G24,YieldCalcs[Code],0),1)) ->  | X24: =IF(ISERROR(INDEX(YieldCalcs[GM$],MATCH(G24,YieldCalcs[Code],0),1)),"",INDEX(YieldCalcs[GM$],MATCH(G24,YieldCalcs[Code],0),1)) ->  | Y24: =IF(ISERROR(INDEX(YieldCalcs[GM%],MATCH(G24,YieldCalcs[Code],0),1)),"",INDEX(YieldCalcs[GM%],MATCH(G24,YieldCalcs[Code],0),1)) ->  | Z24: =IF(ISERROR(INDEX(YieldCalcs[TGM%],MATCH(G24,YieldCalcs[Code],0),1)),"",INDEX(YieldCalcs[TGM%],MATCH(G24,YieldCalcs[Code],0),1)) ->  | AA24: =IF(ISERROR(INDEX(YieldCalcs[TSalePrice],MATCH(G24,YieldCalcs[Code],0),1)),"",INDEX(YieldCalcs[TSalePrice],MATCH(G24,YieldCalcs[Code],0),1)) ->  | AB24: =IF(ISNUMBER(INDEX(YieldCalcs[TotCostsPerKg],MATCH(G24,YieldCalcs[Code],0),1)),INDEX(YieldCalcs[TotCostsPerKg],MATCH(G24,YieldCalcs[Code],0),1),"") ->  | AC24: =IF(ISERROR(INDEX(YieldCalcs[PreBoneCperkg],MATCH(G24,YieldCalcs[Code],0),1)),"",INDEX(YieldCalcs[PreBoneCperkg],MATCH(G24,YieldCalcs[Code],0),1)) ->  | AD24: =IF(ISERROR(INDEX(YieldCalcs[FixBoneCostperkg],MATCH(G24,YieldCalcs[Code],0),1)),"",INDEX(YieldCalcs[FixBoneCostperkg],MATCH(G24,YieldCalcs[Code],0),1)) ->  | AE24: =IF(ISERROR(INDEX(YieldCalcs[BoningCost],MATCH(G24,YieldCalcs[Code],0),1)),"",INDEX(YieldCalcs[BoningCost],MATCH(G24,YieldCalcs[Code],0),1)) ->  | AF24: =IF(ISNUMBER(INDEX(YieldCalcs[TotCosts],MATCH(G24,YieldCalcs[Code],0),1)),INDEX(YieldCalcs[TotCosts],MATCH(G24,YieldCalcs[Code],0),1),"") ->  | AG24: =IF(ISERROR(INDEX(YieldCalcs[BuyInPrice],MATCH(G24,YieldCalcs[Code],0),1)),"",INDEX(YieldCalcs[BuyInPrice],MATCH(G24,YieldCalcs[Code],0),1)) -> 
F25: =IF(ISERROR(INDEX(YieldCalcs[Code],MATCH(E25,YieldCalcs[CutName],0),1)),"",INDEX(YieldCalcs[HAM No],MATCH(E25,YieldCalcs[CutName],0),1)) ->  | G25: =IF(ISERROR(INDEX(YieldCalcs[Code],MATCH(E25,YieldCalcs[CutName],0),1)),"",INDEX(YieldCalcs[Code],MATCH(E25,YieldCalcs[CutName],0),1)) ->  | H25: =IF(ISNA(MATCH(E25,YieldCalcs[CutName],0)),"",MATCH(E25,YieldCalcs[CutName],0)) ->  | I25: =IF(ISERROR(INDEX(YieldCalcs[PredWts],MATCH(G25,YieldCalcs[Code],0),1)),"",INDEX(YieldCalcs[PredWts],MATCH(G25,YieldCalcs[Code],0),1)) ->  | J25: =IF(ISERROR(INDEX(YieldCalcs[PredWts],MATCH(CONCATENATE(G25,"LT"),YieldCalcs[Code],0),1)),"",INDEX(YieldCalcs[PredWts],MATCH(CONCATENATE(G25,"LT"),YieldCalcs[Code],0),1)) ->  | K25: =IF(ISERROR(INDEX(YieldCalcs[PredWts],MATCH(CONCATENATE(G25,"LT65"),YieldCalcs[Code],0),1)),"",INDEX(YieldCalcs[PredWts],MATCH(CONCATENATE(G25,"LT65"),YieldCalcs[Code],0),1)) ->  | L25: =IF(ISERROR(INDEX(YieldCalcs[PredWts],MATCH(CONCATENATE(G25,"LT75"),YieldCalcs[Code],0),1)),"",INDEX(YieldCalcs[PredWts],MATCH(CONCATENATE(G25,"LT75"),YieldCalcs[Code],0),1)) ->  | M25: =IF(ISERROR(INDEX(YieldCalcs[PredWts],MATCH(CONCATENATE(G25,"LT85"),YieldCalcs[Code],0),1)),"",INDEX(YieldCalcs[PredWts],MATCH(CONCATENATE(G25,"LT85"),YieldCalcs[Code],0),1)) ->  | N25: =IF(ISERROR(INDEX(YieldCalcs[PredWts],MATCH(CONCATENATE(G25,"LT95"),YieldCalcs[Code],0),1)),"",INDEX(YieldCalcs[PredWts],MATCH(CONCATENATE(G25,"LT95"),YieldCalcs[Code],0),1)) ->  | O25: =IF(ISERROR(INDEX(YieldCalcs[PredWts],MATCH(CONCATENATE(G25,"F"),YieldCalcs[Code],0),1)),"",INDEX(YieldCalcs[PredWts],MATCH(CONCATENATE(G25,"F"),YieldCalcs[Code],0),1)) ->  | P25: =IF(ISERROR(INDEX(YieldCalcs[PredWts],MATCH(CONCATENATE(G25,"B"),YieldCalcs[Code],0),1)),"",INDEX(YieldCalcs[PredWts],MATCH(CONCATENATE(G25,"B"),YieldCalcs[Code],0),1)) ->  | Q25: =IF(ISERROR(INDEX(YieldCalcs[PredWts],MATCH(CONCATENATE(G25,"Cart"),YieldCalcs[Code],0),1)),"",INDEX(YieldCalcs[PredWts],MATCH(CONCATENATE(G25,"Cart"),YieldCalcs[Code],0),1)) ->  | R25: =IF(ISERROR(INDEX(YieldCalcs[PredWts],MATCH(CONCATENATE(G25,"Pad"),YieldCalcs[Code],0),1)),"",INDEX(YieldCalcs[PredWts],MATCH(CONCATENATE(G25,"Pad"),YieldCalcs[Code],0),1)) ->  | S25: =IF(ISERROR(INDEX(YieldCalcs[PredWts],MATCH(CONCATENATE(G25,"I"),YieldCalcs[Code],0),1)),"",INDEX(YieldCalcs[PredWts],MATCH(CONCATENATE(G25,"I"),YieldCalcs[Code],0),1)) ->  | T25: =IF(ISERROR(INDEX(YieldCalcs[PredWts],MATCH(CONCATENATE(G25,"Skirt"),YieldCalcs[Code],0),1)),"",INDEX(YieldCalcs[PredWts],MATCH(CONCATENATE(G25,"Skirt"),YieldCalcs[Code],0),1)) ->  | U25: =IF(ISERROR(INDEX(YieldCalcs[PredWts],MATCH(CONCATENATE(G25,"RibEnds"),YieldCalcs[Code],0),1)),"",INDEX(YieldCalcs[PredWts],MATCH(CONCATENATE(G25,"RibEnds"),YieldCalcs[Code],0),1)) ->  | V25: =IF(ISERROR(INDEX(YieldCalcs[SalePrice],MATCH(G25,YieldCalcs[Code],0),1)),"",INDEX(YieldCalcs[SalePrice],MATCH(G25,YieldCalcs[Code],0),1)) ->  | W25: =IF(ISERROR(INDEX(YieldCalcs[CutValue],MATCH(G25,YieldCalcs[Code],0),1)),"",INDEX(YieldCalcs[CutValue],MATCH(G25,YieldCalcs[Code],0),1)) ->  | X25: =IF(ISERROR(INDEX(YieldCalcs[GM$],MATCH(G25,YieldCalcs[Code],0),1)),"",INDEX(YieldCalcs[GM$],MATCH(G25,YieldCalcs[Code],0),1)) ->  | Y25: =IF(ISERROR(INDEX(YieldCalcs[GM%],MATCH(G25,YieldCalcs[Code],0),1)),"",INDEX(YieldCalcs[GM%],MATCH(G25,YieldCalcs[Code],0),1)) ->  | Z25: =IF(ISERROR(INDEX(YieldCalcs[TGM%],MATCH(G25,YieldCalcs[Code],0),1)),"",INDEX(YieldCalcs[TGM%],MATCH(G25,YieldCalcs[Code],0),1)) ->  | AA25: =IF(ISERROR(INDEX(YieldCalcs[TSalePrice],MATCH(G25,YieldCalcs[Code],0),1)),"",INDEX(YieldCalcs[TSalePrice],MATCH(G25,YieldCalcs[Code],0),1)) ->  | AB25: =IF(ISNUMBER(INDEX(YieldCalcs[TotCostsPerKg],MATCH(G25,YieldCalcs[Code],0),1)),INDEX(YieldCalcs[TotCostsPerKg],MATCH(G25,YieldCalcs[Code],0),1),"") ->  | AC25: =IF(ISERROR(INDEX(YieldCalcs[PreBoneCperkg],MATCH(G25,YieldCalcs[Code],0),1)),"",INDEX(YieldCalcs[PreBoneCperkg],MATCH(G25,YieldCalcs[Code],0),1)) ->  | AD25: =IF(ISERROR(INDEX(YieldCalcs[FixBoneCostperkg],MATCH(G25,YieldCalcs[Code],0),1)),"",INDEX(YieldCalcs[FixBoneCostperkg],MATCH(G25,YieldCalcs[Code],0),1)) ->  | AE25: =IF(ISERROR(INDEX(YieldCalcs[BoningCost],MATCH(G25,YieldCalcs[Code],0),1)),"",INDEX(YieldCalcs[BoningCost],MATCH(G25,YieldCalcs[Code],0),1)) ->  | AF25: =IF(ISNUMBER(INDEX(YieldCalcs[TotCosts],MATCH(G25,YieldCalcs[Code],0),1)),INDEX(YieldCalcs[TotCosts],MATCH(G25,YieldCalcs[Code],0),1),"") ->  | AG25: =IF(ISERROR(INDEX(YieldCalcs[BuyInPrice],MATCH(G25,YieldCalcs[Code],0),1)),"",INDEX(YieldCalcs[BuyInPrice],MATCH(G25,YieldCalcs[Code],0),1)) -> 
B27: Silverside | E27: Outside Flat | F27: =IF(ISERROR(INDEX(YieldCalcs[Code],MATCH(E27,YieldCalcs[CutName],0),1)),"",INDEX(YieldCalcs[HAM No],MATCH(E27,YieldCalcs[CutName],0),1)) -> 2050 | G27: =IF(ISERROR(INDEX(YieldCalcs[Code],MATCH(E27,YieldCalcs[CutName],0),1)),"",INDEX(YieldCalcs[Code],MATCH(E27,YieldCalcs[CutName],0),1)) -> HQ06.3 | H27: =IF(ISNA(MATCH(E27,YieldCalcs[CutName],0)),"",MATCH(E27,YieldCalcs[CutName],0)) -> 293 | I27: =IF(ISERROR(INDEX(YieldCalcs[PredWts],MATCH(G27,YieldCalcs[Code],0),1)),"",INDEX(YieldCalcs[PredWts],MATCH(G27,YieldCalcs[Code],0),1)) -> 15.86 | J27: =IF(ISERROR(INDEX(YieldCalcs[PredWts],MATCH(CONCATENATE(G27,"LT"),YieldCalcs[Code],0),1)),"",INDEX(YieldCalcs[PredWts],MATCH(CONCATENATE(G27,"LT"),YieldCalcs[Code],0),1)) -> 2.42 | K27: =IF(ISERROR(INDEX(YieldCalcs[PredWts],MATCH(CONCATENATE(G27,"LT65"),YieldCalcs[Code],0),1)),"",INDEX(YieldCalcs[PredWts],MATCH(CONCATENATE(G27,"LT65"),YieldCalcs[Code],0),1)) -> 0.55 | L27: =IF(ISERROR(INDEX(YieldCalcs[PredWts],MATCH(CONCATENATE(G27,"LT75"),YieldCalcs[Code],0),1)),"",INDEX(YieldCalcs[PredWts],MATCH(CONCATENATE(G27,"LT75"),YieldCalcs[Code],0),1)) -> 1.71 | M27: =IF(ISERROR(INDEX(YieldCalcs[PredWts],MATCH(CONCATENATE(G27,"LT85"),YieldCalcs[Code],0),1)),"",INDEX(YieldCalcs[PredWts],MATCH(CONCATENATE(G27,"LT85"),YieldCalcs[Code],0),1)) -> 0.16 | N27: =IF(ISERROR(INDEX(YieldCalcs[PredWts],MATCH(CONCATENATE(G27,"LT95"),YieldCalcs[Code],0),1)),"",INDEX(YieldCalcs[PredWts],MATCH(CONCATENATE(G27,"LT95"),YieldCalcs[Code],0),1)) ->  | O27: =IF(ISERROR(INDEX(YieldCalcs[PredWts],MATCH(CONCATENATE(G27,"F"),YieldCalcs[Code],0),1)),"",INDEX(YieldCalcs[PredWts],MATCH(CONCATENATE(G27,"F"),YieldCalcs[Code],0),1)) -> 4.85 | P27: =IF(ISERROR(INDEX(YieldCalcs[PredWts],MATCH(CONCATENATE(G27,"B"),YieldCalcs[Code],0),1)),"",INDEX(YieldCalcs[PredWts],MATCH(CONCATENATE(G27,"B"),YieldCalcs[Code],0),1)) -> 0.11 | Q27: =IF(ISERROR(INDEX(YieldCalcs[PredWts],MATCH(CONCATENATE(G27,"Cart"),YieldCalcs[Code],0),1)),"",INDEX(YieldCalcs[PredWts],MATCH(CONCATENATE(G27,"Cart"),YieldCalcs[Code],0),1)) ->  | R27: =IF(ISERROR(INDEX(YieldCalcs[PredWts],MATCH(CONCATENATE(G27,"Pad"),YieldCalcs[Code],0),1)),"",INDEX(YieldCalcs[PredWts],MATCH(CONCATENATE(G27,"Pad"),YieldCalcs[Code],0),1)) ->  | S27: =IF(ISERROR(INDEX(YieldCalcs[PredWts],MATCH(CONCATENATE(G27,"I"),YieldCalcs[Code],0),1)),"",INDEX(YieldCalcs[PredWts],MATCH(CONCATENATE(G27,"I"),YieldCalcs[Code],0),1)) ->  | T27: =IF(ISERROR(INDEX(YieldCalcs[PredWts],MATCH(CONCATENATE(G27,"Skirt"),YieldCalcs[Code],0),1)),"",INDEX(YieldCalcs[PredWts],MATCH(CONCATENATE(G27,"Skirt"),YieldCalcs[Code],0),1)) ->  | U27: =IF(ISERROR(INDEX(YieldCalcs[PredWts],MATCH(CONCATENATE(G27,"RibEnds"),YieldCalcs[Code],0),1)),"",INDEX(YieldCalcs[PredWts],MATCH(CONCATENATE(G27,"RibEnds"),YieldCalcs[Code],0),1)) ->  | V27: =IF(ISERROR(INDEX(YieldCalcs[SalePrice],MATCH(G27,YieldCalcs[Code],0),1)),"",INDEX(YieldCalcs[SalePrice],MATCH(G27,YieldCalcs[Code],0),1)) -> 5.32 | W27: =IF(ISERROR(INDEX(YieldCalcs[CutValue],MATCH(G27,YieldCalcs[Code],0),1)),"",INDEX(YieldCalcs[CutValue],MATCH(G27,YieldCalcs[Code],0),1)) -> 84.3752 | X27: =IF(ISERROR(INDEX(YieldCalcs[GM$],MATCH(G27,YieldCalcs[Code],0),1)),"",INDEX(YieldCalcs[GM$],MATCH(G27,YieldCalcs[Code],0),1)) -> 11.38803664 | Y27: =IF(ISERROR(INDEX(YieldCalcs[GM%],MATCH(G27,YieldCalcs[Code],0),1)),"",INDEX(YieldCalcs[GM%],MATCH(G27,YieldCalcs[Code],0),1)) -> 0.1349690033 | Z27: =IF(ISERROR(INDEX(YieldCalcs[TGM%],MATCH(G27,YieldCalcs[Code],0),1)),"",INDEX(YieldCalcs[TGM%],MATCH(G27,YieldCalcs[Code],0),1)) -> 0.081 | AA27: =IF(ISERROR(INDEX(YieldCalcs[TSalePrice],MATCH(G27,YieldCalcs[Code],0),1)),"",INDEX(YieldCalcs[TSalePrice],MATCH(G27,YieldCalcs[Code],0),1)) -> 5.007578784 | AB27: =IF(ISNUMBER(INDEX(YieldCalcs[TotCostsPerKg],MATCH(G27,YieldCalcs[Code],0),1)),INDEX(YieldCalcs[TotCostsPerKg],MATCH(G27,YieldCalcs[Code],0),1),"") -> 4.601964903 | AC27: =IF(ISERROR(INDEX(YieldCalcs[PreBoneCperkg],MATCH(G27,YieldCalcs[Code],0),1)),"",INDEX(YieldCalcs[PreBoneCperkg],MATCH(G27,YieldCalcs[Code],0),1)) -> 4.099425037 | AD27: =IF(ISERROR(INDEX(YieldCalcs[FixBoneCostperkg],MATCH(G27,YieldCalcs[Code],0),1)),"",INDEX(YieldCalcs[FixBoneCostperkg],MATCH(G27,YieldCalcs[Code],0),1)) -> 0.04253986548 | AE27: =IF(ISERROR(INDEX(YieldCalcs[BoningCost],MATCH(G27,YieldCalcs[Code],0),1)),"",INDEX(YieldCalcs[BoningCost],MATCH(G27,YieldCalcs[Code],0),1)) -> 0.46 | AF27: =IF(ISNUMBER(INDEX(YieldCalcs[TotCosts],MATCH(G27,YieldCalcs[Code],0),1)),INDEX(YieldCalcs[TotCosts],MATCH(G27,YieldCalcs[Code],0),1),"") -> 72.98716336 | AG27: =IF(ISERROR(INDEX(YieldCalcs[BuyInPrice],MATCH(G27,YieldCalcs[Code],0),1)),"",INDEX(YieldCalcs[BuyInPrice],MATCH(G27,YieldCalcs[Code],0),1)) -> 0
C28: Silverside | E28: Eye Round 10mm | F28: =IF(ISERROR(INDEX(YieldCalcs[Code],MATCH(E28,YieldCalcs[CutName],0),1)),"",INDEX(YieldCalcs[HAM No],MATCH(E28,YieldCalcs[CutName],0),1)) -> 2040 | G28: =IF(ISERROR(INDEX(YieldCalcs[Code],MATCH(E28,YieldCalcs[CutName],0),1)),"",INDEX(YieldCalcs[Code],MATCH(E28,YieldCalcs[CutName],0),1)) -> HQ06.4 | H28: =IF(ISNA(MATCH(E28,YieldCalcs[CutName],0)),"",MATCH(E28,YieldCalcs[CutName],0)) -> 294 | I28: =IF(ISERROR(INDEX(YieldCalcs[PredWts],MATCH(G28,YieldCalcs[Code],0),1)),"",INDEX(YieldCalcs[PredWts],MATCH(G28,YieldCalcs[Code],0),1)) -> 6.17 | J28: =IF(ISERROR(INDEX(YieldCalcs[PredWts],MATCH(CONCATENATE(G28,"LT"),YieldCalcs[Code],0),1)),"",INDEX(YieldCalcs[PredWts],MATCH(CONCATENATE(G28,"LT"),YieldCalcs[Code],0),1)) ->  | K28: =IF(ISERROR(INDEX(YieldCalcs[PredWts],MATCH(CONCATENATE(G28,"LT65"),YieldCalcs[Code],0),1)),"",INDEX(YieldCalcs[PredWts],MATCH(CONCATENATE(G28,"LT65"),YieldCalcs[Code],0),1)) ->  | L28: =IF(ISERROR(INDEX(YieldCalcs[PredWts],MATCH(CONCATENATE(G28,"LT75"),YieldCalcs[Code],0),1)),"",INDEX(YieldCalcs[PredWts],MATCH(CONCATENATE(G28,"LT75"),YieldCalcs[Code],0),1)) ->  | M28: =IF(ISERROR(INDEX(YieldCalcs[PredWts],MATCH(CONCATENATE(G28,"LT85"),YieldCalcs[Code],0),1)),"",INDEX(YieldCalcs[PredWts],MATCH(CONCATENATE(G28,"LT85"),YieldCalcs[Code],0),1)) ->  | N28: =IF(ISERROR(INDEX(YieldCalcs[PredWts],MATCH(CONCATENATE(G28,"LT95"),YieldCalcs[Code],0),1)),"",INDEX(YieldCalcs[PredWts],MATCH(CONCATENATE(G28,"LT95"),YieldCalcs[Code],0),1)) ->  | O28: =IF(ISERROR(INDEX(YieldCalcs[PredWts],MATCH(CONCATENATE(G28,"F"),YieldCalcs[Code],0),1)),"",INDEX(YieldCalcs[PredWts],MATCH(CONCATENATE(G28,"F"),YieldCalcs[Code],0),1)) ->  | P28: =IF(ISERROR(INDEX(YieldCalcs[PredWts],MATCH(CONCATENATE(G28,"B"),YieldCalcs[Code],0),1)),"",INDEX(YieldCalcs[PredWts],MATCH(CONCATENATE(G28,"B"),YieldCalcs[Code],0),1)) ->  | Q28: =IF(ISERROR(INDEX(YieldCalcs[PredWts],MATCH(CONCATENATE(G28,"Cart"),YieldCalcs[Code],0),1)),"",INDEX(YieldCalcs[PredWts],MATCH(CONCATENATE(G28,"Cart"),YieldCalcs[Code],0),1)) ->  | R28: =IF(ISERROR(INDEX(YieldCalcs[PredWts],MATCH(CONCATENATE(G28,"Pad"),YieldCalcs[Code],0),1)),"",INDEX(YieldCalcs[PredWts],MATCH(CONCATENATE(G28,"Pad"),YieldCalcs[Code],0),1)) ->  | S28: =IF(ISERROR(INDEX(YieldCalcs[PredWts],MATCH(CONCATENATE(G28,"I"),YieldCalcs[Code],0),1)),"",INDEX(YieldCalcs[PredWts],MATCH(CONCATENATE(G28,"I"),YieldCalcs[Code],0),1)) ->  | T28: =IF(ISERROR(INDEX(YieldCalcs[PredWts],MATCH(CONCATENATE(G28,"Skirt"),YieldCalcs[Code],0),1)),"",INDEX(YieldCalcs[PredWts],MATCH(CONCATENATE(G28,"Skirt"),YieldCalcs[Code],0),1)) ->  | U28: =IF(ISERROR(INDEX(YieldCalcs[PredWts],MATCH(CONCATENATE(G28,"RibEnds"),YieldCalcs[Code],0),1)),"",INDEX(YieldCalcs[PredWts],MATCH(CONCATENATE(G28,"RibEnds"),YieldCalcs[Code],0),1)) ->  | V28: =IF(ISERROR(INDEX(YieldCalcs[SalePrice],MATCH(G28,YieldCalcs[Code],0),1)),"",INDEX(YieldCalcs[SalePrice],MATCH(G28,YieldCalcs[Code],0),1)) -> 5.33 | W28: =IF(ISERROR(INDEX(YieldCalcs[CutValue],MATCH(G28,YieldCalcs[Code],0),1)),"",INDEX(YieldCalcs[CutValue],MATCH(G28,YieldCalcs[Code],0),1)) -> 32.8861 | X28: =IF(ISERROR(INDEX(YieldCalcs[GM$],MATCH(G28,YieldCalcs[Code],0),1)),"",INDEX(YieldCalcs[GM$],MATCH(G28,YieldCalcs[Code],0),1)) -> 4.430276551 | Y28: =IF(ISERROR(INDEX(YieldCalcs[GM%],MATCH(G28,YieldCalcs[Code],0),1)),"",INDEX(YieldCalcs[GM%],MATCH(G28,YieldCalcs[Code],0),1)) -> 0.1347157781 | Z28: =IF(ISERROR(INDEX(YieldCalcs[TGM%],MATCH(G28,YieldCalcs[Code],0),1)),"",INDEX(YieldCalcs[TGM%],MATCH(G28,YieldCalcs[Code],0),1)) -> 0.082 | AA28: =IF(ISERROR(INDEX(YieldCalcs[TSalePrice],MATCH(G28,YieldCalcs[Code],0),1)),"",INDEX(YieldCalcs[TSalePrice],MATCH(G28,YieldCalcs[Code],0),1)) -> 5.023926909 | AB28: =IF(ISNUMBER(INDEX(YieldCalcs[TotCostsPerKg],MATCH(G28,YieldCalcs[Code],0),1)),INDEX(YieldCalcs[TotCostsPerKg],MATCH(G28,YieldCalcs[Code],0),1),"") -> 4.611964903 | AC28: =IF(ISERROR(INDEX(YieldCalcs[PreBoneCperkg],MATCH(G28,YieldCalcs[Code],0),1)),"",INDEX(YieldCalcs[PreBoneCperkg],MATCH(G28,YieldCalcs[Code],0),1)) -> 4.099425037 | AD28: =IF(ISERROR(INDEX(YieldCalcs[FixBoneCostperkg],MATCH(G28,YieldCalcs[Code],0),1)),"",INDEX(YieldCalcs[FixBoneCostperkg],MATCH(G28,YieldCalcs[Code],0),1)) -> 0.04253986548 | AE28: =IF(ISERROR(INDEX(YieldCalcs[BoningCost],MATCH(G28,YieldCalcs[Code],0),1)),"",INDEX(YieldCalcs[BoningCost],MATCH(G28,YieldCalcs[Code],0),1)) -> 0.47 | AF28: =IF(ISNUMBER(INDEX(YieldCalcs[TotCosts],MATCH(G28,YieldCalcs[Code],0),1)),INDEX(YieldCalcs[TotCosts],MATCH(G28,YieldCalcs[Code],0),1),"") -> 28.45582345 | AG28: =IF(ISERROR(INDEX(YieldCalcs[BuyInPrice],MATCH(G28,YieldCalcs[Code],0),1)),"",INDEX(YieldCalcs[BuyInPrice],MATCH(G28,YieldCalcs[Code],0),1)) -> 0
A29: REC% | B29: =SUM(I27:J33,O27:U33)/INDEX(YieldCalcs[PredWts],MATCH("HQ06.0",YieldCalcs[Code],0),1) -> 0.9994419643 | E29: HQ Shank Small Muscle | F29: =IF(ISERROR(INDEX(YieldCalcs[Code],MATCH(E29,YieldCalcs[CutName],0),1)),"",INDEX(YieldCalcs[HAM No],MATCH(E29,YieldCalcs[CutName],0),1)) -> 2365 | G29: =IF(ISERROR(INDEX(YieldCalcs[Code],MATCH(E29,YieldCalcs[CutName],0),1)),"",INDEX(YieldCalcs[Code],MATCH(E29,YieldCalcs[CutName],0),1)) -> HQ06.2FINAL | H29: =IF(ISNA(MATCH(E29,YieldCalcs[CutName],0)),"",MATCH(E29,YieldCalcs[CutName],0)) -> 285 | I29: =IF(ISERROR(INDEX(YieldCalcs[PredWts],MATCH(G29,YieldCalcs[Code],0),1)),"",INDEX(YieldCalcs[PredWts],MATCH(G29,YieldCalcs[Code],0),1)) -> 1 | J29: =IF(ISERROR(INDEX(YieldCalcs[PredWts],MATCH(CONCATENATE(G29,"LT"),YieldCalcs[Code],0),1)),"",INDEX(YieldCalcs[PredWts],MATCH(CONCATENATE(G29,"LT"),YieldCalcs[Code],0),1)) ->  | K29: =IF(ISERROR(INDEX(YieldCalcs[PredWts],MATCH(CONCATENATE(G29,"LT65"),YieldCalcs[Code],0),1)),"",INDEX(YieldCalcs[PredWts],MATCH(CONCATENATE(G29,"LT65"),YieldCalcs[Code],0),1)) ->  | L29: =IF(ISERROR(INDEX(YieldCalcs[PredWts],MATCH(CONCATENATE(G29,"LT75"),YieldCalcs[Code],0),1)),"",INDEX(YieldCalcs[PredWts],MATCH(CONCATENATE(G29,"LT75"),YieldCalcs[Code],0),1)) ->  | M29: =IF(ISERROR(INDEX(YieldCalcs[PredWts],MATCH(CONCATENATE(G29,"LT85"),YieldCalcs[Code],0),1)),"",INDEX(YieldCalcs[PredWts],MATCH(CONCATENATE(G29,"LT85"),YieldCalcs[Code],0),1)) ->  | N29: =IF(ISERROR(INDEX(YieldCalcs[PredWts],MATCH(CONCATENATE(G29,"LT95"),YieldCalcs[Code],0),1)),"",INDEX(YieldCalcs[PredWts],MATCH(CONCATENATE(G29,"LT95"),YieldCalcs[Code],0),1)) ->  | O29: =IF(ISERROR(INDEX(YieldCalcs[PredWts],MATCH(CONCATENATE(G29,"F"),YieldCalcs[Code],0),1)),"",INDEX(YieldCalcs[PredWts],MATCH(CONCATENATE(G29,"F"),YieldCalcs[Code],0),1)) ->  | P29: =IF(ISERROR(INDEX(YieldCalcs[PredWts],MATCH(CONCATENATE(G29,"B"),YieldCalcs[Code],0),1)),"",INDEX(YieldCalcs[PredWts],MATCH(CONCATENATE(G29,"B"),YieldCalcs[Code],0),1)) ->  | Q29: =IF(ISERROR(INDEX(YieldCalcs[PredWts],MATCH(CONCATENATE(G29,"Cart"),YieldCalcs[Code],0),1)),"",INDEX(YieldCalcs[PredWts],MATCH(CONCATENATE(G29,"Cart"),YieldCalcs[Code],0),1)) ->  | R29: =IF(ISERROR(INDEX(YieldCalcs[PredWts],MATCH(CONCATENATE(G29,"Pad"),YieldCalcs[Code],0),1)),"",INDEX(YieldCalcs[PredWts],MATCH(CONCATENATE(G29,"Pad"),YieldCalcs[Code],0),1)) ->  | S29: =IF(ISERROR(INDEX(YieldCalcs[PredWts],MATCH(CONCATENATE(G29,"I"),YieldCalcs[Code],0),1)),"",INDEX(YieldCalcs[PredWts],MATCH(CONCATENATE(G29,"I"),YieldCalcs[Code],0),1)) ->  | T29: =IF(ISERROR(INDEX(YieldCalcs[PredWts],MATCH(CONCATENATE(G29,"Skirt"),YieldCalcs[Code],0),1)),"",INDEX(YieldCalcs[PredWts],MATCH(CONCATENATE(G29,"Skirt"),YieldCalcs[Code],0),1)) ->  | U29: =IF(ISERROR(INDEX(YieldCalcs[PredWts],MATCH(CONCATENATE(G29,"RibEnds"),YieldCalcs[Code],0),1)),"",INDEX(YieldCalcs[PredWts],MATCH(CONCATENATE(G29,"RibEnds"),YieldCalcs[Code],0),1)) ->  | V29: =IF(ISERROR(INDEX(YieldCalcs[SalePrice],MATCH(G29,YieldCalcs[Code],0),1)),"",INDEX(YieldCalcs[SalePrice],MATCH(G29,YieldCalcs[Code],0),1)) -> 5.78 | W29: =IF(ISERROR(INDEX(YieldCalcs[CutValue],MATCH(G29,YieldCalcs[Code],0),1)),"",INDEX(YieldCalcs[CutValue],MATCH(G29,YieldCalcs[Code],0),1)) -> 5.78 | X29: =IF(ISERROR(INDEX(YieldCalcs[GM$],MATCH(G29,YieldCalcs[Code],0),1)),"",INDEX(YieldCalcs[GM$],MATCH(G29,YieldCalcs[Code],0),1)) -> 0.884074649 | Y29: =IF(ISERROR(INDEX(YieldCalcs[GM%],MATCH(G29,YieldCalcs[Code],0),1)),"",INDEX(YieldCalcs[GM%],MATCH(G29,YieldCalcs[Code],0),1)) -> 0.1529540915 | Z29: =IF(ISERROR(INDEX(YieldCalcs[TGM%],MATCH(G29,YieldCalcs[Code],0),1)),"",INDEX(YieldCalcs[TGM%],MATCH(G29,YieldCalcs[Code],0),1)) -> 0.127 | AA29: =IF(ISERROR(INDEX(YieldCalcs[TSalePrice],MATCH(G29,YieldCalcs[Code],0),1)),"",INDEX(YieldCalcs[TSalePrice],MATCH(G29,YieldCalcs[Code],0),1)) -> 5.608161914 | AB29: =IF(ISNUMBER(INDEX(YieldCalcs[TotCostsPerKg],MATCH(G29,YieldCalcs[Code],0),1)),INDEX(YieldCalcs[TotCostsPerKg],MATCH(G29,YieldCalcs[Code],0),1),"") -> 4.895925351 | AC29: =IF(ISERROR(INDEX(YieldCalcs[PreBoneCperkg],MATCH(G29,YieldCalcs[Code],0),1)),"",INDEX(YieldCalcs[PreBoneCperkg],MATCH(G29,YieldCalcs[Code],0),1)) -> 3.935090787 | AD29: =IF(ISERROR(INDEX(YieldCalcs[FixBoneCostperkg],MATCH(G29,YieldCalcs[Code],0),1)),"",INDEX(YieldCalcs[FixBoneCostperkg],MATCH(G29,YieldCalcs[Code],0),1)) -> 0.04083456369 | AE29: =IF(ISERROR(INDEX(YieldCalcs[BoningCost],MATCH(G29,YieldCalcs[Code],0),1)),"",INDEX(YieldCalcs[BoningCost],MATCH(G29,YieldCalcs[Code],0),1)) -> 0.92 | AF29: =IF(ISNUMBER(INDEX(YieldCalcs[TotCosts],MATCH(G29,YieldCalcs[Code],0),1)),INDEX(YieldCalcs[TotCosts],MATCH(G29,YieldCalcs[Code],0),1),"") -> 4.895925351 | AG29: =IF(ISERROR(INDEX(YieldCalcs[BuyInPrice],MATCH(G29,YieldCalcs[Code],0),1)),"",INDEX(YieldCalcs[BuyInPrice],MATCH(G29,YieldCalcs[Code],0),1)) -> 0
E30: HQ Shank 90cl (S/S) | F30: =IF(ISERROR(INDEX(YieldCalcs[Code],MATCH(E30,YieldCalcs[CutName],0),1)),"",INDEX(YieldCalcs[HAM No],MATCH(E30,YieldCalcs[CutName],0),1)) -> 2360 | G30: =IF(ISERROR(INDEX(YieldCalcs[Code],MATCH(E30,YieldCalcs[CutName],0),1)),"",INDEX(YieldCalcs[Code],MATCH(E30,YieldCalcs[CutName],0),1)) -> HQ06.8FINAL | H30: =IF(ISNA(MATCH(E30,YieldCalcs[CutName],0)),"",MATCH(E30,YieldCalcs[CutName],0)) -> 286 | I30: =IF(ISERROR(INDEX(YieldCalcs[PredWts],MATCH(G30,YieldCalcs[Code],0),1)),"",INDEX(YieldCalcs[PredWts],MATCH(G30,YieldCalcs[Code],0),1)) -> 5.41 | J30: =IF(ISERROR(INDEX(YieldCalcs[PredWts],MATCH(CONCATENATE(G30,"LT"),YieldCalcs[Code],0),1)),"",INDEX(YieldCalcs[PredWts],MATCH(CONCATENATE(G30,"LT"),YieldCalcs[Code],0),1)) ->  | K30: =IF(ISERROR(INDEX(YieldCalcs[PredWts],MATCH(CONCATENATE(G30,"LT65"),YieldCalcs[Code],0),1)),"",INDEX(YieldCalcs[PredWts],MATCH(CONCATENATE(G30,"LT65"),YieldCalcs[Code],0),1)) ->  | L30: =IF(ISERROR(INDEX(YieldCalcs[PredWts],MATCH(CONCATENATE(G30,"LT75"),YieldCalcs[Code],0),1)),"",INDEX(YieldCalcs[PredWts],MATCH(CONCATENATE(G30,"LT75"),YieldCalcs[Code],0),1)) ->  | M30: =IF(ISERROR(INDEX(YieldCalcs[PredWts],MATCH(CONCATENATE(G30,"LT85"),YieldCalcs[Code],0),1)),"",INDEX(YieldCalcs[PredWts],MATCH(CONCATENATE(G30,"LT85"),YieldCalcs[Code],0),1)) ->  | N30: =IF(ISERROR(INDEX(YieldCalcs[PredWts],MATCH(CONCATENATE(G30,"LT95"),YieldCalcs[Code],0),1)),"",INDEX(YieldCalcs[PredWts],MATCH(CONCATENATE(G30,"LT95"),YieldCalcs[Code],0),1)) ->  | O30: =IF(ISERROR(INDEX(YieldCalcs[PredWts],MATCH(CONCATENATE(G30,"F"),YieldCalcs[Code],0),1)),"",INDEX(YieldCalcs[PredWts],MATCH(CONCATENATE(G30,"F"),YieldCalcs[Code],0),1)) ->  | P30: =IF(ISERROR(INDEX(YieldCalcs[PredWts],MATCH(CONCATENATE(G30,"B"),YieldCalcs[Code],0),1)),"",INDEX(YieldCalcs[PredWts],MATCH(CONCATENATE(G30,"B"),YieldCalcs[Code],0),1)) ->  | Q30: =IF(ISERROR(INDEX(YieldCalcs[PredWts],MATCH(CONCATENATE(G30,"Cart"),YieldCalcs[Code],0),1)),"",INDEX(YieldCalcs[PredWts],MATCH(CONCATENATE(G30,"Cart"),YieldCalcs[Code],0),1)) ->  | R30: =IF(ISERROR(INDEX(YieldCalcs[PredWts],MATCH(CONCATENATE(G30,"Pad"),YieldCalcs[Code],0),1)),"",INDEX(YieldCalcs[PredWts],MATCH(CONCATENATE(G30,"Pad"),YieldCalcs[Code],0),1)) ->  | S30: =IF(ISERROR(INDEX(YieldCalcs[PredWts],MATCH(CONCATENATE(G30,"I"),YieldCalcs[Code],0),1)),"",INDEX(YieldCalcs[PredWts],MATCH(CONCATENATE(G30,"I"),YieldCalcs[Code],0),1)) ->  | T30: =IF(ISERROR(INDEX(YieldCalcs[PredWts],MATCH(CONCATENATE(G30,"Skirt"),YieldCalcs[Code],0),1)),"",INDEX(YieldCalcs[PredWts],MATCH(CONCATENATE(G30,"Skirt"),YieldCalcs[Code],0),1)) ->  | U30: =IF(ISERROR(INDEX(YieldCalcs[PredWts],MATCH(CONCATENATE(G30,"RibEnds"),YieldCalcs[Code],0),1)),"",INDEX(YieldCalcs[PredWts],MATCH(CONCATENATE(G30,"RibEnds"),YieldCalcs[Code],0),1)) ->  | V30: =IF(ISERROR(INDEX(YieldCalcs[SalePrice],MATCH(G30,YieldCalcs[Code],0),1)),"",INDEX(YieldCalcs[SalePrice],MATCH(G30,YieldCalcs[Code],0),1)) -> 5.79 | W30: =IF(ISERROR(INDEX(YieldCalcs[CutValue],MATCH(G30,YieldCalcs[Code],0),1)),"",INDEX(YieldCalcs[CutValue],MATCH(G30,YieldCalcs[Code],0),1)) -> 31.3239 | X30: =IF(ISERROR(INDEX(YieldCalcs[GM$],MATCH(G30,YieldCalcs[Code],0),1)),"",INDEX(YieldCalcs[GM$],MATCH(G30,YieldCalcs[Code],0),1)) -> 4.782843851 | Y30: =IF(ISERROR(INDEX(YieldCalcs[GM%],MATCH(G30,YieldCalcs[Code],0),1)),"",INDEX(YieldCalcs[GM%],MATCH(G30,YieldCalcs[Code],0),1)) -> 0.1526899221 | Z30: =IF(ISERROR(INDEX(YieldCalcs[TGM%],MATCH(G30,YieldCalcs[Code],0),1)),"",INDEX(YieldCalcs[TGM%],MATCH(G30,YieldCalcs[Code],0),1)) -> 0.128 | AA30: =IF(ISERROR(INDEX(YieldCalcs[TSalePrice],MATCH(G30,YieldCalcs[Code],0),1)),"",INDEX(YieldCalcs[TSalePrice],MATCH(G30,YieldCalcs[Code],0),1)) -> 5.626061182 | AB30: =IF(ISNUMBER(INDEX(YieldCalcs[TotCostsPerKg],MATCH(G30,YieldCalcs[Code],0),1)),INDEX(YieldCalcs[TotCostsPerKg],MATCH(G30,YieldCalcs[Code],0),1),"") -> 4.905925351 | AC30: =IF(ISERROR(INDEX(YieldCalcs[PreBoneCperkg],MATCH(G30,YieldCalcs[Code],0),1)),"",INDEX(YieldCalcs[PreBoneCperkg],MATCH(G30,YieldCalcs[Code],0),1)) -> 3.935090787 | AD30: =IF(ISERROR(INDEX(YieldCalcs[FixBoneCostperkg],MATCH(G30,YieldCalcs[Code],0),1)),"",INDEX(YieldCalcs[FixBoneCostperkg],MATCH(G30,YieldCalcs[Code],0),1)) -> 0.04083456369 | AE30: =IF(ISERROR(INDEX(YieldCalcs[BoningCost],MATCH(G30,YieldCalcs[Code],0),1)),"",INDEX(YieldCalcs[BoningCost],MATCH(G30,YieldCalcs[Code],0),1)) -> 0.93 | AF30: =IF(ISNUMBER(INDEX(YieldCalcs[TotCosts],MATCH(G30,YieldCalcs[Code],0),1)),INDEX(YieldCalcs[TotCosts],MATCH(G30,YieldCalcs[Code],0),1),"") -> 26.54105615 | AG30: =IF(ISERROR(INDEX(YieldCalcs[BuyInPrice],MATCH(G30,YieldCalcs[Code],0),1)),"",INDEX(YieldCalcs[BuyInPrice],MATCH(G30,YieldCalcs[Code],0),1)) -> 0
F31: =IF(ISERROR(INDEX(YieldCalcs[Code],MATCH(E31,YieldCalcs[CutName],0),1)),"",INDEX(YieldCalcs[HAM No],MATCH(E31,YieldCalcs[CutName],0),1)) ->  | G31: =IF(ISERROR(INDEX(YieldCalcs[Code],MATCH(E31,YieldCalcs[CutName],0),1)),"",INDEX(YieldCalcs[Code],MATCH(E31,YieldCalcs[CutName],0),1)) ->  | H31: =IF(ISNA(MATCH(E31,YieldCalcs[CutName],0)),"",MATCH(E31,YieldCalcs[CutName],0)) ->  | I31: =IF(ISERROR(INDEX(YieldCalcs[PredWts],MATCH(G31,YieldCalcs[Code],0),1)),"",INDEX(YieldCalcs[PredWts],MATCH(G31,YieldCalcs[Code],0),1)) ->  | J31: =IF(ISERROR(INDEX(YieldCalcs[PredWts],MATCH(CONCATENATE(G31,"LT"),YieldCalcs[Code],0),1)),"",INDEX(YieldCalcs[PredWts],MATCH(CONCATENATE(G31,"LT"),YieldCalcs[Code],0),1)) ->  | K31: =IF(ISERROR(INDEX(YieldCalcs[PredWts],MATCH(CONCATENATE(G31,"LT65"),YieldCalcs[Code],0),1)),"",INDEX(YieldCalcs[PredWts],MATCH(CONCATENATE(G31,"LT65"),YieldCalcs[Code],0),1)) ->  | L31: =IF(ISERROR(INDEX(YieldCalcs[PredWts],MATCH(CONCATENATE(G31,"LT75"),YieldCalcs[Code],0),1)),"",INDEX(YieldCalcs[PredWts],MATCH(CONCATENATE(G31,"LT75"),YieldCalcs[Code],0),1)) ->  | M31: =IF(ISERROR(INDEX(YieldCalcs[PredWts],MATCH(CONCATENATE(G31,"LT85"),YieldCalcs[Code],0),1)),"",INDEX(YieldCalcs[PredWts],MATCH(CONCATENATE(G31,"LT85"),YieldCalcs[Code],0),1)) ->  | N31: =IF(ISERROR(INDEX(YieldCalcs[PredWts],MATCH(CONCATENATE(G31,"LT95"),YieldCalcs[Code],0),1)),"",INDEX(YieldCalcs[PredWts],MATCH(CONCATENATE(G31,"LT95"),YieldCalcs[Code],0),1)) ->  | O31: =IF(ISERROR(INDEX(YieldCalcs[PredWts],MATCH(CONCATENATE(G31,"F"),YieldCalcs[Code],0),1)),"",INDEX(YieldCalcs[PredWts],MATCH(CONCATENATE(G31,"F"),YieldCalcs[Code],0),1)) ->  | P31: =IF(ISERROR(INDEX(YieldCalcs[PredWts],MATCH(CONCATENATE(G31,"B"),YieldCalcs[Code],0),1)),"",INDEX(YieldCalcs[PredWts],MATCH(CONCATENATE(G31,"B"),YieldCalcs[Code],0),1)) ->  | Q31: =IF(ISERROR(INDEX(YieldCalcs[PredWts],MATCH(CONCATENATE(G31,"Cart"),YieldCalcs[Code],0),1)),"",INDEX(YieldCalcs[PredWts],MATCH(CONCATENATE(G31,"Cart"),YieldCalcs[Code],0),1)) ->  | R31: =IF(ISERROR(INDEX(YieldCalcs[PredWts],MATCH(CONCATENATE(G31,"Pad"),YieldCalcs[Code],0),1)),"",INDEX(YieldCalcs[PredWts],MATCH(CONCATENATE(G31,"Pad"),YieldCalcs[Code],0),1)) ->  | S31: =IF(ISERROR(INDEX(YieldCalcs[PredWts],MATCH(CONCATENATE(G31,"I"),YieldCalcs[Code],0),1)),"",INDEX(YieldCalcs[PredWts],MATCH(CONCATENATE(G31,"I"),YieldCalcs[Code],0),1)) ->  | T31: =IF(ISERROR(INDEX(YieldCalcs[PredWts],MATCH(CONCATENATE(G31,"Skirt"),YieldCalcs[Code],0),1)),"",INDEX(YieldCalcs[PredWts],MATCH(CONCATENATE(G31,"Skirt"),YieldCalcs[Code],0),1)) ->  | U31: =IF(ISERROR(INDEX(YieldCalcs[PredWts],MATCH(CONCATENATE(G31,"RibEnds"),YieldCalcs[Code],0),1)),"",INDEX(YieldCalcs[PredWts],MATCH(CONCATENATE(G31,"RibEnds"),YieldCalcs[Code],0),1)) ->  | V31: =IF(ISERROR(INDEX(YieldCalcs[SalePrice],MATCH(G31,YieldCalcs[Code],0),1)),"",INDEX(YieldCalcs[SalePrice],MATCH(G31,YieldCalcs[Code],0),1)) ->  | W31: =IF(ISERROR(INDEX(YieldCalcs[CutValue],MATCH(G31,YieldCalcs[Code],0),1)),"",INDEX(YieldCalcs[CutValue],MATCH(G31,YieldCalcs[Code],0),1)) ->  | X31: =IF(ISERROR(INDEX(YieldCalcs[GM$],MATCH(G31,YieldCalcs[Code],0),1)),"",INDEX(YieldCalcs[GM$],MATCH(G31,YieldCalcs[Code],0),1)) ->  | Y31: =IF(ISERROR(INDEX(YieldCalcs[GM%],MATCH(G31,YieldCalcs[Code],0),1)),"",INDEX(YieldCalcs[GM%],MATCH(G31,YieldCalcs[Code],0),1)) ->  | Z31: =IF(ISERROR(INDEX(YieldCalcs[TGM%],MATCH(G31,YieldCalcs[Code],0),1)),"",INDEX(YieldCalcs[TGM%],MATCH(G31,YieldCalcs[Code],0),1)) ->  | AA31: =IF(ISERROR(INDEX(YieldCalcs[TSalePrice],MATCH(G31,YieldCalcs[Code],0),1)),"",INDEX(YieldCalcs[TSalePrice],MATCH(G31,YieldCalcs[Code],0),1)) ->  | AB31: =IF(ISNUMBER(INDEX(YieldCalcs[TotCostsPerKg],MATCH(G31,YieldCalcs[Code],0),1)),INDEX(YieldCalcs[TotCostsPerKg],MATCH(G31,YieldCalcs[Code],0),1),"") ->  | AC31: =IF(ISERROR(INDEX(YieldCalcs[PreBoneCperkg],MATCH(G31,YieldCalcs[Code],0),1)),"",INDEX(YieldCalcs[PreBoneCperkg],MATCH(G31,YieldCalcs[Code],0),1)) ->  | AD31: =IF(ISERROR(INDEX(YieldCalcs[FixBoneCostperkg],MATCH(G31,YieldCalcs[Code],0),1)),"",INDEX(YieldCalcs[FixBoneCostperkg],MATCH(G31,YieldCalcs[Code],0),1)) ->  | AE31: =IF(ISERROR(INDEX(YieldCalcs[BoningCost],MATCH(G31,YieldCalcs[Code],0),1)),"",INDEX(YieldCalcs[BoningCost],MATCH(G31,YieldCalcs[Code],0),1)) ->  | AF31: =IF(ISNUMBER(INDEX(YieldCalcs[TotCosts],MATCH(G31,YieldCalcs[Code],0),1)),INDEX(YieldCalcs[TotCosts],MATCH(G31,YieldCalcs[Code],0),1),"") ->  | AG31: =IF(ISERROR(INDEX(YieldCalcs[BuyInPrice],MATCH(G31,YieldCalcs[Code],0),1)),"",INDEX(YieldCalcs[BuyInPrice],MATCH(G31,YieldCalcs[Code],0),1)) -> 
F32: =IF(ISERROR(INDEX(YieldCalcs[Code],MATCH(E32,YieldCalcs[CutName],0),1)),"",INDEX(YieldCalcs[HAM No],MATCH(E32,YieldCalcs[CutName],0),1)) ->  | G32: =IF(ISERROR(INDEX(YieldCalcs[Code],MATCH(E32,YieldCalcs[CutName],0),1)),"",INDEX(YieldCalcs[Code],MATCH(E32,YieldCalcs[CutName],0),1)) ->  | H32: =IF(ISNA(MATCH(E32,YieldCalcs[CutName],0)),"",MATCH(E32,YieldCalcs[CutName],0)) ->  | I32: =IF(ISERROR(INDEX(YieldCalcs[PredWts],MATCH(G32,YieldCalcs[Code],0),1)),"",INDEX(YieldCalcs[PredWts],MATCH(G32,YieldCalcs[Code],0),1)) ->  | J32: =IF(ISERROR(INDEX(YieldCalcs[PredWts],MATCH(CONCATENATE(G32,"LT"),YieldCalcs[Code],0),1)),"",INDEX(YieldCalcs[PredWts],MATCH(CONCATENATE(G32,"LT"),YieldCalcs[Code],0),1)) ->  | K32: =IF(ISERROR(INDEX(YieldCalcs[PredWts],MATCH(CONCATENATE(G32,"LT65"),YieldCalcs[Code],0),1)),"",INDEX(YieldCalcs[PredWts],MATCH(CONCATENATE(G32,"LT65"),YieldCalcs[Code],0),1)) ->  | L32: =IF(ISERROR(INDEX(YieldCalcs[PredWts],MATCH(CONCATENATE(G32,"LT75"),YieldCalcs[Code],0),1)),"",INDEX(YieldCalcs[PredWts],MATCH(CONCATENATE(G32,"LT75"),YieldCalcs[Code],0),1)) ->  | M32: =IF(ISERROR(INDEX(YieldCalcs[PredWts],MATCH(CONCATENATE(G32,"LT85"),YieldCalcs[Code],0),1)),"",INDEX(YieldCalcs[PredWts],MATCH(CONCATENATE(G32,"LT85"),YieldCalcs[Code],0),1)) ->  | N32: =IF(ISERROR(INDEX(YieldCalcs[PredWts],MATCH(CONCATENATE(G32,"LT95"),YieldCalcs[Code],0),1)),"",INDEX(YieldCalcs[PredWts],MATCH(CONCATENATE(G32,"LT95"),YieldCalcs[Code],0),1)) ->  | O32: =IF(ISERROR(INDEX(YieldCalcs[PredWts],MATCH(CONCATENATE(G32,"F"),YieldCalcs[Code],0),1)),"",INDEX(YieldCalcs[PredWts],MATCH(CONCATENATE(G32,"F"),YieldCalcs[Code],0),1)) ->  | P32: =IF(ISERROR(INDEX(YieldCalcs[PredWts],MATCH(CONCATENATE(G32,"B"),YieldCalcs[Code],0),1)),"",INDEX(YieldCalcs[PredWts],MATCH(CONCATENATE(G32,"B"),YieldCalcs[Code],0),1)) ->  | Q32: =IF(ISERROR(INDEX(YieldCalcs[PredWts],MATCH(CONCATENATE(G32,"Cart"),YieldCalcs[Code],0),1)),"",INDEX(YieldCalcs[PredWts],MATCH(CONCATENATE(G32,"Cart"),YieldCalcs[Code],0),1)) ->  | R32: =IF(ISERROR(INDEX(YieldCalcs[PredWts],MATCH(CONCATENATE(G32,"Pad"),YieldCalcs[Code],0),1)),"",INDEX(YieldCalcs[PredWts],MATCH(CONCATENATE(G32,"Pad"),YieldCalcs[Code],0),1)) ->  | S32: =IF(ISERROR(INDEX(YieldCalcs[PredWts],MATCH(CONCATENATE(G32,"I"),YieldCalcs[Code],0),1)),"",INDEX(YieldCalcs[PredWts],MATCH(CONCATENATE(G32,"I"),YieldCalcs[Code],0),1)) ->  | T32: =IF(ISERROR(INDEX(YieldCalcs[PredWts],MATCH(CONCATENATE(G32,"Skirt"),YieldCalcs[Code],0),1)),"",INDEX(YieldCalcs[PredWts],MATCH(CONCATENATE(G32,"Skirt"),YieldCalcs[Code],0),1)) ->  | U32: =IF(ISERROR(INDEX(YieldCalcs[PredWts],MATCH(CONCATENATE(G32,"RibEnds"),YieldCalcs[Code],0),1)),"",INDEX(YieldCalcs[PredWts],MATCH(CONCATENATE(G32,"RibEnds"),YieldCalcs[Code],0),1)) ->  | V32: =IF(ISERROR(INDEX(YieldCalcs[SalePrice],MATCH(G32,YieldCalcs[Code],0),1)),"",INDEX(YieldCalcs[SalePrice],MATCH(G32,YieldCalcs[Code],0),1)) ->  | W32: =IF(ISERROR(INDEX(YieldCalcs[CutValue],MATCH(G32,YieldCalcs[Code],0),1)),"",INDEX(YieldCalcs[CutValue],MATCH(G32,YieldCalcs[Code],0),1)) ->  | X32: =IF(ISERROR(INDEX(YieldCalcs[GM$],MATCH(G32,YieldCalcs[Code],0),1)),"",INDEX(YieldCalcs[GM$],MATCH(G32,YieldCalcs[Code],0),1)) ->  | Y32: =IF(ISERROR(INDEX(YieldCalcs[GM%],MATCH(G32,YieldCalcs[Code],0),1)),"",INDEX(YieldCalcs[GM%],MATCH(G32,YieldCalcs[Code],0),1)) ->  | Z32: =IF(ISERROR(INDEX(YieldCalcs[TGM%],MATCH(G32,YieldCalcs[Code],0),1)),"",INDEX(YieldCalcs[TGM%],MATCH(G32,YieldCalcs[Code],0),1)) ->  | AA32: =IF(ISERROR(INDEX(YieldCalcs[TSalePrice],MATCH(G32,YieldCalcs[Code],0),1)),"",INDEX(YieldCalcs[TSalePrice],MATCH(G32,YieldCalcs[Code],0),1)) ->  | AB32: =IF(ISNUMBER(INDEX(YieldCalcs[TotCostsPerKg],MATCH(G32,YieldCalcs[Code],0),1)),INDEX(YieldCalcs[TotCostsPerKg],MATCH(G32,YieldCalcs[Code],0),1),"") ->  | AC32: =IF(ISERROR(INDEX(YieldCalcs[PreBoneCperkg],MATCH(G32,YieldCalcs[Code],0),1)),"",INDEX(YieldCalcs[PreBoneCperkg],MATCH(G32,YieldCalcs[Code],0),1)) ->  | AD32: =IF(ISERROR(INDEX(YieldCalcs[FixBoneCostperkg],MATCH(G32,YieldCalcs[Code],0),1)),"",INDEX(YieldCalcs[FixBoneCostperkg],MATCH(G32,YieldCalcs[Code],0),1)) ->  | AE32: =IF(ISERROR(INDEX(YieldCalcs[BoningCost],MATCH(G32,YieldCalcs[Code],0),1)),"",INDEX(YieldCalcs[BoningCost],MATCH(G32,YieldCalcs[Code],0),1)) ->  | AF32: =IF(ISNUMBER(INDEX(YieldCalcs[TotCosts],MATCH(G32,YieldCalcs[Code],0),1)),INDEX(YieldCalcs[TotCosts],MATCH(G32,YieldCalcs[Code],0),1),"") ->  | AG32: =IF(ISERROR(INDEX(YieldCalcs[BuyInPrice],MATCH(G32,YieldCalcs[Code],0),1)),"",INDEX(YieldCalcs[BuyInPrice],MATCH(G32,YieldCalcs[Code],0),1)) -> 
F33: =IF(ISERROR(INDEX(YieldCalcs[Code],MATCH(E33,YieldCalcs[CutName],0),1)),"",INDEX(YieldCalcs[HAM No],MATCH(E33,YieldCalcs[CutName],0),1)) ->  | G33: =IF(ISERROR(INDEX(YieldCalcs[Code],MATCH(E33,YieldCalcs[CutName],0),1)),"",INDEX(YieldCalcs[Code],MATCH(E33,YieldCalcs[CutName],0),1)) ->  | H33: =IF(ISNA(MATCH(E33,YieldCalcs[CutName],0)),"",MATCH(E33,YieldCalcs[CutName],0)) ->  | I33: =IF(ISERROR(INDEX(YieldCalcs[PredWts],MATCH(G33,YieldCalcs[Code],0),1)),"",INDEX(YieldCalcs[PredWts],MATCH(G33,YieldCalcs[Code],0),1)) ->  | J33: =IF(ISERROR(INDEX(YieldCalcs[PredWts],MATCH(CONCATENATE(G33,"LT"),YieldCalcs[Code],0),1)),"",INDEX(YieldCalcs[PredWts],MATCH(CONCATENATE(G33,"LT"),YieldCalcs[Code],0),1)) ->  | K33: =IF(ISERROR(INDEX(YieldCalcs[PredWts],MATCH(CONCATENATE(G33,"LT65"),YieldCalcs[Code],0),1)),"",INDEX(YieldCalcs[PredWts],MATCH(CONCATENATE(G33,"LT65"),YieldCalcs[Code],0),1)) ->  | L33: =IF(ISERROR(INDEX(YieldCalcs[PredWts],MATCH(CONCATENATE(G33,"LT75"),YieldCalcs[Code],0),1)),"",INDEX(YieldCalcs[PredWts],MATCH(CONCATENATE(G33,"LT75"),YieldCalcs[Code],0),1)) ->  | M33: =IF(ISERROR(INDEX(YieldCalcs[PredWts],MATCH(CONCATENATE(G33,"LT85"),YieldCalcs[Code],0),1)),"",INDEX(YieldCalcs[PredWts],MATCH(CONCATENATE(G33,"LT85"),YieldCalcs[Code],0),1)) ->  | N33: =IF(ISERROR(INDEX(YieldCalcs[PredWts],MATCH(CONCATENATE(G33,"LT95"),YieldCalcs[Code],0),1)),"",INDEX(YieldCalcs[PredWts],MATCH(CONCATENATE(G33,"LT95"),YieldCalcs[Code],0),1)) ->  | O33: =IF(ISERROR(INDEX(YieldCalcs[PredWts],MATCH(CONCATENATE(G33,"F"),YieldCalcs[Code],0),1)),"",INDEX(YieldCalcs[PredWts],MATCH(CONCATENATE(G33,"F"),YieldCalcs[Code],0),1)) ->  | P33: =IF(ISERROR(INDEX(YieldCalcs[PredWts],MATCH(CONCATENATE(G33,"B"),YieldCalcs[Code],0),1)),"",INDEX(YieldCalcs[PredWts],MATCH(CONCATENATE(G33,"B"),YieldCalcs[Code],0),1)) ->  | Q33: =IF(ISERROR(INDEX(YieldCalcs[PredWts],MATCH(CONCATENATE(G33,"Cart"),YieldCalcs[Code],0),1)),"",INDEX(YieldCalcs[PredWts],MATCH(CONCATENATE(G33,"Cart"),YieldCalcs[Code],0),1)) ->  | R33: =IF(ISERROR(INDEX(YieldCalcs[PredWts],MATCH(CONCATENATE(G33,"Pad"),YieldCalcs[Code],0),1)),"",INDEX(YieldCalcs[PredWts],MATCH(CONCATENATE(G33,"Pad"),YieldCalcs[Code],0),1)) ->  | S33: =IF(ISERROR(INDEX(YieldCalcs[PredWts],MATCH(CONCATENATE(G33,"I"),YieldCalcs[Code],0),1)),"",INDEX(YieldCalcs[PredWts],MATCH(CONCATENATE(G33,"I"),YieldCalcs[Code],0),1)) ->  | T33: =IF(ISERROR(INDEX(YieldCalcs[PredWts],MATCH(CONCATENATE(G33,"Skirt"),YieldCalcs[Code],0),1)),"",INDEX(YieldCalcs[PredWts],MATCH(CONCATENATE(G33,"Skirt"),YieldCalcs[Code],0),1)) ->  | U33: =IF(ISERROR(INDEX(YieldCalcs[PredWts],MATCH(CONCATENATE(G33,"RibEnds"),YieldCalcs[Code],0),1)),"",INDEX(YieldCalcs[PredWts],MATCH(CONCATENATE(G33,"RibEnds"),YieldCalcs[Code],0),1)) ->  | V33: =IF(ISERROR(INDEX(YieldCalcs[SalePrice],MATCH(G33,YieldCalcs[Code],0),1)),"",INDEX(YieldCalcs[SalePrice],MATCH(G33,YieldCalcs[Code],0),1)) ->  | W33: =IF(ISERROR(INDEX(YieldCalcs[CutValue],MATCH(G33,YieldCalcs[Code],0),1)),"",INDEX(YieldCalcs[CutValue],MATCH(G33,YieldCalcs[Code],0),1)) ->  | X33: =IF(ISERROR(INDEX(YieldCalcs[GM$],MATCH(G33,YieldCalcs[Code],0),1)),"",INDEX(YieldCalcs[GM$],MATCH(G33,YieldCalcs[Code],0),1)) ->  | Y33: =IF(ISERROR(INDEX(YieldCalcs[GM%],MATCH(G33,YieldCalcs[Code],0),1)),"",INDEX(YieldCalcs[GM%],MATCH(G33,YieldCalcs[Code],0),1)) ->  | Z33: =IF(ISERROR(INDEX(YieldCalcs[TGM%],MATCH(G33,YieldCalcs[Code],0),1)),"",INDEX(YieldCalcs[TGM%],MATCH(G33,YieldCalcs[Code],0),1)) ->  | AA33: =IF(ISERROR(INDEX(YieldCalcs[TSalePrice],MATCH(G33,YieldCalcs[Code],0),1)),"",INDEX(YieldCalcs[TSalePrice],MATCH(G33,YieldCalcs[Code],0),1)) ->  | AB33: =IF(ISNUMBER(INDEX(YieldCalcs[TotCostsPerKg],MATCH(G33,YieldCalcs[Code],0),1)),INDEX(YieldCalcs[TotCostsPerKg],MATCH(G33,YieldCalcs[Code],0),1),"") ->  | AC33: =IF(ISERROR(INDEX(YieldCalcs[PreBoneCperkg],MATCH(G33,YieldCalcs[Code],0),1)),"",INDEX(YieldCalcs[PreBoneCperkg],MATCH(G33,YieldCalcs[Code],0),1)) ->  | AD33: =IF(ISERROR(INDEX(YieldCalcs[FixBoneCostperkg],MATCH(G33,YieldCalcs[Code],0),1)),"",INDEX(YieldCalcs[FixBoneCostperkg],MATCH(G33,YieldCalcs[Code],0),1)) ->  | AE33: =IF(ISERROR(INDEX(YieldCalcs[BoningCost],MATCH(G33,YieldCalcs[Code],0),1)),"",INDEX(YieldCalcs[BoningCost],MATCH(G33,YieldCalcs[Code],0),1)) ->  | AF33: =IF(ISNUMBER(INDEX(YieldCalcs[TotCosts],MATCH(G33,YieldCalcs[Code],0),1)),INDEX(YieldCalcs[TotCosts],MATCH(G33,YieldCalcs[Code],0),1),"") ->  | AG33: =IF(ISERROR(INDEX(YieldCalcs[BuyInPrice],MATCH(G33,YieldCalcs[Code],0),1)),"",INDEX(YieldCalcs[BuyInPrice],MATCH(G33,YieldCalcs[Code],0),1)) -> 
B35: Shank | E35: HQ Shank 90cl | F35: =IF(ISERROR(INDEX(YieldCalcs[Code],MATCH(E35,YieldCalcs[CutName],0),1)),"",INDEX(YieldCalcs[HAM No],MATCH(E35,YieldCalcs[CutName],0),1)) -> 2360 | G35: =IF(ISERROR(INDEX(YieldCalcs[Code],MATCH(E35,YieldCalcs[CutName],0),1)),"",INDEX(YieldCalcs[Code],MATCH(E35,YieldCalcs[CutName],0),1)) -> HQ05.1FINAL | H35: =IF(ISNA(MATCH(E35,YieldCalcs[CutName],0)),"",MATCH(E35,YieldCalcs[CutName],0)) -> 277 | I35: =IF(ISERROR(INDEX(YieldCalcs[PredWts],MATCH(G35,YieldCalcs[Code],0),1)),"",INDEX(YieldCalcs[PredWts],MATCH(G35,YieldCalcs[Code],0),1)) -> 4 | J35: =IF(ISERROR(INDEX(YieldCalcs[PredWts],MATCH(CONCATENATE(G35,"LT"),YieldCalcs[Code],0),1)),"",INDEX(YieldCalcs[PredWts],MATCH(CONCATENATE(G35,"LT"),YieldCalcs[Code],0),1)) -> 0 | K35: =IF(ISERROR(INDEX(YieldCalcs[PredWts],MATCH(CONCATENATE(G35,"LT65"),YieldCalcs[Code],0),1)),"",INDEX(YieldCalcs[PredWts],MATCH(CONCATENATE(G35,"LT65"),YieldCalcs[Code],0),1)) ->  | L35: =IF(ISERROR(INDEX(YieldCalcs[PredWts],MATCH(CONCATENATE(G35,"LT75"),YieldCalcs[Code],0),1)),"",INDEX(YieldCalcs[PredWts],MATCH(CONCATENATE(G35,"LT75"),YieldCalcs[Code],0),1)) ->  | M35: =IF(ISERROR(INDEX(YieldCalcs[PredWts],MATCH(CONCATENATE(G35,"LT85"),YieldCalcs[Code],0),1)),"",INDEX(YieldCalcs[PredWts],MATCH(CONCATENATE(G35,"LT85"),YieldCalcs[Code],0),1)) -> 0 | N35: =IF(ISERROR(INDEX(YieldCalcs[PredWts],MATCH(CONCATENATE(G35,"LT95"),YieldCalcs[Code],0),1)),"",INDEX(YieldCalcs[PredWts],MATCH(CONCATENATE(G35,"LT95"),YieldCalcs[Code],0),1)) ->  | O35: =IF(ISERROR(INDEX(YieldCalcs[PredWts],MATCH(CONCATENATE(G35,"F"),YieldCalcs[Code],0),1)),"",INDEX(YieldCalcs[PredWts],MATCH(CONCATENATE(G35,"F"),YieldCalcs[Code],0),1)) -> 1.11 | P35: =IF(ISERROR(INDEX(YieldCalcs[PredWts],MATCH(CONCATENATE(G35,"B"),YieldCalcs[Code],0),1)),"",INDEX(YieldCalcs[PredWts],MATCH(CONCATENATE(G35,"B"),YieldCalcs[Code],0),1)) -> 13.89 | Q35: =IF(ISERROR(INDEX(YieldCalcs[PredWts],MATCH(CONCATENATE(G35,"Cart"),YieldCalcs[Code],0),1)),"",INDEX(YieldCalcs[PredWts],MATCH(CONCATENATE(G35,"Cart"),YieldCalcs[Code],0),1)) ->  | R35: =IF(ISERROR(INDEX(YieldCalcs[PredWts],MATCH(CONCATENATE(G35,"Pad"),YieldCalcs[Code],0),1)),"",INDEX(YieldCalcs[PredWts],MATCH(CONCATENATE(G35,"Pad"),YieldCalcs[Code],0),1)) ->  | S35: =IF(ISERROR(INDEX(YieldCalcs[PredWts],MATCH(CONCATENATE(G35,"I"),YieldCalcs[Code],0),1)),"",INDEX(YieldCalcs[PredWts],MATCH(CONCATENATE(G35,"I"),YieldCalcs[Code],0),1)) ->  | T35: =IF(ISERROR(INDEX(YieldCalcs[PredWts],MATCH(CONCATENATE(G35,"Skirt"),YieldCalcs[Code],0),1)),"",INDEX(YieldCalcs[PredWts],MATCH(CONCATENATE(G35,"Skirt"),YieldCalcs[Code],0),1)) ->  | U35: =IF(ISERROR(INDEX(YieldCalcs[PredWts],MATCH(CONCATENATE(G35,"RibEnds"),YieldCalcs[Code],0),1)),"",INDEX(YieldCalcs[PredWts],MATCH(CONCATENATE(G35,"RibEnds"),YieldCalcs[Code],0),1)) ->  | V35: =IF(ISERROR(INDEX(YieldCalcs[SalePrice],MATCH(G35,YieldCalcs[Code],0),1)),"",INDEX(YieldCalcs[SalePrice],MATCH(G35,YieldCalcs[Code],0),1)) -> 5.76 | W35: =IF(ISERROR(INDEX(YieldCalcs[CutValue],MATCH(G35,YieldCalcs[Code],0),1)),"",INDEX(YieldCalcs[CutValue],MATCH(G35,YieldCalcs[Code],0),1)) -> 23.04 | X35: =IF(ISERROR(INDEX(YieldCalcs[GM$],MATCH(G35,YieldCalcs[Code],0),1)),"",INDEX(YieldCalcs[GM$],MATCH(G35,YieldCalcs[Code],0),1)) -> -48.46978123 | Y35: =IF(ISERROR(INDEX(YieldCalcs[GM%],MATCH(G35,YieldCalcs[Code],0),1)),"",INDEX(YieldCalcs[GM%],MATCH(G35,YieldCalcs[Code],0),1)) -> -2.103723144 | Z35: =IF(ISERROR(INDEX(YieldCalcs[TGM%],MATCH(G35,YieldCalcs[Code],0),1)),"",INDEX(YieldCalcs[TGM%],MATCH(G35,YieldCalcs[Code],0),1)) -> 0.125 | AA35: =IF(ISERROR(INDEX(YieldCalcs[TSalePrice],MATCH(G35,YieldCalcs[Code],0),1)),"",INDEX(YieldCalcs[TSalePrice],MATCH(G35,YieldCalcs[Code],0),1)) -> 20.43136606 | AB35: =IF(ISNUMBER(INDEX(YieldCalcs[TotCostsPerKg],MATCH(G35,YieldCalcs[Code],0),1)),INDEX(YieldCalcs[TotCostsPerKg],MATCH(G35,YieldCalcs[Code],0),1),"") -> 17.87744531 | AC35: =IF(ISERROR(INDEX(YieldCalcs[PreBoneCperkg],MATCH(G35,YieldCalcs[Code],0),1)),"",INDEX(YieldCalcs[PreBoneCperkg],MATCH(G35,YieldCalcs[Code],0),1)) -> 16.80307921 | AD35: =IF(ISERROR(INDEX(YieldCalcs[FixBoneCostperkg],MATCH(G35,YieldCalcs[Code],0),1)),"",INDEX(YieldCalcs[FixBoneCostperkg],MATCH(G35,YieldCalcs[Code],0),1)) -> 0.1743660935 | AE35: =IF(ISERROR(INDEX(YieldCalcs[BoningCost],MATCH(G35,YieldCalcs[Code],0),1)),"",INDEX(YieldCalcs[BoningCost],MATCH(G35,YieldCalcs[Code],0),1)) -> 0.9 | AF35: =IF(ISNUMBER(INDEX(YieldCalcs[TotCosts],MATCH(G35,YieldCalcs[Code],0),1)),INDEX(YieldCalcs[TotCosts],MATCH(G35,YieldCalcs[Code],0),1),"") -> 71.50978123 | AG35: =IF(ISERROR(INDEX(YieldCalcs[BuyInPrice],MATCH(G35,YieldCalcs[Code],0),1)),"",INDEX(YieldCalcs[BuyInPrice],MATCH(G35,YieldCalcs[Code],0),1)) -> 0
C36: HQ Shank | E36: HQ Shank Large Muscle | F36: =IF(ISERROR(INDEX(YieldCalcs[Code],MATCH(E36,YieldCalcs[CutName],0),1)),"",INDEX(YieldCalcs[HAM No],MATCH(E36,YieldCalcs[CutName],0),1)) -> 2365 | G36: =IF(ISERROR(INDEX(YieldCalcs[Code],MATCH(E36,YieldCalcs[CutName],0),1)),"",INDEX(YieldCalcs[Code],MATCH(E36,YieldCalcs[CutName],0),1)) -> HQ05.2FINAL | H36: =IF(ISNA(MATCH(E36,YieldCalcs[CutName],0)),"",MATCH(E36,YieldCalcs[CutName],0)) -> 278 | I36: =IF(ISERROR(INDEX(YieldCalcs[PredWts],MATCH(G36,YieldCalcs[Code],0),1)),"",INDEX(YieldCalcs[PredWts],MATCH(G36,YieldCalcs[Code],0),1)) -> 1.84 | J36: =IF(ISERROR(INDEX(YieldCalcs[PredWts],MATCH(CONCATENATE(G36,"LT"),YieldCalcs[Code],0),1)),"",INDEX(YieldCalcs[PredWts],MATCH(CONCATENATE(G36,"LT"),YieldCalcs[Code],0),1)) ->  | K36: =IF(ISERROR(INDEX(YieldCalcs[PredWts],MATCH(CONCATENATE(G36,"LT65"),YieldCalcs[Code],0),1)),"",INDEX(YieldCalcs[PredWts],MATCH(CONCATENATE(G36,"LT65"),YieldCalcs[Code],0),1)) ->  | L36: =IF(ISERROR(INDEX(YieldCalcs[PredWts],MATCH(CONCATENATE(G36,"LT75"),YieldCalcs[Code],0),1)),"",INDEX(YieldCalcs[PredWts],MATCH(CONCATENATE(G36,"LT75"),YieldCalcs[Code],0),1)) ->  | M36: =IF(ISERROR(INDEX(YieldCalcs[PredWts],MATCH(CONCATENATE(G36,"LT85"),YieldCalcs[Code],0),1)),"",INDEX(YieldCalcs[PredWts],MATCH(CONCATENATE(G36,"LT85"),YieldCalcs[Code],0),1)) ->  | N36: =IF(ISERROR(INDEX(YieldCalcs[PredWts],MATCH(CONCATENATE(G36,"LT95"),YieldCalcs[Code],0),1)),"",INDEX(YieldCalcs[PredWts],MATCH(CONCATENATE(G36,"LT95"),YieldCalcs[Code],0),1)) ->  | O36: =IF(ISERROR(INDEX(YieldCalcs[PredWts],MATCH(CONCATENATE(G36,"F"),YieldCalcs[Code],0),1)),"",INDEX(YieldCalcs[PredWts],MATCH(CONCATENATE(G36,"F"),YieldCalcs[Code],0),1)) ->  | P36: =IF(ISERROR(INDEX(YieldCalcs[PredWts],MATCH(CONCATENATE(G36,"B"),YieldCalcs[Code],0),1)),"",INDEX(YieldCalcs[PredWts],MATCH(CONCATENATE(G36,"B"),YieldCalcs[Code],0),1)) ->  | Q36: =IF(ISERROR(INDEX(YieldCalcs[PredWts],MATCH(CONCATENATE(G36,"Cart"),YieldCalcs[Code],0),1)),"",INDEX(YieldCalcs[PredWts],MATCH(CONCATENATE(G36,"Cart"),YieldCalcs[Code],0),1)) ->  | R36: =IF(ISERROR(INDEX(YieldCalcs[PredWts],MATCH(CONCATENATE(G36,"Pad"),YieldCalcs[Code],0),1)),"",INDEX(YieldCalcs[PredWts],MATCH(CONCATENATE(G36,"Pad"),YieldCalcs[Code],0),1)) ->  | S36: =IF(ISERROR(INDEX(YieldCalcs[PredWts],MATCH(CONCATENATE(G36,"I"),YieldCalcs[Code],0),1)),"",INDEX(YieldCalcs[PredWts],MATCH(CONCATENATE(G36,"I"),YieldCalcs[Code],0),1)) ->  | T36: =IF(ISERROR(INDEX(YieldCalcs[PredWts],MATCH(CONCATENATE(G36,"Skirt"),YieldCalcs[Code],0),1)),"",INDEX(YieldCalcs[PredWts],MATCH(CONCATENATE(G36,"Skirt"),YieldCalcs[Code],0),1)) ->  | U36: =IF(ISERROR(INDEX(YieldCalcs[PredWts],MATCH(CONCATENATE(G36,"RibEnds"),YieldCalcs[Code],0),1)),"",INDEX(YieldCalcs[PredWts],MATCH(CONCATENATE(G36,"RibEnds"),YieldCalcs[Code],0),1)) ->  | V36: =IF(ISERROR(INDEX(YieldCalcs[SalePrice],MATCH(G36,YieldCalcs[Code],0),1)),"",INDEX(YieldCalcs[SalePrice],MATCH(G36,YieldCalcs[Code],0),1)) -> 5.77 | W36: =IF(ISERROR(INDEX(YieldCalcs[CutValue],MATCH(G36,YieldCalcs[Code],0),1)),"",INDEX(YieldCalcs[CutValue],MATCH(G36,YieldCalcs[Code],0),1)) -> 10.6168 | X36: =IF(ISERROR(INDEX(YieldCalcs[GM$],MATCH(G36,YieldCalcs[Code],0),1)),"",INDEX(YieldCalcs[GM$],MATCH(G36,YieldCalcs[Code],0),1)) -> -58.96738123 | Y36: =IF(ISERROR(INDEX(YieldCalcs[GM%],MATCH(G36,YieldCalcs[Code],0),1)),"",INDEX(YieldCalcs[GM%],MATCH(G36,YieldCalcs[Code],0),1)) -> -5.554157677 | Z36: =IF(ISERROR(INDEX(YieldCalcs[TGM%],MATCH(G36,YieldCalcs[Code],0),1)),"",INDEX(YieldCalcs[TGM%],MATCH(G36,YieldCalcs[Code],0),1)) -> 0.126 | AA36: =IF(ISERROR(INDEX(YieldCalcs[TSalePrice],MATCH(G36,YieldCalcs[Code],0),1)),"",INDEX(YieldCalcs[TSalePrice],MATCH(G36,YieldCalcs[Code],0),1)) -> 43.26943913 | AB36: =IF(ISNUMBER(INDEX(YieldCalcs[TotCostsPerKg],MATCH(G36,YieldCalcs[Code],0),1)),INDEX(YieldCalcs[TotCostsPerKg],MATCH(G36,YieldCalcs[Code],0),1),"") -> 37.8174898 | AC36: =IF(ISERROR(INDEX(YieldCalcs[PreBoneCperkg],MATCH(G36,YieldCalcs[Code],0),1)),"",INDEX(YieldCalcs[PreBoneCperkg],MATCH(G36,YieldCalcs[Code],0),1)) -> 36.52843307 | AD36: =IF(ISERROR(INDEX(YieldCalcs[FixBoneCostperkg],MATCH(G36,YieldCalcs[Code],0),1)),"",INDEX(YieldCalcs[FixBoneCostperkg],MATCH(G36,YieldCalcs[Code],0),1)) -> 0.3790567251 | AE36: =IF(ISERROR(INDEX(YieldCalcs[BoningCost],MATCH(G36,YieldCalcs[Code],0),1)),"",INDEX(YieldCalcs[BoningCost],MATCH(G36,YieldCalcs[Code],0),1)) -> 0.91 | AF36: =IF(ISNUMBER(INDEX(YieldCalcs[TotCosts],MATCH(G36,YieldCalcs[Code],0),1)),INDEX(YieldCalcs[TotCosts],MATCH(G36,YieldCalcs[Code],0),1),"") -> 69.58418123 | AG36: =IF(ISERROR(INDEX(YieldCalcs[BuyInPrice],MATCH(G36,YieldCalcs[Code],0),1)),"",INDEX(YieldCalcs[BuyInPrice],MATCH(G36,YieldCalcs[Code],0),1)) -> 0
A37: REC% | B37: =SUM(I35:J41,O35:U41)/INDEX(YieldCalcs[PredWts],MATCH("HQ05.0",YieldCalcs[Code],0),1) -> 0.9995203837 | F37: =IF(ISERROR(INDEX(YieldCalcs[Code],MATCH(E37,YieldCalcs[CutName],0),1)),"",INDEX(YieldCalcs[HAM No],MATCH(E37,YieldCalcs[CutName],0),1)) ->  | G37: =IF(ISERROR(INDEX(YieldCalcs[Code],MATCH(E37,YieldCalcs[CutName],0),1)),"",INDEX(YieldCalcs[Code],MATCH(E37,YieldCalcs[CutName],0),1)) ->  | H37: =IF(ISNA(MATCH(E37,YieldCalcs[CutName],0)),"",MATCH(E37,YieldCalcs[CutName],0)) ->  | I37: =IF(ISERROR(INDEX(YieldCalcs[PredWts],MATCH(G37,YieldCalcs[Code],0),1)),"",INDEX(YieldCalcs[PredWts],MATCH(G37,YieldCalcs[Code],0),1)) ->  | J37: =IF(ISERROR(INDEX(YieldCalcs[PredWts],MATCH(CONCATENATE(G37,"LT"),YieldCalcs[Code],0),1)),"",INDEX(YieldCalcs[PredWts],MATCH(CONCATENATE(G37,"LT"),YieldCalcs[Code],0),1)) ->  | K37: =IF(ISERROR(INDEX(YieldCalcs[PredWts],MATCH(CONCATENATE(G37,"LT65"),YieldCalcs[Code],0),1)),"",INDEX(YieldCalcs[PredWts],MATCH(CONCATENATE(G37,"LT65"),YieldCalcs[Code],0),1)) ->  | L37: =IF(ISERROR(INDEX(YieldCalcs[PredWts],MATCH(CONCATENATE(G37,"LT75"),YieldCalcs[Code],0),1)),"",INDEX(YieldCalcs[PredWts],MATCH(CONCATENATE(G37,"LT75"),YieldCalcs[Code],0),1)) ->  | M37: =IF(ISERROR(INDEX(YieldCalcs[PredWts],MATCH(CONCATENATE(G37,"LT85"),YieldCalcs[Code],0),1)),"",INDEX(YieldCalcs[PredWts],MATCH(CONCATENATE(G37,"LT85"),YieldCalcs[Code],0),1)) ->  | N37: =IF(ISERROR(INDEX(YieldCalcs[PredWts],MATCH(CONCATENATE(G37,"LT95"),YieldCalcs[Code],0),1)),"",INDEX(YieldCalcs[PredWts],MATCH(CONCATENATE(G37,"LT95"),YieldCalcs[Code],0),1)) ->  | O37: =IF(ISERROR(INDEX(YieldCalcs[PredWts],MATCH(CONCATENATE(G37,"F"),YieldCalcs[Code],0),1)),"",INDEX(YieldCalcs[PredWts],MATCH(CONCATENATE(G37,"F"),YieldCalcs[Code],0),1)) ->  | P37: =IF(ISERROR(INDEX(YieldCalcs[PredWts],MATCH(CONCATENATE(G37,"B"),YieldCalcs[Code],0),1)),"",INDEX(YieldCalcs[PredWts],MATCH(CONCATENATE(G37,"B"),YieldCalcs[Code],0),1)) ->  | Q37: =IF(ISERROR(INDEX(YieldCalcs[PredWts],MATCH(CONCATENATE(G37,"Cart"),YieldCalcs[Code],0),1)),"",INDEX(YieldCalcs[PredWts],MATCH(CONCATENATE(G37,"Cart"),YieldCalcs[Code],0),1)) ->  | R37: =IF(ISERROR(INDEX(YieldCalcs[PredWts],MATCH(CONCATENATE(G37,"Pad"),YieldCalcs[Code],0),1)),"",INDEX(YieldCalcs[PredWts],MATCH(CONCATENATE(G37,"Pad"),YieldCalcs[Code],0),1)) ->  | S37: =IF(ISERROR(INDEX(YieldCalcs[PredWts],MATCH(CONCATENATE(G37,"I"),YieldCalcs[Code],0),1)),"",INDEX(YieldCalcs[PredWts],MATCH(CONCATENATE(G37,"I"),YieldCalcs[Code],0),1)) ->  | T37: =IF(ISERROR(INDEX(YieldCalcs[PredWts],MATCH(CONCATENATE(G37,"Skirt"),YieldCalcs[Code],0),1)),"",INDEX(YieldCalcs[PredWts],MATCH(CONCATENATE(G37,"Skirt"),YieldCalcs[Code],0),1)) ->  | U37: =IF(ISERROR(INDEX(YieldCalcs[PredWts],MATCH(CONCATENATE(G37,"RibEnds"),YieldCalcs[Code],0),1)),"",INDEX(YieldCalcs[PredWts],MATCH(CONCATENATE(G37,"RibEnds"),YieldCalcs[Code],0),1)) ->  | V37: =IF(ISERROR(INDEX(YieldCalcs[SalePrice],MATCH(G37,YieldCalcs[Code],0),1)),"",INDEX(YieldCalcs[SalePrice],MATCH(G37,YieldCalcs[Code],0),1)) ->  | W37: =IF(ISERROR(INDEX(YieldCalcs[CutValue],MATCH(G37,YieldCalcs[Code],0),1)),"",INDEX(YieldCalcs[CutValue],MATCH(G37,YieldCalcs[Code],0),1)) ->  | X37: =IF(ISERROR(INDEX(YieldCalcs[GM$],MATCH(G37,YieldCalcs[Code],0),1)),"",INDEX(YieldCalcs[GM$],MATCH(G37,YieldCalcs[Code],0),1)) ->  | Y37: =IF(ISERROR(INDEX(YieldCalcs[GM%],MATCH(G37,YieldCalcs[Code],0),1)),"",INDEX(YieldCalcs[GM%],MATCH(G37,YieldCalcs[Code],0),1)) ->  | Z37: =IF(ISERROR(INDEX(YieldCalcs[TGM%],MATCH(G37,YieldCalcs[Code],0),1)),"",INDEX(YieldCalcs[TGM%],MATCH(G37,YieldCalcs[Code],0),1)) ->  | AA37: =IF(ISERROR(INDEX(YieldCalcs[TSalePrice],MATCH(G37,YieldCalcs[Code],0),1)),"",INDEX(YieldCalcs[TSalePrice],MATCH(G37,YieldCalcs[Code],0),1)) ->  | AB37: =IF(ISNUMBER(INDEX(YieldCalcs[TotCostsPerKg],MATCH(G37,YieldCalcs[Code],0),1)),INDEX(YieldCalcs[TotCostsPerKg],MATCH(G37,YieldCalcs[Code],0),1),"") ->  | AC37: =IF(ISERROR(INDEX(YieldCalcs[PreBoneCperkg],MATCH(G37,YieldCalcs[Code],0),1)),"",INDEX(YieldCalcs[PreBoneCperkg],MATCH(G37,YieldCalcs[Code],0),1)) ->  | AD37: =IF(ISERROR(INDEX(YieldCalcs[FixBoneCostperkg],MATCH(G37,YieldCalcs[Code],0),1)),"",INDEX(YieldCalcs[FixBoneCostperkg],MATCH(G37,YieldCalcs[Code],0),1)) ->  | AE37: =IF(ISERROR(INDEX(YieldCalcs[BoningCost],MATCH(G37,YieldCalcs[Code],0),1)),"",INDEX(YieldCalcs[BoningCost],MATCH(G37,YieldCalcs[Code],0),1)) ->  | AF37: =IF(ISNUMBER(INDEX(YieldCalcs[TotCosts],MATCH(G37,YieldCalcs[Code],0),1)),INDEX(YieldCalcs[TotCosts],MATCH(G37,YieldCalcs[Code],0),1),"") ->  | AG37: =IF(ISERROR(INDEX(YieldCalcs[BuyInPrice],MATCH(G37,YieldCalcs[Code],0),1)),"",INDEX(YieldCalcs[BuyInPrice],MATCH(G37,YieldCalcs[Code],0),1)) -> 
G38: =IF(ISERROR(INDEX(YieldCalcs[Code],MATCH(E38,YieldCalcs[CutName],0),1)),"",INDEX(YieldCalcs[Code],MATCH(E38,YieldCalcs[CutName],0),1)) ->  | H38: =IF(ISNA(MATCH(E38,YieldCalcs[CutName],0)),"",MATCH(E38,YieldCalcs[CutName],0)) ->  | I38: =IF(ISERROR(INDEX(YieldCalcs[PredWts],MATCH(G38,YieldCalcs[Code],0),1)),"",INDEX(YieldCalcs[PredWts],MATCH(G38,YieldCalcs[Code],0),1)) ->  | J38: =IF(ISERROR(INDEX(YieldCalcs[PredWts],MATCH(CONCATENATE(G38,"LT"),YieldCalcs[Code],0),1)),"",INDEX(YieldCalcs[PredWts],MATCH(CONCATENATE(G38,"LT"),YieldCalcs[Code],0),1)) ->  | K38: =IF(ISERROR(INDEX(YieldCalcs[PredWts],MATCH(CONCATENATE(G38,"LT65"),YieldCalcs[Code],0),1)),"",INDEX(YieldCalcs[PredWts],MATCH(CONCATENATE(G38,"LT65"),YieldCalcs[Code],0),1)) ->  | L38: =IF(ISERROR(INDEX(YieldCalcs[PredWts],MATCH(CONCATENATE(G38,"LT75"),YieldCalcs[Code],0),1)),"",INDEX(YieldCalcs[PredWts],MATCH(CONCATENATE(G38,"LT75"),YieldCalcs[Code],0),1)) ->  | M38: =IF(ISERROR(INDEX(YieldCalcs[PredWts],MATCH(CONCATENATE(G38,"LT85"),YieldCalcs[Code],0),1)),"",INDEX(YieldCalcs[PredWts],MATCH(CONCATENATE(G38,"LT85"),YieldCalcs[Code],0),1)) ->  | N38: =IF(ISERROR(INDEX(YieldCalcs[PredWts],MATCH(CONCATENATE(G38,"LT95"),YieldCalcs[Code],0),1)),"",INDEX(YieldCalcs[PredWts],MATCH(CONCATENATE(G38,"LT95"),YieldCalcs[Code],0),1)) ->  | O38: =IF(ISERROR(INDEX(YieldCalcs[PredWts],MATCH(CONCATENATE(G38,"F"),YieldCalcs[Code],0),1)),"",INDEX(YieldCalcs[PredWts],MATCH(CONCATENATE(G38,"F"),YieldCalcs[Code],0),1)) ->  | P38: =IF(ISERROR(INDEX(YieldCalcs[PredWts],MATCH(CONCATENATE(G38,"B"),YieldCalcs[Code],0),1)),"",INDEX(YieldCalcs[PredWts],MATCH(CONCATENATE(G38,"B"),YieldCalcs[Code],0),1)) ->  | Q38: =IF(ISERROR(INDEX(YieldCalcs[PredWts],MATCH(CONCATENATE(G38,"Cart"),YieldCalcs[Code],0),1)),"",INDEX(YieldCalcs[PredWts],MATCH(CONCATENATE(G38,"Cart"),YieldCalcs[Code],0),1)) ->  | R38: =IF(ISERROR(INDEX(YieldCalcs[PredWts],MATCH(CONCATENATE(G38,"Pad"),YieldCalcs[Code],0),1)),"",INDEX(YieldCalcs[PredWts],MATCH(CONCATENATE(G38,"Pad"),YieldCalcs[Code],0),1)) ->  | S38: =IF(ISERROR(INDEX(YieldCalcs[PredWts],MATCH(CONCATENATE(G38,"I"),YieldCalcs[Code],0),1)),"",INDEX(YieldCalcs[PredWts],MATCH(CONCATENATE(G38,"I"),YieldCalcs[Code],0),1)) ->  | T38: =IF(ISERROR(INDEX(YieldCalcs[PredWts],MATCH(CONCATENATE(G38,"Skirt"),YieldCalcs[Code],0),1)),"",INDEX(YieldCalcs[PredWts],MATCH(CONCATENATE(G38,"Skirt"),YieldCalcs[Code],0),1)) ->  | U38: =IF(ISERROR(INDEX(YieldCalcs[PredWts],MATCH(CONCATENATE(G38,"RibEnds"),YieldCalcs[Code],0),1)),"",INDEX(YieldCalcs[PredWts],MATCH(CONCATENATE(G38,"RibEnds"),YieldCalcs[Code],0),1)) ->  | V38: =IF(ISERROR(INDEX(YieldCalcs[SalePrice],MATCH(G38,YieldCalcs[Code],0),1)),"",INDEX(YieldCalcs[SalePrice],MATCH(G38,YieldCalcs[Code],0),1)) ->  | W38: =IF(ISERROR(INDEX(YieldCalcs[CutValue],MATCH(G38,YieldCalcs[Code],0),1)),"",INDEX(YieldCalcs[CutValue],MATCH(G38,YieldCalcs[Code],0),1)) ->  | X38: =IF(ISERROR(INDEX(YieldCalcs[GM$],MATCH(G38,YieldCalcs[Code],0),1)),"",INDEX(YieldCalcs[GM$],MATCH(G38,YieldCalcs[Code],0),1)) ->  | Y38: =IF(ISERROR(INDEX(YieldCalcs[GM%],MATCH(G38,YieldCalcs[Code],0),1)),"",INDEX(YieldCalcs[GM%],MATCH(G38,YieldCalcs[Code],0),1)) ->  | Z38: =IF(ISERROR(INDEX(YieldCalcs[TGM%],MATCH(G38,YieldCalcs[Code],0),1)),"",INDEX(YieldCalcs[TGM%],MATCH(G38,YieldCalcs[Code],0),1)) ->  | AA38: =IF(ISERROR(INDEX(YieldCalcs[TSalePrice],MATCH(G38,YieldCalcs[Code],0),1)),"",INDEX(YieldCalcs[TSalePrice],MATCH(G38,YieldCalcs[Code],0),1)) ->  | AB38: =IF(ISNUMBER(INDEX(YieldCalcs[TotCostsPerKg],MATCH(G38,YieldCalcs[Code],0),1)),INDEX(YieldCalcs[TotCostsPerKg],MATCH(G38,YieldCalcs[Code],0),1),"") ->  | AC38: =IF(ISERROR(INDEX(YieldCalcs[PreBoneCperkg],MATCH(G38,YieldCalcs[Code],0),1)),"",INDEX(YieldCalcs[PreBoneCperkg],MATCH(G38,YieldCalcs[Code],0),1)) ->  | AD38: =IF(ISERROR(INDEX(YieldCalcs[FixBoneCostperkg],MATCH(G38,YieldCalcs[Code],0),1)),"",INDEX(YieldCalcs[FixBoneCostperkg],MATCH(G38,YieldCalcs[Code],0),1)) ->  | AE38: =IF(ISERROR(INDEX(YieldCalcs[BoningCost],MATCH(G38,YieldCalcs[Code],0),1)),"",INDEX(YieldCalcs[BoningCost],MATCH(G38,YieldCalcs[Code],0),1)) ->  | AF38: =IF(ISNUMBER(INDEX(YieldCalcs[TotCosts],MATCH(G38,YieldCalcs[Code],0),1)),INDEX(YieldCalcs[TotCosts],MATCH(G38,YieldCalcs[Code],0),1),"") ->  | AG38: =IF(ISERROR(INDEX(YieldCalcs[BuyInPrice],MATCH(G38,YieldCalcs[Code],0),1)),"",INDEX(YieldCalcs[BuyInPrice],MATCH(G38,YieldCalcs[Code],0),1)) -> 
F39: =IF(ISERROR(INDEX(YieldCalcs[Code],MATCH(E39,YieldCalcs[CutName],0),1)),"",INDEX(YieldCalcs[HAM No],MATCH(E39,YieldCalcs[CutName],0),1)) ->  | G39: =IF(ISERROR(INDEX(YieldCalcs[Code],MATCH(E39,YieldCalcs[CutName],0),1)),"",INDEX(YieldCalcs[Code],MATCH(E39,YieldCalcs[CutName],0),1)) ->  | H39: =IF(ISNA(MATCH(E39,YieldCalcs[CutName],0)),"",MATCH(E39,YieldCalcs[CutName],0)) ->  | I39: =IF(ISERROR(INDEX(YieldCalcs[PredWts],MATCH(G39,YieldCalcs[Code],0),1)),"",INDEX(YieldCalcs[PredWts],MATCH(G39,YieldCalcs[Code],0),1)) ->  | J39: =IF(ISERROR(INDEX(YieldCalcs[PredWts],MATCH(CONCATENATE(G39,"LT"),YieldCalcs[Code],0),1)),"",INDEX(YieldCalcs[PredWts],MATCH(CONCATENATE(G39,"LT"),YieldCalcs[Code],0),1)) ->  | K39: =IF(ISERROR(INDEX(YieldCalcs[PredWts],MATCH(CONCATENATE(G39,"LT65"),YieldCalcs[Code],0),1)),"",INDEX(YieldCalcs[PredWts],MATCH(CONCATENATE(G39,"LT65"),YieldCalcs[Code],0),1)) ->  | L39: =IF(ISERROR(INDEX(YieldCalcs[PredWts],MATCH(CONCATENATE(G39,"LT75"),YieldCalcs[Code],0),1)),"",INDEX(YieldCalcs[PredWts],MATCH(CONCATENATE(G39,"LT75"),YieldCalcs[Code],0),1)) ->  | M39: =IF(ISERROR(INDEX(YieldCalcs[PredWts],MATCH(CONCATENATE(G39,"LT85"),YieldCalcs[Code],0),1)),"",INDEX(YieldCalcs[PredWts],MATCH(CONCATENATE(G39,"LT85"),YieldCalcs[Code],0),1)) ->  | N39: =IF(ISERROR(INDEX(YieldCalcs[PredWts],MATCH(CONCATENATE(G39,"LT95"),YieldCalcs[Code],0),1)),"",INDEX(YieldCalcs[PredWts],MATCH(CONCATENATE(G39,"LT95"),YieldCalcs[Code],0),1)) ->  | O39: =IF(ISERROR(INDEX(YieldCalcs[PredWts],MATCH(CONCATENATE(G39,"F"),YieldCalcs[Code],0),1)),"",INDEX(YieldCalcs[PredWts],MATCH(CONCATENATE(G39,"F"),YieldCalcs[Code],0),1)) ->  | P39: =IF(ISERROR(INDEX(YieldCalcs[PredWts],MATCH(CONCATENATE(G39,"B"),YieldCalcs[Code],0),1)),"",INDEX(YieldCalcs[PredWts],MATCH(CONCATENATE(G39,"B"),YieldCalcs[Code],0),1)) ->  | Q39: =IF(ISERROR(INDEX(YieldCalcs[PredWts],MATCH(CONCATENATE(G39,"Cart"),YieldCalcs[Code],0),1)),"",INDEX(YieldCalcs[PredWts],MATCH(CONCATENATE(G39,"Cart"),YieldCalcs[Code],0),1)) ->  | R39: =IF(ISERROR(INDEX(YieldCalcs[PredWts],MATCH(CONCATENATE(G39,"Pad"),YieldCalcs[Code],0),1)),"",INDEX(YieldCalcs[PredWts],MATCH(CONCATENATE(G39,"Pad"),YieldCalcs[Code],0),1)) ->  | S39: =IF(ISERROR(INDEX(YieldCalcs[PredWts],MATCH(CONCATENATE(G39,"I"),YieldCalcs[Code],0),1)),"",INDEX(YieldCalcs[PredWts],MATCH(CONCATENATE(G39,"I"),YieldCalcs[Code],0),1)) ->  | T39: =IF(ISERROR(INDEX(YieldCalcs[PredWts],MATCH(CONCATENATE(G39,"Skirt"),YieldCalcs[Code],0),1)),"",INDEX(YieldCalcs[PredWts],MATCH(CONCATENATE(G39,"Skirt"),YieldCalcs[Code],0),1)) ->  | U39: =IF(ISERROR(INDEX(YieldCalcs[PredWts],MATCH(CONCATENATE(G39,"RibEnds"),YieldCalcs[Code],0),1)),"",INDEX(YieldCalcs[PredWts],MATCH(CONCATENATE(G39,"RibEnds"),YieldCalcs[Code],0),1)) ->  | V39: =IF(ISERROR(INDEX(YieldCalcs[SalePrice],MATCH(G39,YieldCalcs[Code],0),1)),"",INDEX(YieldCalcs[SalePrice],MATCH(G39,YieldCalcs[Code],0),1)) ->  | W39: =IF(ISERROR(INDEX(YieldCalcs[CutValue],MATCH(G39,YieldCalcs[Code],0),1)),"",INDEX(YieldCalcs[CutValue],MATCH(G39,YieldCalcs[Code],0),1)) ->  | X39: =IF(ISERROR(INDEX(YieldCalcs[GM$],MATCH(G39,YieldCalcs[Code],0),1)),"",INDEX(YieldCalcs[GM$],MATCH(G39,YieldCalcs[Code],0),1)) ->  | Y39: =IF(ISERROR(INDEX(YieldCalcs[GM%],MATCH(G39,YieldCalcs[Code],0),1)),"",INDEX(YieldCalcs[GM%],MATCH(G39,YieldCalcs[Code],0),1)) ->  | Z39: =IF(ISERROR(INDEX(YieldCalcs[TGM%],MATCH(G39,YieldCalcs[Code],0),1)),"",INDEX(YieldCalcs[TGM%],MATCH(G39,YieldCalcs[Code],0),1)) ->  | AA39: =IF(ISERROR(INDEX(YieldCalcs[TSalePrice],MATCH(G39,YieldCalcs[Code],0),1)),"",INDEX(YieldCalcs[TSalePrice],MATCH(G39,YieldCalcs[Code],0),1)) ->  | AB39: =IF(ISNUMBER(INDEX(YieldCalcs[TotCostsPerKg],MATCH(G39,YieldCalcs[Code],0),1)),INDEX(YieldCalcs[TotCostsPerKg],MATCH(G39,YieldCalcs[Code],0),1),"") ->  | AC39: =IF(ISERROR(INDEX(YieldCalcs[PreBoneCperkg],MATCH(G39,YieldCalcs[Code],0),1)),"",INDEX(YieldCalcs[PreBoneCperkg],MATCH(G39,YieldCalcs[Code],0),1)) ->  | AD39: =IF(ISERROR(INDEX(YieldCalcs[FixBoneCostperkg],MATCH(G39,YieldCalcs[Code],0),1)),"",INDEX(YieldCalcs[FixBoneCostperkg],MATCH(G39,YieldCalcs[Code],0),1)) ->  | AE39: =IF(ISERROR(INDEX(YieldCalcs[BoningCost],MATCH(G39,YieldCalcs[Code],0),1)),"",INDEX(YieldCalcs[BoningCost],MATCH(G39,YieldCalcs[Code],0),1)) ->  | AF39: =IF(ISNUMBER(INDEX(YieldCalcs[TotCosts],MATCH(G39,YieldCalcs[Code],0),1)),INDEX(YieldCalcs[TotCosts],MATCH(G39,YieldCalcs[Code],0),1),"") ->  | AG39: =IF(ISERROR(INDEX(YieldCalcs[BuyInPrice],MATCH(G39,YieldCalcs[Code],0),1)),"",INDEX(YieldCalcs[BuyInPrice],MATCH(G39,YieldCalcs[Code],0),1)) -> 
F40: =IF(ISERROR(INDEX(YieldCalcs[Code],MATCH(D40,YieldCalcs[CutName],0),1)),"",INDEX(YieldCalcs[HAM No],MATCH(D40,YieldCalcs[CutName],0),1)) ->  | G40: =IF(ISERROR(INDEX(YieldCalcs[Code],MATCH(E40,YieldCalcs[CutName],0),1)),"",INDEX(YieldCalcs[Code],MATCH(E40,YieldCalcs[CutName],0),1)) ->  | H40: =IF(ISNA(MATCH(E40,YieldCalcs[CutName],0)),"",MATCH(E40,YieldCalcs[CutName],0)) ->  | I40: =IF(ISERROR(INDEX(YieldCalcs[PredWts],MATCH(G40,YieldCalcs[Code],0),1)),"",INDEX(YieldCalcs[PredWts],MATCH(G40,YieldCalcs[Code],0),1)) ->  | J40: =IF(ISERROR(INDEX(YieldCalcs[PredWts],MATCH(CONCATENATE(G40,"LT"),YieldCalcs[Code],0),1)),"",INDEX(YieldCalcs[PredWts],MATCH(CONCATENATE(G40,"LT"),YieldCalcs[Code],0),1)) ->  | K40: =IF(ISERROR(INDEX(YieldCalcs[PredWts],MATCH(CONCATENATE(G40,"LT65"),YieldCalcs[Code],0),1)),"",INDEX(YieldCalcs[PredWts],MATCH(CONCATENATE(G40,"LT65"),YieldCalcs[Code],0),1)) ->  | L40: =IF(ISERROR(INDEX(YieldCalcs[PredWts],MATCH(CONCATENATE(G40,"LT75"),YieldCalcs[Code],0),1)),"",INDEX(YieldCalcs[PredWts],MATCH(CONCATENATE(G40,"LT75"),YieldCalcs[Code],0),1)) ->  | M40: =IF(ISERROR(INDEX(YieldCalcs[PredWts],MATCH(CONCATENATE(G40,"LT85"),YieldCalcs[Code],0),1)),"",INDEX(YieldCalcs[PredWts],MATCH(CONCATENATE(G40,"LT85"),YieldCalcs[Code],0),1)) ->  | N40: =IF(ISERROR(INDEX(YieldCalcs[PredWts],MATCH(CONCATENATE(G40,"LT95"),YieldCalcs[Code],0),1)),"",INDEX(YieldCalcs[PredWts],MATCH(CONCATENATE(G40,"LT95"),YieldCalcs[Code],0),1)) ->  | O40: =IF(ISERROR(INDEX(YieldCalcs[PredWts],MATCH(CONCATENATE(G40,"F"),YieldCalcs[Code],0),1)),"",INDEX(YieldCalcs[PredWts],MATCH(CONCATENATE(G40,"F"),YieldCalcs[Code],0),1)) ->  | P40: =IF(ISERROR(INDEX(YieldCalcs[PredWts],MATCH(CONCATENATE(G40,"B"),YieldCalcs[Code],0),1)),"",INDEX(YieldCalcs[PredWts],MATCH(CONCATENATE(G40,"B"),YieldCalcs[Code],0),1)) ->  | Q40: =IF(ISERROR(INDEX(YieldCalcs[PredWts],MATCH(CONCATENATE(G40,"Cart"),YieldCalcs[Code],0),1)),"",INDEX(YieldCalcs[PredWts],MATCH(CONCATENATE(G40,"Cart"),YieldCalcs[Code],0),1)) ->  | R40: =IF(ISERROR(INDEX(YieldCalcs[PredWts],MATCH(CONCATENATE(G40,"Pad"),YieldCalcs[Code],0),1)),"",INDEX(YieldCalcs[PredWts],MATCH(CONCATENATE(G40,"Pad"),YieldCalcs[Code],0),1)) ->  | S40: =IF(ISERROR(INDEX(YieldCalcs[PredWts],MATCH(CONCATENATE(G40,"I"),YieldCalcs[Code],0),1)),"",INDEX(YieldCalcs[PredWts],MATCH(CONCATENATE(G40,"I"),YieldCalcs[Code],0),1)) ->  | T40: =IF(ISERROR(INDEX(YieldCalcs[PredWts],MATCH(CONCATENATE(G40,"Skirt"),YieldCalcs[Code],0),1)),"",INDEX(YieldCalcs[PredWts],MATCH(CONCATENATE(G40,"Skirt"),YieldCalcs[Code],0),1)) ->  | U40: =IF(ISERROR(INDEX(YieldCalcs[PredWts],MATCH(CONCATENATE(G40,"RibEnds"),YieldCalcs[Code],0),1)),"",INDEX(YieldCalcs[PredWts],MATCH(CONCATENATE(G40,"RibEnds"),YieldCalcs[Code],0),1)) ->  | V40: =IF(ISERROR(INDEX(YieldCalcs[SalePrice],MATCH(G40,YieldCalcs[Code],0),1)),"",INDEX(YieldCalcs[SalePrice],MATCH(G40,YieldCalcs[Code],0),1)) ->  | W40: =IF(ISERROR(INDEX(YieldCalcs[CutValue],MATCH(G40,YieldCalcs[Code],0),1)),"",INDEX(YieldCalcs[CutValue],MATCH(G40,YieldCalcs[Code],0),1)) ->  | X40: =IF(ISERROR(INDEX(YieldCalcs[GM$],MATCH(G40,YieldCalcs[Code],0),1)),"",INDEX(YieldCalcs[GM$],MATCH(G40,YieldCalcs[Code],0),1)) ->  | Y40: =IF(ISERROR(INDEX(YieldCalcs[GM%],MATCH(G40,YieldCalcs[Code],0),1)),"",INDEX(YieldCalcs[GM%],MATCH(G40,YieldCalcs[Code],0),1)) ->  | Z40: =IF(ISERROR(INDEX(YieldCalcs[TGM%],MATCH(G40,YieldCalcs[Code],0),1)),"",INDEX(YieldCalcs[TGM%],MATCH(G40,YieldCalcs[Code],0),1)) ->  | AA40: =IF(ISERROR(INDEX(YieldCalcs[TSalePrice],MATCH(G40,YieldCalcs[Code],0),1)),"",INDEX(YieldCalcs[TSalePrice],MATCH(G40,YieldCalcs[Code],0),1)) ->  | AB40: =IF(ISNUMBER(INDEX(YieldCalcs[TotCostsPerKg],MATCH(G40,YieldCalcs[Code],0),1)),INDEX(YieldCalcs[TotCostsPerKg],MATCH(G40,YieldCalcs[Code],0),1),"") ->  | AC40: =IF(ISERROR(INDEX(YieldCalcs[PreBoneCperkg],MATCH(G40,YieldCalcs[Code],0),1)),"",INDEX(YieldCalcs[PreBoneCperkg],MATCH(G40,YieldCalcs[Code],0),1)) ->  | AD40: =IF(ISERROR(INDEX(YieldCalcs[FixBoneCostperkg],MATCH(G40,YieldCalcs[Code],0),1)),"",INDEX(YieldCalcs[FixBoneCostperkg],MATCH(G40,YieldCalcs[Code],0),1)) ->  | AE40: =IF(ISERROR(INDEX(YieldCalcs[BoningCost],MATCH(G40,YieldCalcs[Code],0),1)),"",INDEX(YieldCalcs[BoningCost],MATCH(G40,YieldCalcs[Code],0),1)) ->  | AF40: =IF(ISNUMBER(INDEX(YieldCalcs[TotCosts],MATCH(G40,YieldCalcs[Code],0),1)),INDEX(YieldCalcs[TotCosts],MATCH(G40,YieldCalcs[Code],0),1),"") ->  | AG40: =IF(ISERROR(INDEX(YieldCalcs[BuyInPrice],MATCH(G40,YieldCalcs[Code],0),1)),"",INDEX(YieldCalcs[BuyInPrice],MATCH(G40,YieldCalcs[Code],0),1)) -> 
F41: =IF(ISERROR(INDEX(YieldCalcs[Code],MATCH(D41,YieldCalcs[CutName],0),1)),"",INDEX(YieldCalcs[HAM No],MATCH(D41,YieldCalcs[CutName],0),1)) ->  | G41: =IF(ISERROR(INDEX(YieldCalcs[Code],MATCH(E41,YieldCalcs[CutName],0),1)),"",INDEX(YieldCalcs[Code],MATCH(E41,YieldCalcs[CutName],0),1)) ->  | H41: =IF(ISNA(MATCH(E41,YieldCalcs[CutName],0)),"",MATCH(E41,YieldCalcs[CutName],0)) ->  | I41: =IF(ISERROR(INDEX(YieldCalcs[PredWts],MATCH(G41,YieldCalcs[Code],0),1)),"",INDEX(YieldCalcs[PredWts],MATCH(G41,YieldCalcs[Code],0),1)) ->  | J41: =IF(ISERROR(INDEX(YieldCalcs[PredWts],MATCH(CONCATENATE(G41,"LT"),YieldCalcs[Code],0),1)),"",INDEX(YieldCalcs[PredWts],MATCH(CONCATENATE(G41,"LT"),YieldCalcs[Code],0),1)) ->  | K41: =IF(ISERROR(INDEX(YieldCalcs[PredWts],MATCH(CONCATENATE(G41,"LT65"),YieldCalcs[Code],0),1)),"",INDEX(YieldCalcs[PredWts],MATCH(CONCATENATE(G41,"LT65"),YieldCalcs[Code],0),1)) ->  | L41: =IF(ISERROR(INDEX(YieldCalcs[PredWts],MATCH(CONCATENATE(G41,"LT75"),YieldCalcs[Code],0),1)),"",INDEX(YieldCalcs[PredWts],MATCH(CONCATENATE(G41,"LT75"),YieldCalcs[Code],0),1)) ->  | M41: =IF(ISERROR(INDEX(YieldCalcs[PredWts],MATCH(CONCATENATE(G41,"LT85"),YieldCalcs[Code],0),1)),"",INDEX(YieldCalcs[PredWts],MATCH(CONCATENATE(G41,"LT85"),YieldCalcs[Code],0),1)) ->  | N41: =IF(ISERROR(INDEX(YieldCalcs[PredWts],MATCH(CONCATENATE(G41,"LT95"),YieldCalcs[Code],0),1)),"",INDEX(YieldCalcs[PredWts],MATCH(CONCATENATE(G41,"LT95"),YieldCalcs[Code],0),1)) ->  | O41: =IF(ISERROR(INDEX(YieldCalcs[PredWts],MATCH(CONCATENATE(G41,"F"),YieldCalcs[Code],0),1)),"",INDEX(YieldCalcs[PredWts],MATCH(CONCATENATE(G41,"F"),YieldCalcs[Code],0),1)) ->  | P41: =IF(ISERROR(INDEX(YieldCalcs[PredWts],MATCH(CONCATENATE(G41,"B"),YieldCalcs[Code],0),1)),"",INDEX(YieldCalcs[PredWts],MATCH(CONCATENATE(G41,"B"),YieldCalcs[Code],0),1)) ->  | Q41: =IF(ISERROR(INDEX(YieldCalcs[PredWts],MATCH(CONCATENATE(G41,"Cart"),YieldCalcs[Code],0),1)),"",INDEX(YieldCalcs[PredWts],MATCH(CONCATENATE(G41,"Cart"),YieldCalcs[Code],0),1)) ->  | R41: =IF(ISERROR(INDEX(YieldCalcs[PredWts],MATCH(CONCATENATE(G41,"Pad"),YieldCalcs[Code],0),1)),"",INDEX(YieldCalcs[PredWts],MATCH(CONCATENATE(G41,"Pad"),YieldCalcs[Code],0),1)) ->  | S41: =IF(ISERROR(INDEX(YieldCalcs[PredWts],MATCH(CONCATENATE(G41,"I"),YieldCalcs[Code],0),1)),"",INDEX(YieldCalcs[PredWts],MATCH(CONCATENATE(G41,"I"),YieldCalcs[Code],0),1)) ->  | T41: =IF(ISERROR(INDEX(YieldCalcs[PredWts],MATCH(CONCATENATE(G41,"Skirt"),YieldCalcs[Code],0),1)),"",INDEX(YieldCalcs[PredWts],MATCH(CONCATENATE(G41,"Skirt"),YieldCalcs[Code],0),1)) ->  | U41: =IF(ISERROR(INDEX(YieldCalcs[PredWts],MATCH(CONCATENATE(G41,"RibEnds"),YieldCalcs[Code],0),1)),"",INDEX(YieldCalcs[PredWts],MATCH(CONCATENATE(G41,"RibEnds"),YieldCalcs[Code],0),1)) ->  | V41: =IF(ISERROR(INDEX(YieldCalcs[SalePrice],MATCH(G41,YieldCalcs[Code],0),1)),"",INDEX(YieldCalcs[SalePrice],MATCH(G41,YieldCalcs[Code],0),1)) ->  | W41: =IF(ISERROR(INDEX(YieldCalcs[CutValue],MATCH(G41,YieldCalcs[Code],0),1)),"",INDEX(YieldCalcs[CutValue],MATCH(G41,YieldCalcs[Code],0),1)) ->  | X41: =IF(ISERROR(INDEX(YieldCalcs[GM$],MATCH(G41,YieldCalcs[Code],0),1)),"",INDEX(YieldCalcs[GM$],MATCH(G41,YieldCalcs[Code],0),1)) ->  | Y41: =IF(ISERROR(INDEX(YieldCalcs[GM%],MATCH(G41,YieldCalcs[Code],0),1)),"",INDEX(YieldCalcs[GM%],MATCH(G41,YieldCalcs[Code],0),1)) ->  | Z41: =IF(ISERROR(INDEX(YieldCalcs[TGM%],MATCH(G41,YieldCalcs[Code],0),1)),"",INDEX(YieldCalcs[TGM%],MATCH(G41,YieldCalcs[Code],0),1)) ->  | AA41: =IF(ISERROR(INDEX(YieldCalcs[TSalePrice],MATCH(G41,YieldCalcs[Code],0),1)),"",INDEX(YieldCalcs[TSalePrice],MATCH(G41,YieldCalcs[Code],0),1)) ->  | AB41: =IF(ISNUMBER(INDEX(YieldCalcs[TotCostsPerKg],MATCH(G41,YieldCalcs[Code],0),1)),INDEX(YieldCalcs[TotCostsPerKg],MATCH(G41,YieldCalcs[Code],0),1),"") ->  | AC41: =IF(ISERROR(INDEX(YieldCalcs[PreBoneCperkg],MATCH(G41,YieldCalcs[Code],0),1)),"",INDEX(YieldCalcs[PreBoneCperkg],MATCH(G41,YieldCalcs[Code],0),1)) ->  | AD41: =IF(ISERROR(INDEX(YieldCalcs[FixBoneCostperkg],MATCH(G41,YieldCalcs[Code],0),1)),"",INDEX(YieldCalcs[FixBoneCostperkg],MATCH(G41,YieldCalcs[Code],0),1)) ->  | AE41: =IF(ISERROR(INDEX(YieldCalcs[BoningCost],MATCH(G41,YieldCalcs[Code],0),1)),"",INDEX(YieldCalcs[BoningCost],MATCH(G41,YieldCalcs[Code],0),1)) ->  | AF41: =IF(ISNUMBER(INDEX(YieldCalcs[TotCosts],MATCH(G41,YieldCalcs[Code],0),1)),INDEX(YieldCalcs[TotCosts],MATCH(G41,YieldCalcs[Code],0),1),"") ->  | AG41: =IF(ISERROR(INDEX(YieldCalcs[BuyInPrice],MATCH(G41,YieldCalcs[Code],0),1)),"",INDEX(YieldCalcs[BuyInPrice],MATCH(G41,YieldCalcs[Code],0),1)) -> 
A42: REC% | B42: =SUM(I42:J42,O42:U42)/INDEX(YieldCalcs[PredWts],MATCH("HQ01.0",YieldCalcs[Code],0),1) -> 0.9924722367 | E42: Butt Saleable Meat Totals: | I42: =SUBTOTAL(9,I3:I41) -> 89.1 | J42: 5.96 | K42: 0.89 | L42: 4.15 | M42: 0.92 | N42: 0 | O42: 13.54 | P42: 24.56 | Q42: 0 | R42: 0 | S42: 0 | T42: 0 | U42: 0 | W42: =SUBTOTAL(9,W3:W41) -> 470.6004 | X42: =SUBTOTAL(9,X3:X41) -> -67.20120527 | Y42: =IFERROR(X42/W42,0) -> -0.1427988698 | AC42: =SUMPRODUCT($I$3:$I$41,AC3:AC41) -> 495.0896441 | AD42: =SUMPRODUCT($I$3:$I$41,AD3:AD41) -> 5.137561163 | AE42: =SUMPRODUCT($I$3:$I$41,AE3:AE41) -> 37.5744 | AF42: =SUBTOTAL(9,AF3:AF41) -> 537.8016053
A43: =IF(Lists!$F$181,"WARNING: Check Recovery","") ->  | G43: =IF(ISERROR(INDEX(YieldCalcs[Code],MATCH(E43,YieldCalcs[CutName],0),1)),"",INDEX(YieldCalcs[Code],MATCH(E43,YieldCalcs[CutName],0),1)) ->  | J43: =IF(ISERROR(INDEX(YieldCalcs[PredWts],MATCH(CONCATENATE(G43,"LT"),YieldCalcs[Code],0),1)),"",INDEX(YieldCalcs[PredWts],MATCH(CONCATENATE(G43,"LT"),YieldCalcs[Code],0),1)) ->  | K43: =IF(ISERROR(INDEX(YieldCalcs[PredWts],MATCH(CONCATENATE(G43,"LT65"),YieldCalcs[Code],0),1)),"",INDEX(YieldCalcs[PredWts],MATCH(CONCATENATE(G43,"LT65"),YieldCalcs[Code],0),1)) ->  | L43: =IF(ISERROR(INDEX(YieldCalcs[PredWts],MATCH(CONCATENATE(G43,"LT75"),YieldCalcs[Code],0),1)),"",INDEX(YieldCalcs[PredWts],MATCH(CONCATENATE(G43,"LT75"),YieldCalcs[Code],0),1)) ->  | M43: =IF(ISERROR(INDEX(YieldCalcs[PredWts],MATCH(CONCATENATE(G43,"LT85"),YieldCalcs[Code],0),1)),"",INDEX(YieldCalcs[PredWts],MATCH(CONCATENATE(G43,"LT85"),YieldCalcs[Code],0),1)) ->  | N43: =IF(ISERROR(INDEX(YieldCalcs[PredWts],MATCH(CONCATENATE(G43,"LT95"),YieldCalcs[Code],0),1)),"",INDEX(YieldCalcs[PredWts],MATCH(CONCATENATE(G43,"LT95"),YieldCalcs[Code],0),1)) ->  | O43: =IF(ISERROR(INDEX(YieldCalcs[PredWts],MATCH(CONCATENATE(G43,"F"),YieldCalcs[Code],0),1)),"",INDEX(YieldCalcs[PredWts],MATCH(CONCATENATE(G43,"F"),YieldCalcs[Code],0),1)) ->  | P43: =IF(ISERROR(INDEX(YieldCalcs[PredWts],MATCH(CONCATENATE(G43,"B"),YieldCalcs[Code],0),1)),"",INDEX(YieldCalcs[PredWts],MATCH(CONCATENATE(G43,"B"),YieldCalcs[Code],0),1)) ->  | Q43: =IF(ISERROR(INDEX(YieldCalcs[PredWts],MATCH(CONCATENATE(G43,"Cart"),YieldCalcs[Code],0),1)),"",INDEX(YieldCalcs[PredWts],MATCH(CONCATENATE(G43,"Cart"),YieldCalcs[Code],0),1)) ->  | R43: =IF(ISERROR(INDEX(YieldCalcs[PredWts],MATCH(CONCATENATE(G43,"Pad"),YieldCalcs[Code],0),1)),"",INDEX(YieldCalcs[PredWts],MATCH(CONCATENATE(G43,"Pad"),YieldCalcs[Code],0),1)) ->  | S43: =IF(ISERROR(INDEX(YieldCalcs[PredWts],MATCH(CONCATENATE(G43,"I"),YieldCalcs[Code],0),1)),"",INDEX(YieldCalcs[PredWts],MATCH(CONCATENATE(G43,"I"),YieldCalcs[Code],0),1)) ->  | T43: =IF(ISERROR(INDEX(YieldCalcs[PredWts],MATCH(CONCATENATE(G43,"Skirt"),YieldCalcs[Code],0),1)),"",INDEX(YieldCalcs[PredWts],MATCH(CONCATENATE(G43,"Skirt"),YieldCalcs[Code],0),1)) ->  | U43: =IF(ISERROR(INDEX(YieldCalcs[PredWts],MATCH(CONCATENATE(G43,"RibEnds"),YieldCalcs[Code],0),1)),"",INDEX(YieldCalcs[PredWts],MATCH(CONCATENATE(G43,"RibEnds"),YieldCalcs[Code],0),1)) ->  | V43: =IF(ISERROR(INDEX(YieldCalcs[SalePrice],MATCH(G43,YieldCalcs[Code],0),1)),"",INDEX(YieldCalcs[SalePrice],MATCH(G43,YieldCalcs[Code],0),1)) ->  | W43: =IF(ISERROR(CELL("address",INDEX(YieldCalcs[SalePrice],MATCH(G43,YieldCalcs[Code],0),1))),"",CELL("address",INDEX(YieldCalcs[SalePrice],MATCH(G43,YieldCalcs[Code],0),1))) ->  | AG43: =IF(ISERROR(INDEX(YieldCalcs[SalePrice],MATCH(V43,YieldCalcs[Code],0),1)),"",INDEX(YieldCalcs[SalePrice],MATCH(V43,YieldCalcs[Code],0),1)) -> 
A44: Region | B44: Cut Type | C44: Options | E44: Cut Selection | F44: HAM # | G44: Code | I44: Primal Wt (kg) | J44: Trim | K44: 65vl | L44: 75vl | M44: 85vl | N44: 95vl | O44: Fat | P44: Bone | Q44: Cartilage | R44: Paddywack | S44: Intercostals | T44: Skirt | U44: Rib Ends | V44: Sale Price ($/kg) | W44: Cut Value ($) | X44: GM ($) | Y44: GM (%) | Z44: Target GM (%) | AA44: Target Sale Price ($/kg) | AB44: Total Costs ($/kg) | AC44: PreBone Costs ($/kg) | AD44: Fixed Bone Cost ($/kg) | AE44: Boning Costs ($/kg) | AF44: Total Costs ($) | AG44: Carton Buy-In Price ($/kg)
A45: Loin | B45: Shortloin | E45: Striploin B/O (3 Rib) | F45: =IF(ISERROR(INDEX(YieldCalcs[Code],MATCH(E45,YieldCalcs[CutName],0),1)),"",INDEX(YieldCalcs[HAM No],MATCH(E45,YieldCalcs[CutName],0),1)) -> 2140 | G45: =IF(ISERROR(INDEX(YieldCalcs[Code],MATCH(E45,YieldCalcs[CutName],0),1)),"",INDEX(YieldCalcs[Code],MATCH(E45,YieldCalcs[CutName],0),1)) -> LN02.5 | H45: =IF(ISNA(MATCH(E45,YieldCalcs[CutName],0)),"",MATCH(E45,YieldCalcs[CutName],0)) -> 176 | I45: =IF(ISERROR(INDEX(YieldCalcs[PredWts],MATCH(G45,YieldCalcs[Code],0),1)),"",INDEX(YieldCalcs[PredWts],MATCH(G45,YieldCalcs[Code],0),1)) -> 13.8 | J45: =IF(ISERROR(INDEX(YieldCalcs[PredWts],MATCH(CONCATENATE(G45,"LT"),YieldCalcs[Code],0),1)),"",INDEX(YieldCalcs[PredWts],MATCH(CONCATENATE(G45,"LT"),YieldCalcs[Code],0),1)) -> 0.33 | K45: =IF(ISERROR(INDEX(YieldCalcs[PredWts],MATCH(CONCATENATE(G45,"LT65"),YieldCalcs[Code],0),1)),"",INDEX(YieldCalcs[PredWts],MATCH(CONCATENATE(G45,"LT65"),YieldCalcs[Code],0),1)) -> 0.3 | L45: =IF(ISERROR(INDEX(YieldCalcs[PredWts],MATCH(CONCATENATE(G45,"LT75"),YieldCalcs[Code],0),1)),"",INDEX(YieldCalcs[PredWts],MATCH(CONCATENATE(G45,"LT75"),YieldCalcs[Code],0),1)) -> 0.02 | M45: =IF(ISERROR(INDEX(YieldCalcs[PredWts],MATCH(CONCATENATE(G45,"LT85"),YieldCalcs[Code],0),1)),"",INDEX(YieldCalcs[PredWts],MATCH(CONCATENATE(G45,"LT85"),YieldCalcs[Code],0),1)) -> 0.01 | N45: =IF(ISERROR(INDEX(YieldCalcs[PredWts],MATCH(CONCATENATE(G45,"LT95"),YieldCalcs[Code],0),1)),"",INDEX(YieldCalcs[PredWts],MATCH(CONCATENATE(G45,"LT95"),YieldCalcs[Code],0),1)) ->  | O45: =IF(ISERROR(INDEX(YieldCalcs[PredWts],MATCH(CONCATENATE(G45,"F"),YieldCalcs[Code],0),1)),"",INDEX(YieldCalcs[PredWts],MATCH(CONCATENATE(G45,"F"),YieldCalcs[Code],0),1)) -> 5.01 | P45: =IF(ISERROR(INDEX(YieldCalcs[PredWts],MATCH(CONCATENATE(G45,"B"),YieldCalcs[Code],0),1)),"",INDEX(YieldCalcs[PredWts],MATCH(CONCATENATE(G45,"B"),YieldCalcs[Code],0),1)) -> 5.98 | Q45: =IF(ISERROR(INDEX(YieldCalcs[PredWts],MATCH(CONCATENATE(G45,"Cart"),YieldCalcs[Code],0),1)),"",INDEX(YieldCalcs[PredWts],MATCH(CONCATENATE(G45,"Cart"),YieldCalcs[Code],0),1)) ->  | R45: =IF(ISERROR(INDEX(YieldCalcs[PredWts],MATCH(CONCATENATE(G45,"Pad"),YieldCalcs[Code],0),1)),"",INDEX(YieldCalcs[PredWts],MATCH(CONCATENATE(G45,"Pad"),YieldCalcs[Code],0),1)) ->  | S45: =IF(ISERROR(INDEX(YieldCalcs[PredWts],MATCH(CONCATENATE(G45,"I"),YieldCalcs[Code],0),1)),"",INDEX(YieldCalcs[PredWts],MATCH(CONCATENATE(G45,"I"),YieldCalcs[Code],0),1)) ->  | T45: =IF(ISERROR(INDEX(YieldCalcs[PredWts],MATCH(CONCATENATE(G45,"Skirt"),YieldCalcs[Code],0),1)),"",INDEX(YieldCalcs[PredWts],MATCH(CONCATENATE(G45,"Skirt"),YieldCalcs[Code],0),1)) ->  | U45: =IF(ISERROR(INDEX(YieldCalcs[PredWts],MATCH(CONCATENATE(G45,"RibEnds"),YieldCalcs[Code],0),1)),"",INDEX(YieldCalcs[PredWts],MATCH(CONCATENATE(G45,"RibEnds"),YieldCalcs[Code],0),1)) ->  | V45: =IF(ISERROR(INDEX(YieldCalcs[SalePrice],MATCH(G45,YieldCalcs[Code],0),1)),"",INDEX(YieldCalcs[SalePrice],MATCH(G45,YieldCalcs[Code],0),1)) -> 5.11 | W45: =IF(ISERROR(INDEX(YieldCalcs[CutValue],MATCH(G45,YieldCalcs[Code],0),1)),"",INDEX(YieldCalcs[CutValue],MATCH(G45,YieldCalcs[Code],0),1)) -> 70.518 | X45: =IF(ISERROR(INDEX(YieldCalcs[GM$],MATCH(G45,YieldCalcs[Code],0),1)),"",INDEX(YieldCalcs[GM$],MATCH(G45,YieldCalcs[Code],0),1)) -> -10.18270633 | Y45: =IF(ISERROR(INDEX(YieldCalcs[GM%],MATCH(G45,YieldCalcs[Code],0),1)),"",INDEX(YieldCalcs[GM%],MATCH(G45,YieldCalcs[Code],0),1)) -> -0.144398683 | Z45: =IF(ISERROR(INDEX(YieldCalcs[TGM%],MATCH(G45,YieldCalcs[Code],0),1)),"",INDEX(YieldCalcs[TGM%],MATCH(G45,YieldCalcs[Code],0),1)) -> 0.06 | AA45: =IF(ISERROR(INDEX(YieldCalcs[TSalePrice],MATCH(G45,YieldCalcs[Code],0),1)),"",INDEX(YieldCalcs[TSalePrice],MATCH(G45,YieldCalcs[Code],0),1)) -> 6.221146032 | AB45: =IF(ISNUMBER(INDEX(YieldCalcs[TotCostsPerKg],MATCH(G45,YieldCalcs[Code],0),1)),INDEX(YieldCalcs[TotCostsPerKg],MATCH(G45,YieldCalcs[Code],0),1),"") -> 5.84787727 | AC45: =IF(ISERROR(INDEX(YieldCalcs[PreBoneCperkg],MATCH(G45,YieldCalcs[Code],0),1)),"",INDEX(YieldCalcs[PreBoneCperkg],MATCH(G45,YieldCalcs[Code],0),1)) -> 5.540384522 | AD45: =IF(ISERROR(INDEX(YieldCalcs[FixBoneCostperkg],MATCH(G45,YieldCalcs[Code],0),1)),"",INDEX(YieldCalcs[FixBoneCostperkg],MATCH(G45,YieldCalcs[Code],0),1)) -> 0.05749274841 | AE45: =IF(ISERROR(INDEX(YieldCalcs[BoningCost],MATCH(G45,YieldCalcs[Code],0),1)),"",INDEX(YieldCalcs[BoningCost],MATCH(G45,YieldCalcs[Code],0),1)) -> 0.25 | AF45: =IF(ISNUMBER(INDEX(YieldCalcs[TotCosts],MATCH(G45,YieldCalcs[Code],0),1)),INDEX(YieldCalcs[TotCosts],MATCH(G45,YieldCalcs[Code],0),1),"") -> 80.70070633 | AG45: =IF(ISERROR(INDEX(YieldCalcs[BuyInPrice],MATCH(G45,YieldCalcs[Code],0),1)),"",INDEX(YieldCalcs[BuyInPrice],MATCH(G45,YieldCalcs[Code],0),1)) -> 0
C46: Shortloin | E46: Tenderloin Butt Off Side Strap On | F46: =IF(ISERROR(INDEX(YieldCalcs[Code],MATCH(E46,YieldCalcs[CutName],0),1)),"",INDEX(YieldCalcs[HAM No],MATCH(E46,YieldCalcs[CutName],0),1)) -> 2150 | G46: =IF(ISERROR(INDEX(YieldCalcs[Code],MATCH(E46,YieldCalcs[CutName],0),1)),"",INDEX(YieldCalcs[Code],MATCH(E46,YieldCalcs[CutName],0),1)) -> LN02.4 | H46: =IF(ISNA(MATCH(E46,YieldCalcs[CutName],0)),"",MATCH(E46,YieldCalcs[CutName],0)) -> 169 | I46: =IF(ISERROR(INDEX(YieldCalcs[PredWts],MATCH(G46,YieldCalcs[Code],0),1)),"",INDEX(YieldCalcs[PredWts],MATCH(G46,YieldCalcs[Code],0),1)) -> 3.25 | J46: =IF(ISERROR(INDEX(YieldCalcs[PredWts],MATCH(CONCATENATE(G46,"LT"),YieldCalcs[Code],0),1)),"",INDEX(YieldCalcs[PredWts],MATCH(CONCATENATE(G46,"LT"),YieldCalcs[Code],0),1)) ->  | K46: =IF(ISERROR(INDEX(YieldCalcs[PredWts],MATCH(CONCATENATE(G46,"LT65"),YieldCalcs[Code],0),1)),"",INDEX(YieldCalcs[PredWts],MATCH(CONCATENATE(G46,"LT65"),YieldCalcs[Code],0),1)) ->  | L46: =IF(ISERROR(INDEX(YieldCalcs[PredWts],MATCH(CONCATENATE(G46,"LT75"),YieldCalcs[Code],0),1)),"",INDEX(YieldCalcs[PredWts],MATCH(CONCATENATE(G46,"LT75"),YieldCalcs[Code],0),1)) ->  | M46: =IF(ISERROR(INDEX(YieldCalcs[PredWts],MATCH(CONCATENATE(G46,"LT85"),YieldCalcs[Code],0),1)),"",INDEX(YieldCalcs[PredWts],MATCH(CONCATENATE(G46,"LT85"),YieldCalcs[Code],0),1)) ->  | N46: =IF(ISERROR(INDEX(YieldCalcs[PredWts],MATCH(CONCATENATE(G46,"LT95"),YieldCalcs[Code],0),1)),"",INDEX(YieldCalcs[PredWts],MATCH(CONCATENATE(G46,"LT95"),YieldCalcs[Code],0),1)) ->  | O46: =IF(ISERROR(INDEX(YieldCalcs[PredWts],MATCH(CONCATENATE(G46,"F"),YieldCalcs[Code],0),1)),"",INDEX(YieldCalcs[PredWts],MATCH(CONCATENATE(G46,"F"),YieldCalcs[Code],0),1)) ->  | P46: =IF(ISERROR(INDEX(YieldCalcs[PredWts],MATCH(CONCATENATE(G46,"B"),YieldCalcs[Code],0),1)),"",INDEX(YieldCalcs[PredWts],MATCH(CONCATENATE(G46,"B"),YieldCalcs[Code],0),1)) ->  | Q46: =IF(ISERROR(INDEX(YieldCalcs[PredWts],MATCH(CONCATENATE(G46,"Cart"),YieldCalcs[Code],0),1)),"",INDEX(YieldCalcs[PredWts],MATCH(CONCATENATE(G46,"Cart"),YieldCalcs[Code],0),1)) ->  | R46: =IF(ISERROR(INDEX(YieldCalcs[PredWts],MATCH(CONCATENATE(G46,"Pad"),YieldCalcs[Code],0),1)),"",INDEX(YieldCalcs[PredWts],MATCH(CONCATENATE(G46,"Pad"),YieldCalcs[Code],0),1)) ->  | S46: =IF(ISERROR(INDEX(YieldCalcs[PredWts],MATCH(CONCATENATE(G46,"I"),YieldCalcs[Code],0),1)),"",INDEX(YieldCalcs[PredWts],MATCH(CONCATENATE(G46,"I"),YieldCalcs[Code],0),1)) ->  | T46: =IF(ISERROR(INDEX(YieldCalcs[PredWts],MATCH(CONCATENATE(G46,"Skirt"),YieldCalcs[Code],0),1)),"",INDEX(YieldCalcs[PredWts],MATCH(CONCATENATE(G46,"Skirt"),YieldCalcs[Code],0),1)) ->  | U46: =IF(ISERROR(INDEX(YieldCalcs[PredWts],MATCH(CONCATENATE(G46,"RibEnds"),YieldCalcs[Code],0),1)),"",INDEX(YieldCalcs[PredWts],MATCH(CONCATENATE(G46,"RibEnds"),YieldCalcs[Code],0),1)) ->  | V46: =IF(ISERROR(INDEX(YieldCalcs[SalePrice],MATCH(G46,YieldCalcs[Code],0),1)),"",INDEX(YieldCalcs[SalePrice],MATCH(G46,YieldCalcs[Code],0),1)) -> 5.09 | W46: =IF(ISERROR(INDEX(YieldCalcs[CutValue],MATCH(G46,YieldCalcs[Code],0),1)),"",INDEX(YieldCalcs[CutValue],MATCH(G46,YieldCalcs[Code],0),1)) -> 16.5425 | X46: =IF(ISERROR(INDEX(YieldCalcs[GM$],MATCH(G46,YieldCalcs[Code],0),1)),"",INDEX(YieldCalcs[GM$],MATCH(G46,YieldCalcs[Code],0),1)) -> 1.808103311 | Y46: =IF(ISERROR(INDEX(YieldCalcs[GM%],MATCH(G46,YieldCalcs[Code],0),1)),"",INDEX(YieldCalcs[GM%],MATCH(G46,YieldCalcs[Code],0),1)) -> 0.1093004873 | Z46: =IF(ISERROR(INDEX(YieldCalcs[TGM%],MATCH(G46,YieldCalcs[Code],0),1)),"",INDEX(YieldCalcs[TGM%],MATCH(G46,YieldCalcs[Code],0),1)) -> 0.058 | AA46: =IF(ISERROR(INDEX(YieldCalcs[TSalePrice],MATCH(G46,YieldCalcs[Code],0),1)),"",INDEX(YieldCalcs[TSalePrice],MATCH(G46,YieldCalcs[Code],0),1)) -> 4.812803099 | AB46: =IF(ISNUMBER(INDEX(YieldCalcs[TotCostsPerKg],MATCH(G46,YieldCalcs[Code],0),1)),INDEX(YieldCalcs[TotCostsPerKg],MATCH(G46,YieldCalcs[Code],0),1),"") -> 4.53366052 | AC46: =IF(ISERROR(INDEX(YieldCalcs[PreBoneCperkg],MATCH(G46,YieldCalcs[Code],0),1)),"",INDEX(YieldCalcs[PreBoneCperkg],MATCH(G46,YieldCalcs[Code],0),1)) -> 4.259459967 | AD46: =IF(ISERROR(INDEX(YieldCalcs[FixBoneCostperkg],MATCH(G46,YieldCalcs[Code],0),1)),"",INDEX(YieldCalcs[FixBoneCostperkg],MATCH(G46,YieldCalcs[Code],0),1)) -> 0.04420055309 | AE46: =IF(ISERROR(INDEX(YieldCalcs[BoningCost],MATCH(G46,YieldCalcs[Code],0),1)),"",INDEX(YieldCalcs[BoningCost],MATCH(G46,YieldCalcs[Code],0),1)) -> 0.23 | AF46: =IF(ISNUMBER(INDEX(YieldCalcs[TotCosts],MATCH(G46,YieldCalcs[Code],0),1)),INDEX(YieldCalcs[TotCosts],MATCH(G46,YieldCalcs[Code],0),1),"") -> 14.73439669 | AG46: =IF(ISERROR(INDEX(YieldCalcs[BuyInPrice],MATCH(G46,YieldCalcs[Code],0),1)),"",INDEX(YieldCalcs[BuyInPrice],MATCH(G46,YieldCalcs[Code],0),1)) -> 0
A47: REC% | B47: =SUM(I45:J51,O45:U51)/INDEX(YieldCalcs[PredWts],MATCH("LN02.0",YieldCalcs[Code],0),1) -> 0.9946185502 | E47: Butt Tenderloin | F47: =IF(ISERROR(INDEX(YieldCalcs[Code],MATCH(E47,YieldCalcs[CutName],0),1)),"",INDEX(YieldCalcs[HAM No],MATCH(E47,YieldCalcs[CutName],0),1)) -> 2170 | G47: =IF(ISERROR(INDEX(YieldCalcs[Code],MATCH(E47,YieldCalcs[CutName],0),1)),"",INDEX(YieldCalcs[Code],MATCH(E47,YieldCalcs[CutName],0),1)) -> LN02.2 | H47: =IF(ISNA(MATCH(E47,YieldCalcs[CutName],0)),"",MATCH(E47,YieldCalcs[CutName],0)) -> 161 | I47: =IF(ISERROR(INDEX(YieldCalcs[PredWts],MATCH(G47,YieldCalcs[Code],0),1)),"",INDEX(YieldCalcs[PredWts],MATCH(G47,YieldCalcs[Code],0),1)) -> 3.05 | J47: =IF(ISERROR(INDEX(YieldCalcs[PredWts],MATCH(CONCATENATE(G47,"LT"),YieldCalcs[Code],0),1)),"",INDEX(YieldCalcs[PredWts],MATCH(CONCATENATE(G47,"LT"),YieldCalcs[Code],0),1)) ->  | K47: =IF(ISERROR(INDEX(YieldCalcs[PredWts],MATCH(CONCATENATE(G47,"LT65"),YieldCalcs[Code],0),1)),"",INDEX(YieldCalcs[PredWts],MATCH(CONCATENATE(G47,"LT65"),YieldCalcs[Code],0),1)) ->  | L47: =IF(ISERROR(INDEX(YieldCalcs[PredWts],MATCH(CONCATENATE(G47,"LT75"),YieldCalcs[Code],0),1)),"",INDEX(YieldCalcs[PredWts],MATCH(CONCATENATE(G47,"LT75"),YieldCalcs[Code],0),1)) ->  | M47: =IF(ISERROR(INDEX(YieldCalcs[PredWts],MATCH(CONCATENATE(G47,"LT85"),YieldCalcs[Code],0),1)),"",INDEX(YieldCalcs[PredWts],MATCH(CONCATENATE(G47,"LT85"),YieldCalcs[Code],0),1)) ->  | N47: =IF(ISERROR(INDEX(YieldCalcs[PredWts],MATCH(CONCATENATE(G47,"LT95"),YieldCalcs[Code],0),1)),"",INDEX(YieldCalcs[PredWts],MATCH(CONCATENATE(G47,"LT95"),YieldCalcs[Code],0),1)) ->  | O47: =IF(ISERROR(INDEX(YieldCalcs[PredWts],MATCH(CONCATENATE(G47,"F"),YieldCalcs[Code],0),1)),"",INDEX(YieldCalcs[PredWts],MATCH(CONCATENATE(G47,"F"),YieldCalcs[Code],0),1)) ->  | P47: =IF(ISERROR(INDEX(YieldCalcs[PredWts],MATCH(CONCATENATE(G47,"B"),YieldCalcs[Code],0),1)),"",INDEX(YieldCalcs[PredWts],MATCH(CONCATENATE(G47,"B"),YieldCalcs[Code],0),1)) ->  | Q47: =IF(ISERROR(INDEX(YieldCalcs[PredWts],MATCH(CONCATENATE(G47,"Cart"),YieldCalcs[Code],0),1)),"",INDEX(YieldCalcs[PredWts],MATCH(CONCATENATE(G47,"Cart"),YieldCalcs[Code],0),1)) ->  | R47: =IF(ISERROR(INDEX(YieldCalcs[PredWts],MATCH(CONCATENATE(G47,"Pad"),YieldCalcs[Code],0),1)),"",INDEX(YieldCalcs[PredWts],MATCH(CONCATENATE(G47,"Pad"),YieldCalcs[Code],0),1)) ->  | S47: =IF(ISERROR(INDEX(YieldCalcs[PredWts],MATCH(CONCATENATE(G47,"I"),YieldCalcs[Code],0),1)),"",INDEX(YieldCalcs[PredWts],MATCH(CONCATENATE(G47,"I"),YieldCalcs[Code],0),1)) ->  | T47: =IF(ISERROR(INDEX(YieldCalcs[PredWts],MATCH(CONCATENATE(G47,"Skirt"),YieldCalcs[Code],0),1)),"",INDEX(YieldCalcs[PredWts],MATCH(CONCATENATE(G47,"Skirt"),YieldCalcs[Code],0),1)) ->  | U47: =IF(ISERROR(INDEX(YieldCalcs[PredWts],MATCH(CONCATENATE(G47,"RibEnds"),YieldCalcs[Code],0),1)),"",INDEX(YieldCalcs[PredWts],MATCH(CONCATENATE(G47,"RibEnds"),YieldCalcs[Code],0),1)) ->  | V47: =IF(ISERROR(INDEX(YieldCalcs[SalePrice],MATCH(G47,YieldCalcs[Code],0),1)),"",INDEX(YieldCalcs[SalePrice],MATCH(G47,YieldCalcs[Code],0),1)) -> 5.05 | W47: =IF(ISERROR(INDEX(YieldCalcs[CutValue],MATCH(G47,YieldCalcs[Code],0),1)),"",INDEX(YieldCalcs[CutValue],MATCH(G47,YieldCalcs[Code],0),1)) -> 15.4025 | X47: =IF(ISERROR(INDEX(YieldCalcs[GM$],MATCH(G47,YieldCalcs[Code],0),1)),"",INDEX(YieldCalcs[GM$],MATCH(G47,YieldCalcs[Code],0),1)) -> 3.169956064 | Y47: =IF(ISERROR(INDEX(YieldCalcs[GM%],MATCH(G47,YieldCalcs[Code],0),1)),"",INDEX(YieldCalcs[GM%],MATCH(G47,YieldCalcs[Code],0),1)) -> 0.2058078925 | Z47: =IF(ISERROR(INDEX(YieldCalcs[TGM%],MATCH(G47,YieldCalcs[Code],0),1)),"",INDEX(YieldCalcs[TGM%],MATCH(G47,YieldCalcs[Code],0),1)) -> 0.054 | AA47: =IF(ISERROR(INDEX(YieldCalcs[TSalePrice],MATCH(G47,YieldCalcs[Code],0),1)),"",INDEX(YieldCalcs[TSalePrice],MATCH(G47,YieldCalcs[Code],0),1)) -> 4.239609031 | AB47: =IF(ISNUMBER(INDEX(YieldCalcs[TotCostsPerKg],MATCH(G47,YieldCalcs[Code],0),1)),INDEX(YieldCalcs[TotCostsPerKg],MATCH(G47,YieldCalcs[Code],0),1),"") -> 4.010670143 | AC47: =IF(ISERROR(INDEX(YieldCalcs[PreBoneCperkg],MATCH(G47,YieldCalcs[Code],0),1)),"",INDEX(YieldCalcs[PreBoneCperkg],MATCH(G47,YieldCalcs[Code],0),1)) -> 3.781430121 | AD47: =IF(ISERROR(INDEX(YieldCalcs[FixBoneCostperkg],MATCH(G47,YieldCalcs[Code],0),1)),"",INDEX(YieldCalcs[FixBoneCostperkg],MATCH(G47,YieldCalcs[Code],0),1)) -> 0.03924002201 | AE47: =IF(ISERROR(INDEX(YieldCalcs[BoningCost],MATCH(G47,YieldCalcs[Code],0),1)),"",INDEX(YieldCalcs[BoningCost],MATCH(G47,YieldCalcs[Code],0),1)) -> 0.19 | AF47: =IF(ISNUMBER(INDEX(YieldCalcs[TotCosts],MATCH(G47,YieldCalcs[Code],0),1)),INDEX(YieldCalcs[TotCosts],MATCH(G47,YieldCalcs[Code],0),1),"") -> 12.23254394 | AG47: =IF(ISERROR(INDEX(YieldCalcs[BuyInPrice],MATCH(G47,YieldCalcs[Code],0),1)),"",INDEX(YieldCalcs[BuyInPrice],MATCH(G47,YieldCalcs[Code],0),1)) -> 0
A48: =IF(Lists!F182=1,"WARNING: Check Recovery","") ->  | F48: =IF(ISERROR(INDEX(YieldCalcs[Code],MATCH(E48,YieldCalcs[CutName],0),1)),"",INDEX(YieldCalcs[HAM No],MATCH(E48,YieldCalcs[CutName],0),1)) ->  | G48: =IF(ISERROR(INDEX(YieldCalcs[Code],MATCH(E48,YieldCalcs[CutName],0),1)),"",INDEX(YieldCalcs[Code],MATCH(E48,YieldCalcs[CutName],0),1)) ->  | H48: =IF(ISNA(MATCH(E48,YieldCalcs[CutName],0)),"",MATCH(E48,YieldCalcs[CutName],0)) ->  | I48: =IF(ISERROR(INDEX(YieldCalcs[PredWts],MATCH(G48,YieldCalcs[Code],0),1)),"",INDEX(YieldCalcs[PredWts],MATCH(G48,YieldCalcs[Code],0),1)) ->  | J48: =IF(ISERROR(INDEX(YieldCalcs[PredWts],MATCH(CONCATENATE(G48,"LT"),YieldCalcs[Code],0),1)),"",INDEX(YieldCalcs[PredWts],MATCH(CONCATENATE(G48,"LT"),YieldCalcs[Code],0),1)) ->  | K48: =IF(ISERROR(INDEX(YieldCalcs[PredWts],MATCH(CONCATENATE(G48,"LT65"),YieldCalcs[Code],0),1)),"",INDEX(YieldCalcs[PredWts],MATCH(CONCATENATE(G48,"LT65"),YieldCalcs[Code],0),1)) ->  | L48: =IF(ISERROR(INDEX(YieldCalcs[PredWts],MATCH(CONCATENATE(G48,"LT75"),YieldCalcs[Code],0),1)),"",INDEX(YieldCalcs[PredWts],MATCH(CONCATENATE(G48,"LT75"),YieldCalcs[Code],0),1)) ->  | M48: =IF(ISERROR(INDEX(YieldCalcs[PredWts],MATCH(CONCATENATE(G48,"LT85"),YieldCalcs[Code],0),1)),"",INDEX(YieldCalcs[PredWts],MATCH(CONCATENATE(G48,"LT85"),YieldCalcs[Code],0),1)) ->  | N48: =IF(ISERROR(INDEX(YieldCalcs[PredWts],MATCH(CONCATENATE(G48,"LT95"),YieldCalcs[Code],0),1)),"",INDEX(YieldCalcs[PredWts],MATCH(CONCATENATE(G48,"LT95"),YieldCalcs[Code],0),1)) ->  | O48: =IF(ISERROR(INDEX(YieldCalcs[PredWts],MATCH(CONCATENATE(G48,"F"),YieldCalcs[Code],0),1)),"",INDEX(YieldCalcs[PredWts],MATCH(CONCATENATE(G48,"F"),YieldCalcs[Code],0),1)) ->  | P48: =IF(ISERROR(INDEX(YieldCalcs[PredWts],MATCH(CONCATENATE(G48,"B"),YieldCalcs[Code],0),1)),"",INDEX(YieldCalcs[PredWts],MATCH(CONCATENATE(G48,"B"),YieldCalcs[Code],0),1)) ->  | Q48: =IF(ISERROR(INDEX(YieldCalcs[PredWts],MATCH(CONCATENATE(G48,"Cart"),YieldCalcs[Code],0),1)),"",INDEX(YieldCalcs[PredWts],MATCH(CONCATENATE(G48,"Cart"),YieldCalcs[Code],0),1)) ->  | R48: =IF(ISERROR(INDEX(YieldCalcs[PredWts],MATCH(CONCATENATE(G48,"Pad"),YieldCalcs[Code],0),1)),"",INDEX(YieldCalcs[PredWts],MATCH(CONCATENATE(G48,"Pad"),YieldCalcs[Code],0),1)) ->  | S48: =IF(ISERROR(INDEX(YieldCalcs[PredWts],MATCH(CONCATENATE(G48,"I"),YieldCalcs[Code],0),1)),"",INDEX(YieldCalcs[PredWts],MATCH(CONCATENATE(G48,"I"),YieldCalcs[Code],0),1)) ->  | T48: =IF(ISERROR(INDEX(YieldCalcs[PredWts],MATCH(CONCATENATE(G48,"Skirt"),YieldCalcs[Code],0),1)),"",INDEX(YieldCalcs[PredWts],MATCH(CONCATENATE(G48,"Skirt"),YieldCalcs[Code],0),1)) ->  | U48: =IF(ISERROR(INDEX(YieldCalcs[PredWts],MATCH(CONCATENATE(G48,"RibEnds"),YieldCalcs[Code],0),1)),"",INDEX(YieldCalcs[PredWts],MATCH(CONCATENATE(G48,"RibEnds"),YieldCalcs[Code],0),1)) ->  | V48: =IF(ISERROR(INDEX(YieldCalcs[SalePrice],MATCH(G48,YieldCalcs[Code],0),1)),"",INDEX(YieldCalcs[SalePrice],MATCH(G48,YieldCalcs[Code],0),1)) ->  | W48: =IF(ISERROR(INDEX(YieldCalcs[CutValue],MATCH(G48,YieldCalcs[Code],0),1)),"",INDEX(YieldCalcs[CutValue],MATCH(G48,YieldCalcs[Code],0),1)) ->  | X48: =IF(ISERROR(INDEX(YieldCalcs[GM$],MATCH(G48,YieldCalcs[Code],0),1)),"",INDEX(YieldCalcs[GM$],MATCH(G48,YieldCalcs[Code],0),1)) ->  | Y48: =IF(ISERROR(INDEX(YieldCalcs[GM%],MATCH(G48,YieldCalcs[Code],0),1)),"",INDEX(YieldCalcs[GM%],MATCH(G48,YieldCalcs[Code],0),1)) ->  | Z48: =IF(ISERROR(INDEX(YieldCalcs[TGM%],MATCH(G48,YieldCalcs[Code],0),1)),"",INDEX(YieldCalcs[TGM%],MATCH(G48,YieldCalcs[Code],0),1)) ->  | AA48: =IF(ISERROR(INDEX(YieldCalcs[TSalePrice],MATCH(G48,YieldCalcs[Code],0),1)),"",INDEX(YieldCalcs[TSalePrice],MATCH(G48,YieldCalcs[Code],0),1)) ->  | AB48: =IF(ISNUMBER(INDEX(YieldCalcs[TotCostsPerKg],MATCH(G48,YieldCalcs[Code],0),1)),INDEX(YieldCalcs[TotCostsPerKg],MATCH(G48,YieldCalcs[Code],0),1),"") ->  | AC48: =IF(ISERROR(INDEX(YieldCalcs[PreBoneCperkg],MATCH(G48,YieldCalcs[Code],0),1)),"",INDEX(YieldCalcs[PreBoneCperkg],MATCH(G48,YieldCalcs[Code],0),1)) ->  | AD48: =IF(ISERROR(INDEX(YieldCalcs[FixBoneCostperkg],MATCH(G48,YieldCalcs[Code],0),1)),"",INDEX(YieldCalcs[FixBoneCostperkg],MATCH(G48,YieldCalcs[Code],0),1)) ->  | AE48: =IF(ISERROR(INDEX(YieldCalcs[BoningCost],MATCH(G48,YieldCalcs[Code],0),1)),"",INDEX(YieldCalcs[BoningCost],MATCH(G48,YieldCalcs[Code],0),1)) ->  | AF48: =IF(ISNUMBER(INDEX(YieldCalcs[TotCosts],MATCH(G48,YieldCalcs[Code],0),1)),INDEX(YieldCalcs[TotCosts],MATCH(G48,YieldCalcs[Code],0),1),"") ->  | AG48: =IF(ISERROR(INDEX(YieldCalcs[BuyInPrice],MATCH(G48,YieldCalcs[Code],0),1)),"",INDEX(YieldCalcs[BuyInPrice],MATCH(G48,YieldCalcs[Code],0),1)) -> 
F49: =IF(ISERROR(INDEX(YieldCalcs[Code],MATCH(E49,YieldCalcs[CutName],0),1)),"",INDEX(YieldCalcs[HAM No],MATCH(E49,YieldCalcs[CutName],0),1)) ->  | G49: =IF(ISERROR(INDEX(YieldCalcs[Code],MATCH(E49,YieldCalcs[CutName],0),1)),"",INDEX(YieldCalcs[Code],MATCH(E49,YieldCalcs[CutName],0),1)) ->  | H49: =IF(ISNA(MATCH(E49,YieldCalcs[CutName],0)),"",MATCH(E49,YieldCalcs[CutName],0)) ->  | I49: =IF(ISERROR(INDEX(YieldCalcs[PredWts],MATCH(G49,YieldCalcs[Code],0),1)),"",INDEX(YieldCalcs[PredWts],MATCH(G49,YieldCalcs[Code],0),1)) ->  | J49: =IF(ISERROR(INDEX(YieldCalcs[PredWts],MATCH(CONCATENATE(G49,"LT"),YieldCalcs[Code],0),1)),"",INDEX(YieldCalcs[PredWts],MATCH(CONCATENATE(G49,"LT"),YieldCalcs[Code],0),1)) ->  | K49: =IF(ISERROR(INDEX(YieldCalcs[PredWts],MATCH(CONCATENATE(G49,"LT65"),YieldCalcs[Code],0),1)),"",INDEX(YieldCalcs[PredWts],MATCH(CONCATENATE(G49,"LT65"),YieldCalcs[Code],0),1)) ->  | L49: =IF(ISERROR(INDEX(YieldCalcs[PredWts],MATCH(CONCATENATE(G49,"LT75"),YieldCalcs[Code],0),1)),"",INDEX(YieldCalcs[PredWts],MATCH(CONCATENATE(G49,"LT75"),YieldCalcs[Code],0),1)) ->  | M49: =IF(ISERROR(INDEX(YieldCalcs[PredWts],MATCH(CONCATENATE(G49,"LT85"),YieldCalcs[Code],0),1)),"",INDEX(YieldCalcs[PredWts],MATCH(CONCATENATE(G49,"LT85"),YieldCalcs[Code],0),1)) ->  | N49: =IF(ISERROR(INDEX(YieldCalcs[PredWts],MATCH(CONCATENATE(G49,"LT95"),YieldCalcs[Code],0),1)),"",INDEX(YieldCalcs[PredWts],MATCH(CONCATENATE(G49,"LT95"),YieldCalcs[Code],0),1)) ->  | O49: =IF(ISERROR(INDEX(YieldCalcs[PredWts],MATCH(CONCATENATE(G49,"F"),YieldCalcs[Code],0),1)),"",INDEX(YieldCalcs[PredWts],MATCH(CONCATENATE(G49,"F"),YieldCalcs[Code],0),1)) ->  | P49: =IF(ISERROR(INDEX(YieldCalcs[PredWts],MATCH(CONCATENATE(G49,"B"),YieldCalcs[Code],0),1)),"",INDEX(YieldCalcs[PredWts],MATCH(CONCATENATE(G49,"B"),YieldCalcs[Code],0),1)) ->  | Q49: =IF(ISERROR(INDEX(YieldCalcs[PredWts],MATCH(CONCATENATE(G49,"Cart"),YieldCalcs[Code],0),1)),"",INDEX(YieldCalcs[PredWts],MATCH(CONCATENATE(G49,"Cart"),YieldCalcs[Code],0),1)) ->  | R49: =IF(ISERROR(INDEX(YieldCalcs[PredWts],MATCH(CONCATENATE(G49,"Pad"),YieldCalcs[Code],0),1)),"",INDEX(YieldCalcs[PredWts],MATCH(CONCATENATE(G49,"Pad"),YieldCalcs[Code],0),1)) ->  | S49: =IF(ISERROR(INDEX(YieldCalcs[PredWts],MATCH(CONCATENATE(G49,"I"),YieldCalcs[Code],0),1)),"",INDEX(YieldCalcs[PredWts],MATCH(CONCATENATE(G49,"I"),YieldCalcs[Code],0),1)) ->  | T49: =IF(ISERROR(INDEX(YieldCalcs[PredWts],MATCH(CONCATENATE(G49,"Skirt"),YieldCalcs[Code],0),1)),"",INDEX(YieldCalcs[PredWts],MATCH(CONCATENATE(G49,"Skirt"),YieldCalcs[Code],0),1)) ->  | U49: =IF(ISERROR(INDEX(YieldCalcs[PredWts],MATCH(CONCATENATE(G49,"RibEnds"),YieldCalcs[Code],0),1)),"",INDEX(YieldCalcs[PredWts],MATCH(CONCATENATE(G49,"RibEnds"),YieldCalcs[Code],0),1)) ->  | V49: =IF(ISERROR(INDEX(YieldCalcs[SalePrice],MATCH(G49,YieldCalcs[Code],0),1)),"",INDEX(YieldCalcs[SalePrice],MATCH(G49,YieldCalcs[Code],0),1)) ->  | W49: =IF(ISERROR(INDEX(YieldCalcs[CutValue],MATCH(G49,YieldCalcs[Code],0),1)),"",INDEX(YieldCalcs[CutValue],MATCH(G49,YieldCalcs[Code],0),1)) ->  | X49: =IF(ISERROR(INDEX(YieldCalcs[GM$],MATCH(G49,YieldCalcs[Code],0),1)),"",INDEX(YieldCalcs[GM$],MATCH(G49,YieldCalcs[Code],0),1)) ->  | Y49: =IF(ISERROR(INDEX(YieldCalcs[GM%],MATCH(G49,YieldCalcs[Code],0),1)),"",INDEX(YieldCalcs[GM%],MATCH(G49,YieldCalcs[Code],0),1)) ->  | Z49: =IF(ISERROR(INDEX(YieldCalcs[TGM%],MATCH(G49,YieldCalcs[Code],0),1)),"",INDEX(YieldCalcs[TGM%],MATCH(G49,YieldCalcs[Code],0),1)) ->  | AA49: =IF(ISERROR(INDEX(YieldCalcs[TSalePrice],MATCH(G49,YieldCalcs[Code],0),1)),"",INDEX(YieldCalcs[TSalePrice],MATCH(G49,YieldCalcs[Code],0),1)) ->  | AB49: =IF(ISNUMBER(INDEX(YieldCalcs[TotCostsPerKg],MATCH(G49,YieldCalcs[Code],0),1)),INDEX(YieldCalcs[TotCostsPerKg],MATCH(G49,YieldCalcs[Code],0),1),"") ->  | AC49: =IF(ISERROR(INDEX(YieldCalcs[PreBoneCperkg],MATCH(G49,YieldCalcs[Code],0),1)),"",INDEX(YieldCalcs[PreBoneCperkg],MATCH(G49,YieldCalcs[Code],0),1)) ->  | AD49: =IF(ISERROR(INDEX(YieldCalcs[FixBoneCostperkg],MATCH(G49,YieldCalcs[Code],0),1)),"",INDEX(YieldCalcs[FixBoneCostperkg],MATCH(G49,YieldCalcs[Code],0),1)) ->  | AE49: =IF(ISERROR(INDEX(YieldCalcs[BoningCost],MATCH(G49,YieldCalcs[Code],0),1)),"",INDEX(YieldCalcs[BoningCost],MATCH(G49,YieldCalcs[Code],0),1)) ->  | AF49: =IF(ISNUMBER(INDEX(YieldCalcs[TotCosts],MATCH(G49,YieldCalcs[Code],0),1)),INDEX(YieldCalcs[TotCosts],MATCH(G49,YieldCalcs[Code],0),1),"") ->  | AG49: =IF(ISERROR(INDEX(YieldCalcs[BuyInPrice],MATCH(G49,YieldCalcs[Code],0),1)),"",INDEX(YieldCalcs[BuyInPrice],MATCH(G49,YieldCalcs[Code],0),1)) -> 
F50: =IF(ISERROR(INDEX(YieldCalcs[Code],MATCH(E50,YieldCalcs[CutName],0),1)),"",INDEX(YieldCalcs[HAM No],MATCH(E50,YieldCalcs[CutName],0),1)) ->  | G50: =IF(ISERROR(INDEX(YieldCalcs[Code],MATCH(E50,YieldCalcs[CutName],0),1)),"",INDEX(YieldCalcs[Code],MATCH(E50,YieldCalcs[CutName],0),1)) ->  | H50: =IF(ISNA(MATCH(E50,YieldCalcs[CutName],0)),"",MATCH(E50,YieldCalcs[CutName],0)) ->  | I50: =IF(ISERROR(INDEX(YieldCalcs[PredWts],MATCH(G50,YieldCalcs[Code],0),1)),"",INDEX(YieldCalcs[PredWts],MATCH(G50,YieldCalcs[Code],0),1)) ->  | J50: =IF(ISERROR(INDEX(YieldCalcs[PredWts],MATCH(CONCATENATE(G50,"LT"),YieldCalcs[Code],0),1)),"",INDEX(YieldCalcs[PredWts],MATCH(CONCATENATE(G50,"LT"),YieldCalcs[Code],0),1)) ->  | K50: =IF(ISERROR(INDEX(YieldCalcs[PredWts],MATCH(CONCATENATE(G50,"LT65"),YieldCalcs[Code],0),1)),"",INDEX(YieldCalcs[PredWts],MATCH(CONCATENATE(G50,"LT65"),YieldCalcs[Code],0),1)) ->  | L50: =IF(ISERROR(INDEX(YieldCalcs[PredWts],MATCH(CONCATENATE(G50,"LT75"),YieldCalcs[Code],0),1)),"",INDEX(YieldCalcs[PredWts],MATCH(CONCATENATE(G50,"LT75"),YieldCalcs[Code],0),1)) ->  | M50: =IF(ISERROR(INDEX(YieldCalcs[PredWts],MATCH(CONCATENATE(G50,"LT85"),YieldCalcs[Code],0),1)),"",INDEX(YieldCalcs[PredWts],MATCH(CONCATENATE(G50,"LT85"),YieldCalcs[Code],0),1)) ->  | N50: =IF(ISERROR(INDEX(YieldCalcs[PredWts],MATCH(CONCATENATE(G50,"LT95"),YieldCalcs[Code],0),1)),"",INDEX(YieldCalcs[PredWts],MATCH(CONCATENATE(G50,"LT95"),YieldCalcs[Code],0),1)) ->  | O50: =IF(ISERROR(INDEX(YieldCalcs[PredWts],MATCH(CONCATENATE(G50,"F"),YieldCalcs[Code],0),1)),"",INDEX(YieldCalcs[PredWts],MATCH(CONCATENATE(G50,"F"),YieldCalcs[Code],0),1)) ->  | P50: =IF(ISERROR(INDEX(YieldCalcs[PredWts],MATCH(CONCATENATE(G50,"B"),YieldCalcs[Code],0),1)),"",INDEX(YieldCalcs[PredWts],MATCH(CONCATENATE(G50,"B"),YieldCalcs[Code],0),1)) ->  | Q50: =IF(ISERROR(INDEX(YieldCalcs[PredWts],MATCH(CONCATENATE(G50,"Cart"),YieldCalcs[Code],0),1)),"",INDEX(YieldCalcs[PredWts],MATCH(CONCATENATE(G50,"Cart"),YieldCalcs[Code],0),1)) ->  | R50: =IF(ISERROR(INDEX(YieldCalcs[PredWts],MATCH(CONCATENATE(G50,"Pad"),YieldCalcs[Code],0),1)),"",INDEX(YieldCalcs[PredWts],MATCH(CONCATENATE(G50,"Pad"),YieldCalcs[Code],0),1)) ->  | S50: =IF(ISERROR(INDEX(YieldCalcs[PredWts],MATCH(CONCATENATE(G50,"I"),YieldCalcs[Code],0),1)),"",INDEX(YieldCalcs[PredWts],MATCH(CONCATENATE(G50,"I"),YieldCalcs[Code],0),1)) ->  | T50: =IF(ISERROR(INDEX(YieldCalcs[PredWts],MATCH(CONCATENATE(G50,"Skirt"),YieldCalcs[Code],0),1)),"",INDEX(YieldCalcs[PredWts],MATCH(CONCATENATE(G50,"Skirt"),YieldCalcs[Code],0),1)) ->  | U50: =IF(ISERROR(INDEX(YieldCalcs[PredWts],MATCH(CONCATENATE(G50,"RibEnds"),YieldCalcs[Code],0),1)),"",INDEX(YieldCalcs[PredWts],MATCH(CONCATENATE(G50,"RibEnds"),YieldCalcs[Code],0),1)) ->  | V50: =IF(ISERROR(INDEX(YieldCalcs[SalePrice],MATCH(G50,YieldCalcs[Code],0),1)),"",INDEX(YieldCalcs[SalePrice],MATCH(G50,YieldCalcs[Code],0),1)) ->  | W50: =IF(ISERROR(INDEX(YieldCalcs[CutValue],MATCH(G50,YieldCalcs[Code],0),1)),"",INDEX(YieldCalcs[CutValue],MATCH(G50,YieldCalcs[Code],0),1)) ->  | X50: =IF(ISERROR(INDEX(YieldCalcs[GM$],MATCH(G50,YieldCalcs[Code],0),1)),"",INDEX(YieldCalcs[GM$],MATCH(G50,YieldCalcs[Code],0),1)) ->  | Y50: =IF(ISERROR(INDEX(YieldCalcs[GM%],MATCH(G50,YieldCalcs[Code],0),1)),"",INDEX(YieldCalcs[GM%],MATCH(G50,YieldCalcs[Code],0),1)) ->  | Z50: =IF(ISERROR(INDEX(YieldCalcs[TGM%],MATCH(G50,YieldCalcs[Code],0),1)),"",INDEX(YieldCalcs[TGM%],MATCH(G50,YieldCalcs[Code],0),1)) ->  | AA50: =IF(ISERROR(INDEX(YieldCalcs[TSalePrice],MATCH(G50,YieldCalcs[Code],0),1)),"",INDEX(YieldCalcs[TSalePrice],MATCH(G50,YieldCalcs[Code],0),1)) ->  | AB50: =IF(ISNUMBER(INDEX(YieldCalcs[TotCostsPerKg],MATCH(G50,YieldCalcs[Code],0),1)),INDEX(YieldCalcs[TotCostsPerKg],MATCH(G50,YieldCalcs[Code],0),1),"") ->  | AC50: =IF(ISERROR(INDEX(YieldCalcs[PreBoneCperkg],MATCH(G50,YieldCalcs[Code],0),1)),"",INDEX(YieldCalcs[PreBoneCperkg],MATCH(G50,YieldCalcs[Code],0),1)) ->  | AD50: =IF(ISERROR(INDEX(YieldCalcs[FixBoneCostperkg],MATCH(G50,YieldCalcs[Code],0),1)),"",INDEX(YieldCalcs[FixBoneCostperkg],MATCH(G50,YieldCalcs[Code],0),1)) ->  | AE50: =IF(ISERROR(INDEX(YieldCalcs[BoningCost],MATCH(G50,YieldCalcs[Code],0),1)),"",INDEX(YieldCalcs[BoningCost],MATCH(G50,YieldCalcs[Code],0),1)) ->  | AF50: =IF(ISNUMBER(INDEX(YieldCalcs[TotCosts],MATCH(G50,YieldCalcs[Code],0),1)),INDEX(YieldCalcs[TotCosts],MATCH(G50,YieldCalcs[Code],0),1),"") ->  | AG50: =IF(ISERROR(INDEX(YieldCalcs[BuyInPrice],MATCH(G50,YieldCalcs[Code],0),1)),"",INDEX(YieldCalcs[BuyInPrice],MATCH(G50,YieldCalcs[Code],0),1)) -> 
F51: =IF(ISERROR(INDEX(YieldCalcs[Code],MATCH(E51,YieldCalcs[CutName],0),1)),"",INDEX(YieldCalcs[HAM No],MATCH(E51,YieldCalcs[CutName],0),1)) ->  | G51: =IF(ISERROR(INDEX(YieldCalcs[Code],MATCH(E51,YieldCalcs[CutName],0),1)),"",INDEX(YieldCalcs[Code],MATCH(E51,YieldCalcs[CutName],0),1)) ->  | H51: =IF(ISNA(MATCH(E51,YieldCalcs[CutName],0)),"",MATCH(E51,YieldCalcs[CutName],0)) ->  | I51: =IF(ISERROR(INDEX(YieldCalcs[PredWts],MATCH(G51,YieldCalcs[Code],0),1)),"",INDEX(YieldCalcs[PredWts],MATCH(G51,YieldCalcs[Code],0),1)) ->  | J51: =IF(ISERROR(INDEX(YieldCalcs[PredWts],MATCH(CONCATENATE(G51,"LT"),YieldCalcs[Code],0),1)),"",INDEX(YieldCalcs[PredWts],MATCH(CONCATENATE(G51,"LT"),YieldCalcs[Code],0),1)) ->  | K51: =IF(ISERROR(INDEX(YieldCalcs[PredWts],MATCH(CONCATENATE(G51,"LT65"),YieldCalcs[Code],0),1)),"",INDEX(YieldCalcs[PredWts],MATCH(CONCATENATE(G51,"LT65"),YieldCalcs[Code],0),1)) ->  | L51: =IF(ISERROR(INDEX(YieldCalcs[PredWts],MATCH(CONCATENATE(G51,"LT75"),YieldCalcs[Code],0),1)),"",INDEX(YieldCalcs[PredWts],MATCH(CONCATENATE(G51,"LT75"),YieldCalcs[Code],0),1)) ->  | M51: =IF(ISERROR(INDEX(YieldCalcs[PredWts],MATCH(CONCATENATE(G51,"LT85"),YieldCalcs[Code],0),1)),"",INDEX(YieldCalcs[PredWts],MATCH(CONCATENATE(G51,"LT85"),YieldCalcs[Code],0),1)) ->  | N51: =IF(ISERROR(INDEX(YieldCalcs[PredWts],MATCH(CONCATENATE(G51,"LT95"),YieldCalcs[Code],0),1)),"",INDEX(YieldCalcs[PredWts],MATCH(CONCATENATE(G51,"LT95"),YieldCalcs[Code],0),1)) ->  | O51: =IF(ISERROR(INDEX(YieldCalcs[PredWts],MATCH(CONCATENATE(G51,"F"),YieldCalcs[Code],0),1)),"",INDEX(YieldCalcs[PredWts],MATCH(CONCATENATE(G51,"F"),YieldCalcs[Code],0),1)) ->  | P51: =IF(ISERROR(INDEX(YieldCalcs[PredWts],MATCH(CONCATENATE(G51,"B"),YieldCalcs[Code],0),1)),"",INDEX(YieldCalcs[PredWts],MATCH(CONCATENATE(G51,"B"),YieldCalcs[Code],0),1)) ->  | Q51: =IF(ISERROR(INDEX(YieldCalcs[PredWts],MATCH(CONCATENATE(G51,"Cart"),YieldCalcs[Code],0),1)),"",INDEX(YieldCalcs[PredWts],MATCH(CONCATENATE(G51,"Cart"),YieldCalcs[Code],0),1)) ->  | R51: =IF(ISERROR(INDEX(YieldCalcs[PredWts],MATCH(CONCATENATE(G51,"Pad"),YieldCalcs[Code],0),1)),"",INDEX(YieldCalcs[PredWts],MATCH(CONCATENATE(G51,"Pad"),YieldCalcs[Code],0),1)) ->  | S51: =IF(ISERROR(INDEX(YieldCalcs[PredWts],MATCH(CONCATENATE(G51,"I"),YieldCalcs[Code],0),1)),"",INDEX(YieldCalcs[PredWts],MATCH(CONCATENATE(G51,"I"),YieldCalcs[Code],0),1)) ->  | T51: =IF(ISERROR(INDEX(YieldCalcs[PredWts],MATCH(CONCATENATE(G51,"Skirt"),YieldCalcs[Code],0),1)),"",INDEX(YieldCalcs[PredWts],MATCH(CONCATENATE(G51,"Skirt"),YieldCalcs[Code],0),1)) ->  | U51: =IF(ISERROR(INDEX(YieldCalcs[PredWts],MATCH(CONCATENATE(G51,"RibEnds"),YieldCalcs[Code],0),1)),"",INDEX(YieldCalcs[PredWts],MATCH(CONCATENATE(G51,"RibEnds"),YieldCalcs[Code],0),1)) ->  | V51: =IF(ISERROR(INDEX(YieldCalcs[SalePrice],MATCH(G51,YieldCalcs[Code],0),1)),"",INDEX(YieldCalcs[SalePrice],MATCH(G51,YieldCalcs[Code],0),1)) ->  | W51: =IF(ISERROR(INDEX(YieldCalcs[CutValue],MATCH(G51,YieldCalcs[Code],0),1)),"",INDEX(YieldCalcs[CutValue],MATCH(G51,YieldCalcs[Code],0),1)) ->  | AC51: =IF(ISERROR(INDEX(YieldCalcs[PreBoneCperkg],MATCH(G51,YieldCalcs[Code],0),1)),"",INDEX(YieldCalcs[PreBoneCperkg],MATCH(G51,YieldCalcs[Code],0),1)) ->  | AD51: =IF(ISERROR(INDEX(YieldCalcs[FixBoneCostperkg],MATCH(G51,YieldCalcs[Code],0),1)),"",INDEX(YieldCalcs[FixBoneCostperkg],MATCH(G51,YieldCalcs[Code],0),1)) ->  | AE51: =IF(ISERROR(INDEX(YieldCalcs[BoningCost],MATCH(G51,YieldCalcs[Code],0),1)),"",INDEX(YieldCalcs[BoningCost],MATCH(G51,YieldCalcs[Code],0),1)) ->  | AF51: =IF(ISNUMBER(INDEX(YieldCalcs[TotCosts],MATCH(G51,YieldCalcs[Code],0),1)),INDEX(YieldCalcs[TotCosts],MATCH(G51,YieldCalcs[Code],0),1),"") ->  | AG51: =IF(ISERROR(INDEX(YieldCalcs[BuyInPrice],MATCH(G51,YieldCalcs[Code],0),1)),"",INDEX(YieldCalcs[BuyInPrice],MATCH(G51,YieldCalcs[Code],0),1)) -> 
B53: Flank | E53: FLS | F53: =IF(ISERROR(INDEX(YieldCalcs[Code],MATCH(E53,YieldCalcs[CutName],0),1)),"",INDEX(YieldCalcs[HAM No],MATCH(E53,YieldCalcs[CutName],0),1)) -> 2210 | G53: =IF(ISERROR(INDEX(YieldCalcs[Code],MATCH(E53,YieldCalcs[CutName],0),1)),"",INDEX(YieldCalcs[Code],MATCH(E53,YieldCalcs[CutName],0),1)) -> LN03.1FINAL | H53: =IF(ISNA(MATCH(E53,YieldCalcs[CutName],0)),"",MATCH(E53,YieldCalcs[CutName],0)) -> 189 | I53: =IF(ISERROR(INDEX(YieldCalcs[PredWts],MATCH(G53,YieldCalcs[Code],0),1)),"",INDEX(YieldCalcs[PredWts],MATCH(G53,YieldCalcs[Code],0),1)) -> 2.66 | J53: =IF(ISERROR(INDEX(YieldCalcs[PredWts],MATCH(CONCATENATE(G53,"LT"),YieldCalcs[Code],0),1)),"",INDEX(YieldCalcs[PredWts],MATCH(CONCATENATE(G53,"LT"),YieldCalcs[Code],0),1)) -> 0.52 | K53: =IF(ISERROR(INDEX(YieldCalcs[PredWts],MATCH(CONCATENATE(G53,"LT65"),YieldCalcs[Code],0),1)),"",INDEX(YieldCalcs[PredWts],MATCH(CONCATENATE(G53,"LT65"),YieldCalcs[Code],0),1)) -> 0.48 | L53: =IF(ISERROR(INDEX(YieldCalcs[PredWts],MATCH(CONCATENATE(G53,"LT75"),YieldCalcs[Code],0),1)),"",INDEX(YieldCalcs[PredWts],MATCH(CONCATENATE(G53,"LT75"),YieldCalcs[Code],0),1)) -> 0.03 | M53: =IF(ISERROR(INDEX(YieldCalcs[PredWts],MATCH(CONCATENATE(G53,"LT85"),YieldCalcs[Code],0),1)),"",INDEX(YieldCalcs[PredWts],MATCH(CONCATENATE(G53,"LT85"),YieldCalcs[Code],0),1)) -> 0 | N53: =IF(ISERROR(INDEX(YieldCalcs[PredWts],MATCH(CONCATENATE(G53,"LT95"),YieldCalcs[Code],0),1)),"",INDEX(YieldCalcs[PredWts],MATCH(CONCATENATE(G53,"LT95"),YieldCalcs[Code],0),1)) ->  | O53: =IF(ISERROR(INDEX(YieldCalcs[PredWts],MATCH(CONCATENATE(G53,"F"),YieldCalcs[Code],0),1)),"",INDEX(YieldCalcs[PredWts],MATCH(CONCATENATE(G53,"F"),YieldCalcs[Code],0),1)) -> 8.85 | P53: =IF(ISERROR(INDEX(YieldCalcs[PredWts],MATCH(CONCATENATE(G53,"B"),YieldCalcs[Code],0),1)),"",INDEX(YieldCalcs[PredWts],MATCH(CONCATENATE(G53,"B"),YieldCalcs[Code],0),1)) ->  | Q53: =IF(ISERROR(INDEX(YieldCalcs[PredWts],MATCH(CONCATENATE(G53,"Cart"),YieldCalcs[Code],0),1)),"",INDEX(YieldCalcs[PredWts],MATCH(CONCATENATE(G53,"Cart"),YieldCalcs[Code],0),1)) ->  | R53: =IF(ISERROR(INDEX(YieldCalcs[PredWts],MATCH(CONCATENATE(G53,"Pad"),YieldCalcs[Code],0),1)),"",INDEX(YieldCalcs[PredWts],MATCH(CONCATENATE(G53,"Pad"),YieldCalcs[Code],0),1)) ->  | S53: =IF(ISERROR(INDEX(YieldCalcs[PredWts],MATCH(CONCATENATE(G53,"I"),YieldCalcs[Code],0),1)),"",INDEX(YieldCalcs[PredWts],MATCH(CONCATENATE(G53,"I"),YieldCalcs[Code],0),1)) ->  | T53: =IF(ISERROR(INDEX(YieldCalcs[PredWts],MATCH(CONCATENATE(G53,"Skirt"),YieldCalcs[Code],0),1)),"",INDEX(YieldCalcs[PredWts],MATCH(CONCATENATE(G53,"Skirt"),YieldCalcs[Code],0),1)) ->  | U53: =IF(ISERROR(INDEX(YieldCalcs[PredWts],MATCH(CONCATENATE(G53,"RibEnds"),YieldCalcs[Code],0),1)),"",INDEX(YieldCalcs[PredWts],MATCH(CONCATENATE(G53,"RibEnds"),YieldCalcs[Code],0),1)) ->  | V53: =IF(ISERROR(INDEX(YieldCalcs[SalePrice],MATCH(G53,YieldCalcs[Code],0),1)),"",INDEX(YieldCalcs[SalePrice],MATCH(G53,YieldCalcs[Code],0),1)) -> 5.66 | W53: =IF(ISERROR(INDEX(YieldCalcs[CutValue],MATCH(G53,YieldCalcs[Code],0),1)),"",INDEX(YieldCalcs[CutValue],MATCH(G53,YieldCalcs[Code],0),1)) -> 15.0556 | X53: =IF(ISERROR(INDEX(YieldCalcs[GM$],MATCH(G53,YieldCalcs[Code],0),1)),"",INDEX(YieldCalcs[GM$],MATCH(G53,YieldCalcs[Code],0),1)) -> 0.1999566493 | Y53: =IF(ISERROR(INDEX(YieldCalcs[GM%],MATCH(G53,YieldCalcs[Code],0),1)),"",INDEX(YieldCalcs[GM%],MATCH(G53,YieldCalcs[Code],0),1)) -> 0.01328121425 | Z53: =IF(ISERROR(INDEX(YieldCalcs[TGM%],MATCH(G53,YieldCalcs[Code],0),1)),"",INDEX(YieldCalcs[TGM%],MATCH(G53,YieldCalcs[Code],0),1)) -> 0.115 | AA53: =IF(ISERROR(INDEX(YieldCalcs[TSalePrice],MATCH(G53,YieldCalcs[Code],0),1)),"",INDEX(YieldCalcs[TSalePrice],MATCH(G53,YieldCalcs[Code],0),1)) -> 6.310540483 | AB53: =IF(ISNUMBER(INDEX(YieldCalcs[TotCostsPerKg],MATCH(G53,YieldCalcs[Code],0),1)),INDEX(YieldCalcs[TotCostsPerKg],MATCH(G53,YieldCalcs[Code],0),1),"") -> 5.584828327 | AC53: =IF(ISERROR(INDEX(YieldCalcs[PreBoneCperkg],MATCH(G53,YieldCalcs[Code],0),1)),"",INDEX(YieldCalcs[PreBoneCperkg],MATCH(G53,YieldCalcs[Code],0),1)) -> 4.735685962 | AD53: =IF(ISERROR(INDEX(YieldCalcs[FixBoneCostperkg],MATCH(G53,YieldCalcs[Code],0),1)),"",INDEX(YieldCalcs[FixBoneCostperkg],MATCH(G53,YieldCalcs[Code],0),1)) -> 0.04914236557 | AE53: =IF(ISERROR(INDEX(YieldCalcs[BoningCost],MATCH(G53,YieldCalcs[Code],0),1)),"",INDEX(YieldCalcs[BoningCost],MATCH(G53,YieldCalcs[Code],0),1)) -> 0.8 | AF53: =IF(ISNUMBER(INDEX(YieldCalcs[TotCosts],MATCH(G53,YieldCalcs[Code],0),1)),INDEX(YieldCalcs[TotCosts],MATCH(G53,YieldCalcs[Code],0),1),"") -> 14.85564335 | AG53: =IF(ISERROR(INDEX(YieldCalcs[BuyInPrice],MATCH(G53,YieldCalcs[Code],0),1)),"",INDEX(YieldCalcs[BuyInPrice],MATCH(G53,YieldCalcs[Code],0),1)) -> 0
C54: Flank | E54: IFP | F54: =IF(ISERROR(INDEX(YieldCalcs[Code],MATCH(E54,YieldCalcs[CutName],0),1)),"",INDEX(YieldCalcs[HAM No],MATCH(E54,YieldCalcs[CutName],0),1)) -> 2203 | G54: =IF(ISERROR(INDEX(YieldCalcs[Code],MATCH(E54,YieldCalcs[CutName],0),1)),"",INDEX(YieldCalcs[Code],MATCH(E54,YieldCalcs[CutName],0),1)) -> LN03.2FINAL | H54: =IF(ISNA(MATCH(E54,YieldCalcs[CutName],0)),"",MATCH(E54,YieldCalcs[CutName],0)) -> 190 | I54: =IF(ISERROR(INDEX(YieldCalcs[PredWts],MATCH(G54,YieldCalcs[Code],0),1)),"",INDEX(YieldCalcs[PredWts],MATCH(G54,YieldCalcs[Code],0),1)) -> 4.89 | J54: =IF(ISERROR(INDEX(YieldCalcs[PredWts],MATCH(CONCATENATE(G54,"LT"),YieldCalcs[Code],0),1)),"",INDEX(YieldCalcs[PredWts],MATCH(CONCATENATE(G54,"LT"),YieldCalcs[Code],0),1)) ->  | K54: =IF(ISERROR(INDEX(YieldCalcs[PredWts],MATCH(CONCATENATE(G54,"LT65"),YieldCalcs[Code],0),1)),"",INDEX(YieldCalcs[PredWts],MATCH(CONCATENATE(G54,"LT65"),YieldCalcs[Code],0),1)) ->  | L54: =IF(ISERROR(INDEX(YieldCalcs[PredWts],MATCH(CONCATENATE(G54,"LT75"),YieldCalcs[Code],0),1)),"",INDEX(YieldCalcs[PredWts],MATCH(CONCATENATE(G54,"LT75"),YieldCalcs[Code],0),1)) ->  | M54: =IF(ISERROR(INDEX(YieldCalcs[PredWts],MATCH(CONCATENATE(G54,"LT85"),YieldCalcs[Code],0),1)),"",INDEX(YieldCalcs[PredWts],MATCH(CONCATENATE(G54,"LT85"),YieldCalcs[Code],0),1)) ->  | N54: =IF(ISERROR(INDEX(YieldCalcs[PredWts],MATCH(CONCATENATE(G54,"LT95"),YieldCalcs[Code],0),1)),"",INDEX(YieldCalcs[PredWts],MATCH(CONCATENATE(G54,"LT95"),YieldCalcs[Code],0),1)) ->  | O54: =IF(ISERROR(INDEX(YieldCalcs[PredWts],MATCH(CONCATENATE(G54,"F"),YieldCalcs[Code],0),1)),"",INDEX(YieldCalcs[PredWts],MATCH(CONCATENATE(G54,"F"),YieldCalcs[Code],0),1)) ->  | P54: =IF(ISERROR(INDEX(YieldCalcs[PredWts],MATCH(CONCATENATE(G54,"B"),YieldCalcs[Code],0),1)),"",INDEX(YieldCalcs[PredWts],MATCH(CONCATENATE(G54,"B"),YieldCalcs[Code],0),1)) ->  | Q54: =IF(ISERROR(INDEX(YieldCalcs[PredWts],MATCH(CONCATENATE(G54,"Cart"),YieldCalcs[Code],0),1)),"",INDEX(YieldCalcs[PredWts],MATCH(CONCATENATE(G54,"Cart"),YieldCalcs[Code],0),1)) ->  | R54: =IF(ISERROR(INDEX(YieldCalcs[PredWts],MATCH(CONCATENATE(G54,"Pad"),YieldCalcs[Code],0),1)),"",INDEX(YieldCalcs[PredWts],MATCH(CONCATENATE(G54,"Pad"),YieldCalcs[Code],0),1)) ->  | S54: =IF(ISERROR(INDEX(YieldCalcs[PredWts],MATCH(CONCATENATE(G54,"I"),YieldCalcs[Code],0),1)),"",INDEX(YieldCalcs[PredWts],MATCH(CONCATENATE(G54,"I"),YieldCalcs[Code],0),1)) ->  | T54: =IF(ISERROR(INDEX(YieldCalcs[PredWts],MATCH(CONCATENATE(G54,"Skirt"),YieldCalcs[Code],0),1)),"",INDEX(YieldCalcs[PredWts],MATCH(CONCATENATE(G54,"Skirt"),YieldCalcs[Code],0),1)) ->  | U54: =IF(ISERROR(INDEX(YieldCalcs[PredWts],MATCH(CONCATENATE(G54,"RibEnds"),YieldCalcs[Code],0),1)),"",INDEX(YieldCalcs[PredWts],MATCH(CONCATENATE(G54,"RibEnds"),YieldCalcs[Code],0),1)) ->  | V54: =IF(ISERROR(INDEX(YieldCalcs[SalePrice],MATCH(G54,YieldCalcs[Code],0),1)),"",INDEX(YieldCalcs[SalePrice],MATCH(G54,YieldCalcs[Code],0),1)) -> 5.67 | W54: =IF(ISERROR(INDEX(YieldCalcs[CutValue],MATCH(G54,YieldCalcs[Code],0),1)),"",INDEX(YieldCalcs[CutValue],MATCH(G54,YieldCalcs[Code],0),1)) -> 27.7263 | X54: =IF(ISERROR(INDEX(YieldCalcs[GM$],MATCH(G54,YieldCalcs[Code],0),1)),"",INDEX(YieldCalcs[GM$],MATCH(G54,YieldCalcs[Code],0),1)) -> 0.3675894793 | Y54: =IF(ISERROR(INDEX(YieldCalcs[GM%],MATCH(G54,YieldCalcs[Code],0),1)),"",INDEX(YieldCalcs[GM%],MATCH(G54,YieldCalcs[Code],0),1)) -> 0.01325779059 | Z54: =IF(ISERROR(INDEX(YieldCalcs[TGM%],MATCH(G54,YieldCalcs[Code],0),1)),"",INDEX(YieldCalcs[TGM%],MATCH(G54,YieldCalcs[Code],0),1)) -> 0.116 | AA54: =IF(ISERROR(INDEX(YieldCalcs[TSalePrice],MATCH(G54,YieldCalcs[Code],0),1)),"",INDEX(YieldCalcs[TSalePrice],MATCH(G54,YieldCalcs[Code],0),1)) -> 6.328991321 | AB54: =IF(ISNUMBER(INDEX(YieldCalcs[TotCostsPerKg],MATCH(G54,YieldCalcs[Code],0),1)),INDEX(YieldCalcs[TotCostsPerKg],MATCH(G54,YieldCalcs[Code],0),1),"") -> 5.594828327 | AC54: =IF(ISERROR(INDEX(YieldCalcs[PreBoneCperkg],MATCH(G54,YieldCalcs[Code],0),1)),"",INDEX(YieldCalcs[PreBoneCperkg],MATCH(G54,YieldCalcs[Code],0),1)) -> 4.735685962 | AD54: =IF(ISERROR(INDEX(YieldCalcs[FixBoneCostperkg],MATCH(G54,YieldCalcs[Code],0),1)),"",INDEX(YieldCalcs[FixBoneCostperkg],MATCH(G54,YieldCalcs[Code],0),1)) -> 0.04914236557 | AE54: =IF(ISERROR(INDEX(YieldCalcs[BoningCost],MATCH(G54,YieldCalcs[Code],0),1)),"",INDEX(YieldCalcs[BoningCost],MATCH(G54,YieldCalcs[Code],0),1)) -> 0.81 | AF54: =IF(ISNUMBER(INDEX(YieldCalcs[TotCosts],MATCH(G54,YieldCalcs[Code],0),1)),INDEX(YieldCalcs[TotCosts],MATCH(G54,YieldCalcs[Code],0),1),"") -> 27.35871052 | AG54: =IF(ISERROR(INDEX(YieldCalcs[BuyInPrice],MATCH(G54,YieldCalcs[Code],0),1)),"",INDEX(YieldCalcs[BuyInPrice],MATCH(G54,YieldCalcs[Code],0),1)) -> 0
A55: REC% | B55: =SUM(I53:J59,O53:U59)/INDEX(YieldCalcs[PredWts],MATCH("LN03.0",YieldCalcs[Code],0),1) -> 0.9989809783 | E55: Thin Flap Meat | F55: =IF(ISERROR(INDEX(YieldCalcs[Code],MATCH(E55,YieldCalcs[CutName],0),1)),"",INDEX(YieldCalcs[HAM No],MATCH(E55,YieldCalcs[CutName],0),1)) -> 2206 | G55: =IF(ISERROR(INDEX(YieldCalcs[Code],MATCH(E55,YieldCalcs[CutName],0),1)),"",INDEX(YieldCalcs[Code],MATCH(E55,YieldCalcs[CutName],0),1)) -> LN03.3 | H55: =IF(ISNA(MATCH(E55,YieldCalcs[CutName],0)),"",MATCH(E55,YieldCalcs[CutName],0)) -> 191 | I55: =IF(ISERROR(INDEX(YieldCalcs[PredWts],MATCH(G55,YieldCalcs[Code],0),1)),"",INDEX(YieldCalcs[PredWts],MATCH(G55,YieldCalcs[Code],0),1)) -> 12.49 | J55: =IF(ISERROR(INDEX(YieldCalcs[PredWts],MATCH(CONCATENATE(G55,"LT"),YieldCalcs[Code],0),1)),"",INDEX(YieldCalcs[PredWts],MATCH(CONCATENATE(G55,"LT"),YieldCalcs[Code],0),1)) ->  | K55: =IF(ISERROR(INDEX(YieldCalcs[PredWts],MATCH(CONCATENATE(G55,"LT65"),YieldCalcs[Code],0),1)),"",INDEX(YieldCalcs[PredWts],MATCH(CONCATENATE(G55,"LT65"),YieldCalcs[Code],0),1)) ->  | L55: =IF(ISERROR(INDEX(YieldCalcs[PredWts],MATCH(CONCATENATE(G55,"LT75"),YieldCalcs[Code],0),1)),"",INDEX(YieldCalcs[PredWts],MATCH(CONCATENATE(G55,"LT75"),YieldCalcs[Code],0),1)) ->  | M55: =IF(ISERROR(INDEX(YieldCalcs[PredWts],MATCH(CONCATENATE(G55,"LT85"),YieldCalcs[Code],0),1)),"",INDEX(YieldCalcs[PredWts],MATCH(CONCATENATE(G55,"LT85"),YieldCalcs[Code],0),1)) ->  | N55: =IF(ISERROR(INDEX(YieldCalcs[PredWts],MATCH(CONCATENATE(G55,"LT95"),YieldCalcs[Code],0),1)),"",INDEX(YieldCalcs[PredWts],MATCH(CONCATENATE(G55,"LT95"),YieldCalcs[Code],0),1)) ->  | O55: =IF(ISERROR(INDEX(YieldCalcs[PredWts],MATCH(CONCATENATE(G55,"F"),YieldCalcs[Code],0),1)),"",INDEX(YieldCalcs[PredWts],MATCH(CONCATENATE(G55,"F"),YieldCalcs[Code],0),1)) ->  | P55: =IF(ISERROR(INDEX(YieldCalcs[PredWts],MATCH(CONCATENATE(G55,"B"),YieldCalcs[Code],0),1)),"",INDEX(YieldCalcs[PredWts],MATCH(CONCATENATE(G55,"B"),YieldCalcs[Code],0),1)) ->  | Q55: =IF(ISERROR(INDEX(YieldCalcs[PredWts],MATCH(CONCATENATE(G55,"Cart"),YieldCalcs[Code],0),1)),"",INDEX(YieldCalcs[PredWts],MATCH(CONCATENATE(G55,"Cart"),YieldCalcs[Code],0),1)) ->  | R55: =IF(ISERROR(INDEX(YieldCalcs[PredWts],MATCH(CONCATENATE(G55,"Pad"),YieldCalcs[Code],0),1)),"",INDEX(YieldCalcs[PredWts],MATCH(CONCATENATE(G55,"Pad"),YieldCalcs[Code],0),1)) ->  | S55: =IF(ISERROR(INDEX(YieldCalcs[PredWts],MATCH(CONCATENATE(G55,"I"),YieldCalcs[Code],0),1)),"",INDEX(YieldCalcs[PredWts],MATCH(CONCATENATE(G55,"I"),YieldCalcs[Code],0),1)) ->  | T55: =IF(ISERROR(INDEX(YieldCalcs[PredWts],MATCH(CONCATENATE(G55,"Skirt"),YieldCalcs[Code],0),1)),"",INDEX(YieldCalcs[PredWts],MATCH(CONCATENATE(G55,"Skirt"),YieldCalcs[Code],0),1)) ->  | U55: =IF(ISERROR(INDEX(YieldCalcs[PredWts],MATCH(CONCATENATE(G55,"RibEnds"),YieldCalcs[Code],0),1)),"",INDEX(YieldCalcs[PredWts],MATCH(CONCATENATE(G55,"RibEnds"),YieldCalcs[Code],0),1)) ->  | V55: =IF(ISERROR(INDEX(YieldCalcs[SalePrice],MATCH(G55,YieldCalcs[Code],0),1)),"",INDEX(YieldCalcs[SalePrice],MATCH(G55,YieldCalcs[Code],0),1)) -> 5.19 | W55: =IF(ISERROR(INDEX(YieldCalcs[CutValue],MATCH(G55,YieldCalcs[Code],0),1)),"",INDEX(YieldCalcs[CutValue],MATCH(G55,YieldCalcs[Code],0),1)) -> 64.8231 | X55: =IF(ISERROR(INDEX(YieldCalcs[GM$],MATCH(G55,YieldCalcs[Code],0),1)),"",INDEX(YieldCalcs[GM$],MATCH(G55,YieldCalcs[Code],0),1)) -> 0.9388941916 | Y55: =IF(ISERROR(INDEX(YieldCalcs[GM%],MATCH(G55,YieldCalcs[Code],0),1)),"",INDEX(YieldCalcs[GM%],MATCH(G55,YieldCalcs[Code],0),1)) -> 0.01448394464 | Z55: =IF(ISERROR(INDEX(YieldCalcs[TGM%],MATCH(G55,YieldCalcs[Code],0),1)),"",INDEX(YieldCalcs[TGM%],MATCH(G55,YieldCalcs[Code],0),1)) -> 0.068 | AA55: =IF(ISERROR(INDEX(YieldCalcs[TSalePrice],MATCH(G55,YieldCalcs[Code],0),1)),"",INDEX(YieldCalcs[TSalePrice],MATCH(G55,YieldCalcs[Code],0),1)) -> 5.488013227 | AB55: =IF(ISNUMBER(INDEX(YieldCalcs[TotCostsPerKg],MATCH(G55,YieldCalcs[Code],0),1)),INDEX(YieldCalcs[TotCostsPerKg],MATCH(G55,YieldCalcs[Code],0),1),"") -> 5.114828327 | AC55: =IF(ISERROR(INDEX(YieldCalcs[PreBoneCperkg],MATCH(G55,YieldCalcs[Code],0),1)),"",INDEX(YieldCalcs[PreBoneCperkg],MATCH(G55,YieldCalcs[Code],0),1)) -> 4.735685962 | AD55: =IF(ISERROR(INDEX(YieldCalcs[FixBoneCostperkg],MATCH(G55,YieldCalcs[Code],0),1)),"",INDEX(YieldCalcs[FixBoneCostperkg],MATCH(G55,YieldCalcs[Code],0),1)) -> 0.04914236557 | AE55: =IF(ISERROR(INDEX(YieldCalcs[BoningCost],MATCH(G55,YieldCalcs[Code],0),1)),"",INDEX(YieldCalcs[BoningCost],MATCH(G55,YieldCalcs[Code],0),1)) -> 0.33 | AF55: =IF(ISNUMBER(INDEX(YieldCalcs[TotCosts],MATCH(G55,YieldCalcs[Code],0),1)),INDEX(YieldCalcs[TotCosts],MATCH(G55,YieldCalcs[Code],0),1),"") -> 63.88420581 | AG55: =IF(ISERROR(INDEX(YieldCalcs[BuyInPrice],MATCH(G55,YieldCalcs[Code],0),1)),"",INDEX(YieldCalcs[BuyInPrice],MATCH(G55,YieldCalcs[Code],0),1)) -> 0
A56: =IF(Lists!F183=1,"WARNING: Check Recovery","") ->  | F56: =IF(ISERROR(INDEX(YieldCalcs[Code],MATCH(E56,YieldCalcs[CutName],0),1)),"",INDEX(YieldCalcs[HAM No],MATCH(E56,YieldCalcs[CutName],0),1)) ->  | G56: =IF(ISERROR(INDEX(YieldCalcs[Code],MATCH(E56,YieldCalcs[CutName],0),1)),"",INDEX(YieldCalcs[Code],MATCH(E56,YieldCalcs[CutName],0),1)) ->  | H56: =IF(ISNA(MATCH(E56,YieldCalcs[CutName],0)),"",MATCH(E56,YieldCalcs[CutName],0)) ->  | I56: =IF(ISERROR(INDEX(YieldCalcs[PredWts],MATCH(G56,YieldCalcs[Code],0),1)),"",INDEX(YieldCalcs[PredWts],MATCH(G56,YieldCalcs[Code],0),1)) ->  | J56: =IF(ISERROR(INDEX(YieldCalcs[PredWts],MATCH(CONCATENATE(G56,"LT"),YieldCalcs[Code],0),1)),"",INDEX(YieldCalcs[PredWts],MATCH(CONCATENATE(G56,"LT"),YieldCalcs[Code],0),1)) ->  | K56: =IF(ISERROR(INDEX(YieldCalcs[PredWts],MATCH(CONCATENATE(G56,"LT65"),YieldCalcs[Code],0),1)),"",INDEX(YieldCalcs[PredWts],MATCH(CONCATENATE(G56,"LT65"),YieldCalcs[Code],0),1)) ->  | L56: =IF(ISERROR(INDEX(YieldCalcs[PredWts],MATCH(CONCATENATE(G56,"LT75"),YieldCalcs[Code],0),1)),"",INDEX(YieldCalcs[PredWts],MATCH(CONCATENATE(G56,"LT75"),YieldCalcs[Code],0),1)) ->  | M56: =IF(ISERROR(INDEX(YieldCalcs[PredWts],MATCH(CONCATENATE(G56,"LT85"),YieldCalcs[Code],0),1)),"",INDEX(YieldCalcs[PredWts],MATCH(CONCATENATE(G56,"LT85"),YieldCalcs[Code],0),1)) ->  | N56: =IF(ISERROR(INDEX(YieldCalcs[PredWts],MATCH(CONCATENATE(G56,"LT95"),YieldCalcs[Code],0),1)),"",INDEX(YieldCalcs[PredWts],MATCH(CONCATENATE(G56,"LT95"),YieldCalcs[Code],0),1)) ->  | O56: =IF(ISERROR(INDEX(YieldCalcs[PredWts],MATCH(CONCATENATE(G56,"F"),YieldCalcs[Code],0),1)),"",INDEX(YieldCalcs[PredWts],MATCH(CONCATENATE(G56,"F"),YieldCalcs[Code],0),1)) ->  | P56: =IF(ISERROR(INDEX(YieldCalcs[PredWts],MATCH(CONCATENATE(G56,"B"),YieldCalcs[Code],0),1)),"",INDEX(YieldCalcs[PredWts],MATCH(CONCATENATE(G56,"B"),YieldCalcs[Code],0),1)) ->  | Q56: =IF(ISERROR(INDEX(YieldCalcs[PredWts],MATCH(CONCATENATE(G56,"Cart"),YieldCalcs[Code],0),1)),"",INDEX(YieldCalcs[PredWts],MATCH(CONCATENATE(G56,"Cart"),YieldCalcs[Code],0),1)) ->  | R56: =IF(ISERROR(INDEX(YieldCalcs[PredWts],MATCH(CONCATENATE(G56,"Pad"),YieldCalcs[Code],0),1)),"",INDEX(YieldCalcs[PredWts],MATCH(CONCATENATE(G56,"Pad"),YieldCalcs[Code],0),1)) ->  | S56: =IF(ISERROR(INDEX(YieldCalcs[PredWts],MATCH(CONCATENATE(G56,"I"),YieldCalcs[Code],0),1)),"",INDEX(YieldCalcs[PredWts],MATCH(CONCATENATE(G56,"I"),YieldCalcs[Code],0),1)) ->  | T56: =IF(ISERROR(INDEX(YieldCalcs[PredWts],MATCH(CONCATENATE(G56,"Skirt"),YieldCalcs[Code],0),1)),"",INDEX(YieldCalcs[PredWts],MATCH(CONCATENATE(G56,"Skirt"),YieldCalcs[Code],0),1)) ->  | U56: =IF(ISERROR(INDEX(YieldCalcs[PredWts],MATCH(CONCATENATE(G56,"RibEnds"),YieldCalcs[Code],0),1)),"",INDEX(YieldCalcs[PredWts],MATCH(CONCATENATE(G56,"RibEnds"),YieldCalcs[Code],0),1)) ->  | V56: =IF(ISERROR(INDEX(YieldCalcs[SalePrice],MATCH(G56,YieldCalcs[Code],0),1)),"",INDEX(YieldCalcs[SalePrice],MATCH(G56,YieldCalcs[Code],0),1)) ->  | W56: =IF(ISERROR(INDEX(YieldCalcs[CutValue],MATCH(G56,YieldCalcs[Code],0),1)),"",INDEX(YieldCalcs[CutValue],MATCH(G56,YieldCalcs[Code],0),1)) ->  | X56: =IF(ISERROR(INDEX(YieldCalcs[GM$],MATCH(G56,YieldCalcs[Code],0),1)),"",INDEX(YieldCalcs[GM$],MATCH(G56,YieldCalcs[Code],0),1)) ->  | Y56: =IF(ISERROR(INDEX(YieldCalcs[GM%],MATCH(G56,YieldCalcs[Code],0),1)),"",INDEX(YieldCalcs[GM%],MATCH(G56,YieldCalcs[Code],0),1)) ->  | Z56: =IF(ISERROR(INDEX(YieldCalcs[TGM%],MATCH(G56,YieldCalcs[Code],0),1)),"",INDEX(YieldCalcs[TGM%],MATCH(G56,YieldCalcs[Code],0),1)) ->  | AA56: =IF(ISERROR(INDEX(YieldCalcs[TSalePrice],MATCH(G56,YieldCalcs[Code],0),1)),"",INDEX(YieldCalcs[TSalePrice],MATCH(G56,YieldCalcs[Code],0),1)) ->  | AB56: =IF(ISNUMBER(INDEX(YieldCalcs[TotCostsPerKg],MATCH(G56,YieldCalcs[Code],0),1)),INDEX(YieldCalcs[TotCostsPerKg],MATCH(G56,YieldCalcs[Code],0),1),"") ->  | AC56: =IF(ISERROR(INDEX(YieldCalcs[PreBoneCperkg],MATCH(G56,YieldCalcs[Code],0),1)),"",INDEX(YieldCalcs[PreBoneCperkg],MATCH(G56,YieldCalcs[Code],0),1)) ->  | AD56: =IF(ISERROR(INDEX(YieldCalcs[FixBoneCostperkg],MATCH(G56,YieldCalcs[Code],0),1)),"",INDEX(YieldCalcs[FixBoneCostperkg],MATCH(G56,YieldCalcs[Code],0),1)) ->  | AE56: =IF(ISERROR(INDEX(YieldCalcs[BoningCost],MATCH(G56,YieldCalcs[Code],0),1)),"",INDEX(YieldCalcs[BoningCost],MATCH(G56,YieldCalcs[Code],0),1)) ->  | AF56: =IF(ISNUMBER(INDEX(YieldCalcs[TotCosts],MATCH(G56,YieldCalcs[Code],0),1)),INDEX(YieldCalcs[TotCosts],MATCH(G56,YieldCalcs[Code],0),1),"") ->  | AG56: =IF(ISERROR(INDEX(YieldCalcs[BuyInPrice],MATCH(G56,YieldCalcs[Code],0),1)),"",INDEX(YieldCalcs[BuyInPrice],MATCH(G56,YieldCalcs[Code],0),1)) -> 
F57: =IF(ISERROR(INDEX(YieldCalcs[Code],MATCH(E57,YieldCalcs[CutName],0),1)),"",INDEX(YieldCalcs[HAM No],MATCH(E57,YieldCalcs[CutName],0),1)) ->  | G57: =IF(ISERROR(INDEX(YieldCalcs[Code],MATCH(E57,YieldCalcs[CutName],0),1)),"",INDEX(YieldCalcs[Code],MATCH(E57,YieldCalcs[CutName],0),1)) ->  | H57: =IF(ISNA(MATCH(E57,YieldCalcs[CutName],0)),"",MATCH(E57,YieldCalcs[CutName],0)) ->  | I57: =IF(ISERROR(INDEX(YieldCalcs[PredWts],MATCH(G57,YieldCalcs[Code],0),1)),"",INDEX(YieldCalcs[PredWts],MATCH(G57,YieldCalcs[Code],0),1)) ->  | J57: =IF(ISERROR(INDEX(YieldCalcs[PredWts],MATCH(CONCATENATE(G57,"LT"),YieldCalcs[Code],0),1)),"",INDEX(YieldCalcs[PredWts],MATCH(CONCATENATE(G57,"LT"),YieldCalcs[Code],0),1)) ->  | K57: =IF(ISERROR(INDEX(YieldCalcs[PredWts],MATCH(CONCATENATE(G57,"LT65"),YieldCalcs[Code],0),1)),"",INDEX(YieldCalcs[PredWts],MATCH(CONCATENATE(G57,"LT65"),YieldCalcs[Code],0),1)) ->  | L57: =IF(ISERROR(INDEX(YieldCalcs[PredWts],MATCH(CONCATENATE(G57,"LT75"),YieldCalcs[Code],0),1)),"",INDEX(YieldCalcs[PredWts],MATCH(CONCATENATE(G57,"LT75"),YieldCalcs[Code],0),1)) ->  | M57: =IF(ISERROR(INDEX(YieldCalcs[PredWts],MATCH(CONCATENATE(G57,"LT85"),YieldCalcs[Code],0),1)),"",INDEX(YieldCalcs[PredWts],MATCH(CONCATENATE(G57,"LT85"),YieldCalcs[Code],0),1)) ->  | N57: =IF(ISERROR(INDEX(YieldCalcs[PredWts],MATCH(CONCATENATE(G57,"LT95"),YieldCalcs[Code],0),1)),"",INDEX(YieldCalcs[PredWts],MATCH(CONCATENATE(G57,"LT95"),YieldCalcs[Code],0),1)) ->  | O57: =IF(ISERROR(INDEX(YieldCalcs[PredWts],MATCH(CONCATENATE(G57,"F"),YieldCalcs[Code],0),1)),"",INDEX(YieldCalcs[PredWts],MATCH(CONCATENATE(G57,"F"),YieldCalcs[Code],0),1)) ->  | P57: =IF(ISERROR(INDEX(YieldCalcs[PredWts],MATCH(CONCATENATE(G57,"B"),YieldCalcs[Code],0),1)),"",INDEX(YieldCalcs[PredWts],MATCH(CONCATENATE(G57,"B"),YieldCalcs[Code],0),1)) ->  | Q57: =IF(ISERROR(INDEX(YieldCalcs[PredWts],MATCH(CONCATENATE(G57,"Cart"),YieldCalcs[Code],0),1)),"",INDEX(YieldCalcs[PredWts],MATCH(CONCATENATE(G57,"Cart"),YieldCalcs[Code],0),1)) ->  | R57: =IF(ISERROR(INDEX(YieldCalcs[PredWts],MATCH(CONCATENATE(G57,"Pad"),YieldCalcs[Code],0),1)),"",INDEX(YieldCalcs[PredWts],MATCH(CONCATENATE(G57,"Pad"),YieldCalcs[Code],0),1)) ->  | S57: =IF(ISERROR(INDEX(YieldCalcs[PredWts],MATCH(CONCATENATE(G57,"I"),YieldCalcs[Code],0),1)),"",INDEX(YieldCalcs[PredWts],MATCH(CONCATENATE(G57,"I"),YieldCalcs[Code],0),1)) ->  | T57: =IF(ISERROR(INDEX(YieldCalcs[PredWts],MATCH(CONCATENATE(G57,"Skirt"),YieldCalcs[Code],0),1)),"",INDEX(YieldCalcs[PredWts],MATCH(CONCATENATE(G57,"Skirt"),YieldCalcs[Code],0),1)) ->  | U57: =IF(ISERROR(INDEX(YieldCalcs[PredWts],MATCH(CONCATENATE(G57,"RibEnds"),YieldCalcs[Code],0),1)),"",INDEX(YieldCalcs[PredWts],MATCH(CONCATENATE(G57,"RibEnds"),YieldCalcs[Code],0),1)) ->  | V57: =IF(ISERROR(INDEX(YieldCalcs[SalePrice],MATCH(G57,YieldCalcs[Code],0),1)),"",INDEX(YieldCalcs[SalePrice],MATCH(G57,YieldCalcs[Code],0),1)) ->  | W57: =IF(ISERROR(INDEX(YieldCalcs[CutValue],MATCH(G57,YieldCalcs[Code],0),1)),"",INDEX(YieldCalcs[CutValue],MATCH(G57,YieldCalcs[Code],0),1)) ->  | X57: =IF(ISERROR(INDEX(YieldCalcs[GM$],MATCH(G57,YieldCalcs[Code],0),1)),"",INDEX(YieldCalcs[GM$],MATCH(G57,YieldCalcs[Code],0),1)) ->  | Y57: =IF(ISERROR(INDEX(YieldCalcs[GM%],MATCH(G57,YieldCalcs[Code],0),1)),"",INDEX(YieldCalcs[GM%],MATCH(G57,YieldCalcs[Code],0),1)) ->  | Z57: =IF(ISERROR(INDEX(YieldCalcs[TGM%],MATCH(G57,YieldCalcs[Code],0),1)),"",INDEX(YieldCalcs[TGM%],MATCH(G57,YieldCalcs[Code],0),1)) ->  | AA57: =IF(ISERROR(INDEX(YieldCalcs[TSalePrice],MATCH(G57,YieldCalcs[Code],0),1)),"",INDEX(YieldCalcs[TSalePrice],MATCH(G57,YieldCalcs[Code],0),1)) ->  | AB57: =IF(ISNUMBER(INDEX(YieldCalcs[TotCostsPerKg],MATCH(G57,YieldCalcs[Code],0),1)),INDEX(YieldCalcs[TotCostsPerKg],MATCH(G57,YieldCalcs[Code],0),1),"") ->  | AC57: =IF(ISERROR(INDEX(YieldCalcs[PreBoneCperkg],MATCH(G57,YieldCalcs[Code],0),1)),"",INDEX(YieldCalcs[PreBoneCperkg],MATCH(G57,YieldCalcs[Code],0),1)) ->  | AD57: =IF(ISERROR(INDEX(YieldCalcs[FixBoneCostperkg],MATCH(G57,YieldCalcs[Code],0),1)),"",INDEX(YieldCalcs[FixBoneCostperkg],MATCH(G57,YieldCalcs[Code],0),1)) ->  | AE57: =IF(ISERROR(INDEX(YieldCalcs[BoningCost],MATCH(G57,YieldCalcs[Code],0),1)),"",INDEX(YieldCalcs[BoningCost],MATCH(G57,YieldCalcs[Code],0),1)) ->  | AF57: =IF(ISNUMBER(INDEX(YieldCalcs[TotCosts],MATCH(G57,YieldCalcs[Code],0),1)),INDEX(YieldCalcs[TotCosts],MATCH(G57,YieldCalcs[Code],0),1),"") ->  | AG57: =IF(ISERROR(INDEX(YieldCalcs[BuyInPrice],MATCH(G57,YieldCalcs[Code],0),1)),"",INDEX(YieldCalcs[BuyInPrice],MATCH(G57,YieldCalcs[Code],0),1)) -> 
F58: =IF(ISERROR(INDEX(YieldCalcs[Code],MATCH(E58,YieldCalcs[CutName],0),1)),"",INDEX(YieldCalcs[HAM No],MATCH(E58,YieldCalcs[CutName],0),1)) ->  | G58: =IF(ISERROR(INDEX(YieldCalcs[Code],MATCH(E58,YieldCalcs[CutName],0),1)),"",INDEX(YieldCalcs[Code],MATCH(E58,YieldCalcs[CutName],0),1)) ->  | H58: =IF(ISNA(MATCH(E58,YieldCalcs[CutName],0)),"",MATCH(E58,YieldCalcs[CutName],0)) ->  | I58: =IF(ISERROR(INDEX(YieldCalcs[PredWts],MATCH(G58,YieldCalcs[Code],0),1)),"",INDEX(YieldCalcs[PredWts],MATCH(G58,YieldCalcs[Code],0),1)) ->  | J58: =IF(ISERROR(INDEX(YieldCalcs[PredWts],MATCH(CONCATENATE(G58,"LT"),YieldCalcs[Code],0),1)),"",INDEX(YieldCalcs[PredWts],MATCH(CONCATENATE(G58,"LT"),YieldCalcs[Code],0),1)) ->  | K58: =IF(ISERROR(INDEX(YieldCalcs[PredWts],MATCH(CONCATENATE(G58,"LT65"),YieldCalcs[Code],0),1)),"",INDEX(YieldCalcs[PredWts],MATCH(CONCATENATE(G58,"LT65"),YieldCalcs[Code],0),1)) ->  | L58: =IF(ISERROR(INDEX(YieldCalcs[PredWts],MATCH(CONCATENATE(G58,"LT75"),YieldCalcs[Code],0),1)),"",INDEX(YieldCalcs[PredWts],MATCH(CONCATENATE(G58,"LT75"),YieldCalcs[Code],0),1)) ->  | M58: =IF(ISERROR(INDEX(YieldCalcs[PredWts],MATCH(CONCATENATE(G58,"LT85"),YieldCalcs[Code],0),1)),"",INDEX(YieldCalcs[PredWts],MATCH(CONCATENATE(G58,"LT85"),YieldCalcs[Code],0),1)) ->  | N58: =IF(ISERROR(INDEX(YieldCalcs[PredWts],MATCH(CONCATENATE(G58,"LT95"),YieldCalcs[Code],0),1)),"",INDEX(YieldCalcs[PredWts],MATCH(CONCATENATE(G58,"LT95"),YieldCalcs[Code],0),1)) ->  | O58: =IF(ISERROR(INDEX(YieldCalcs[PredWts],MATCH(CONCATENATE(G58,"F"),YieldCalcs[Code],0),1)),"",INDEX(YieldCalcs[PredWts],MATCH(CONCATENATE(G58,"F"),YieldCalcs[Code],0),1)) ->  | P58: =IF(ISERROR(INDEX(YieldCalcs[PredWts],MATCH(CONCATENATE(G58,"B"),YieldCalcs[Code],0),1)),"",INDEX(YieldCalcs[PredWts],MATCH(CONCATENATE(G58,"B"),YieldCalcs[Code],0),1)) ->  | Q58: =IF(ISERROR(INDEX(YieldCalcs[PredWts],MATCH(CONCATENATE(G58,"Cart"),YieldCalcs[Code],0),1)),"",INDEX(YieldCalcs[PredWts],MATCH(CONCATENATE(G58,"Cart"),YieldCalcs[Code],0),1)) ->  | R58: =IF(ISERROR(INDEX(YieldCalcs[PredWts],MATCH(CONCATENATE(G58,"Pad"),YieldCalcs[Code],0),1)),"",INDEX(YieldCalcs[PredWts],MATCH(CONCATENATE(G58,"Pad"),YieldCalcs[Code],0),1)) ->  | S58: =IF(ISERROR(INDEX(YieldCalcs[PredWts],MATCH(CONCATENATE(G58,"I"),YieldCalcs[Code],0),1)),"",INDEX(YieldCalcs[PredWts],MATCH(CONCATENATE(G58,"I"),YieldCalcs[Code],0),1)) ->  | T58: =IF(ISERROR(INDEX(YieldCalcs[PredWts],MATCH(CONCATENATE(G58,"Skirt"),YieldCalcs[Code],0),1)),"",INDEX(YieldCalcs[PredWts],MATCH(CONCATENATE(G58,"Skirt"),YieldCalcs[Code],0),1)) ->  | U58: =IF(ISERROR(INDEX(YieldCalcs[PredWts],MATCH(CONCATENATE(G58,"RibEnds"),YieldCalcs[Code],0),1)),"",INDEX(YieldCalcs[PredWts],MATCH(CONCATENATE(G58,"RibEnds"),YieldCalcs[Code],0),1)) ->  | V58: =IF(ISERROR(INDEX(YieldCalcs[SalePrice],MATCH(G58,YieldCalcs[Code],0),1)),"",INDEX(YieldCalcs[SalePrice],MATCH(G58,YieldCalcs[Code],0),1)) ->  | W58: =IF(ISERROR(INDEX(YieldCalcs[CutValue],MATCH(G58,YieldCalcs[Code],0),1)),"",INDEX(YieldCalcs[CutValue],MATCH(G58,YieldCalcs[Code],0),1)) ->  | X58: =IF(ISERROR(INDEX(YieldCalcs[GM$],MATCH(G58,YieldCalcs[Code],0),1)),"",INDEX(YieldCalcs[GM$],MATCH(G58,YieldCalcs[Code],0),1)) ->  | Y58: =IF(ISERROR(INDEX(YieldCalcs[GM%],MATCH(G58,YieldCalcs[Code],0),1)),"",INDEX(YieldCalcs[GM%],MATCH(G58,YieldCalcs[Code],0),1)) ->  | Z58: =IF(ISERROR(INDEX(YieldCalcs[TGM%],MATCH(G58,YieldCalcs[Code],0),1)),"",INDEX(YieldCalcs[TGM%],MATCH(G58,YieldCalcs[Code],0),1)) ->  | AA58: =IF(ISERROR(INDEX(YieldCalcs[TSalePrice],MATCH(G58,YieldCalcs[Code],0),1)),"",INDEX(YieldCalcs[TSalePrice],MATCH(G58,YieldCalcs[Code],0),1)) ->  | AB58: =IF(ISNUMBER(INDEX(YieldCalcs[TotCostsPerKg],MATCH(G58,YieldCalcs[Code],0),1)),INDEX(YieldCalcs[TotCostsPerKg],MATCH(G58,YieldCalcs[Code],0),1),"") ->  | AC58: =IF(ISERROR(INDEX(YieldCalcs[PreBoneCperkg],MATCH(G58,YieldCalcs[Code],0),1)),"",INDEX(YieldCalcs[PreBoneCperkg],MATCH(G58,YieldCalcs[Code],0),1)) ->  | AD58: =IF(ISERROR(INDEX(YieldCalcs[FixBoneCostperkg],MATCH(G58,YieldCalcs[Code],0),1)),"",INDEX(YieldCalcs[FixBoneCostperkg],MATCH(G58,YieldCalcs[Code],0),1)) ->  | AE58: =IF(ISERROR(INDEX(YieldCalcs[BoningCost],MATCH(G58,YieldCalcs[Code],0),1)),"",INDEX(YieldCalcs[BoningCost],MATCH(G58,YieldCalcs[Code],0),1)) ->  | AF58: =IF(ISNUMBER(INDEX(YieldCalcs[TotCosts],MATCH(G58,YieldCalcs[Code],0),1)),INDEX(YieldCalcs[TotCosts],MATCH(G58,YieldCalcs[Code],0),1),"") ->  | AG58: =IF(ISERROR(INDEX(YieldCalcs[BuyInPrice],MATCH(G58,YieldCalcs[Code],0),1)),"",INDEX(YieldCalcs[BuyInPrice],MATCH(G58,YieldCalcs[Code],0),1)) -> 
F59: =IF(ISERROR(INDEX(YieldCalcs[Code],MATCH(E59,YieldCalcs[CutName],0),1)),"",INDEX(YieldCalcs[HAM No],MATCH(E59,YieldCalcs[CutName],0),1)) ->  | G59: =IF(ISERROR(INDEX(YieldCalcs[Code],MATCH(E59,YieldCalcs[CutName],0),1)),"",INDEX(YieldCalcs[Code],MATCH(E59,YieldCalcs[CutName],0),1)) ->  | H59: =IF(ISNA(MATCH(E59,YieldCalcs[CutName],0)),"",MATCH(E59,YieldCalcs[CutName],0)) ->  | I59: =IF(ISERROR(INDEX(YieldCalcs[PredWts],MATCH(G59,YieldCalcs[Code],0),1)),"",INDEX(YieldCalcs[PredWts],MATCH(G59,YieldCalcs[Code],0),1)) ->  | J59: =IF(ISERROR(INDEX(YieldCalcs[PredWts],MATCH(CONCATENATE(G59,"LT"),YieldCalcs[Code],0),1)),"",INDEX(YieldCalcs[PredWts],MATCH(CONCATENATE(G59,"LT"),YieldCalcs[Code],0),1)) ->  | K59: =IF(ISERROR(INDEX(YieldCalcs[PredWts],MATCH(CONCATENATE(G59,"LT65"),YieldCalcs[Code],0),1)),"",INDEX(YieldCalcs[PredWts],MATCH(CONCATENATE(G59,"LT65"),YieldCalcs[Code],0),1)) ->  | L59: =IF(ISERROR(INDEX(YieldCalcs[PredWts],MATCH(CONCATENATE(G59,"LT75"),YieldCalcs[Code],0),1)),"",INDEX(YieldCalcs[PredWts],MATCH(CONCATENATE(G59,"LT75"),YieldCalcs[Code],0),1)) ->  | M59: =IF(ISERROR(INDEX(YieldCalcs[PredWts],MATCH(CONCATENATE(G59,"LT85"),YieldCalcs[Code],0),1)),"",INDEX(YieldCalcs[PredWts],MATCH(CONCATENATE(G59,"LT85"),YieldCalcs[Code],0),1)) ->  | N59: =IF(ISERROR(INDEX(YieldCalcs[PredWts],MATCH(CONCATENATE(G59,"LT95"),YieldCalcs[Code],0),1)),"",INDEX(YieldCalcs[PredWts],MATCH(CONCATENATE(G59,"LT95"),YieldCalcs[Code],0),1)) ->  | O59: =IF(ISERROR(INDEX(YieldCalcs[PredWts],MATCH(CONCATENATE(G59,"F"),YieldCalcs[Code],0),1)),"",INDEX(YieldCalcs[PredWts],MATCH(CONCATENATE(G59,"F"),YieldCalcs[Code],0),1)) ->  | P59: =IF(ISERROR(INDEX(YieldCalcs[PredWts],MATCH(CONCATENATE(G59,"B"),YieldCalcs[Code],0),1)),"",INDEX(YieldCalcs[PredWts],MATCH(CONCATENATE(G59,"B"),YieldCalcs[Code],0),1)) ->  | Q59: =IF(ISERROR(INDEX(YieldCalcs[PredWts],MATCH(CONCATENATE(G59,"Cart"),YieldCalcs[Code],0),1)),"",INDEX(YieldCalcs[PredWts],MATCH(CONCATENATE(G59,"Cart"),YieldCalcs[Code],0),1)) ->  | R59: =IF(ISERROR(INDEX(YieldCalcs[PredWts],MATCH(CONCATENATE(G59,"Pad"),YieldCalcs[Code],0),1)),"",INDEX(YieldCalcs[PredWts],MATCH(CONCATENATE(G59,"Pad"),YieldCalcs[Code],0),1)) ->  | S59: =IF(ISERROR(INDEX(YieldCalcs[PredWts],MATCH(CONCATENATE(G59,"I"),YieldCalcs[Code],0),1)),"",INDEX(YieldCalcs[PredWts],MATCH(CONCATENATE(G59,"I"),YieldCalcs[Code],0),1)) ->  | T59: =IF(ISERROR(INDEX(YieldCalcs[PredWts],MATCH(CONCATENATE(G59,"Skirt"),YieldCalcs[Code],0),1)),"",INDEX(YieldCalcs[PredWts],MATCH(CONCATENATE(G59,"Skirt"),YieldCalcs[Code],0),1)) ->  | U59: =IF(ISERROR(INDEX(YieldCalcs[PredWts],MATCH(CONCATENATE(G59,"RibEnds"),YieldCalcs[Code],0),1)),"",INDEX(YieldCalcs[PredWts],MATCH(CONCATENATE(G59,"RibEnds"),YieldCalcs[Code],0),1)) ->  | V59: =IF(ISERROR(INDEX(YieldCalcs[SalePrice],MATCH(G59,YieldCalcs[Code],0),1)),"",INDEX(YieldCalcs[SalePrice],MATCH(G59,YieldCalcs[Code],0),1)) ->  | W59: =IF(ISERROR(INDEX(YieldCalcs[CutValue],MATCH(G59,YieldCalcs[Code],0),1)),"",INDEX(YieldCalcs[CutValue],MATCH(G59,YieldCalcs[Code],0),1)) ->  | AC59: =IF(ISERROR(INDEX(YieldCalcs[PreBoneCperkg],MATCH(G59,YieldCalcs[Code],0),1)),"",INDEX(YieldCalcs[PreBoneCperkg],MATCH(G59,YieldCalcs[Code],0),1)) ->  | AD59: =IF(ISERROR(INDEX(YieldCalcs[FixBoneCostperkg],MATCH(G59,YieldCalcs[Code],0),1)),"",INDEX(YieldCalcs[FixBoneCostperkg],MATCH(G59,YieldCalcs[Code],0),1)) ->  | AE59: =IF(ISERROR(INDEX(YieldCalcs[BoningCost],MATCH(G59,YieldCalcs[Code],0),1)),"",INDEX(YieldCalcs[BoningCost],MATCH(G59,YieldCalcs[Code],0),1)) ->  | AF59: =IF(ISNUMBER(INDEX(YieldCalcs[TotCosts],MATCH(G59,YieldCalcs[Code],0),1)),INDEX(YieldCalcs[TotCosts],MATCH(G59,YieldCalcs[Code],0),1),"") ->  | AG59: =IF(ISERROR(INDEX(YieldCalcs[BuyInPrice],MATCH(G59,YieldCalcs[Code],0),1)),"",INDEX(YieldCalcs[BuyInPrice],MATCH(G59,YieldCalcs[Code],0),1)) -> 
A60: REC% | B60: =SUM(I60:J60,O60:U60)/INDEX(YieldCalcs[PredWts],MATCH("LN01.0",YieldCalcs[Code],0),1) -> 0.9921709346 | E60: Loin Saleable Meat Totals: | I60: =SUBTOTAL(9,I45:I59) -> 40.14 | J60: 0.85 | K60: 0.78 | L60: 0.05 | M60: 0.01 | N60: 0 | O60: 13.86 | P60: 5.98 | Q60: 0 | R60: 0 | S60: 0 | T60: 0 | U60: 0 | W60: =SUBTOTAL(9,W45:W59) -> 210.068 | X60: =SUBTOTAL(9,X45:X59) -> -3.698206632 | Y60: =IFERROR(X60/W60,0) -> -0.01760480717 | AC60: =SUMPRODUCT($I$45:$I$59,AC45:AC59) -> 196.7370598 | AD60: =SUMPRODUCT($I$45:$I$59,AD45:AD59) -> 2.041546799 | AE60: =SUMPRODUCT($I$45:$I$59,AE45:AE59) -> 14.9876 | AF60: =SUBTOTAL(9,AF45:AF59) -> 213.7662066
A61: =IF(Lists!$F$182,"WARNING: Check Recovery","") ->  | G61: =IF(ISERROR(INDEX(YieldCalcs[Code],MATCH(E61,YieldCalcs[CutName],0),1)),"",INDEX(YieldCalcs[Code],MATCH(E61,YieldCalcs[CutName],0),1)) ->  | J61: =IF(ISERROR(INDEX(YieldCalcs[PredWts],MATCH(CONCATENATE(G61,"LT"),YieldCalcs[Code],0),1)),"",INDEX(YieldCalcs[PredWts],MATCH(CONCATENATE(G61,"LT"),YieldCalcs[Code],0),1)) ->  | K61: =IF(ISERROR(INDEX(YieldCalcs[PredWts],MATCH(CONCATENATE(G61,"LT65"),YieldCalcs[Code],0),1)),"",INDEX(YieldCalcs[PredWts],MATCH(CONCATENATE(G61,"LT65"),YieldCalcs[Code],0),1)) ->  | L61: =IF(ISERROR(INDEX(YieldCalcs[PredWts],MATCH(CONCATENATE(G61,"LT75"),YieldCalcs[Code],0),1)),"",INDEX(YieldCalcs[PredWts],MATCH(CONCATENATE(G61,"LT75"),YieldCalcs[Code],0),1)) ->  | M61: =IF(ISERROR(INDEX(YieldCalcs[PredWts],MATCH(CONCATENATE(G61,"LT85"),YieldCalcs[Code],0),1)),"",INDEX(YieldCalcs[PredWts],MATCH(CONCATENATE(G61,"LT85"),YieldCalcs[Code],0),1)) ->  | N61: =IF(ISERROR(INDEX(YieldCalcs[PredWts],MATCH(CONCATENATE(G61,"LT95"),YieldCalcs[Code],0),1)),"",INDEX(YieldCalcs[PredWts],MATCH(CONCATENATE(G61,"LT95"),YieldCalcs[Code],0),1)) ->  | O61: =IF(ISERROR(INDEX(YieldCalcs[PredWts],MATCH(CONCATENATE(G61,"F"),YieldCalcs[Code],0),1)),"",INDEX(YieldCalcs[PredWts],MATCH(CONCATENATE(G61,"F"),YieldCalcs[Code],0),1)) ->  | P61: =IF(ISERROR(INDEX(YieldCalcs[PredWts],MATCH(CONCATENATE(G61,"B"),YieldCalcs[Code],0),1)),"",INDEX(YieldCalcs[PredWts],MATCH(CONCATENATE(G61,"B"),YieldCalcs[Code],0),1)) ->  | Q61: =IF(ISERROR(INDEX(YieldCalcs[PredWts],MATCH(CONCATENATE(G61,"Cart"),YieldCalcs[Code],0),1)),"",INDEX(YieldCalcs[PredWts],MATCH(CONCATENATE(G61,"Cart"),YieldCalcs[Code],0),1)) ->  | R61: =IF(ISERROR(INDEX(YieldCalcs[PredWts],MATCH(CONCATENATE(G61,"Pad"),YieldCalcs[Code],0),1)),"",INDEX(YieldCalcs[PredWts],MATCH(CONCATENATE(G61,"Pad"),YieldCalcs[Code],0),1)) ->  | S61: =IF(ISERROR(INDEX(YieldCalcs[PredWts],MATCH(CONCATENATE(G61,"I"),YieldCalcs[Code],0),1)),"",INDEX(YieldCalcs[PredWts],MATCH(CONCATENATE(G61,"I"),YieldCalcs[Code],0),1)) ->  | T61: =IF(ISERROR(INDEX(YieldCalcs[PredWts],MATCH(CONCATENATE(G61,"Skirt"),YieldCalcs[Code],0),1)),"",INDEX(YieldCalcs[PredWts],MATCH(CONCATENATE(G61,"Skirt"),YieldCalcs[Code],0),1)) ->  | U61: =IF(ISERROR(INDEX(YieldCalcs[PredWts],MATCH(CONCATENATE(G61,"RibEnds"),YieldCalcs[Code],0),1)),"",INDEX(YieldCalcs[PredWts],MATCH(CONCATENATE(G61,"RibEnds"),YieldCalcs[Code],0),1)) ->  | V61: =IF(ISERROR(INDEX(YieldCalcs[SalePrice],MATCH(G61,YieldCalcs[Code],0),1)),"",INDEX(YieldCalcs[SalePrice],MATCH(G61,YieldCalcs[Code],0),1)) ->  | W61: =IF(ISERROR(CELL("address",INDEX(YieldCalcs[SalePrice],MATCH(G61,YieldCalcs[Code],0),1))),"",CELL("address",INDEX(YieldCalcs[SalePrice],MATCH(G61,YieldCalcs[Code],0),1))) ->  | AG61: =IF(ISERROR(INDEX(YieldCalcs[SalePrice],MATCH(V61,YieldCalcs[Code],0),1)),"",INDEX(YieldCalcs[SalePrice],MATCH(V61,YieldCalcs[Code],0),1)) -> 
A62: Region | B62: Cut Type | C62: Options | E62: Cut Selection | F62: HAM # | G62: Code | I62: Primal Wt (kg) | J62: Trim | K62: 65vl | L62: 75vl | M62: 85vl | N62: 95vl | O62: Fat | P62: Bone | Q62: Cartilage | R62: Paddywack | S62: Intercostals | T62: Skirt | U62: Rib Ends | V62: Sale Price ($/kg) | W62: Cut Value ($) | X62: GM ($) | Y62: GM (%) | Z62: Target GM (%) | AA62: Target Sale Price ($/kg) | AB62: Total Costs ($/kg) | AC62: PreBone Costs ($/kg) | AD62: Fixed Bone Cost ($/kg) | AE62: Boning Costs ($/kg) | AF62: Total Costs ($) | AG62: Carton Buy-In Price ($/kg)
A63: Rib | B63: Cube Roll | E63: Cube Roll (6 Rib) B/I Lip On (50mm) Cap Off | F63: =IF(ISERROR(INDEX(YieldCalcs[Code],MATCH(E63,YieldCalcs[CutName],0),1)),"",INDEX(YieldCalcs[HAM No],MATCH(E63,YieldCalcs[CutName],0),1)) -> 1601 | G63: =IF(ISERROR(INDEX(YieldCalcs[Code],MATCH(E63,YieldCalcs[CutName],0),1)),"",INDEX(YieldCalcs[Code],MATCH(E63,YieldCalcs[CutName],0),1)) -> FQ08.1 | H63: =IF(ISNA(MATCH(E63,YieldCalcs[CutName],0)),"",MATCH(E63,YieldCalcs[CutName],0)) -> 91 | I63: =IF(ISERROR(INDEX(YieldCalcs[PredWts],MATCH(G63,YieldCalcs[Code],0),1)),"",INDEX(YieldCalcs[PredWts],MATCH(G63,YieldCalcs[Code],0),1)) -> 23.15 | J63: =IF(ISERROR(INDEX(YieldCalcs[PredWts],MATCH(CONCATENATE(G63,"LT"),YieldCalcs[Code],0),1)),"",INDEX(YieldCalcs[PredWts],MATCH(CONCATENATE(G63,"LT"),YieldCalcs[Code],0),1)) -> 0.03 | K63: =IF(ISERROR(INDEX(YieldCalcs[PredWts],MATCH(CONCATENATE(G63,"LT65"),YieldCalcs[Code],0),1)),"",INDEX(YieldCalcs[PredWts],MATCH(CONCATENATE(G63,"LT65"),YieldCalcs[Code],0),1)) -> 0.03 | L63: =IF(ISERROR(INDEX(YieldCalcs[PredWts],MATCH(CONCATENATE(G63,"LT75"),YieldCalcs[Code],0),1)),"",INDEX(YieldCalcs[PredWts],MATCH(CONCATENATE(G63,"LT75"),YieldCalcs[Code],0),1)) -> 0 | M63: =IF(ISERROR(INDEX(YieldCalcs[PredWts],MATCH(CONCATENATE(G63,"LT85"),YieldCalcs[Code],0),1)),"",INDEX(YieldCalcs[PredWts],MATCH(CONCATENATE(G63,"LT85"),YieldCalcs[Code],0),1)) ->  | N63: =IF(ISERROR(INDEX(YieldCalcs[PredWts],MATCH(CONCATENATE(G63,"LT95"),YieldCalcs[Code],0),1)),"",INDEX(YieldCalcs[PredWts],MATCH(CONCATENATE(G63,"LT95"),YieldCalcs[Code],0),1)) ->  | O63: =IF(ISERROR(INDEX(YieldCalcs[PredWts],MATCH(CONCATENATE(G63,"F"),YieldCalcs[Code],0),1)),"",INDEX(YieldCalcs[PredWts],MATCH(CONCATENATE(G63,"F"),YieldCalcs[Code],0),1)) -> 0 | P63: =IF(ISERROR(INDEX(YieldCalcs[PredWts],MATCH(CONCATENATE(G63,"B"),YieldCalcs[Code],0),1)),"",INDEX(YieldCalcs[PredWts],MATCH(CONCATENATE(G63,"B"),YieldCalcs[Code],0),1)) -> 2.19 | Q63: =IF(ISERROR(INDEX(YieldCalcs[PredWts],MATCH(CONCATENATE(G63,"Cart"),YieldCalcs[Code],0),1)),"",INDEX(YieldCalcs[PredWts],MATCH(CONCATENATE(G63,"Cart"),YieldCalcs[Code],0),1)) ->  | R63: =IF(ISERROR(INDEX(YieldCalcs[PredWts],MATCH(CONCATENATE(G63,"Pad"),YieldCalcs[Code],0),1)),"",INDEX(YieldCalcs[PredWts],MATCH(CONCATENATE(G63,"Pad"),YieldCalcs[Code],0),1)) ->  | S63: =IF(ISERROR(INDEX(YieldCalcs[PredWts],MATCH(CONCATENATE(G63,"I"),YieldCalcs[Code],0),1)),"",INDEX(YieldCalcs[PredWts],MATCH(CONCATENATE(G63,"I"),YieldCalcs[Code],0),1)) ->  | T63: =IF(ISERROR(INDEX(YieldCalcs[PredWts],MATCH(CONCATENATE(G63,"Skirt"),YieldCalcs[Code],0),1)),"",INDEX(YieldCalcs[PredWts],MATCH(CONCATENATE(G63,"Skirt"),YieldCalcs[Code],0),1)) ->  | U63: =IF(ISERROR(INDEX(YieldCalcs[PredWts],MATCH(CONCATENATE(G63,"RibEnds"),YieldCalcs[Code],0),1)),"",INDEX(YieldCalcs[PredWts],MATCH(CONCATENATE(G63,"RibEnds"),YieldCalcs[Code],0),1)) ->  | V63: =IF(ISERROR(INDEX(YieldCalcs[SalePrice],MATCH(G63,YieldCalcs[Code],0),1)),"",INDEX(YieldCalcs[SalePrice],MATCH(G63,YieldCalcs[Code],0),1)) -> 5.38 | W63: =IF(ISERROR(INDEX(YieldCalcs[CutValue],MATCH(G63,YieldCalcs[Code],0),1)),"",INDEX(YieldCalcs[CutValue],MATCH(G63,YieldCalcs[Code],0),1)) -> 124.547 | X63: =IF(ISERROR(INDEX(YieldCalcs[GM$],MATCH(G63,YieldCalcs[Code],0),1)),"",INDEX(YieldCalcs[GM$],MATCH(G63,YieldCalcs[Code],0),1)) -> 32.53573849 | Y63: =IF(ISERROR(INDEX(YieldCalcs[GM%],MATCH(G63,YieldCalcs[Code],0),1)),"",INDEX(YieldCalcs[GM%],MATCH(G63,YieldCalcs[Code],0),1)) -> 0.2612326149 | Z63: =IF(ISERROR(INDEX(YieldCalcs[TGM%],MATCH(G63,YieldCalcs[Code],0),1)),"",INDEX(YieldCalcs[TGM%],MATCH(G63,YieldCalcs[Code],0),1)) -> 0.087 | AA63: =IF(ISERROR(INDEX(YieldCalcs[TSalePrice],MATCH(G63,YieldCalcs[Code],0),1)),"",INDEX(YieldCalcs[TSalePrice],MATCH(G63,YieldCalcs[Code],0),1)) -> 4.353306168 | AB63: =IF(ISNUMBER(INDEX(YieldCalcs[TotCostsPerKg],MATCH(G63,YieldCalcs[Code],0),1)),INDEX(YieldCalcs[TotCostsPerKg],MATCH(G63,YieldCalcs[Code],0),1),"") -> 3.974568532 | AC63: =IF(ISERROR(INDEX(YieldCalcs[PreBoneCperkg],MATCH(G63,YieldCalcs[Code],0),1)),"",INDEX(YieldCalcs[PreBoneCperkg],MATCH(G63,YieldCalcs[Code],0),1)) -> 3.41908854 | AD63: =IF(ISERROR(INDEX(YieldCalcs[FixBoneCostperkg],MATCH(G63,YieldCalcs[Code],0),1)),"",INDEX(YieldCalcs[FixBoneCostperkg],MATCH(G63,YieldCalcs[Code],0),1)) -> 0.03547999177 | AE63: =IF(ISERROR(INDEX(YieldCalcs[BoningCost],MATCH(G63,YieldCalcs[Code],0),1)),"",INDEX(YieldCalcs[BoningCost],MATCH(G63,YieldCalcs[Code],0),1)) -> 0.52 | AF63: =IF(ISNUMBER(INDEX(YieldCalcs[TotCosts],MATCH(G63,YieldCalcs[Code],0),1)),INDEX(YieldCalcs[TotCosts],MATCH(G63,YieldCalcs[Code],0),1),"") -> 92.01126151 | AG63: =IF(ISERROR(INDEX(YieldCalcs[BuyInPrice],MATCH(G63,YieldCalcs[Code],0),1)),"",INDEX(YieldCalcs[BuyInPrice],MATCH(G63,YieldCalcs[Code],0),1)) -> 1
C64: Cube Roll | E64: Cap Blade Meat | F64: =IF(ISERROR(INDEX(YieldCalcs[Code],MATCH(E64,YieldCalcs[CutName],0),1)),"",INDEX(YieldCalcs[HAM No],MATCH(E64,YieldCalcs[CutName],0),1)) -> 1697 | G64: =IF(ISERROR(INDEX(YieldCalcs[Code],MATCH(E64,YieldCalcs[CutName],0),1)),"",INDEX(YieldCalcs[Code],MATCH(E64,YieldCalcs[CutName],0),1)) -> FQ08.4FINAL | H64: =IF(ISNA(MATCH(E64,YieldCalcs[CutName],0)),"",MATCH(E64,YieldCalcs[CutName],0)) -> 99 | I64: =IF(ISERROR(INDEX(YieldCalcs[PredWts],MATCH(G64,YieldCalcs[Code],0),1)),"",INDEX(YieldCalcs[PredWts],MATCH(G64,YieldCalcs[Code],0),1)) -> 2.34 | J64: =IF(ISERROR(INDEX(YieldCalcs[PredWts],MATCH(CONCATENATE(G64,"LT"),YieldCalcs[Code],0),1)),"",INDEX(YieldCalcs[PredWts],MATCH(CONCATENATE(G64,"LT"),YieldCalcs[Code],0),1)) -> 0.29 | K64: =IF(ISERROR(INDEX(YieldCalcs[PredWts],MATCH(CONCATENATE(G64,"LT65"),YieldCalcs[Code],0),1)),"",INDEX(YieldCalcs[PredWts],MATCH(CONCATENATE(G64,"LT65"),YieldCalcs[Code],0),1)) -> 0.26 | L64: =IF(ISERROR(INDEX(YieldCalcs[PredWts],MATCH(CONCATENATE(G64,"LT75"),YieldCalcs[Code],0),1)),"",INDEX(YieldCalcs[PredWts],MATCH(CONCATENATE(G64,"LT75"),YieldCalcs[Code],0),1)) -> 0.01 | M64: =IF(ISERROR(INDEX(YieldCalcs[PredWts],MATCH(CONCATENATE(G64,"LT85"),YieldCalcs[Code],0),1)),"",INDEX(YieldCalcs[PredWts],MATCH(CONCATENATE(G64,"LT85"),YieldCalcs[Code],0),1)) -> 0.01 | N64: =IF(ISERROR(INDEX(YieldCalcs[PredWts],MATCH(CONCATENATE(G64,"LT95"),YieldCalcs[Code],0),1)),"",INDEX(YieldCalcs[PredWts],MATCH(CONCATENATE(G64,"LT95"),YieldCalcs[Code],0),1)) ->  | O64: =IF(ISERROR(INDEX(YieldCalcs[PredWts],MATCH(CONCATENATE(G64,"F"),YieldCalcs[Code],0),1)),"",INDEX(YieldCalcs[PredWts],MATCH(CONCATENATE(G64,"F"),YieldCalcs[Code],0),1)) -> 4.91 | P64: =IF(ISERROR(INDEX(YieldCalcs[PredWts],MATCH(CONCATENATE(G64,"B"),YieldCalcs[Code],0),1)),"",INDEX(YieldCalcs[PredWts],MATCH(CONCATENATE(G64,"B"),YieldCalcs[Code],0),1)) ->  | Q64: =IF(ISERROR(INDEX(YieldCalcs[PredWts],MATCH(CONCATENATE(G64,"Cart"),YieldCalcs[Code],0),1)),"",INDEX(YieldCalcs[PredWts],MATCH(CONCATENATE(G64,"Cart"),YieldCalcs[Code],0),1)) ->  | R64: =IF(ISERROR(INDEX(YieldCalcs[PredWts],MATCH(CONCATENATE(G64,"Pad"),YieldCalcs[Code],0),1)),"",INDEX(YieldCalcs[PredWts],MATCH(CONCATENATE(G64,"Pad"),YieldCalcs[Code],0),1)) ->  | S64: =IF(ISERROR(INDEX(YieldCalcs[PredWts],MATCH(CONCATENATE(G64,"I"),YieldCalcs[Code],0),1)),"",INDEX(YieldCalcs[PredWts],MATCH(CONCATENATE(G64,"I"),YieldCalcs[Code],0),1)) ->  | T64: =IF(ISERROR(INDEX(YieldCalcs[PredWts],MATCH(CONCATENATE(G64,"Skirt"),YieldCalcs[Code],0),1)),"",INDEX(YieldCalcs[PredWts],MATCH(CONCATENATE(G64,"Skirt"),YieldCalcs[Code],0),1)) ->  | U64: =IF(ISERROR(INDEX(YieldCalcs[PredWts],MATCH(CONCATENATE(G64,"RibEnds"),YieldCalcs[Code],0),1)),"",INDEX(YieldCalcs[PredWts],MATCH(CONCATENATE(G64,"RibEnds"),YieldCalcs[Code],0),1)) ->  | V64: =IF(ISERROR(INDEX(YieldCalcs[SalePrice],MATCH(G64,YieldCalcs[Code],0),1)),"",INDEX(YieldCalcs[SalePrice],MATCH(G64,YieldCalcs[Code],0),1)) -> 5.55 | W64: =IF(ISERROR(INDEX(YieldCalcs[CutValue],MATCH(G64,YieldCalcs[Code],0),1)),"",INDEX(YieldCalcs[CutValue],MATCH(G64,YieldCalcs[Code],0),1)) -> 12.987 | X64: =IF(ISERROR(INDEX(YieldCalcs[GM$],MATCH(G64,YieldCalcs[Code],0),1)),"",INDEX(YieldCalcs[GM$],MATCH(G64,YieldCalcs[Code],0),1)) -> -14.67504673 | Y64: =IF(ISERROR(INDEX(YieldCalcs[GM%],MATCH(G64,YieldCalcs[Code],0),1)),"",INDEX(YieldCalcs[GM%],MATCH(G64,YieldCalcs[Code],0),1)) -> -1.129979728 | Z64: =IF(ISERROR(INDEX(YieldCalcs[TGM%],MATCH(G64,YieldCalcs[Code],0),1)),"",INDEX(YieldCalcs[TGM%],MATCH(G64,YieldCalcs[Code],0),1)) -> 0.104 | AA64: =IF(ISERROR(INDEX(YieldCalcs[TSalePrice],MATCH(G64,YieldCalcs[Code],0),1)),"",INDEX(YieldCalcs[TSalePrice],MATCH(G64,YieldCalcs[Code],0),1)) -> 13.19351282 | AB64: =IF(ISNUMBER(INDEX(YieldCalcs[TotCostsPerKg],MATCH(G64,YieldCalcs[Code],0),1)),INDEX(YieldCalcs[TotCostsPerKg],MATCH(G64,YieldCalcs[Code],0),1),"") -> 11.82138749 | AC64: =IF(ISERROR(INDEX(YieldCalcs[PreBoneCperkg],MATCH(G64,YieldCalcs[Code],0),1)),"",INDEX(YieldCalcs[PreBoneCperkg],MATCH(G64,YieldCalcs[Code],0),1)) -> 11.01706307 | AD64: =IF(ISERROR(INDEX(YieldCalcs[FixBoneCostperkg],MATCH(G64,YieldCalcs[Code],0),1)),"",INDEX(YieldCalcs[FixBoneCostperkg],MATCH(G64,YieldCalcs[Code],0),1)) -> 0.1143244179 | AE64: =IF(ISERROR(INDEX(YieldCalcs[BoningCost],MATCH(G64,YieldCalcs[Code],0),1)),"",INDEX(YieldCalcs[BoningCost],MATCH(G64,YieldCalcs[Code],0),1)) -> 0.69 | AF64: =IF(ISNUMBER(INDEX(YieldCalcs[TotCosts],MATCH(G64,YieldCalcs[Code],0),1)),INDEX(YieldCalcs[TotCosts],MATCH(G64,YieldCalcs[Code],0),1),"") -> 27.66204673 | AG64: =IF(ISERROR(INDEX(YieldCalcs[BuyInPrice],MATCH(G64,YieldCalcs[Code],0),1)),"",INDEX(YieldCalcs[BuyInPrice],MATCH(G64,YieldCalcs[Code],0),1)) -> 0
A65: REC% | B65: =SUM(I63:J69,O63:U69)/INDEX(YieldCalcs[PredWts],MATCH("FQ08.0",YieldCalcs[Code],0),1) -> 0.8399693721 | F65: =IF(ISERROR(INDEX(YieldCalcs[Code],MATCH(E65,YieldCalcs[CutName],0),1)),"",INDEX(YieldCalcs[HAM No],MATCH(E65,YieldCalcs[CutName],0),1)) ->  | G65: =IF(ISERROR(INDEX(YieldCalcs[Code],MATCH(E65,YieldCalcs[CutName],0),1)),"",INDEX(YieldCalcs[Code],MATCH(E65,YieldCalcs[CutName],0),1)) ->  | H65: =IF(ISNA(MATCH(E65,YieldCalcs[CutName],0)),"",MATCH(E65,YieldCalcs[CutName],0)) ->  | I65: =IF(ISERROR(INDEX(YieldCalcs[PredWts],MATCH(G65,YieldCalcs[Code],0),1)),"",INDEX(YieldCalcs[PredWts],MATCH(G65,YieldCalcs[Code],0),1)) ->  | J65: =IF(ISERROR(INDEX(YieldCalcs[PredWts],MATCH(CONCATENATE(G65,"LT"),YieldCalcs[Code],0),1)),"",INDEX(YieldCalcs[PredWts],MATCH(CONCATENATE(G65,"LT"),YieldCalcs[Code],0),1)) ->  | K65: =IF(ISERROR(INDEX(YieldCalcs[PredWts],MATCH(CONCATENATE(G65,"LT65"),YieldCalcs[Code],0),1)),"",INDEX(YieldCalcs[PredWts],MATCH(CONCATENATE(G65,"LT65"),YieldCalcs[Code],0),1)) ->  | L65: =IF(ISERROR(INDEX(YieldCalcs[PredWts],MATCH(CONCATENATE(G65,"LT75"),YieldCalcs[Code],0),1)),"",INDEX(YieldCalcs[PredWts],MATCH(CONCATENATE(G65,"LT75"),YieldCalcs[Code],0),1)) ->  | M65: =IF(ISERROR(INDEX(YieldCalcs[PredWts],MATCH(CONCATENATE(G65,"LT85"),YieldCalcs[Code],0),1)),"",INDEX(YieldCalcs[PredWts],MATCH(CONCATENATE(G65,"LT85"),YieldCalcs[Code],0),1)) ->  | N65: =IF(ISERROR(INDEX(YieldCalcs[PredWts],MATCH(CONCATENATE(G65,"LT95"),YieldCalcs[Code],0),1)),"",INDEX(YieldCalcs[PredWts],MATCH(CONCATENATE(G65,"LT95"),YieldCalcs[Code],0),1)) ->  | O65: =IF(ISERROR(INDEX(YieldCalcs[PredWts],MATCH(CONCATENATE(G65,"F"),YieldCalcs[Code],0),1)),"",INDEX(YieldCalcs[PredWts],MATCH(CONCATENATE(G65,"F"),YieldCalcs[Code],0),1)) ->  | P65: =IF(ISERROR(INDEX(YieldCalcs[PredWts],MATCH(CONCATENATE(G65,"B"),YieldCalcs[Code],0),1)),"",INDEX(YieldCalcs[PredWts],MATCH(CONCATENATE(G65,"B"),YieldCalcs[Code],0),1)) ->  | Q65: =IF(ISERROR(INDEX(YieldCalcs[PredWts],MATCH(CONCATENATE(G65,"Cart"),YieldCalcs[Code],0),1)),"",INDEX(YieldCalcs[PredWts],MATCH(CONCATENATE(G65,"Cart"),YieldCalcs[Code],0),1)) ->  | R65: =IF(ISERROR(INDEX(YieldCalcs[PredWts],MATCH(CONCATENATE(G65,"Pad"),YieldCalcs[Code],0),1)),"",INDEX(YieldCalcs[PredWts],MATCH(CONCATENATE(G65,"Pad"),YieldCalcs[Code],0),1)) ->  | S65: =IF(ISERROR(INDEX(YieldCalcs[PredWts],MATCH(CONCATENATE(G65,"I"),YieldCalcs[Code],0),1)),"",INDEX(YieldCalcs[PredWts],MATCH(CONCATENATE(G65,"I"),YieldCalcs[Code],0),1)) ->  | T65: =IF(ISERROR(INDEX(YieldCalcs[PredWts],MATCH(CONCATENATE(G65,"Skirt"),YieldCalcs[Code],0),1)),"",INDEX(YieldCalcs[PredWts],MATCH(CONCATENATE(G65,"Skirt"),YieldCalcs[Code],0),1)) ->  | U65: =IF(ISERROR(INDEX(YieldCalcs[PredWts],MATCH(CONCATENATE(G65,"RibEnds"),YieldCalcs[Code],0),1)),"",INDEX(YieldCalcs[PredWts],MATCH(CONCATENATE(G65,"RibEnds"),YieldCalcs[Code],0),1)) ->  | V65: =IF(ISERROR(INDEX(YieldCalcs[SalePrice],MATCH(G65,YieldCalcs[Code],0),1)),"",INDEX(YieldCalcs[SalePrice],MATCH(G65,YieldCalcs[Code],0),1)) ->  | W65: =IF(ISERROR(INDEX(YieldCalcs[CutValue],MATCH(G65,YieldCalcs[Code],0),1)),"",INDEX(YieldCalcs[CutValue],MATCH(G65,YieldCalcs[Code],0),1)) ->  | X65: =IF(ISERROR(INDEX(YieldCalcs[GM$],MATCH(G65,YieldCalcs[Code],0),1)),"",INDEX(YieldCalcs[GM$],MATCH(G65,YieldCalcs[Code],0),1)) ->  | Y65: =IF(ISERROR(INDEX(YieldCalcs[GM%],MATCH(G65,YieldCalcs[Code],0),1)),"",INDEX(YieldCalcs[GM%],MATCH(G65,YieldCalcs[Code],0),1)) ->  | Z65: =IF(ISERROR(INDEX(YieldCalcs[TGM%],MATCH(G65,YieldCalcs[Code],0),1)),"",INDEX(YieldCalcs[TGM%],MATCH(G65,YieldCalcs[Code],0),1)) ->  | AA65: =IF(ISERROR(INDEX(YieldCalcs[TSalePrice],MATCH(G65,YieldCalcs[Code],0),1)),"",INDEX(YieldCalcs[TSalePrice],MATCH(G65,YieldCalcs[Code],0),1)) ->  | AB65: =IF(ISNUMBER(INDEX(YieldCalcs[TotCostsPerKg],MATCH(G65,YieldCalcs[Code],0),1)),INDEX(YieldCalcs[TotCostsPerKg],MATCH(G65,YieldCalcs[Code],0),1),"") ->  | AC65: =IF(ISERROR(INDEX(YieldCalcs[PreBoneCperkg],MATCH(G65,YieldCalcs[Code],0),1)),"",INDEX(YieldCalcs[PreBoneCperkg],MATCH(G65,YieldCalcs[Code],0),1)) ->  | AD65: =IF(ISERROR(INDEX(YieldCalcs[FixBoneCostperkg],MATCH(G65,YieldCalcs[Code],0),1)),"",INDEX(YieldCalcs[FixBoneCostperkg],MATCH(G65,YieldCalcs[Code],0),1)) ->  | AE65: =IF(ISERROR(INDEX(YieldCalcs[BoningCost],MATCH(G65,YieldCalcs[Code],0),1)),"",INDEX(YieldCalcs[BoningCost],MATCH(G65,YieldCalcs[Code],0),1)) ->  | AF65: =IF(ISNUMBER(INDEX(YieldCalcs[TotCosts],MATCH(G65,YieldCalcs[Code],0),1)),INDEX(YieldCalcs[TotCosts],MATCH(G65,YieldCalcs[Code],0),1),"") ->  | AG65: =IF(ISERROR(INDEX(YieldCalcs[BuyInPrice],MATCH(G65,YieldCalcs[Code],0),1)),"",INDEX(YieldCalcs[BuyInPrice],MATCH(G65,YieldCalcs[Code],0),1)) -> 
A66: =IF(Lists!F208=1,"WARNING: Check Recovery","") ->  | F66: =IF(ISERROR(INDEX(YieldCalcs[Code],MATCH(E66,YieldCalcs[CutName],0),1)),"",INDEX(YieldCalcs[HAM No],MATCH(E66,YieldCalcs[CutName],0),1)) ->  | G66: =IF(ISERROR(INDEX(YieldCalcs[Code],MATCH(E66,YieldCalcs[CutName],0),1)),"",INDEX(YieldCalcs[Code],MATCH(E66,YieldCalcs[CutName],0),1)) ->  | H66: =IF(ISNA(MATCH(E66,YieldCalcs[CutName],0)),"",MATCH(E66,YieldCalcs[CutName],0)) ->  | I66: =IF(ISERROR(INDEX(YieldCalcs[PredWts],MATCH(G66,YieldCalcs[Code],0),1)),"",INDEX(YieldCalcs[PredWts],MATCH(G66,YieldCalcs[Code],0),1)) ->  | J66: =IF(ISERROR(INDEX(YieldCalcs[PredWts],MATCH(CONCATENATE(G66,"LT"),YieldCalcs[Code],0),1)),"",INDEX(YieldCalcs[PredWts],MATCH(CONCATENATE(G66,"LT"),YieldCalcs[Code],0),1)) ->  | K66: =IF(ISERROR(INDEX(YieldCalcs[PredWts],MATCH(CONCATENATE(G66,"LT65"),YieldCalcs[Code],0),1)),"",INDEX(YieldCalcs[PredWts],MATCH(CONCATENATE(G66,"LT65"),YieldCalcs[Code],0),1)) ->  | L66: =IF(ISERROR(INDEX(YieldCalcs[PredWts],MATCH(CONCATENATE(G66,"LT75"),YieldCalcs[Code],0),1)),"",INDEX(YieldCalcs[PredWts],MATCH(CONCATENATE(G66,"LT75"),YieldCalcs[Code],0),1)) ->  | M66: =IF(ISERROR(INDEX(YieldCalcs[PredWts],MATCH(CONCATENATE(G66,"LT85"),YieldCalcs[Code],0),1)),"",INDEX(YieldCalcs[PredWts],MATCH(CONCATENATE(G66,"LT85"),YieldCalcs[Code],0),1)) ->  | N66: =IF(ISERROR(INDEX(YieldCalcs[PredWts],MATCH(CONCATENATE(G66,"LT95"),YieldCalcs[Code],0),1)),"",INDEX(YieldCalcs[PredWts],MATCH(CONCATENATE(G66,"LT95"),YieldCalcs[Code],0),1)) ->  | O66: =IF(ISERROR(INDEX(YieldCalcs[PredWts],MATCH(CONCATENATE(G66,"F"),YieldCalcs[Code],0),1)),"",INDEX(YieldCalcs[PredWts],MATCH(CONCATENATE(G66,"F"),YieldCalcs[Code],0),1)) ->  | P66: =IF(ISERROR(INDEX(YieldCalcs[PredWts],MATCH(CONCATENATE(G66,"B"),YieldCalcs[Code],0),1)),"",INDEX(YieldCalcs[PredWts],MATCH(CONCATENATE(G66,"B"),YieldCalcs[Code],0),1)) ->  | Q66: =IF(ISERROR(INDEX(YieldCalcs[PredWts],MATCH(CONCATENATE(G66,"Cart"),YieldCalcs[Code],0),1)),"",INDEX(YieldCalcs[PredWts],MATCH(CONCATENATE(G66,"Cart"),YieldCalcs[Code],0),1)) ->  | R66: =IF(ISERROR(INDEX(YieldCalcs[PredWts],MATCH(CONCATENATE(G66,"Pad"),YieldCalcs[Code],0),1)),"",INDEX(YieldCalcs[PredWts],MATCH(CONCATENATE(G66,"Pad"),YieldCalcs[Code],0),1)) ->  | S66: =IF(ISERROR(INDEX(YieldCalcs[PredWts],MATCH(CONCATENATE(G66,"I"),YieldCalcs[Code],0),1)),"",INDEX(YieldCalcs[PredWts],MATCH(CONCATENATE(G66,"I"),YieldCalcs[Code],0),1)) ->  | T66: =IF(ISERROR(INDEX(YieldCalcs[PredWts],MATCH(CONCATENATE(G66,"Skirt"),YieldCalcs[Code],0),1)),"",INDEX(YieldCalcs[PredWts],MATCH(CONCATENATE(G66,"Skirt"),YieldCalcs[Code],0),1)) ->  | U66: =IF(ISERROR(INDEX(YieldCalcs[PredWts],MATCH(CONCATENATE(G66,"RibEnds"),YieldCalcs[Code],0),1)),"",INDEX(YieldCalcs[PredWts],MATCH(CONCATENATE(G66,"RibEnds"),YieldCalcs[Code],0),1)) ->  | V66: =IF(ISERROR(INDEX(YieldCalcs[SalePrice],MATCH(G66,YieldCalcs[Code],0),1)),"",INDEX(YieldCalcs[SalePrice],MATCH(G66,YieldCalcs[Code],0),1)) ->  | W66: =IF(ISERROR(INDEX(YieldCalcs[CutValue],MATCH(G66,YieldCalcs[Code],0),1)),"",INDEX(YieldCalcs[CutValue],MATCH(G66,YieldCalcs[Code],0),1)) ->  | X66: =IF(ISERROR(INDEX(YieldCalcs[GM$],MATCH(G66,YieldCalcs[Code],0),1)),"",INDEX(YieldCalcs[GM$],MATCH(G66,YieldCalcs[Code],0),1)) ->  | Y66: =IF(ISERROR(INDEX(YieldCalcs[GM%],MATCH(G66,YieldCalcs[Code],0),1)),"",INDEX(YieldCalcs[GM%],MATCH(G66,YieldCalcs[Code],0),1)) ->  | Z66: =IF(ISERROR(INDEX(YieldCalcs[TGM%],MATCH(G66,YieldCalcs[Code],0),1)),"",INDEX(YieldCalcs[TGM%],MATCH(G66,YieldCalcs[Code],0),1)) ->  | AA66: =IF(ISERROR(INDEX(YieldCalcs[TSalePrice],MATCH(G66,YieldCalcs[Code],0),1)),"",INDEX(YieldCalcs[TSalePrice],MATCH(G66,YieldCalcs[Code],0),1)) ->  | AB66: =IF(ISNUMBER(INDEX(YieldCalcs[TotCostsPerKg],MATCH(G66,YieldCalcs[Code],0),1)),INDEX(YieldCalcs[TotCostsPerKg],MATCH(G66,YieldCalcs[Code],0),1),"") ->  | AC66: =IF(ISERROR(INDEX(YieldCalcs[PreBoneCperkg],MATCH(G66,YieldCalcs[Code],0),1)),"",INDEX(YieldCalcs[PreBoneCperkg],MATCH(G66,YieldCalcs[Code],0),1)) ->  | AD66: =IF(ISERROR(INDEX(YieldCalcs[FixBoneCostperkg],MATCH(G66,YieldCalcs[Code],0),1)),"",INDEX(YieldCalcs[FixBoneCostperkg],MATCH(G66,YieldCalcs[Code],0),1)) ->  | AE66: =IF(ISERROR(INDEX(YieldCalcs[BoningCost],MATCH(G66,YieldCalcs[Code],0),1)),"",INDEX(YieldCalcs[BoningCost],MATCH(G66,YieldCalcs[Code],0),1)) ->  | AF66: =IF(ISNUMBER(INDEX(YieldCalcs[TotCosts],MATCH(G66,YieldCalcs[Code],0),1)),INDEX(YieldCalcs[TotCosts],MATCH(G66,YieldCalcs[Code],0),1),"") ->  | AG66: =IF(ISERROR(INDEX(YieldCalcs[BuyInPrice],MATCH(G66,YieldCalcs[Code],0),1)),"",INDEX(YieldCalcs[BuyInPrice],MATCH(G66,YieldCalcs[Code],0),1)) -> 
